Workbook

Sheet Dropdownmenue (hidden)
B3: Großveranstaltung (z.B. Festival, Messe, Konzert)
B4: Lieferdienst
B5: weitere Dienstleistungen mit täglichem Geschirrbedarf (z.B. Kantinen, Restaurants)
B8: einmalig
B9: regelmäßig/wiederkehrend
B12: Kaufen
B13: Leihen
B14: beides denkbar
B16: (Döner)-Tasche / Pita | C16: Heißgetränk, Kaffee, 0,2 - 0,25 L | D16: Gabeln
B17: Bratwurst | C17: Heißgetränk, Kaffee, 0,3 L (oder größer) | D17: Löffel, groß
B18: Burger | C18: Kaltgetränk, Becher, 0,2 L (Cocktail) | D18: Löffel, klein
B19: Currys / Bowls | C19: Kaltgetränk, Becher, 0,2 L (z.B. Bier, Wasser) | D19: Messer
B20: Currywurst | C20: Kaltgetränk, Becher, 0,3 L (Cocktail) | D20: Piekser
B21: Eis | C21: Kaltgetränk, Becher, 0,3 L (z.B. Bier, Wasser) | D21: Servietten
B22: Pizza (Stück) / Pide / Crêpes | C22: Kaltgetränk, Becher, 0,4 L (Cocktail) | D22: Spieß (Schmalzkuchen)
B23: Pizza / Flammkuchen (groß, komplett) | C23: Kaltgetränk, Becher, 0,4 L (z.B. Bier, Wasser) | D23: Strohhalme
B24: Pommes | C24: Kaltgetränk, Becher, 0,5 L (Cocktail) | D24: ...
B25: Suppen / Eintöpfe | C25: Kaltgetränk, Becher, 0,5 L (z.B. Bier, Wasser) | D25: ...
B26: Wraps / Falafel / Lahmacun / Rollo / Sandwich | C26: Kaltgetränk, Becher, 1,0 L (z.B. Bier, Wasser) | D26: ...
B27: --- SONSTIGE ESSEN --- | C27: Sektglas | D27: ...
B28: Bowl, groß, > 750 ml | C28: Shot | D28: ...
B29: Bowl, klein, < 750 ml | C29: Weinglas / Aperitif | D29: ...
B30: Essen auf die Hand (Fettpapier, Serviette, usw.) | C30: ... | D30: ...
B31: Gericht am Spieß
B32: Gericht aus Gefäß (Becher, Glas), groß
B33: Gericht aus Gefäß (z.B. für Probierportion, Fingerfood), klein | C33: ... | D33: ...
B34: Gericht aus Snackbox | C34: ... | D34: ...
B35: Tellergericht, groß, > 22 cm
B36: Tellergericht, klein, < 22 cm
B39: Spüloption vor Ort
B40: ja
B41: nein
B43: Mülltrennung
B44: ja
B45: nein
B47: Branding
B49: Spüloption Durchschnittswerte für Berechnung nutzen | C49: FALSE | D49: =DSS!F110+DSS!F111+DSS!F112 -> 1
B51: Anlieferung auf 0 km Transport setzen | C51: FALSE
B58: Durchschnittswerte | C58: FALSE
B59: detaillierte Angaben | C59: FALSE
B63: Anforderungen an das Material:
B65: essbar | C65: FALSE
B66: biologisch abbaubar | C66: FALSE
B67: kein Plastik | C67: FALSE
B68: kein Einweg | C68: FALSE
B69: kein Glas / Keramik | C69: FALSE
B70: ... | C70: TRUE
B71: ... | C71: TRUE
B72: ... | C72: TRUE
B74: Branding | C74: FALSE
B75: ausreichend Servietten | C75: =IF('Tab-Ergebnis-GWP-GV'!G435<=0,TRUE,FALSE) -> TRUE
B80: Klimawandel
B81: Ressourcenverbrauch
B82: Wassernutzung
B85: Distanz zum Spülen in km | C85: 0
C86: 10
C87: 20
C88: 30
C89: 40
C90: 50
C91: 60
C92: 70
C93: 80
C94: 90
C95: 100
C96: 150
C97: 200
C98: 250
C99: 300
C100: 350
C101: 400
C102: 450
C103: 500
C104: 600
C105: 700
C106: 800
B110: Umlaufzahlen
B112: gering | C112: FALSE
B113: mittel | C113: FALSE
B114: hoch | C114: FALSE
B120: Anteile Spüloptionen | C120: 0
C121: 0.01
C122: 0.02
C123: 0.03
C124: 0.04
C125: 0.05
C126: 0.06
C127: 0.07
C128: 0.08
C129: 0.09
C130: 0.1
C131: 0.11
C132: 0.12
C133: 0.13
C134: 0.14
C135: 0.15
C136: 0.16
C137: 0.17
C138: 0.18
C139: 0.19
C140: 0.2
C141: 0.21
C142: 0.22
C143: 0.23
C144: 0.24
C145: 0.25
C146: 0.26
C147: 0.27
C148: 0.28
C149: 0.29
C150: 0.3
C151: 0.31
C152: 0.32
C153: 0.33
C154: 0.34
C155: 0.35
C156: 0.36
C157: 0.37
C158: 0.38
C159: 0.39
C160: 0.4
C161: 0.41
C162: 0.42
C163: 0.43
C164: 0.44
C165: 0.45
C166: 0.46
C167: 0.47
C168: 0.48
C169: 0.49
C170: 0.5
C171: 0.51
C172: 0.52
C173: 0.53
C174: 0.54
C175: 0.55
C176: 0.56
C177: 0.57
C178: 0.58
C179: 0.59
C180: 0.6
C181: 0.61
C182: 0.62
C183: 0.63
C184: 0.64
C185: 0.65
C186: 0.66
C187: 0.67
C188: 0.68
C189: 0.69
C190: 0.7
C191: 0.71
C192: 0.72
C193: 0.73
C194: 0.74
C195: 0.75
C196: 0.76
C197: 0.77
C198: 0.78
C199: 0.79
C200: 0.8
C201: 0.81
C202: 0.82
C203: 0.83
C204: 0.84
C205: 0.85
C206: 0.86
C207: 0.87
C208: 0.88
C209: 0.89
C210: 0.9
C211: 0.91
C212: 0.92
C213: 0.93
C214: 0.94
C215: 0.95
C216: 0.96
C217: 0.97
C218: 0.98
C219: 0.99
C220: 1

Sheet Ergebnis-WDP-GV (hidden)
D6: DECISION SUPPORT SYSTEM (DSS)
B9: ENTSCHEIDUNGSTOOL ZUR AUSWAHL VON NACHHALTIGEM GESCHIRR
E12: Die Wassernutzung (als WDP), des unter Berücksichtung der Anforderungen ausgewählten Geschirrs, beträgt für die gesamte Veranstaltung: | I12: =N150 -> 0 | J12: m³ | K12: …weitere Informationen!
F14: Der Ressourcenverbrauch (ADP) beträgt für die gesamte Veranstaltung: | I14: =M150 -> 0 | J14: kg Sb-Äq.
F15: Der CO₂-Fußabdruck (GWP) beträgt für die gesamte Veranstaltung: | I15: =ROUND(O150,0) -> 0 | J15: kg CO2-Äq.
H17: Dauer der Veranstaltung in Tagen: | I17: =DSS!D25 -> 0
H18: Besucher:innen gesamt: | I18: =DSS!D28*I17 -> 0
H19: Anzahl Geschirr gesamt: | I19: ='Tab-Ergebnis-WDP-GV'!EO96 -> 0
H20: Portionen Essen pro Besucher:in: | I20: ='Tab-Ergebnis-WDP-GV'!ER73/I18 -> 
H21: Getränke pro Besucher:in: | I21: ='Tab-Ergebnis-WDP-GV'!ER87/I18 -> 
H22: Spüloption vor Ort: | I22: =IF(DSS!E107<>0,"nein","ja") -> ja
H23: Anlieferung Geschirr: | I23: =IF(DSS!E103<>0,"ja","nein") -> nein
H24: =IF(I22="nein","Transportentfernung zum Spülen von Mehrweg (nur Hinweg) in km:",IF(AND(I22="ja",I23="nein"),"",IF(AND(I22="ja",I23="ja"),"Transportentfernung zur Anlieferung von Geschirr in km:",""))) ->  | I24: =IF(I22="nein",DSS!E107,IF(AND(I22="ja",I23="nein"),"",IF(AND(I22="ja",I23="ja"),DSS!E103,""))) -> 
H25: Wirkungskategorie, nach der ausgewertet wird: | I25: Wassernutzung
C27: TABELLARISCHE ERGEBNISSE - VORSCHLAG FÜR IHRE GESCHIRRAUSWAHL
E28: Tab. 1: Geschirrbedarf, -spezifikationen und Emissionen gesamt (Essen): | M28: Ressourcenverbrauch [ADP; kg Sb-Äq./Veranstaltung] | N28: Wassernutzung [WDP; m³/Veranstaltung] | O28: Klimawandel [GWP; kg CO₂-Äq./Veranstaltung]
E29: Auswahl DSS | F29: Produkt / Geschirrmodell (Vorschlag des DSS) | G29: Alternative ("A"; sofern keine Option hinsichtlich der Auswahlkriterien verfügbar) | H29: Einweg / Mehrweg | I29: Essbar? | J29: Biologisch abbaubar? | K29: Material | L29: Menge [Anzahl Geschirr] | M29: Ressourcenverbrauch [ADP; kg Sb-Äq./Veranstaltung] | N29: Wassernutzung [WDP; m3/Veranstaltung] | O29: Klimawandel [GWP; kg CO₂-Äq./Veranstaltung] | P29: Doppelte Werte | Q29: Menge relevant für die Berechnung [Anzahl Geschirr]
E30: ='Tab-Ergebnis-WDP-GV'!E54 ->  | F30: ='Tab-Ergebnis-WDP-GV'!F54 ->  | G30: ='Tab-Ergebnis-WDP-GV'!C54 ->  | H30: =IF('Tab-Ergebnis-WDP-GV'!N54="M","Mehrweg",IF('Tab-Ergebnis-WDP-GV'!N54="E","Einweg","")) ->  | I30: =IF('Tab-Ergebnis-WDP-GV'!P54=FALSE,"nein",IF('Tab-Ergebnis-WDP-GV'!P54=TRUE,"ja","")) ->  | J30: =IF('Tab-Ergebnis-WDP-GV'!Q54=FALSE,"nein",IF('Tab-Ergebnis-WDP-GV'!Q54=TRUE,"ja","")) ->  | K30: ='Tab-Ergebnis-WDP-GV'!I54 ->  | L30: =IF(DSS!F40<>0,IF(H30="Mehrweg",DSS!F40,DSS!F40*DSS!$D$25),"") ->  | M30: =IF(Q30<>"",IF(Q30=DSS!F40,('Tab-Ergebnis-WDP-GV'!CM54*Q30*DSS!$D$25)-(((DSS!$D$25*Q30)-Q30)*'Tab-Ergebnis-WDP-GV'!CC54),'Tab-Ergebnis-WDP-GV'!CM54*Q30),"") ->  | N30: =IF(Q30<>"",IF(Q30=DSS!F40,('Tab-Ergebnis-WDP-GV'!CN54*Q30*DSS!$D$25)-(((DSS!$D$25*Q30)-Q30)*'Tab-Ergebnis-WDP-GV'!CD54),'Tab-Ergebnis-WDP-GV'!CN54*Q30),"") ->  | O30: =IF(Q30<>"",IF(Q30=DSS!F40,('Tab-Ergebnis-WDP-GV'!CL54*Q30*DSS!$D$25)-(((DSS!$D$25*Q30)-Q30)*'Tab-Ergebnis-WDP-GV'!CB54),'Tab-Ergebnis-WDP-GV'!CL54*Q30),"") ->  | P30: =COUNTIF($E$30:$E$49,E30) -> 20 | Q30: =IF(DSS!F40<>0,IF(AND(Haupttabelle!$CK$1="ja",H30="Mehrweg"),DSS!F40,DSS!F40*DSS!$D$25),"") -> 
E31: ='Tab-Ergebnis-WDP-GV'!E55 ->  | F31: ='Tab-Ergebnis-WDP-GV'!F55 ->  | G31: ='Tab-Ergebnis-WDP-GV'!C55 ->  | H31: =IF('Tab-Ergebnis-WDP-GV'!N55="M","Mehrweg",IF('Tab-Ergebnis-WDP-GV'!N55="E","Einweg","")) ->  | I31: =IF('Tab-Ergebnis-WDP-GV'!P55=FALSE,"nein",IF('Tab-Ergebnis-WDP-GV'!P55=TRUE,"ja","")) ->  | J31: =IF('Tab-Ergebnis-WDP-GV'!Q55=FALSE,"nein",IF('Tab-Ergebnis-WDP-GV'!Q55=TRUE,"ja","")) ->  | K31: ='Tab-Ergebnis-WDP-GV'!I55 ->  | L31: =IF(DSS!F41<>0,IF(H31="Mehrweg",DSS!F41,DSS!F41*DSS!$D$25),"") ->  | M31: =IF(Q31<>"",IF(Q31=DSS!F41,('Tab-Ergebnis-WDP-GV'!CM55*Q31*DSS!$D$25)-(((DSS!$D$25*Q31)-Q31)*'Tab-Ergebnis-WDP-GV'!CC55),'Tab-Ergebnis-WDP-GV'!CM55*Q31),"") ->  | N31: =IF(Q31<>"",IF(Q31=DSS!F41,('Tab-Ergebnis-WDP-GV'!CN55*Q31*DSS!$D$25)-(((DSS!$D$25*Q31)-Q31)*'Tab-Ergebnis-WDP-GV'!CD55),'Tab-Ergebnis-WDP-GV'!CN55*Q31),"") ->  | O31: =IF(Q31<>"",IF(Q31=DSS!F41,('Tab-Ergebnis-WDP-GV'!CL55*Q31*DSS!$D$25)-(((DSS!$D$25*Q31)-Q31)*'Tab-Ergebnis-WDP-GV'!CB55),'Tab-Ergebnis-WDP-GV'!CL55*Q31),"") ->  | P31: =COUNTIF($E$30:$E$49,E31) -> 20 | Q31: =IF(DSS!F41<>0,IF(AND(Haupttabelle!$CK$1="ja",H31="Mehrweg"),DSS!F41,DSS!F41*DSS!$D$25),"") -> 
E32: ='Tab-Ergebnis-WDP-GV'!E56 ->  | F32: ='Tab-Ergebnis-WDP-GV'!F56 ->  | G32: ='Tab-Ergebnis-WDP-GV'!C56 ->  | H32: =IF('Tab-Ergebnis-WDP-GV'!N56="M","Mehrweg",IF('Tab-Ergebnis-WDP-GV'!N56="E","Einweg","")) ->  | I32: =IF('Tab-Ergebnis-WDP-GV'!P56=FALSE,"nein",IF('Tab-Ergebnis-WDP-GV'!P56=TRUE,"ja","")) ->  | J32: =IF('Tab-Ergebnis-WDP-GV'!Q56=FALSE,"nein",IF('Tab-Ergebnis-WDP-GV'!Q56=TRUE,"ja","")) ->  | K32: ='Tab-Ergebnis-WDP-GV'!I56 ->  | L32: =IF(DSS!F42<>0,IF(H32="Mehrweg",DSS!F42,DSS!F42*DSS!$D$25),"") ->  | M32: =IF(Q32<>"",IF(Q32=DSS!F42,('Tab-Ergebnis-WDP-GV'!CM56*Q32*DSS!$D$25)-(((DSS!$D$25*Q32)-Q32)*'Tab-Ergebnis-WDP-GV'!CC56),'Tab-Ergebnis-WDP-GV'!CM56*Q32),"") ->  | N32: =IF(Q32<>"",IF(Q32=DSS!F42,('Tab-Ergebnis-WDP-GV'!CN56*Q32*DSS!$D$25)-(((DSS!$D$25*Q32)-Q32)*'Tab-Ergebnis-WDP-GV'!CD56),'Tab-Ergebnis-WDP-GV'!CN56*Q32),"") ->  | O32: =IF(Q32<>"",IF(Q32=DSS!F42,('Tab-Ergebnis-WDP-GV'!CL56*Q32*DSS!$D$25)-(((DSS!$D$25*Q32)-Q32)*'Tab-Ergebnis-WDP-GV'!CB56),'Tab-Ergebnis-WDP-GV'!CL56*Q32),"") ->  | P32: 20 | Q32: =IF(DSS!F42<>0,IF(AND(Haupttabelle!$CK$1="ja",H32="Mehrweg"),DSS!F42,DSS!F42*DSS!$D$25),"") -> 
E33: ='Tab-Ergebnis-WDP-GV'!E57 ->  | F33: ='Tab-Ergebnis-WDP-GV'!F57 ->  | G33: ='Tab-Ergebnis-WDP-GV'!C57 ->  | H33: =IF('Tab-Ergebnis-WDP-GV'!N57="M","Mehrweg",IF('Tab-Ergebnis-WDP-GV'!N57="E","Einweg","")) ->  | I33: =IF('Tab-Ergebnis-WDP-GV'!P57=FALSE,"nein",IF('Tab-Ergebnis-WDP-GV'!P57=TRUE,"ja","")) ->  | J33: =IF('Tab-Ergebnis-WDP-GV'!Q57=FALSE,"nein",IF('Tab-Ergebnis-WDP-GV'!Q57=TRUE,"ja","")) ->  | K33: ='Tab-Ergebnis-WDP-GV'!I57 ->  | L33: =IF(DSS!F43<>0,IF(H33="Mehrweg",DSS!F43,DSS!F43*DSS!$D$25),"") ->  | M33: =IF(Q33<>"",IF(Q33=DSS!F43,('Tab-Ergebnis-WDP-GV'!CM57*Q33*DSS!$D$25)-(((DSS!$D$25*Q33)-Q33)*'Tab-Ergebnis-WDP-GV'!CC57),'Tab-Ergebnis-WDP-GV'!CM57*Q33),"") ->  | N33: =IF(Q33<>"",IF(Q33=DSS!F43,('Tab-Ergebnis-WDP-GV'!CN57*Q33*DSS!$D$25)-(((DSS!$D$25*Q33)-Q33)*'Tab-Ergebnis-WDP-GV'!CD57),'Tab-Ergebnis-WDP-GV'!CN57*Q33),"") ->  | O33: =IF(Q33<>"",IF(Q33=DSS!F43,('Tab-Ergebnis-WDP-GV'!CL57*Q33*DSS!$D$25)-(((DSS!$D$25*Q33)-Q33)*'Tab-Ergebnis-WDP-GV'!CB57),'Tab-Ergebnis-WDP-GV'!CL57*Q33),"") ->  | P33: 20 | Q33: =IF(DSS!F43<>0,IF(AND(Haupttabelle!$CK$1="ja",H33="Mehrweg"),DSS!F43,DSS!F43*DSS!$D$25),"") -> 
E34: ='Tab-Ergebnis-WDP-GV'!E58 ->  | F34: ='Tab-Ergebnis-WDP-GV'!F58 ->  | G34: ='Tab-Ergebnis-WDP-GV'!C58 ->  | H34: =IF('Tab-Ergebnis-WDP-GV'!N58="M","Mehrweg",IF('Tab-Ergebnis-WDP-GV'!N58="E","Einweg","")) ->  | I34: =IF('Tab-Ergebnis-WDP-GV'!P58=FALSE,"nein",IF('Tab-Ergebnis-WDP-GV'!P58=TRUE,"ja","")) ->  | J34: =IF('Tab-Ergebnis-WDP-GV'!Q58=FALSE,"nein",IF('Tab-Ergebnis-WDP-GV'!Q58=TRUE,"ja","")) ->  | K34: ='Tab-Ergebnis-WDP-GV'!I58 ->  | L34: =IF(DSS!F44<>0,IF(H34="Mehrweg",DSS!F44,DSS!F44*DSS!$D$25),"") ->  | M34: =IF(Q34<>"",IF(Q34=DSS!F44,('Tab-Ergebnis-WDP-GV'!CM58*Q34*DSS!$D$25)-(((DSS!$D$25*Q34)-Q34)*'Tab-Ergebnis-WDP-GV'!CC58),'Tab-Ergebnis-WDP-GV'!CM58*Q34),"") ->  | N34: =IF(Q34<>"",IF(Q34=DSS!F44,('Tab-Ergebnis-WDP-GV'!CN58*Q34*DSS!$D$25)-(((DSS!$D$25*Q34)-Q34)*'Tab-Ergebnis-WDP-GV'!CD58),'Tab-Ergebnis-WDP-GV'!CN58*Q34),"") ->  | O34: =IF(Q34<>"",IF(Q34=DSS!F44,('Tab-Ergebnis-WDP-GV'!CL58*Q34*DSS!$D$25)-(((DSS!$D$25*Q34)-Q34)*'Tab-Ergebnis-WDP-GV'!CB58),'Tab-Ergebnis-WDP-GV'!CL58*Q34),"") ->  | P34: 20 | Q34: =IF(DSS!F44<>0,IF(AND(Haupttabelle!$CK$1="ja",H34="Mehrweg"),DSS!F44,DSS!F44*DSS!$D$25),"") -> 
E35: ='Tab-Ergebnis-WDP-GV'!E59 ->  | F35: ='Tab-Ergebnis-WDP-GV'!F59 ->  | G35: ='Tab-Ergebnis-WDP-GV'!C59 ->  | H35: =IF('Tab-Ergebnis-WDP-GV'!N59="M","Mehrweg",IF('Tab-Ergebnis-WDP-GV'!N59="E","Einweg","")) ->  | I35: =IF('Tab-Ergebnis-WDP-GV'!P59=FALSE,"nein",IF('Tab-Ergebnis-WDP-GV'!P59=TRUE,"ja","")) ->  | J35: =IF('Tab-Ergebnis-WDP-GV'!Q59=FALSE,"nein",IF('Tab-Ergebnis-WDP-GV'!Q59=TRUE,"ja","")) ->  | K35: ='Tab-Ergebnis-WDP-GV'!I59 ->  | L35: =IF(DSS!F45<>0,IF(H35="Mehrweg",DSS!F45,DSS!F45*DSS!$D$25),"") ->  | M35: =IF(Q35<>"",IF(Q35=DSS!F45,('Tab-Ergebnis-WDP-GV'!CM59*Q35*DSS!$D$25)-(((DSS!$D$25*Q35)-Q35)*'Tab-Ergebnis-WDP-GV'!CC59),'Tab-Ergebnis-WDP-GV'!CM59*Q35),"") ->  | N35: =IF(Q35<>"",IF(Q35=DSS!F45,('Tab-Ergebnis-WDP-GV'!CN59*Q35*DSS!$D$25)-(((DSS!$D$25*Q35)-Q35)*'Tab-Ergebnis-WDP-GV'!CD59),'Tab-Ergebnis-WDP-GV'!CN59*Q35),"") ->  | O35: =IF(Q35<>"",IF(Q35=DSS!F45,('Tab-Ergebnis-WDP-GV'!CL59*Q35*DSS!$D$25)-(((DSS!$D$25*Q35)-Q35)*'Tab-Ergebnis-WDP-GV'!CB59),'Tab-Ergebnis-WDP-GV'!CL59*Q35),"") ->  | P35: 20 | Q35: =IF(DSS!F45<>0,IF(AND(Haupttabelle!$CK$1="ja",H35="Mehrweg"),DSS!F45,DSS!F45*DSS!$D$25),"") -> 
E36: ='Tab-Ergebnis-WDP-GV'!E60 ->  | F36: ='Tab-Ergebnis-WDP-GV'!F60 ->  | G36: ='Tab-Ergebnis-WDP-GV'!C60 ->  | H36: =IF('Tab-Ergebnis-WDP-GV'!N60="M","Mehrweg",IF('Tab-Ergebnis-WDP-GV'!N60="E","Einweg","")) ->  | I36: =IF('Tab-Ergebnis-WDP-GV'!P60=FALSE,"nein",IF('Tab-Ergebnis-WDP-GV'!P60=TRUE,"ja","")) ->  | J36: =IF('Tab-Ergebnis-WDP-GV'!Q60=FALSE,"nein",IF('Tab-Ergebnis-WDP-GV'!Q60=TRUE,"ja","")) ->  | K36: ='Tab-Ergebnis-WDP-GV'!I60 ->  | L36: =IF(DSS!F46<>0,IF(H36="Mehrweg",DSS!F46,DSS!F46*DSS!$D$25),"") ->  | M36: =IF(Q36<>"",IF(Q36=DSS!F46,('Tab-Ergebnis-WDP-GV'!CM60*Q36*DSS!$D$25)-(((DSS!$D$25*Q36)-Q36)*'Tab-Ergebnis-WDP-GV'!CC60),'Tab-Ergebnis-WDP-GV'!CM60*Q36),"") ->  | N36: =IF(Q36<>"",IF(Q36=DSS!F46,('Tab-Ergebnis-WDP-GV'!CN60*Q36*DSS!$D$25)-(((DSS!$D$25*Q36)-Q36)*'Tab-Ergebnis-WDP-GV'!CD60),'Tab-Ergebnis-WDP-GV'!CN60*Q36),"") ->  | O36: =IF(Q36<>"",IF(Q36=DSS!F46,('Tab-Ergebnis-WDP-GV'!CL60*Q36*DSS!$D$25)-(((DSS!$D$25*Q36)-Q36)*'Tab-Ergebnis-WDP-GV'!CB60),'Tab-Ergebnis-WDP-GV'!CL60*Q36),"") ->  | P36: 20 | Q36: =IF(DSS!F46<>0,IF(AND(Haupttabelle!$CK$1="ja",H36="Mehrweg"),DSS!F46,DSS!F46*DSS!$D$25),"") -> 
E37: ='Tab-Ergebnis-WDP-GV'!E61 ->  | F37: ='Tab-Ergebnis-WDP-GV'!F61 ->  | G37: ='Tab-Ergebnis-WDP-GV'!C61 ->  | H37: =IF('Tab-Ergebnis-WDP-GV'!N61="M","Mehrweg",IF('Tab-Ergebnis-WDP-GV'!N61="E","Einweg","")) ->  | I37: =IF('Tab-Ergebnis-WDP-GV'!P61=FALSE,"nein",IF('Tab-Ergebnis-WDP-GV'!P61=TRUE,"ja","")) ->  | J37: =IF('Tab-Ergebnis-WDP-GV'!Q61=FALSE,"nein",IF('Tab-Ergebnis-WDP-GV'!Q61=TRUE,"ja","")) ->  | K37: ='Tab-Ergebnis-WDP-GV'!I61 ->  | L37: =IF(DSS!F47<>0,IF(H37="Mehrweg",DSS!F47,DSS!F47*DSS!$D$25),"") ->  | M37: =IF(Q37<>"",IF(Q37=DSS!F47,('Tab-Ergebnis-WDP-GV'!CM61*Q37*DSS!$D$25)-(((DSS!$D$25*Q37)-Q37)*'Tab-Ergebnis-WDP-GV'!CC61),'Tab-Ergebnis-WDP-GV'!CM61*Q37),"") ->  | N37: =IF(Q37<>"",IF(Q37=DSS!F47,('Tab-Ergebnis-WDP-GV'!CN61*Q37*DSS!$D$25)-(((DSS!$D$25*Q37)-Q37)*'Tab-Ergebnis-WDP-GV'!CD61),'Tab-Ergebnis-WDP-GV'!CN61*Q37),"") ->  | O37: =IF(Q37<>"",IF(Q37=DSS!F47,('Tab-Ergebnis-WDP-GV'!CL61*Q37*DSS!$D$25)-(((DSS!$D$25*Q37)-Q37)*'Tab-Ergebnis-WDP-GV'!CB61),'Tab-Ergebnis-WDP-GV'!CL61*Q37),"") ->  | P37: 20 | Q37: =IF(DSS!F47<>0,IF(AND(Haupttabelle!$CK$1="ja",H37="Mehrweg"),DSS!F47,DSS!F47*DSS!$D$25),"") -> 
E38: ='Tab-Ergebnis-WDP-GV'!E62 ->  | F38: ='Tab-Ergebnis-WDP-GV'!F62 ->  | G38: ='Tab-Ergebnis-WDP-GV'!C62 ->  | H38: =IF('Tab-Ergebnis-WDP-GV'!N62="M","Mehrweg",IF('Tab-Ergebnis-WDP-GV'!N62="E","Einweg","")) ->  | I38: =IF('Tab-Ergebnis-WDP-GV'!P62=FALSE,"nein",IF('Tab-Ergebnis-WDP-GV'!P62=TRUE,"ja","")) ->  | J38: =IF('Tab-Ergebnis-WDP-GV'!Q62=FALSE,"nein",IF('Tab-Ergebnis-WDP-GV'!Q62=TRUE,"ja","")) ->  | K38: ='Tab-Ergebnis-WDP-GV'!I62 ->  | L38: =IF(DSS!F48<>0,IF(H38="Mehrweg",DSS!F48,DSS!F48*DSS!$D$25),"") ->  | M38: =IF(Q38<>"",IF(Q38=DSS!F48,('Tab-Ergebnis-WDP-GV'!CM62*Q38*DSS!$D$25)-(((DSS!$D$25*Q38)-Q38)*'Tab-Ergebnis-WDP-GV'!CC62),'Tab-Ergebnis-WDP-GV'!CM62*Q38),"") ->  | N38: =IF(Q38<>"",IF(Q38=DSS!F48,('Tab-Ergebnis-WDP-GV'!CN62*Q38*DSS!$D$25)-(((DSS!$D$25*Q38)-Q38)*'Tab-Ergebnis-WDP-GV'!CD62),'Tab-Ergebnis-WDP-GV'!CN62*Q38),"") ->  | O38: =IF(Q38<>"",IF(Q38=DSS!F48,('Tab-Ergebnis-WDP-GV'!CL62*Q38*DSS!$D$25)-(((DSS!$D$25*Q38)-Q38)*'Tab-Ergebnis-WDP-GV'!CB62),'Tab-Ergebnis-WDP-GV'!CL62*Q38),"") ->  | P38: 20 | Q38: =IF(DSS!F48<>0,IF(AND(Haupttabelle!$CK$1="ja",H38="Mehrweg"),DSS!F48,DSS!F48*DSS!$D$25),"") -> 
E39: ='Tab-Ergebnis-WDP-GV'!E63 ->  | F39: ='Tab-Ergebnis-WDP-GV'!F63 ->  | G39: ='Tab-Ergebnis-WDP-GV'!C63 ->  | H39: =IF('Tab-Ergebnis-WDP-GV'!N63="M","Mehrweg",IF('Tab-Ergebnis-WDP-GV'!N63="E","Einweg","")) ->  | I39: =IF('Tab-Ergebnis-WDP-GV'!P63=FALSE,"nein",IF('Tab-Ergebnis-WDP-GV'!P63=TRUE,"ja","")) ->  | J39: =IF('Tab-Ergebnis-WDP-GV'!Q63=FALSE,"nein",IF('Tab-Ergebnis-WDP-GV'!Q63=TRUE,"ja","")) ->  | K39: ='Tab-Ergebnis-WDP-GV'!I63 ->  | L39: =IF(DSS!F49<>0,IF(H39="Mehrweg",DSS!F49,DSS!F49*DSS!$D$25),"") ->  | M39: =IF(Q39<>"",IF(Q39=DSS!F49,('Tab-Ergebnis-WDP-GV'!CM63*Q39*DSS!$D$25)-(((DSS!$D$25*Q39)-Q39)*'Tab-Ergebnis-WDP-GV'!CC63),'Tab-Ergebnis-WDP-GV'!CM63*Q39),"") ->  | N39: =IF(Q39<>"",IF(Q39=DSS!F49,('Tab-Ergebnis-WDP-GV'!CN63*Q39*DSS!$D$25)-(((DSS!$D$25*Q39)-Q39)*'Tab-Ergebnis-WDP-GV'!CD63),'Tab-Ergebnis-WDP-GV'!CN63*Q39),"") ->  | O39: =IF(Q39<>"",IF(Q39=DSS!F49,('Tab-Ergebnis-WDP-GV'!CL63*Q39*DSS!$D$25)-(((DSS!$D$25*Q39)-Q39)*'Tab-Ergebnis-WDP-GV'!CB63),'Tab-Ergebnis-WDP-GV'!CL63*Q39),"") ->  | P39: =COUNTIF($E$30:$E$49,E39) -> 20 | Q39: =IF(DSS!F49<>0,IF(AND(Haupttabelle!$CK$1="ja",H39="Mehrweg"),DSS!F49,DSS!F49*DSS!$D$25),"") -> 
E40: ='Tab-Ergebnis-WDP-GV'!E64 ->  | F40: ='Tab-Ergebnis-WDP-GV'!F64 ->  | G40: ='Tab-Ergebnis-WDP-GV'!C64 ->  | H40: =IF('Tab-Ergebnis-WDP-GV'!N64="M","Mehrweg",IF('Tab-Ergebnis-WDP-GV'!N64="E","Einweg","")) ->  | I40: =IF('Tab-Ergebnis-WDP-GV'!P64=FALSE,"nein",IF('Tab-Ergebnis-WDP-GV'!P64=TRUE,"ja","")) ->  | J40: =IF('Tab-Ergebnis-WDP-GV'!Q64=FALSE,"nein",IF('Tab-Ergebnis-WDP-GV'!Q64=TRUE,"ja","")) ->  | K40: ='Tab-Ergebnis-WDP-GV'!I64 ->  | L40: =IF(DSS!F50<>0,IF(H40="Mehrweg",DSS!F50,DSS!F50*DSS!$D$25),"") ->  | M40: =IF(Q40<>"",IF(Q40=DSS!F50,('Tab-Ergebnis-WDP-GV'!CM64*Q40*DSS!$D$25)-(((DSS!$D$25*Q40)-Q40)*'Tab-Ergebnis-WDP-GV'!CC64),'Tab-Ergebnis-WDP-GV'!CM64*Q40),"") ->  | N40: =IF(Q40<>"",IF(Q40=DSS!F50,('Tab-Ergebnis-WDP-GV'!CN64*Q40*DSS!$D$25)-(((DSS!$D$25*Q40)-Q40)*'Tab-Ergebnis-WDP-GV'!CD64),'Tab-Ergebnis-WDP-GV'!CN64*Q40),"") ->  | O40: =IF(Q40<>"",IF(Q40=DSS!F50,('Tab-Ergebnis-WDP-GV'!CL64*Q40*DSS!$D$25)-(((DSS!$D$25*Q40)-Q40)*'Tab-Ergebnis-WDP-GV'!CB64),'Tab-Ergebnis-WDP-GV'!CL64*Q40),"") ->  | P40: 20 | Q40: =IF(DSS!F50<>0,IF(AND(Haupttabelle!$CK$1="ja",H40="Mehrweg"),DSS!F50,DSS!F50*DSS!$D$25),"") -> 
E41: ='Tab-Ergebnis-WDP-GV'!E65 ->  | F41: ='Tab-Ergebnis-WDP-GV'!F65 ->  | G41: ='Tab-Ergebnis-WDP-GV'!C65 ->  | H41: =IF('Tab-Ergebnis-WDP-GV'!N65="M","Mehrweg",IF('Tab-Ergebnis-WDP-GV'!N65="E","Einweg","")) ->  | I41: =IF('Tab-Ergebnis-WDP-GV'!P65=FALSE,"nein",IF('Tab-Ergebnis-WDP-GV'!P65=TRUE,"ja","")) ->  | J41: =IF('Tab-Ergebnis-WDP-GV'!Q65=FALSE,"nein",IF('Tab-Ergebnis-WDP-GV'!Q65=TRUE,"ja","")) ->  | K41: ='Tab-Ergebnis-WDP-GV'!I65 ->  | L41: =IF(DSS!F52<>0,IF(H41="Mehrweg",DSS!F52,DSS!F52*DSS!$D$25),"") ->  | M41: =IF(Q41<>"",IF(Q41=DSS!F52,('Tab-Ergebnis-WDP-GV'!CM65*Q41*DSS!$D$25)-(((DSS!$D$25*Q41)-Q41)*'Tab-Ergebnis-WDP-GV'!CC65),'Tab-Ergebnis-WDP-GV'!CM65*Q41),"") ->  | N41: =IF(Q41<>"",IF(Q41=DSS!F52,('Tab-Ergebnis-WDP-GV'!CN65*Q41*DSS!$D$25)-(((DSS!$D$25*Q41)-Q41)*'Tab-Ergebnis-WDP-GV'!CD65),'Tab-Ergebnis-WDP-GV'!CN65*Q41),"") ->  | O41: =IF(Q41<>"",IF(Q41=DSS!F52,('Tab-Ergebnis-WDP-GV'!CL65*Q41*DSS!$D$25)-(((DSS!$D$25*Q41)-Q41)*'Tab-Ergebnis-WDP-GV'!CB65),'Tab-Ergebnis-WDP-GV'!CL65*Q41),"") ->  | P41: 20 | Q41: =IF(DSS!F52<>0,IF(AND(Haupttabelle!$CK$1="ja",H41="Mehrweg"),DSS!F52,DSS!F52*DSS!$D$25),"") -> 
E42: ='Tab-Ergebnis-WDP-GV'!E66 ->  | F42: ='Tab-Ergebnis-WDP-GV'!F66 ->  | G42: ='Tab-Ergebnis-WDP-GV'!C66 ->  | H42: =IF('Tab-Ergebnis-WDP-GV'!N66="M","Mehrweg",IF('Tab-Ergebnis-WDP-GV'!N66="E","Einweg","")) ->  | I42: =IF('Tab-Ergebnis-WDP-GV'!P66=FALSE,"nein",IF('Tab-Ergebnis-WDP-GV'!P66=TRUE,"ja","")) ->  | J42: =IF('Tab-Ergebnis-WDP-GV'!Q66=FALSE,"nein",IF('Tab-Ergebnis-WDP-GV'!Q66=TRUE,"ja","")) ->  | K42: ='Tab-Ergebnis-WDP-GV'!I66 ->  | L42: =IF(DSS!F53<>0,IF(H42="Mehrweg",DSS!F53,DSS!F53*DSS!$D$25),"") ->  | M42: =IF(Q42<>"",IF(Q42=DSS!F53,('Tab-Ergebnis-WDP-GV'!CM66*Q42*DSS!$D$25)-(((DSS!$D$25*Q42)-Q42)*'Tab-Ergebnis-WDP-GV'!CC66),'Tab-Ergebnis-WDP-GV'!CM66*Q42),"") ->  | N42: =IF(Q42<>"",IF(Q42=DSS!F53,('Tab-Ergebnis-WDP-GV'!CN66*Q42*DSS!$D$25)-(((DSS!$D$25*Q42)-Q42)*'Tab-Ergebnis-WDP-GV'!CD66),'Tab-Ergebnis-WDP-GV'!CN66*Q42),"") ->  | O42: =IF(Q42<>"",IF(Q42=DSS!F53,('Tab-Ergebnis-WDP-GV'!CL66*Q42*DSS!$D$25)-(((DSS!$D$25*Q42)-Q42)*'Tab-Ergebnis-WDP-GV'!CB66),'Tab-Ergebnis-WDP-GV'!CL66*Q42),"") ->  | P42: 20 | Q42: =IF(DSS!F53<>0,IF(AND(Haupttabelle!$CK$1="ja",H42="Mehrweg"),DSS!F53,DSS!F53*DSS!$D$25),"") -> 
E43: ='Tab-Ergebnis-WDP-GV'!E67 ->  | F43: ='Tab-Ergebnis-WDP-GV'!F67 ->  | G43: ='Tab-Ergebnis-WDP-GV'!C67 ->  | H43: =IF('Tab-Ergebnis-WDP-GV'!N67="M","Mehrweg",IF('Tab-Ergebnis-WDP-GV'!N67="E","Einweg","")) ->  | I43: =IF('Tab-Ergebnis-WDP-GV'!P67=FALSE,"nein",IF('Tab-Ergebnis-WDP-GV'!P67=TRUE,"ja","")) ->  | J43: =IF('Tab-Ergebnis-WDP-GV'!Q67=FALSE,"nein",IF('Tab-Ergebnis-WDP-GV'!Q67=TRUE,"ja","")) ->  | K43: ='Tab-Ergebnis-WDP-GV'!I67 ->  | L43: =IF(DSS!F54<>0,IF(H43="Mehrweg",DSS!F54,DSS!F54*DSS!$D$25),"") ->  | M43: =IF(Q43<>"",IF(Q43=DSS!F54,('Tab-Ergebnis-WDP-GV'!CM67*Q43*DSS!$D$25)-(((DSS!$D$25*Q43)-Q43)*'Tab-Ergebnis-WDP-GV'!CC67),'Tab-Ergebnis-WDP-GV'!CM67*Q43),"") ->  | N43: =IF(Q43<>"",IF(Q43=DSS!F54,('Tab-Ergebnis-WDP-GV'!CN67*Q43*DSS!$D$25)-(((DSS!$D$25*Q43)-Q43)*'Tab-Ergebnis-WDP-GV'!CD67),'Tab-Ergebnis-WDP-GV'!CN67*Q43),"") ->  | O43: =IF(Q43<>"",IF(Q43=DSS!F54,('Tab-Ergebnis-WDP-GV'!CL67*Q43*DSS!$D$25)-(((DSS!$D$25*Q43)-Q43)*'Tab-Ergebnis-WDP-GV'!CB67),'Tab-Ergebnis-WDP-GV'!CL67*Q43),"") ->  | P43: 20 | Q43: =IF(DSS!F54<>0,IF(AND(Haupttabelle!$CK$1="ja",H43="Mehrweg"),DSS!F54,DSS!F54*DSS!$D$25),"") -> 
E44: ='Tab-Ergebnis-WDP-GV'!E68 ->  | F44: ='Tab-Ergebnis-WDP-GV'!F68 ->  | G44: ='Tab-Ergebnis-WDP-GV'!C68 ->  | H44: =IF('Tab-Ergebnis-WDP-GV'!N68="M","Mehrweg",IF('Tab-Ergebnis-WDP-GV'!N68="E","Einweg","")) ->  | I44: =IF('Tab-Ergebnis-WDP-GV'!P68=FALSE,"nein",IF('Tab-Ergebnis-WDP-GV'!P68=TRUE,"ja","")) ->  | J44: =IF('Tab-Ergebnis-WDP-GV'!Q68=FALSE,"nein",IF('Tab-Ergebnis-WDP-GV'!Q68=TRUE,"ja","")) ->  | K44: ='Tab-Ergebnis-WDP-GV'!I68 ->  | L44: =IF(DSS!F55<>0,IF(H44="Mehrweg",DSS!F55,DSS!F55*DSS!$D$25),"") ->  | M44: =IF(Q44<>"",IF(Q44=DSS!F55,('Tab-Ergebnis-WDP-GV'!CM68*Q44*DSS!$D$25)-(((DSS!$D$25*Q44)-Q44)*'Tab-Ergebnis-WDP-GV'!CC68),'Tab-Ergebnis-WDP-GV'!CM68*Q44),"") ->  | N44: =IF(Q44<>"",IF(Q44=DSS!F55,('Tab-Ergebnis-WDP-GV'!CN68*Q44*DSS!$D$25)-(((DSS!$D$25*Q44)-Q44)*'Tab-Ergebnis-WDP-GV'!CD68),'Tab-Ergebnis-WDP-GV'!CN68*Q44),"") ->  | O44: =IF(Q44<>"",IF(Q44=DSS!F55,('Tab-Ergebnis-WDP-GV'!CL68*Q44*DSS!$D$25)-(((DSS!$D$25*Q44)-Q44)*'Tab-Ergebnis-WDP-GV'!CB68),'Tab-Ergebnis-WDP-GV'!CL68*Q44),"") ->  | P44: 20 | Q44: =IF(DSS!F55<>0,IF(AND(Haupttabelle!$CK$1="ja",H44="Mehrweg"),DSS!F55,DSS!F55*DSS!$D$25),"") -> 
E45: ='Tab-Ergebnis-WDP-GV'!E69 ->  | F45: ='Tab-Ergebnis-WDP-GV'!F69 ->  | G45: ='Tab-Ergebnis-WDP-GV'!C69 ->  | H45: =IF('Tab-Ergebnis-WDP-GV'!N69="M","Mehrweg",IF('Tab-Ergebnis-WDP-GV'!N69="E","Einweg","")) ->  | I45: =IF('Tab-Ergebnis-WDP-GV'!P69=FALSE,"nein",IF('Tab-Ergebnis-WDP-GV'!P69=TRUE,"ja","")) ->  | J45: =IF('Tab-Ergebnis-WDP-GV'!Q69=FALSE,"nein",IF('Tab-Ergebnis-WDP-GV'!Q69=TRUE,"ja","")) ->  | K45: ='Tab-Ergebnis-WDP-GV'!I69 ->  | L45: =IF(DSS!F56<>0,IF(H45="Mehrweg",DSS!F56,DSS!F56*DSS!$D$25),"") ->  | M45: =IF(Q45<>"",IF(Q45=DSS!F56,('Tab-Ergebnis-WDP-GV'!CM69*Q45*DSS!$D$25)-(((DSS!$D$25*Q45)-Q45)*'Tab-Ergebnis-WDP-GV'!CC69),'Tab-Ergebnis-WDP-GV'!CM69*Q45),"") ->  | N45: =IF(Q45<>"",IF(Q45=DSS!F56,('Tab-Ergebnis-WDP-GV'!CN69*Q45*DSS!$D$25)-(((DSS!$D$25*Q45)-Q45)*'Tab-Ergebnis-WDP-GV'!CD69),'Tab-Ergebnis-WDP-GV'!CN69*Q45),"") ->  | O45: =IF(Q45<>"",IF(Q45=DSS!F56,('Tab-Ergebnis-WDP-GV'!CL69*Q45*DSS!$D$25)-(((DSS!$D$25*Q45)-Q45)*'Tab-Ergebnis-WDP-GV'!CB69),'Tab-Ergebnis-WDP-GV'!CL69*Q45),"") ->  | P45: 20 | Q45: =IF(DSS!F56<>0,IF(AND(Haupttabelle!$CK$1="ja",H45="Mehrweg"),DSS!F56,DSS!F56*DSS!$D$25),"") -> 
E46: ='Tab-Ergebnis-WDP-GV'!E70 ->  | F46: ='Tab-Ergebnis-WDP-GV'!F70 ->  | G46: ='Tab-Ergebnis-WDP-GV'!C70 ->  | H46: =IF('Tab-Ergebnis-WDP-GV'!N70="M","Mehrweg",IF('Tab-Ergebnis-WDP-GV'!N70="E","Einweg","")) ->  | I46: =IF('Tab-Ergebnis-WDP-GV'!P70=FALSE,"nein",IF('Tab-Ergebnis-WDP-GV'!P70=TRUE,"ja","")) ->  | J46: =IF('Tab-Ergebnis-WDP-GV'!Q70=FALSE,"nein",IF('Tab-Ergebnis-WDP-GV'!Q70=TRUE,"ja","")) ->  | K46: ='Tab-Ergebnis-WDP-GV'!I70 ->  | L46: =IF(DSS!F57<>0,IF(H46="Mehrweg",DSS!F57,DSS!F57*DSS!$D$25),"") ->  | M46: =IF(Q46<>"",IF(Q46=DSS!F57,('Tab-Ergebnis-WDP-GV'!CM70*Q46*DSS!$D$25)-(((DSS!$D$25*Q46)-Q46)*'Tab-Ergebnis-WDP-GV'!CC70),'Tab-Ergebnis-WDP-GV'!CM70*Q46),"") ->  | N46: =IF(Q46<>"",IF(Q46=DSS!F57,('Tab-Ergebnis-WDP-GV'!CN70*Q46*DSS!$D$25)-(((DSS!$D$25*Q46)-Q46)*'Tab-Ergebnis-WDP-GV'!CD70),'Tab-Ergebnis-WDP-GV'!CN70*Q46),"") ->  | O46: =IF(Q46<>"",IF(Q46=DSS!F57,('Tab-Ergebnis-WDP-GV'!CL70*Q46*DSS!$D$25)-(((DSS!$D$25*Q46)-Q46)*'Tab-Ergebnis-WDP-GV'!CB70),'Tab-Ergebnis-WDP-GV'!CL70*Q46),"") ->  | P46: 20 | Q46: =IF(DSS!F57<>0,IF(AND(Haupttabelle!$CK$1="ja",H46="Mehrweg"),DSS!F57,DSS!F57*DSS!$D$25),"") -> 
E47: ='Tab-Ergebnis-WDP-GV'!E71 ->  | F47: ='Tab-Ergebnis-WDP-GV'!F71 ->  | G47: ='Tab-Ergebnis-WDP-GV'!C71 ->  | H47: =IF('Tab-Ergebnis-WDP-GV'!N71="M","Mehrweg",IF('Tab-Ergebnis-WDP-GV'!N71="E","Einweg","")) ->  | I47: =IF('Tab-Ergebnis-WDP-GV'!P71=FALSE,"nein",IF('Tab-Ergebnis-WDP-GV'!P71=TRUE,"ja","")) ->  | J47: =IF('Tab-Ergebnis-WDP-GV'!Q71=FALSE,"nein",IF('Tab-Ergebnis-WDP-GV'!Q71=TRUE,"ja","")) ->  | K47: ='Tab-Ergebnis-WDP-GV'!I71 ->  | L47: =IF(DSS!F58<>0,IF(H47="Mehrweg",DSS!F58,DSS!F58*DSS!$D$25),"") ->  | M47: =IF(Q47<>"",IF(Q47=DSS!F58,('Tab-Ergebnis-WDP-GV'!CM71*Q47*DSS!$D$25)-(((DSS!$D$25*Q47)-Q47)*'Tab-Ergebnis-WDP-GV'!CC71),'Tab-Ergebnis-WDP-GV'!CM71*Q47),"") ->  | N47: =IF(Q47<>"",IF(Q47=DSS!F58,('Tab-Ergebnis-WDP-GV'!CN71*Q47*DSS!$D$25)-(((DSS!$D$25*Q47)-Q47)*'Tab-Ergebnis-WDP-GV'!CD71),'Tab-Ergebnis-WDP-GV'!CN71*Q47),"") ->  | O47: =IF(Q47<>"",IF(Q47=DSS!F58,('Tab-Ergebnis-WDP-GV'!CL71*Q47*DSS!$D$25)-(((DSS!$D$25*Q47)-Q47)*'Tab-Ergebnis-WDP-GV'!CB71),'Tab-Ergebnis-WDP-GV'!CL71*Q47),"") ->  | P47: 20 | Q47: =IF(DSS!F58<>0,IF(AND(Haupttabelle!$CK$1="ja",H47="Mehrweg"),DSS!F58,DSS!F58*DSS!$D$25),"") -> 
E48: ='Tab-Ergebnis-WDP-GV'!E72 ->  | F48: ='Tab-Ergebnis-WDP-GV'!F72 ->  | G48: ='Tab-Ergebnis-WDP-GV'!C72 ->  | H48: =IF('Tab-Ergebnis-WDP-GV'!N72="M","Mehrweg",IF('Tab-Ergebnis-WDP-GV'!N72="E","Einweg","")) ->  | I48: =IF('Tab-Ergebnis-WDP-GV'!P72=FALSE,"nein",IF('Tab-Ergebnis-WDP-GV'!P72=TRUE,"ja","")) ->  | J48: =IF('Tab-Ergebnis-WDP-GV'!Q72=FALSE,"nein",IF('Tab-Ergebnis-WDP-GV'!Q72=TRUE,"ja","")) ->  | K48: ='Tab-Ergebnis-WDP-GV'!I72 ->  | L48: =IF(DSS!F59<>0,IF(H48="Mehrweg",DSS!F59,DSS!F59*DSS!$D$25),"") ->  | M48: =IF(Q48<>"",IF(Q48=DSS!F59,('Tab-Ergebnis-WDP-GV'!CM72*Q48*DSS!$D$25)-(((DSS!$D$25*Q48)-Q48)*'Tab-Ergebnis-WDP-GV'!CC72),'Tab-Ergebnis-WDP-GV'!CM72*Q48),"") ->  | N48: =IF(Q48<>"",IF(Q48=DSS!F59,('Tab-Ergebnis-WDP-GV'!CN72*Q48*DSS!$D$25)-(((DSS!$D$25*Q48)-Q48)*'Tab-Ergebnis-WDP-GV'!CD72),'Tab-Ergebnis-WDP-GV'!CN72*Q48),"") ->  | O48: =IF(Q48<>"",IF(Q48=DSS!F59,('Tab-Ergebnis-WDP-GV'!CL72*Q48*DSS!$D$25)-(((DSS!$D$25*Q48)-Q48)*'Tab-Ergebnis-WDP-GV'!CB72),'Tab-Ergebnis-WDP-GV'!CL72*Q48),"") ->  | P48: 20 | Q48: =IF(DSS!F59<>0,IF(AND(Haupttabelle!$CK$1="ja",H48="Mehrweg"),DSS!F59,DSS!F59*DSS!$D$25),"") -> 
E49: ='Tab-Ergebnis-WDP-GV'!E73 ->  | F49: ='Tab-Ergebnis-WDP-GV'!F73 ->  | G49: ='Tab-Ergebnis-WDP-GV'!C73 ->  | H49: =IF('Tab-Ergebnis-WDP-GV'!N73="M","Mehrweg",IF('Tab-Ergebnis-WDP-GV'!N73="E","Einweg","")) ->  | I49: =IF('Tab-Ergebnis-WDP-GV'!P73=FALSE,"nein",IF('Tab-Ergebnis-WDP-GV'!P73=TRUE,"ja","")) ->  | J49: =IF('Tab-Ergebnis-WDP-GV'!Q73=FALSE,"nein",IF('Tab-Ergebnis-WDP-GV'!Q73=TRUE,"ja","")) ->  | K49: ='Tab-Ergebnis-WDP-GV'!I73 ->  | L49: =IF(DSS!F60<>0,IF(H49="Mehrweg",DSS!F60,DSS!F60*DSS!$D$25),"") ->  | M49: =IF(Q49<>"",IF(Q49=DSS!F60,('Tab-Ergebnis-WDP-GV'!CM73*Q49*DSS!$D$25)-(((DSS!$D$25*Q49)-Q49)*'Tab-Ergebnis-WDP-GV'!CC73),'Tab-Ergebnis-WDP-GV'!CM73*Q49),"") ->  | N49: =IF(Q49<>"",IF(Q49=DSS!F60,('Tab-Ergebnis-WDP-GV'!CN73*Q49*DSS!$D$25)-(((DSS!$D$25*Q49)-Q49)*'Tab-Ergebnis-WDP-GV'!CD73),'Tab-Ergebnis-WDP-GV'!CN73*Q49),"") ->  | O49: =IF(Q49<>"",IF(Q49=DSS!F60,('Tab-Ergebnis-WDP-GV'!CL73*Q49*DSS!$D$25)-(((DSS!$D$25*Q49)-Q49)*'Tab-Ergebnis-WDP-GV'!CB73),'Tab-Ergebnis-WDP-GV'!CL73*Q49),"") ->  | P49: =COUNTIF($E$30:$E$49,E49) -> 20 | Q49: =IF(DSS!F60<>0,IF(AND(Haupttabelle!$CK$1="ja",H49="Mehrweg"),DSS!F60,DSS!F60*DSS!$D$25),"") -> 
E50: Summe | L50: =SUM(L30:L49) -> 0 | M50: =SUM(M30:M49) -> 0 | N50: =SUM(N30:N49) -> 0 | O50: =SUM(O30:O49) -> 0
E52: Tab. 2: Geschirrbedarf, -spezifikationen und Emissionen gesamt (Getränke):
E53: Auswahl DSS | F53: Produkt / Geschirrmodell (Vorschlag des DSS) | G53: Alternative ("A"; sofern keine Option hinsichtlich der Auswahlkriterien verfügbar) | H53: Einweg / Mehrweg | I53: Essbar? | J53: Biologisch abbaubar? | K53: Material | L53: Menge [Anzahl Essen oder Geschirr] | M53: Ressourcenverbrauch [ADP; kg Sb-Äq./Veranstaltung] | N53: Wassernutzung [WDP; m3/Veranstaltung] | O53: Klimawandel [GWP; kg CO2-Äq./Veranstaltung] | P53: Doppelte Werte
E54: ='Tab-Ergebnis-WDP-GV'!E74 ->  | F54: ='Tab-Ergebnis-WDP-GV'!F74 ->  | G54: ='Tab-Ergebnis-WDP-GV'!C74 ->  | H54: =IF('Tab-Ergebnis-WDP-GV'!N74="M","Mehrweg",IF('Tab-Ergebnis-WDP-GV'!N74="E","Einweg","")) ->  | I54: =IF('Tab-Ergebnis-WDP-GV'!P74=FALSE,"nein",IF('Tab-Ergebnis-WDP-GV'!P74=TRUE,"ja","")) ->  | J54: =IF('Tab-Ergebnis-WDP-GV'!Q74=FALSE,"nein",IF('Tab-Ergebnis-WDP-GV'!Q74=TRUE,"ja","")) ->  | K54: ='Tab-Ergebnis-WDP-GV'!I74 ->  | L54: =IF(DSS!F65<>0,IF(H54="Mehrweg",DSS!F65,DSS!F65*DSS!$D$25),"") ->  | M54: =IF(Q54<>"",IF(Q54=DSS!F65,('Tab-Ergebnis-WDP-GV'!CM74*Q54*DSS!$D$25)-(((DSS!$D$25*Q54)-Q54)*'Tab-Ergebnis-WDP-GV'!CC74),'Tab-Ergebnis-WDP-GV'!CM74*Q54),"") ->  | N54: =IF(Q54<>"",IF(Q54=DSS!F65,('Tab-Ergebnis-WDP-GV'!CN74*Q54*DSS!$D$25)-(((DSS!$D$25*Q54)-Q54)*'Tab-Ergebnis-WDP-GV'!CD74),'Tab-Ergebnis-WDP-GV'!CN74*Q54),"") ->  | O54: =IF(Q54<>"",IF(Q54=DSS!F65,('Tab-Ergebnis-WDP-GV'!CL74*Q54*DSS!$D$25)-(((DSS!$D$25*Q54)-Q54)*'Tab-Ergebnis-WDP-GV'!CB74),'Tab-Ergebnis-WDP-GV'!CL74*Q54),"") ->  | P54: =COUNTIF($E$30:$E$49,E54) -> 20 | Q54: =IF(DSS!F65<>0,IF(AND(Haupttabelle!$CK$1="ja",H54="Mehrweg"),DSS!F65,DSS!F65*DSS!$D$25),"") -> 
E55: ='Tab-Ergebnis-WDP-GV'!E75 ->  | F55: ='Tab-Ergebnis-WDP-GV'!F75 ->  | G55: ='Tab-Ergebnis-WDP-GV'!C75 ->  | H55: =IF('Tab-Ergebnis-WDP-GV'!N75="M","Mehrweg",IF('Tab-Ergebnis-WDP-GV'!N75="E","Einweg","")) ->  | I55: =IF('Tab-Ergebnis-WDP-GV'!P75=FALSE,"nein",IF('Tab-Ergebnis-WDP-GV'!P75=TRUE,"ja","")) ->  | J55: =IF('Tab-Ergebnis-WDP-GV'!Q75=FALSE,"nein",IF('Tab-Ergebnis-WDP-GV'!Q75=TRUE,"ja","")) ->  | K55: ='Tab-Ergebnis-WDP-GV'!I75 ->  | L55: =IF(DSS!F66<>0,IF(H55="Mehrweg",DSS!F66,DSS!F66*DSS!$D$25),"") ->  | M55: =IF(Q55<>"",IF(Q55=DSS!F66,('Tab-Ergebnis-WDP-GV'!CM75*Q55*DSS!$D$25)-(((DSS!$D$25*Q55)-Q55)*'Tab-Ergebnis-WDP-GV'!CC75),'Tab-Ergebnis-WDP-GV'!CM75*Q55),"") ->  | N55: =IF(Q55<>"",IF(Q55=DSS!F66,('Tab-Ergebnis-WDP-GV'!CN75*Q55*DSS!$D$25)-(((DSS!$D$25*Q55)-Q55)*'Tab-Ergebnis-WDP-GV'!CD75),'Tab-Ergebnis-WDP-GV'!CN75*Q55),"") ->  | O55: =IF(Q55<>"",IF(Q55=DSS!F66,('Tab-Ergebnis-WDP-GV'!CL75*Q55*DSS!$D$25)-(((DSS!$D$25*Q55)-Q55)*'Tab-Ergebnis-WDP-GV'!CB75),'Tab-Ergebnis-WDP-GV'!CL75*Q55),"") ->  | P55: =COUNTIF($E$30:$E$49,E55) -> 20 | Q55: =IF(DSS!F66<>0,IF(AND(Haupttabelle!$CK$1="ja",H55="Mehrweg"),DSS!F66,DSS!F66*DSS!$D$25),"") -> 
E56: ='Tab-Ergebnis-WDP-GV'!E76 ->  | F56: ='Tab-Ergebnis-WDP-GV'!F76 ->  | G56: ='Tab-Ergebnis-WDP-GV'!C76 ->  | H56: =IF('Tab-Ergebnis-WDP-GV'!N76="M","Mehrweg",IF('Tab-Ergebnis-WDP-GV'!N76="E","Einweg","")) ->  | I56: =IF('Tab-Ergebnis-WDP-GV'!P76=FALSE,"nein",IF('Tab-Ergebnis-WDP-GV'!P76=TRUE,"ja","")) ->  | J56: =IF('Tab-Ergebnis-WDP-GV'!Q76=FALSE,"nein",IF('Tab-Ergebnis-WDP-GV'!Q76=TRUE,"ja","")) ->  | K56: ='Tab-Ergebnis-WDP-GV'!I76 ->  | L56: =IF(DSS!F67<>0,IF(H56="Mehrweg",DSS!F67,DSS!F67*DSS!$D$25),"") ->  | M56: =IF(Q56<>"",IF(Q56=DSS!F67,('Tab-Ergebnis-WDP-GV'!CM76*Q56*DSS!$D$25)-(((DSS!$D$25*Q56)-Q56)*'Tab-Ergebnis-WDP-GV'!CC76),'Tab-Ergebnis-WDP-GV'!CM76*Q56),"") ->  | N56: =IF(Q56<>"",IF(Q56=DSS!F67,('Tab-Ergebnis-WDP-GV'!CN76*Q56*DSS!$D$25)-(((DSS!$D$25*Q56)-Q56)*'Tab-Ergebnis-WDP-GV'!CD76),'Tab-Ergebnis-WDP-GV'!CN76*Q56),"") ->  | O56: =IF(Q56<>"",IF(Q56=DSS!F67,('Tab-Ergebnis-WDP-GV'!CL76*Q56*DSS!$D$25)-(((DSS!$D$25*Q56)-Q56)*'Tab-Ergebnis-WDP-GV'!CB76),'Tab-Ergebnis-WDP-GV'!CL76*Q56),"") ->  | P56: 20 | Q56: =IF(DSS!F67<>0,IF(AND(Haupttabelle!$CK$1="ja",H56="Mehrweg"),DSS!F67,DSS!F67*DSS!$D$25),"") -> 
E57: ='Tab-Ergebnis-WDP-GV'!E77 ->  | F57: ='Tab-Ergebnis-WDP-GV'!F77 ->  | G57: ='Tab-Ergebnis-WDP-GV'!C77 ->  | H57: =IF('Tab-Ergebnis-WDP-GV'!N77="M","Mehrweg",IF('Tab-Ergebnis-WDP-GV'!N77="E","Einweg","")) ->  | I57: =IF('Tab-Ergebnis-WDP-GV'!P77=FALSE,"nein",IF('Tab-Ergebnis-WDP-GV'!P77=TRUE,"ja","")) ->  | J57: =IF('Tab-Ergebnis-WDP-GV'!Q77=FALSE,"nein",IF('Tab-Ergebnis-WDP-GV'!Q77=TRUE,"ja","")) ->  | K57: ='Tab-Ergebnis-WDP-GV'!I77 ->  | L57: =IF(DSS!F68<>0,IF(H57="Mehrweg",DSS!F68,DSS!F68*DSS!$D$25),"") ->  | M57: =IF(Q57<>"",IF(Q57=DSS!F68,('Tab-Ergebnis-WDP-GV'!CM77*Q57*DSS!$D$25)-(((DSS!$D$25*Q57)-Q57)*'Tab-Ergebnis-WDP-GV'!CC77),'Tab-Ergebnis-WDP-GV'!CM77*Q57),"") ->  | N57: =IF(Q57<>"",IF(Q57=DSS!F68,('Tab-Ergebnis-WDP-GV'!CN77*Q57*DSS!$D$25)-(((DSS!$D$25*Q57)-Q57)*'Tab-Ergebnis-WDP-GV'!CD77),'Tab-Ergebnis-WDP-GV'!CN77*Q57),"") ->  | O57: =IF(Q57<>"",IF(Q57=DSS!F68,('Tab-Ergebnis-WDP-GV'!CL77*Q57*DSS!$D$25)-(((DSS!$D$25*Q57)-Q57)*'Tab-Ergebnis-WDP-GV'!CB77),'Tab-Ergebnis-WDP-GV'!CL77*Q57),"") ->  | P57: 20 | Q57: =IF(DSS!F68<>0,IF(AND(Haupttabelle!$CK$1="ja",H57="Mehrweg"),DSS!F68,DSS!F68*DSS!$D$25),"") -> 
E58: ='Tab-Ergebnis-WDP-GV'!E78 ->  | F58: ='Tab-Ergebnis-WDP-GV'!F78 ->  | G58: ='Tab-Ergebnis-WDP-GV'!C78 ->  | H58: =IF('Tab-Ergebnis-WDP-GV'!N78="M","Mehrweg",IF('Tab-Ergebnis-WDP-GV'!N78="E","Einweg","")) ->  | I58: =IF('Tab-Ergebnis-WDP-GV'!P78=FALSE,"nein",IF('Tab-Ergebnis-WDP-GV'!P78=TRUE,"ja","")) ->  | J58: =IF('Tab-Ergebnis-WDP-GV'!Q78=FALSE,"nein",IF('Tab-Ergebnis-WDP-GV'!Q78=TRUE,"ja","")) ->  | K58: ='Tab-Ergebnis-WDP-GV'!I78 ->  | L58: =IF(DSS!F69<>0,IF(H58="Mehrweg",DSS!F69,DSS!F69*DSS!$D$25),"") ->  | M58: =IF(Q58<>"",IF(Q58=DSS!F69,('Tab-Ergebnis-WDP-GV'!CM78*Q58*DSS!$D$25)-(((DSS!$D$25*Q58)-Q58)*'Tab-Ergebnis-WDP-GV'!CC78),'Tab-Ergebnis-WDP-GV'!CM78*Q58),"") ->  | N58: =IF(Q58<>"",IF(Q58=DSS!F69,('Tab-Ergebnis-WDP-GV'!CN78*Q58*DSS!$D$25)-(((DSS!$D$25*Q58)-Q58)*'Tab-Ergebnis-WDP-GV'!CD78),'Tab-Ergebnis-WDP-GV'!CN78*Q58),"") ->  | O58: =IF(Q58<>"",IF(Q58=DSS!F69,('Tab-Ergebnis-WDP-GV'!CL78*Q58*DSS!$D$25)-(((DSS!$D$25*Q58)-Q58)*'Tab-Ergebnis-WDP-GV'!CB78),'Tab-Ergebnis-WDP-GV'!CL78*Q58),"") ->  | P58: 20 | Q58: =IF(DSS!F69<>0,IF(AND(Haupttabelle!$CK$1="ja",H58="Mehrweg"),DSS!F69,DSS!F69*DSS!$D$25),"") -> 
E59: ='Tab-Ergebnis-WDP-GV'!E79 ->  | F59: ='Tab-Ergebnis-WDP-GV'!F79 ->  | G59: ='Tab-Ergebnis-WDP-GV'!C79 ->  | H59: =IF('Tab-Ergebnis-WDP-GV'!N79="M","Mehrweg",IF('Tab-Ergebnis-WDP-GV'!N79="E","Einweg","")) ->  | I59: =IF('Tab-Ergebnis-WDP-GV'!P79=FALSE,"nein",IF('Tab-Ergebnis-WDP-GV'!P79=TRUE,"ja","")) ->  | J59: =IF('Tab-Ergebnis-WDP-GV'!Q79=FALSE,"nein",IF('Tab-Ergebnis-WDP-GV'!Q79=TRUE,"ja","")) ->  | K59: ='Tab-Ergebnis-WDP-GV'!I79 ->  | L59: =IF(DSS!F70<>0,IF(H59="Mehrweg",DSS!F70,DSS!F70*DSS!$D$25),"") ->  | M59: =IF(Q59<>"",IF(Q59=DSS!F70,('Tab-Ergebnis-WDP-GV'!CM79*Q59*DSS!$D$25)-(((DSS!$D$25*Q59)-Q59)*'Tab-Ergebnis-WDP-GV'!CC79),'Tab-Ergebnis-WDP-GV'!CM79*Q59),"") ->  | N59: =IF(Q59<>"",IF(Q59=DSS!F70,('Tab-Ergebnis-WDP-GV'!CN79*Q59*DSS!$D$25)-(((DSS!$D$25*Q59)-Q59)*'Tab-Ergebnis-WDP-GV'!CD79),'Tab-Ergebnis-WDP-GV'!CN79*Q59),"") ->  | O59: =IF(Q59<>"",IF(Q59=DSS!F70,('Tab-Ergebnis-WDP-GV'!CL79*Q59*DSS!$D$25)-(((DSS!$D$25*Q59)-Q59)*'Tab-Ergebnis-WDP-GV'!CB79),'Tab-Ergebnis-WDP-GV'!CL79*Q59),"") ->  | P59: 20 | Q59: =IF(DSS!F70<>0,IF(AND(Haupttabelle!$CK$1="ja",H59="Mehrweg"),DSS!F70,DSS!F70*DSS!$D$25),"") -> 
E60: ='Tab-Ergebnis-WDP-GV'!E80 ->  | F60: ='Tab-Ergebnis-WDP-GV'!F80 ->  | G60: ='Tab-Ergebnis-WDP-GV'!C80 ->  | H60: =IF('Tab-Ergebnis-WDP-GV'!N80="M","Mehrweg",IF('Tab-Ergebnis-WDP-GV'!N80="E","Einweg","")) ->  | I60: =IF('Tab-Ergebnis-WDP-GV'!P80=FALSE,"nein",IF('Tab-Ergebnis-WDP-GV'!P80=TRUE,"ja","")) ->  | J60: =IF('Tab-Ergebnis-WDP-GV'!Q80=FALSE,"nein",IF('Tab-Ergebnis-WDP-GV'!Q80=TRUE,"ja","")) ->  | K60: ='Tab-Ergebnis-WDP-GV'!I80 ->  | L60: =IF(DSS!F71<>0,IF(H60="Mehrweg",DSS!F71,DSS!F71*DSS!$D$25),"") ->  | M60: =IF(Q60<>"",IF(Q60=DSS!F71,('Tab-Ergebnis-WDP-GV'!CM80*Q60*DSS!$D$25)-(((DSS!$D$25*Q60)-Q60)*'Tab-Ergebnis-WDP-GV'!CC80),'Tab-Ergebnis-WDP-GV'!CM80*Q60),"") ->  | N60: =IF(Q60<>"",IF(Q60=DSS!F71,('Tab-Ergebnis-WDP-GV'!CN80*Q60*DSS!$D$25)-(((DSS!$D$25*Q60)-Q60)*'Tab-Ergebnis-WDP-GV'!CD80),'Tab-Ergebnis-WDP-GV'!CN80*Q60),"") ->  | O60: =IF(Q60<>"",IF(Q60=DSS!F71,('Tab-Ergebnis-WDP-GV'!CL80*Q60*DSS!$D$25)-(((DSS!$D$25*Q60)-Q60)*'Tab-Ergebnis-WDP-GV'!CB80),'Tab-Ergebnis-WDP-GV'!CL80*Q60),"") ->  | P60: 20 | Q60: =IF(DSS!F71<>0,IF(AND(Haupttabelle!$CK$1="ja",H60="Mehrweg"),DSS!F71,DSS!F71*DSS!$D$25),"") -> 
E61: ='Tab-Ergebnis-WDP-GV'!E81 ->  | F61: ='Tab-Ergebnis-WDP-GV'!F81 ->  | G61: ='Tab-Ergebnis-WDP-GV'!C81 ->  | H61: =IF('Tab-Ergebnis-WDP-GV'!N81="M","Mehrweg",IF('Tab-Ergebnis-WDP-GV'!N81="E","Einweg","")) ->  | I61: =IF('Tab-Ergebnis-WDP-GV'!P81=FALSE,"nein",IF('Tab-Ergebnis-WDP-GV'!P81=TRUE,"ja","")) ->  | J61: =IF('Tab-Ergebnis-WDP-GV'!Q81=FALSE,"nein",IF('Tab-Ergebnis-WDP-GV'!Q81=TRUE,"ja","")) ->  | K61: ='Tab-Ergebnis-WDP-GV'!I81 ->  | L61: =IF(DSS!F72<>0,IF(H61="Mehrweg",DSS!F72,DSS!F72*DSS!$D$25),"") ->  | M61: =IF(Q61<>"",IF(Q61=DSS!F72,('Tab-Ergebnis-WDP-GV'!CM81*Q61*DSS!$D$25)-(((DSS!$D$25*Q61)-Q61)*'Tab-Ergebnis-WDP-GV'!CC81),'Tab-Ergebnis-WDP-GV'!CM81*Q61),"") ->  | N61: =IF(Q61<>"",IF(Q61=DSS!F72,('Tab-Ergebnis-WDP-GV'!CN81*Q61*DSS!$D$25)-(((DSS!$D$25*Q61)-Q61)*'Tab-Ergebnis-WDP-GV'!CD81),'Tab-Ergebnis-WDP-GV'!CN81*Q61),"") ->  | O61: =IF(Q61<>"",IF(Q61=DSS!F72,('Tab-Ergebnis-WDP-GV'!CL81*Q61*DSS!$D$25)-(((DSS!$D$25*Q61)-Q61)*'Tab-Ergebnis-WDP-GV'!CB81),'Tab-Ergebnis-WDP-GV'!CL81*Q61),"") ->  | P61: 20 | Q61: =IF(DSS!F72<>0,IF(AND(Haupttabelle!$CK$1="ja",H61="Mehrweg"),DSS!F72,DSS!F72*DSS!$D$25),"") -> 
E62: ='Tab-Ergebnis-WDP-GV'!E82 ->  | F62: ='Tab-Ergebnis-WDP-GV'!F82 ->  | G62: ='Tab-Ergebnis-WDP-GV'!C82 ->  | H62: =IF('Tab-Ergebnis-WDP-GV'!N82="M","Mehrweg",IF('Tab-Ergebnis-WDP-GV'!N82="E","Einweg","")) ->  | I62: =IF('Tab-Ergebnis-WDP-GV'!P82=FALSE,"nein",IF('Tab-Ergebnis-WDP-GV'!P82=TRUE,"ja","")) ->  | J62: =IF('Tab-Ergebnis-WDP-GV'!Q82=FALSE,"nein",IF('Tab-Ergebnis-WDP-GV'!Q82=TRUE,"ja","")) ->  | K62: ='Tab-Ergebnis-WDP-GV'!I82 ->  | L62: =IF(DSS!F73<>0,IF(H62="Mehrweg",DSS!F73,DSS!F73*DSS!$D$25),"") ->  | M62: =IF(Q62<>"",IF(Q62=DSS!F73,('Tab-Ergebnis-WDP-GV'!CM82*Q62*DSS!$D$25)-(((DSS!$D$25*Q62)-Q62)*'Tab-Ergebnis-WDP-GV'!CC82),'Tab-Ergebnis-WDP-GV'!CM82*Q62),"") ->  | N62: =IF(Q62<>"",IF(Q62=DSS!F73,('Tab-Ergebnis-WDP-GV'!CN82*Q62*DSS!$D$25)-(((DSS!$D$25*Q62)-Q62)*'Tab-Ergebnis-WDP-GV'!CD82),'Tab-Ergebnis-WDP-GV'!CN82*Q62),"") ->  | O62: =IF(Q62<>"",IF(Q62=DSS!F73,('Tab-Ergebnis-WDP-GV'!CL82*Q62*DSS!$D$25)-(((DSS!$D$25*Q62)-Q62)*'Tab-Ergebnis-WDP-GV'!CB82),'Tab-Ergebnis-WDP-GV'!CL82*Q62),"") ->  | P62: 20 | Q62: =IF(DSS!F73<>0,IF(AND(Haupttabelle!$CK$1="ja",H62="Mehrweg"),DSS!F73,DSS!F73*DSS!$D$25),"") -> 
E63: ='Tab-Ergebnis-WDP-GV'!E83 ->  | F63: ='Tab-Ergebnis-WDP-GV'!F83 ->  | G63: ='Tab-Ergebnis-WDP-GV'!C83 ->  | H63: =IF('Tab-Ergebnis-WDP-GV'!N83="M","Mehrweg",IF('Tab-Ergebnis-WDP-GV'!N83="E","Einweg","")) ->  | I63: =IF('Tab-Ergebnis-WDP-GV'!P83=FALSE,"nein",IF('Tab-Ergebnis-WDP-GV'!P83=TRUE,"ja","")) ->  | J63: =IF('Tab-Ergebnis-WDP-GV'!Q83=FALSE,"nein",IF('Tab-Ergebnis-WDP-GV'!Q83=TRUE,"ja","")) ->  | K63: ='Tab-Ergebnis-WDP-GV'!I83 ->  | L63: =IF(DSS!F74<>0,IF(H63="Mehrweg",DSS!F74,DSS!F74*DSS!$D$25),"") ->  | M63: =IF(Q63<>"",IF(Q63=DSS!F74,('Tab-Ergebnis-WDP-GV'!CM83*Q63*DSS!$D$25)-(((DSS!$D$25*Q63)-Q63)*'Tab-Ergebnis-WDP-GV'!CC83),'Tab-Ergebnis-WDP-GV'!CM83*Q63),"") ->  | N63: =IF(Q63<>"",IF(Q63=DSS!F74,('Tab-Ergebnis-WDP-GV'!CN83*Q63*DSS!$D$25)-(((DSS!$D$25*Q63)-Q63)*'Tab-Ergebnis-WDP-GV'!CD83),'Tab-Ergebnis-WDP-GV'!CN83*Q63),"") ->  | O63: =IF(Q63<>"",IF(Q63=DSS!F74,('Tab-Ergebnis-WDP-GV'!CL83*Q63*DSS!$D$25)-(((DSS!$D$25*Q63)-Q63)*'Tab-Ergebnis-WDP-GV'!CB83),'Tab-Ergebnis-WDP-GV'!CL83*Q63),"") ->  | P63: 20 | Q63: =IF(DSS!F74<>0,IF(AND(Haupttabelle!$CK$1="ja",H63="Mehrweg"),DSS!F74,DSS!F74*DSS!$D$25),"") -> 
E64: ='Tab-Ergebnis-WDP-GV'!E84 ->  | F64: ='Tab-Ergebnis-WDP-GV'!F84 ->  | G64: ='Tab-Ergebnis-WDP-GV'!C84 ->  | H64: =IF('Tab-Ergebnis-WDP-GV'!N84="M","Mehrweg",IF('Tab-Ergebnis-WDP-GV'!N84="E","Einweg","")) ->  | I64: =IF('Tab-Ergebnis-WDP-GV'!P84=FALSE,"nein",IF('Tab-Ergebnis-WDP-GV'!P84=TRUE,"ja","")) ->  | J64: =IF('Tab-Ergebnis-WDP-GV'!Q84=FALSE,"nein",IF('Tab-Ergebnis-WDP-GV'!Q84=TRUE,"ja","")) ->  | K64: ='Tab-Ergebnis-WDP-GV'!I84 ->  | L64: =IF(DSS!F75<>0,IF(H64="Mehrweg",DSS!F75,DSS!F75*DSS!$D$25),"") ->  | M64: =IF(Q64<>"",IF(Q64=DSS!F75,('Tab-Ergebnis-WDP-GV'!CM84*Q64*DSS!$D$25)-(((DSS!$D$25*Q64)-Q64)*'Tab-Ergebnis-WDP-GV'!CC84),'Tab-Ergebnis-WDP-GV'!CM84*Q64),"") ->  | N64: =IF(Q64<>"",IF(Q64=DSS!F75,('Tab-Ergebnis-WDP-GV'!CN84*Q64*DSS!$D$25)-(((DSS!$D$25*Q64)-Q64)*'Tab-Ergebnis-WDP-GV'!CD84),'Tab-Ergebnis-WDP-GV'!CN84*Q64),"") ->  | O64: =IF(Q64<>"",IF(Q64=DSS!F75,('Tab-Ergebnis-WDP-GV'!CL84*Q64*DSS!$D$25)-(((DSS!$D$25*Q64)-Q64)*'Tab-Ergebnis-WDP-GV'!CB84),'Tab-Ergebnis-WDP-GV'!CL84*Q64),"") ->  | P64: 20 | Q64: =IF(DSS!F75<>0,IF(AND(Haupttabelle!$CK$1="ja",H64="Mehrweg"),DSS!F75,DSS!F75*DSS!$D$25),"") -> 
E65: ='Tab-Ergebnis-WDP-GV'!E85 ->  | F65: ='Tab-Ergebnis-WDP-GV'!F85 ->  | G65: ='Tab-Ergebnis-WDP-GV'!C85 ->  | H65: =IF('Tab-Ergebnis-WDP-GV'!N85="M","Mehrweg",IF('Tab-Ergebnis-WDP-GV'!N85="E","Einweg","")) ->  | I65: =IF('Tab-Ergebnis-WDP-GV'!P85=FALSE,"nein",IF('Tab-Ergebnis-WDP-GV'!P85=TRUE,"ja","")) ->  | J65: =IF('Tab-Ergebnis-WDP-GV'!Q85=FALSE,"nein",IF('Tab-Ergebnis-WDP-GV'!Q85=TRUE,"ja","")) ->  | K65: ='Tab-Ergebnis-WDP-GV'!I85 ->  | L65: =IF(DSS!F76<>0,IF(H65="Mehrweg",DSS!F76,DSS!F76*DSS!$D$25),"") ->  | M65: =IF(Q65<>"",IF(Q65=DSS!F76,('Tab-Ergebnis-WDP-GV'!CM85*Q65*DSS!$D$25)-(((DSS!$D$25*Q65)-Q65)*'Tab-Ergebnis-WDP-GV'!CC85),'Tab-Ergebnis-WDP-GV'!CM85*Q65),"") ->  | N65: =IF(Q65<>"",IF(Q65=DSS!F76,('Tab-Ergebnis-WDP-GV'!CN85*Q65*DSS!$D$25)-(((DSS!$D$25*Q65)-Q65)*'Tab-Ergebnis-WDP-GV'!CD85),'Tab-Ergebnis-WDP-GV'!CN85*Q65),"") ->  | O65: =IF(Q65<>"",IF(Q65=DSS!F76,('Tab-Ergebnis-WDP-GV'!CL85*Q65*DSS!$D$25)-(((DSS!$D$25*Q65)-Q65)*'Tab-Ergebnis-WDP-GV'!CB85),'Tab-Ergebnis-WDP-GV'!CL85*Q65),"") ->  | Q65: =IF(DSS!F76<>0,IF(AND(Haupttabelle!$CK$1="ja",H65="Mehrweg"),DSS!F76,DSS!F76*DSS!$D$25),"") -> 
E66: ='Tab-Ergebnis-WDP-GV'!E86 ->  | F66: ='Tab-Ergebnis-WDP-GV'!F86 ->  | G66: ='Tab-Ergebnis-WDP-GV'!C86 ->  | H66: =IF('Tab-Ergebnis-WDP-GV'!N86="M","Mehrweg",IF('Tab-Ergebnis-WDP-GV'!N86="E","Einweg","")) ->  | I66: =IF('Tab-Ergebnis-WDP-GV'!P86=FALSE,"nein",IF('Tab-Ergebnis-WDP-GV'!P86=TRUE,"ja","")) ->  | J66: =IF('Tab-Ergebnis-WDP-GV'!Q86=FALSE,"nein",IF('Tab-Ergebnis-WDP-GV'!Q86=TRUE,"ja","")) ->  | K66: ='Tab-Ergebnis-WDP-GV'!I86 ->  | L66: =IF(DSS!F77<>0,IF(H66="Mehrweg",DSS!F77,DSS!F77*DSS!$D$25),"") ->  | M66: =IF(Q66<>"",IF(Q66=DSS!F77,('Tab-Ergebnis-WDP-GV'!CM86*Q66*DSS!$D$25)-(((DSS!$D$25*Q66)-Q66)*'Tab-Ergebnis-WDP-GV'!CC86),'Tab-Ergebnis-WDP-GV'!CM86*Q66),"") ->  | N66: =IF(Q66<>"",IF(Q66=DSS!F77,('Tab-Ergebnis-WDP-GV'!CN86*Q66*DSS!$D$25)-(((DSS!$D$25*Q66)-Q66)*'Tab-Ergebnis-WDP-GV'!CD86),'Tab-Ergebnis-WDP-GV'!CN86*Q66),"") ->  | O66: =IF(Q66<>"",IF(Q66=DSS!F77,('Tab-Ergebnis-WDP-GV'!CL86*Q66*DSS!$D$25)-(((DSS!$D$25*Q66)-Q66)*'Tab-Ergebnis-WDP-GV'!CB86),'Tab-Ergebnis-WDP-GV'!CL86*Q66),"") ->  | P66: 20 | Q66: =IF(DSS!F77<>0,IF(AND(Haupttabelle!$CK$1="ja",H66="Mehrweg"),DSS!F77,DSS!F77*DSS!$D$25),"") -> 
E67: ='Tab-Ergebnis-WDP-GV'!E87 ->  | F67: ='Tab-Ergebnis-WDP-GV'!F87 ->  | G67: ='Tab-Ergebnis-WDP-GV'!C87 ->  | H67: =IF('Tab-Ergebnis-WDP-GV'!N87="M","Mehrweg",IF('Tab-Ergebnis-WDP-GV'!N87="E","Einweg","")) ->  | I67: =IF('Tab-Ergebnis-WDP-GV'!P87=FALSE,"nein",IF('Tab-Ergebnis-WDP-GV'!P87=TRUE,"ja","")) ->  | J67: =IF('Tab-Ergebnis-WDP-GV'!Q87=FALSE,"nein",IF('Tab-Ergebnis-WDP-GV'!Q87=TRUE,"ja","")) ->  | K67: ='Tab-Ergebnis-WDP-GV'!I87 ->  | L67: =IF(DSS!F78<>0,IF(H67="Mehrweg",DSS!F78,DSS!F78*DSS!$D$25),"") ->  | M67: =IF(Q67<>"",IF(Q67=DSS!F78,('Tab-Ergebnis-WDP-GV'!CM87*Q67*DSS!$D$25)-(((DSS!$D$25*Q67)-Q67)*'Tab-Ergebnis-WDP-GV'!CC87),'Tab-Ergebnis-WDP-GV'!CM87*Q67),"") ->  | N67: =IF(Q67<>"",IF(Q67=DSS!F78,('Tab-Ergebnis-WDP-GV'!CN87*Q67*DSS!$D$25)-(((DSS!$D$25*Q67)-Q67)*'Tab-Ergebnis-WDP-GV'!CD87),'Tab-Ergebnis-WDP-GV'!CN87*Q67),"") ->  | O67: =IF(Q67<>"",IF(Q67=DSS!F78,('Tab-Ergebnis-WDP-GV'!CL87*Q67*DSS!$D$25)-(((DSS!$D$25*Q67)-Q67)*'Tab-Ergebnis-WDP-GV'!CB87),'Tab-Ergebnis-WDP-GV'!CL87*Q67),"") ->  | P67: 20 | Q67: =IF(DSS!F78<>0,IF(AND(Haupttabelle!$CK$1="ja",H67="Mehrweg"),DSS!F78,DSS!F78*DSS!$D$25),"") -> 
E68: Summe | L68: =SUM(L54:L67) -> 0 | M68: =SUM(M54:M67) -> 0 | N68: =SUM(N54:N67) -> 0 | O68: =SUM(O54:O67) -> 0
E70: Tab. 3: Geschirrbedarf, -spezifikationen und Emissionen gesamt (Sonstiges):
E71: Auswahl DSS | F71: Produkt / Geschirrmodell (Vorschlag des DSS) | G71: Alternative ("A"; sofern keine Option hinsichtlich der Auswahlkriterien verfügbar) | H71: Einweg / Mehrweg | I71: Essbar? | J71: Biologisch abbaubar? | K71: Material | L71: Menge [Anzahl Essen oder Geschirr] | M71: Ressourcenverbrauch [ADP; kg Sb-Äq./Veranstaltung] | N71: Wassernutzung [WDP; m3/Veranstaltung] | O71: Klimawandel [GWP; kg CO2-Äq./Veranstaltung] | P71: Doppelte Werte
E72: ='Tab-Ergebnis-WDP-GV'!E88 ->  | F72: ='Tab-Ergebnis-WDP-GV'!F88 ->  | G72: ='Tab-Ergebnis-WDP-GV'!C88 ->  | H72: =IF('Tab-Ergebnis-WDP-GV'!N88="M","Mehrweg",IF('Tab-Ergebnis-WDP-GV'!N88="E","Einweg","")) ->  | I72: =IF('Tab-Ergebnis-WDP-GV'!P88=FALSE,"nein",IF('Tab-Ergebnis-WDP-GV'!P88=TRUE,"ja","")) ->  | J72: =IF('Tab-Ergebnis-WDP-GV'!Q88=FALSE,"nein",IF('Tab-Ergebnis-WDP-GV'!Q88=TRUE,"ja","")) ->  | K72: ='Tab-Ergebnis-WDP-GV'!I88 ->  | L72: =IF(DSS!F83<>0,IF(H72="Mehrweg",DSS!F83,DSS!F83*DSS!$D$25),"") ->  | M72: =IF(Q72<>"",IF(Q72=DSS!F83,('Tab-Ergebnis-WDP-GV'!CM88*Q72*DSS!$D$25)-(((DSS!$D$25*Q72)-Q72)*'Tab-Ergebnis-WDP-GV'!CC88),'Tab-Ergebnis-WDP-GV'!CM88*Q72),"") ->  | N72: =IF(Q72<>"",IF(Q72=DSS!F83,('Tab-Ergebnis-WDP-GV'!CN88*Q72*DSS!$D$25)-(((DSS!$D$25*Q72)-Q72)*'Tab-Ergebnis-WDP-GV'!CD88),'Tab-Ergebnis-WDP-GV'!CN88*Q72),"") ->  | O72: =IF(Q72<>"",IF(Q72=DSS!F83,('Tab-Ergebnis-WDP-GV'!CL88*Q72*DSS!$D$25)-(((DSS!$D$25*Q72)-Q72)*'Tab-Ergebnis-WDP-GV'!CB88),'Tab-Ergebnis-WDP-GV'!CL88*Q72),"") ->  | P72: =COUNTIF($E$30:$E$49,E72) -> 20 | Q72: =IF(DSS!F83<>0,IF(AND(Haupttabelle!$CK$1="ja",H72="Mehrweg"),DSS!F83,DSS!F83*DSS!$D$25),"") -> 
E73: ='Tab-Ergebnis-WDP-GV'!E89 ->  | F73: ='Tab-Ergebnis-WDP-GV'!F89 ->  | G73: ='Tab-Ergebnis-WDP-GV'!C89 ->  | H73: =IF('Tab-Ergebnis-WDP-GV'!N89="M","Mehrweg",IF('Tab-Ergebnis-WDP-GV'!N89="E","Einweg","")) ->  | I73: =IF('Tab-Ergebnis-WDP-GV'!P89=FALSE,"nein",IF('Tab-Ergebnis-WDP-GV'!P89=TRUE,"ja","")) ->  | J73: =IF('Tab-Ergebnis-WDP-GV'!Q89=FALSE,"nein",IF('Tab-Ergebnis-WDP-GV'!Q89=TRUE,"ja","")) ->  | K73: ='Tab-Ergebnis-WDP-GV'!I89 ->  | L73: =IF(DSS!F84<>0,IF(H73="Mehrweg",DSS!F84,DSS!F84*DSS!$D$25),"") ->  | M73: =IF(Q73<>"",IF(Q73=DSS!F84,('Tab-Ergebnis-WDP-GV'!CM89*Q73*DSS!$D$25)-(((DSS!$D$25*Q73)-Q73)*'Tab-Ergebnis-WDP-GV'!CC89),'Tab-Ergebnis-WDP-GV'!CM89*Q73),"") ->  | N73: =IF(Q73<>"",IF(Q73=DSS!F84,('Tab-Ergebnis-WDP-GV'!CN89*Q73*DSS!$D$25)-(((DSS!$D$25*Q73)-Q73)*'Tab-Ergebnis-WDP-GV'!CD89),'Tab-Ergebnis-WDP-GV'!CN89*Q73),"") ->  | O73: =IF(Q73<>"",IF(Q73=DSS!F84,('Tab-Ergebnis-WDP-GV'!CL89*Q73*DSS!$D$25)-(((DSS!$D$25*Q73)-Q73)*'Tab-Ergebnis-WDP-GV'!CB89),'Tab-Ergebnis-WDP-GV'!CL89*Q73),"") ->  | P73: =COUNTIF($E$30:$E$49,E73) -> 20 | Q73: =IF(DSS!F84<>0,IF(AND(Haupttabelle!$CK$1="ja",H73="Mehrweg"),DSS!F84,DSS!F84*DSS!$D$25),"") -> 
E74: ='Tab-Ergebnis-WDP-GV'!E90 ->  | F74: ='Tab-Ergebnis-WDP-GV'!F90 ->  | G74: ='Tab-Ergebnis-WDP-GV'!C90 ->  | H74: =IF('Tab-Ergebnis-WDP-GV'!N90="M","Mehrweg",IF('Tab-Ergebnis-WDP-GV'!N90="E","Einweg","")) ->  | I74: =IF('Tab-Ergebnis-WDP-GV'!P90=FALSE,"nein",IF('Tab-Ergebnis-WDP-GV'!P90=TRUE,"ja","")) ->  | J74: =IF('Tab-Ergebnis-WDP-GV'!Q90=FALSE,"nein",IF('Tab-Ergebnis-WDP-GV'!Q90=TRUE,"ja","")) ->  | K74: ='Tab-Ergebnis-WDP-GV'!I90 ->  | L74: =IF(DSS!F85<>0,IF(H74="Mehrweg",DSS!F85,DSS!F85*DSS!$D$25),"") ->  | M74: =IF(Q74<>"",IF(Q74=DSS!F85,('Tab-Ergebnis-WDP-GV'!CM90*Q74*DSS!$D$25)-(((DSS!$D$25*Q74)-Q74)*'Tab-Ergebnis-WDP-GV'!CC90),'Tab-Ergebnis-WDP-GV'!CM90*Q74),"") ->  | N74: =IF(Q74<>"",IF(Q74=DSS!F85,('Tab-Ergebnis-WDP-GV'!CN90*Q74*DSS!$D$25)-(((DSS!$D$25*Q74)-Q74)*'Tab-Ergebnis-WDP-GV'!CD90),'Tab-Ergebnis-WDP-GV'!CN90*Q74),"") ->  | O74: =IF(Q74<>"",IF(Q74=DSS!F85,('Tab-Ergebnis-WDP-GV'!CL90*Q74*DSS!$D$25)-(((DSS!$D$25*Q74)-Q74)*'Tab-Ergebnis-WDP-GV'!CB90),'Tab-Ergebnis-WDP-GV'!CL90*Q74),"") ->  | P74: 20 | Q74: =IF(DSS!F85<>0,IF(AND(Haupttabelle!$CK$1="ja",H74="Mehrweg"),DSS!F85,DSS!F85*DSS!$D$25),"") -> 
E75: ='Tab-Ergebnis-WDP-GV'!E91 ->  | F75: ='Tab-Ergebnis-WDP-GV'!F91 ->  | G75: ='Tab-Ergebnis-WDP-GV'!C91 ->  | H75: =IF('Tab-Ergebnis-WDP-GV'!N91="M","Mehrweg",IF('Tab-Ergebnis-WDP-GV'!N91="E","Einweg","")) ->  | I75: =IF('Tab-Ergebnis-WDP-GV'!P91=FALSE,"nein",IF('Tab-Ergebnis-WDP-GV'!P91=TRUE,"ja","")) ->  | J75: =IF('Tab-Ergebnis-WDP-GV'!Q91=FALSE,"nein",IF('Tab-Ergebnis-WDP-GV'!Q91=TRUE,"ja","")) ->  | K75: ='Tab-Ergebnis-WDP-GV'!I91 ->  | L75: =IF(DSS!F86<>0,IF(H75="Mehrweg",DSS!F86,DSS!F86*DSS!$D$25),"") ->  | M75: =IF(Q75<>"",IF(Q75=DSS!F86,('Tab-Ergebnis-WDP-GV'!CM91*Q75*DSS!$D$25)-(((DSS!$D$25*Q75)-Q75)*'Tab-Ergebnis-WDP-GV'!CC91),'Tab-Ergebnis-WDP-GV'!CM91*Q75),"") ->  | N75: =IF(Q75<>"",IF(Q75=DSS!F86,('Tab-Ergebnis-WDP-GV'!CN91*Q75*DSS!$D$25)-(((DSS!$D$25*Q75)-Q75)*'Tab-Ergebnis-WDP-GV'!CD91),'Tab-Ergebnis-WDP-GV'!CN91*Q75),"") ->  | O75: =IF(Q75<>"",IF(Q75=DSS!F86,('Tab-Ergebnis-WDP-GV'!CL91*Q75*DSS!$D$25)-(((DSS!$D$25*Q75)-Q75)*'Tab-Ergebnis-WDP-GV'!CB91),'Tab-Ergebnis-WDP-GV'!CL91*Q75),"") ->  | P75: 20 | Q75: =IF(DSS!F86<>0,IF(AND(Haupttabelle!$CK$1="ja",H75="Mehrweg"),DSS!F86,DSS!F86*DSS!$D$25),"") -> 
E76: ='Tab-Ergebnis-WDP-GV'!E92 ->  | F76: ='Tab-Ergebnis-WDP-GV'!F92 ->  | G76: ='Tab-Ergebnis-WDP-GV'!C92 ->  | H76: =IF('Tab-Ergebnis-WDP-GV'!N92="M","Mehrweg",IF('Tab-Ergebnis-WDP-GV'!N92="E","Einweg","")) ->  | I76: =IF('Tab-Ergebnis-WDP-GV'!P92=FALSE,"nein",IF('Tab-Ergebnis-WDP-GV'!P92=TRUE,"ja","")) ->  | J76: =IF('Tab-Ergebnis-WDP-GV'!Q92=FALSE,"nein",IF('Tab-Ergebnis-WDP-GV'!Q92=TRUE,"ja","")) ->  | K76: ='Tab-Ergebnis-WDP-GV'!I92 ->  | L76: =IF(DSS!F87<>0,IF(H76="Mehrweg",DSS!F87,DSS!F87*DSS!$D$25),"") ->  | M76: =IF(Q76<>"",IF(Q76=DSS!F87,('Tab-Ergebnis-WDP-GV'!CM92*Q76*DSS!$D$25)-(((DSS!$D$25*Q76)-Q76)*'Tab-Ergebnis-WDP-GV'!CC92),'Tab-Ergebnis-WDP-GV'!CM92*Q76),"") ->  | N76: =IF(Q76<>"",IF(Q76=DSS!F87,('Tab-Ergebnis-WDP-GV'!CN92*Q76*DSS!$D$25)-(((DSS!$D$25*Q76)-Q76)*'Tab-Ergebnis-WDP-GV'!CD92),'Tab-Ergebnis-WDP-GV'!CN92*Q76),"") ->  | O76: =IF(Q76<>"",IF(Q76=DSS!F87,('Tab-Ergebnis-WDP-GV'!CL92*Q76*DSS!$D$25)-(((DSS!$D$25*Q76)-Q76)*'Tab-Ergebnis-WDP-GV'!CB92),'Tab-Ergebnis-WDP-GV'!CL92*Q76),"") ->  | P76: 20 | Q76: =IF(DSS!F87<>0,IF(AND(Haupttabelle!$CK$1="ja",H76="Mehrweg"),DSS!F87,DSS!F87*DSS!$D$25),"") -> 
E77: ='Tab-Ergebnis-WDP-GV'!E93 ->  | F77: ='Tab-Ergebnis-WDP-GV'!F93 ->  | G77: ='Tab-Ergebnis-WDP-GV'!C93 ->  | H77: =IF('Tab-Ergebnis-WDP-GV'!N93="M","Mehrweg",IF('Tab-Ergebnis-WDP-GV'!N93="E","Einweg","")) ->  | I77: =IF('Tab-Ergebnis-WDP-GV'!P93=FALSE,"nein",IF('Tab-Ergebnis-WDP-GV'!P93=TRUE,"ja","")) ->  | J77: =IF('Tab-Ergebnis-WDP-GV'!Q93=FALSE,"nein",IF('Tab-Ergebnis-WDP-GV'!Q93=TRUE,"ja","")) ->  | K77: ='Tab-Ergebnis-WDP-GV'!I93 ->  | L77: =IF(DSS!F88<>0,IF(H77="Mehrweg",DSS!F88,DSS!F88*DSS!$D$25),"") ->  | M77: =IF(Q77<>"",IF(Q77=DSS!F88,('Tab-Ergebnis-WDP-GV'!CM93*Q77*DSS!$D$25)-(((DSS!$D$25*Q77)-Q77)*'Tab-Ergebnis-WDP-GV'!CC93),'Tab-Ergebnis-WDP-GV'!CM93*Q77),"") ->  | N77: =IF(Q77<>"",IF(Q77=DSS!F88,('Tab-Ergebnis-WDP-GV'!CN93*Q77*DSS!$D$25)-(((DSS!$D$25*Q77)-Q77)*'Tab-Ergebnis-WDP-GV'!CD93),'Tab-Ergebnis-WDP-GV'!CN93*Q77),"") ->  | O77: =IF(Q77<>"",IF(Q77=DSS!F88,('Tab-Ergebnis-WDP-GV'!CL93*Q77*DSS!$D$25)-(((DSS!$D$25*Q77)-Q77)*'Tab-Ergebnis-WDP-GV'!CB93),'Tab-Ergebnis-WDP-GV'!CL93*Q77),"") ->  | P77: 20 | Q77: =IF(DSS!F88<>0,IF(AND(Haupttabelle!$CK$1="ja",H77="Mehrweg"),DSS!F88,DSS!F88*DSS!$D$25),"") -> 
E78: ='Tab-Ergebnis-WDP-GV'!E94 ->  | F78: ='Tab-Ergebnis-WDP-GV'!F94 ->  | G78: ='Tab-Ergebnis-WDP-GV'!C94 ->  | H78: =IF('Tab-Ergebnis-WDP-GV'!N94="M","Mehrweg",IF('Tab-Ergebnis-WDP-GV'!N94="E","Einweg","")) ->  | I78: =IF('Tab-Ergebnis-WDP-GV'!P94=FALSE,"nein",IF('Tab-Ergebnis-WDP-GV'!P94=TRUE,"ja","")) ->  | J78: =IF('Tab-Ergebnis-WDP-GV'!Q94=FALSE,"nein",IF('Tab-Ergebnis-WDP-GV'!Q94=TRUE,"ja","")) ->  | K78: ='Tab-Ergebnis-WDP-GV'!I94 ->  | L78: =IF(DSS!F89<>0,IF(H78="Mehrweg",DSS!F89,DSS!F89*DSS!$D$25),"") ->  | M78: =IF(Q78<>"",IF(Q78=DSS!F89,('Tab-Ergebnis-WDP-GV'!CM94*Q78*DSS!$D$25)-(((DSS!$D$25*Q78)-Q78)*'Tab-Ergebnis-WDP-GV'!CC94),'Tab-Ergebnis-WDP-GV'!CM94*Q78),"") ->  | N78: =IF(Q78<>"",IF(Q78=DSS!F89,('Tab-Ergebnis-WDP-GV'!CN94*Q78*DSS!$D$25)-(((DSS!$D$25*Q78)-Q78)*'Tab-Ergebnis-WDP-GV'!CD94),'Tab-Ergebnis-WDP-GV'!CN94*Q78),"") ->  | O78: =IF(Q78<>"",IF(Q78=DSS!F89,('Tab-Ergebnis-WDP-GV'!CL94*Q78*DSS!$D$25)-(((DSS!$D$25*Q78)-Q78)*'Tab-Ergebnis-WDP-GV'!CB94),'Tab-Ergebnis-WDP-GV'!CL94*Q78),"") ->  | P78: 20 | Q78: =IF(DSS!F89<>0,IF(AND(Haupttabelle!$CK$1="ja",H78="Mehrweg"),DSS!F89,DSS!F89*DSS!$D$25),"") -> 
E79: ='Tab-Ergebnis-WDP-GV'!E95 ->  | F79: ='Tab-Ergebnis-WDP-GV'!F95 ->  | G79: ='Tab-Ergebnis-WDP-GV'!C95 ->  | H79: =IF('Tab-Ergebnis-WDP-GV'!N95="M","Mehrweg",IF('Tab-Ergebnis-WDP-GV'!N95="E","Einweg","")) ->  | I79: =IF('Tab-Ergebnis-WDP-GV'!P95=FALSE,"nein",IF('Tab-Ergebnis-WDP-GV'!P95=TRUE,"ja","")) ->  | J79: =IF('Tab-Ergebnis-WDP-GV'!Q95=FALSE,"nein",IF('Tab-Ergebnis-WDP-GV'!Q95=TRUE,"ja","")) ->  | K79: ='Tab-Ergebnis-WDP-GV'!I95 ->  | L79: =IF(DSS!F90<>0,IF(H79="Mehrweg",DSS!F90,DSS!F90*DSS!$D$25),"") ->  | M79: =IF(Q79<>"",IF(Q79=DSS!F90,('Tab-Ergebnis-WDP-GV'!CM95*Q79*DSS!$D$25)-(((DSS!$D$25*Q79)-Q79)*'Tab-Ergebnis-WDP-GV'!CC95),'Tab-Ergebnis-WDP-GV'!CM95*Q79),"") ->  | N79: =IF(Q79<>"",IF(Q79=DSS!F90,('Tab-Ergebnis-WDP-GV'!CN95*Q79*DSS!$D$25)-(((DSS!$D$25*Q79)-Q79)*'Tab-Ergebnis-WDP-GV'!CD95),'Tab-Ergebnis-WDP-GV'!CN95*Q79),"") ->  | O79: =IF(Q79<>"",IF(Q79=DSS!F90,('Tab-Ergebnis-WDP-GV'!CL95*Q79*DSS!$D$25)-(((DSS!$D$25*Q79)-Q79)*'Tab-Ergebnis-WDP-GV'!CB95),'Tab-Ergebnis-WDP-GV'!CL95*Q79),"") ->  | P79: 20 | Q79: =IF(DSS!F90<>0,IF(AND(Haupttabelle!$CK$1="ja",H79="Mehrweg"),DSS!F90,DSS!F90*DSS!$D$25),"") -> 
E80: Summe | L80: =SUM(L72:L79) -> 0 | M80: =SUM(M72:M79) -> 0 | N80: =SUM(N72:N79) -> 0 | O80: =SUM(O72:O79) -> 0
M82: =SUM(M50,M68,M80) -> 0 | N82: =SUM(N50,N68,N80) -> 0 | O82: =SUM(O50,O68,O80) -> 0
C83: EINSPARPOTENZIALE
L85: Tab. 4: Einsparpotenziale durch Nutzung des ausgewählten Geschirrs*:
L86: Geschirrart | M86: Ressourcenverbrauch [ADP; kg Sb-Äq./Veranstaltung] | N86: Wassernutzung [WDP; m3/Veranstaltung] | O86: Klimawandel [GWP; kg CO2-Äq./Veranstaltung]
L87: Essen | M87: ='Tab-Ergebnis-WDP-GV'!CM323-M50 -> 0 | N87: ='Tab-Ergebnis-WDP-GV'!CN323-N50 -> 0 | O87: ='Tab-Ergebnis-WDP-GV'!CL323-O50 -> 0
L88: Getränke | M88: ='Tab-Ergebnis-WDP-GV'!CM324-M68 -> 0 | N88: ='Tab-Ergebnis-WDP-GV'!CN324-N68 -> 0 | O88: ='Tab-Ergebnis-WDP-GV'!CL324-O68 -> 0
L89: Sonstiges | M89: ='Tab-Ergebnis-WDP-GV'!CM325-M80 -> 0 | N89: ='Tab-Ergebnis-WDP-GV'!CN325-N80 -> 0 | O89: ='Tab-Ergebnis-WDP-GV'!CL325-O80 -> 0
L90: GESAMT | M90: =SUM(M87:M89) -> 0 | N90: =SUM(N87:N89) -> 0 | O90: =SUM(O87:O89) -> 0
L91: *Das Einsparpotenzial wird angegeben als Emissionswert der eingespart werden kann, wenn das Geschirr mit den minimalsten Umweltwirkungen gewählt wird im Vergleich zur Geschirrvariante mit den schlechtesten Umweltwirkungen (immer unter Berücksichtigung der ausgewählten Anforderungen an das Geschirr, sofern hierfür Optionen verfügbar sind).
C102: GRAPHISCHE DARSTELLUNG DER ERGEBNISSE FÜR VERSCHIEDENE WIRKUNGSKATEGORIEN
C139: EINWEG VS. MEHRWEG
C140: (Vergleich der Emissionen des ausgewählten Geschirrs; siehe hierzu Tabellen Geschirrbedarf, -spezifikationen und Emissionen gesamt) | J140: Tab. 5: Vergleich der Emissionen des ausgewählten Einweg- und Mehrweggeschirrs:
J141: Einweg / Mehrweg | K141: Geschirrart | L141: Menge [Anzahl Essen oder Geschirrnutzungen] | M141: Ressourcenverbrauch [ADP; kg Sb-Äq./Veranstaltung] | N141: Wassernutzung [WDP; m3/Veranstaltung] | O141: Klimawandel [GWP; kg CO2-Äq./Veranstaltung]
J142: Einweg | K142: Essen | L142: =SUMIF($H$30:$H$49,"Einweg",L30:L49) -> 0 | M142: =SUMIF($H$30:$H$49,"Einweg",M30:M49) -> 0 | N142: =SUMIF($H$30:$H$49,"Einweg",N30:N49) -> 0 | O142: =SUMIF($H$30:$H$49,"Einweg",O30:O49) -> 0
K143: Getränke | L143: =SUMIF($H$54:$H$67,"Einweg",Q54:Q67) -> 0 | M143: =SUMIF($H$54:$H$67,"Einweg",M54:M67) -> 0 | N143: =SUMIF($H$54:$H$67,"Einweg",N54:N67) -> 0 | O143: =SUMIF($H$54:$H$67,"Einweg",O54:O67) -> 0
K144: Sonstiges | L144: =SUMIF($H$72:$H$79,"Einweg",L72:L79) -> 0 | M144: =SUMIF($H$72:$H$79,"Einweg",M72:M79) -> 0 | N144: =SUMIF($H$72:$H$79,"Einweg",N72:N79) -> 0 | O144: =SUMIF($H$72:$H$79,"Einweg",O72:O79) -> 0
K145: GESAMT | L145: =SUM(L142:L144) -> 0 | M145: =SUM(M142:M144) -> 0 | N145: =SUM(N142:N144) -> 0 | O145: =SUM(O142:O144) -> 0
J146: Mehrweg | K146: Essen | L146: =SUMIF($H$30:$H$49,"Mehrweg",L30:L49)*I17 -> 0 | M146: =SUMIF($H$30:$H$49,"Mehrweg",M30:M49) -> 0 | N146: =SUMIF($H$30:$H$49,"Mehrweg",N30:N49) -> 0 | O146: =SUMIF($H$30:$H$49,"Mehrweg",O30:O49) -> 0
K147: Getränke | L147: =SUMIF($H$54:$H$67,"Mehrweg",L54:L67)*I17 -> 0 | M147: =SUMIF($H$54:$H$67,"Mehrweg",M54:M67) -> 0 | N147: =SUMIF($H$54:$H$67,"Mehrweg",N54:N67) -> 0 | O147: =SUMIF($H$54:$H$67,"Mehrweg",O54:O67) -> 0
K148: Sonstiges | L148: =SUMIF($H$72:$H$79,"Mehrweg",L72:L79)*I17 -> 0 | M148: =SUMIF($H$72:$H$79,"Mehrweg",M72:M79) -> 0 | N148: =SUMIF($H$72:$H$79,"Mehrweg",N72:N79) -> 0 | O148: =SUMIF($H$72:$H$79,"Mehrweg",O72:O79) -> 0
K149: GESAMT | L149: =SUM(L146:L148) -> 0 | M149: =SUM(M146:M148) -> 0 | N149: =SUM(N146:N148) -> 0 | O149: =SUM(O146:O148) -> 0
J150: GESAMT | L150: =L145+L149 -> 0 | M150: =M145+M149 -> 0 | N150: =N145+N149 -> 0 | O150: =O145+O149 -> 0
C163: EMISSIONEN NACH WIRKUNGSKATEGORIEN FÜR VERSCHIEDENE PHASEN DES LEBENSZYKLUS
N169: Die Grafiken stellen die Emissionen nach Wirkungskategorien für verschiedene Phasen des Lebenszyklus (Herstellung/Nutzung, Spülen, Transport sowie Entsorgung/Verwertung) dar. In Summe ergeben die Werte der einzelnen Wirkungskategorien die Gesamtwerte aus Tab. 5. Ggf. negative Werte für den Bereich Entsorgung/Verwertung ergeben sich aus Gutschriften, die durch Strom- und Wärmeproduktion bei der energetischen Verwertung generiert werden.
C192: ABFALL & LITTERING
B195: ■ | C195: ="Der Anfall von Abfall durch die Nutzung von Einweggeschirr beträgt " & TEXT(ROUND('Tab-Ergebnis-WDP-GV'!EP96,0),"#.##0") &" kg für die gesamte Veranstaltung." -> Der Anfall von Abfall durch die Nutzung von Einweggeschirr beträgt 0 kg für die gesamte Veranstaltung.
B196: ■ | C196: =IF('Tab-Ergebnis-WDP-GV'!EP186>0,"Durch die Nutzung von Mehrweggeschirr können "&ROUND('Tab-Ergebnis-WDP-GV'!EP186,0)&" kg Abfall auf der Veranstaltung eingespart werden.","Da kein Mehrweggeschirr ausgewählt wurde, kann auf der Veranstaltung kein Abfall eingespart werden.") -> Da kein Mehrweggeschirr ausgewählt wurde, kann auf der Veranstaltung kein Abfall eingespart werden.
B197: ■ | C197: =IF('Tab-Ergebnis-WDP-GV'!EP186>0,"Für die Berechnung wurde die ökologisch beste Einwegvariante, sofern verfügbar, als Alternative für ausgewähltes Mehrweggeschirr gewählt.","Für die Berechnung wurde die ökologisch beste Einwegvariante gewählt.") -> Für die Berechnung wurde die ökologisch beste Einwegvariante gewählt.
B198: ■ | C198: =IF('Tab-Ergebnis-WDP-GV'!DK186>0,"Die Emissionen durch eine alternative Nutzung von Einweggeschirr würden sich belaufen auf:","Die Emissionen, die durch die Nutzung von Einweggeschirr entstehen, sind in Tab. 5 dargestellt." ) -> Die Emissionen, die durch die Nutzung von Einweggeschirr entstehen, sind in Tab. 5 dargestellt.
C199: =IF('Tab-Ergebnis-WDP-GV'!DK186>0,"GWP: " & ROUND('Tab-Ergebnis-WDP-GV'!DK186,0) & " kg CO₂-Äq.; ADP: " & ROUND('Tab-Ergebnis-WDP-GV'!DL186,4) & " kg Sb-Äq.; WDP: " & ROUND('Tab-Ergebnis-WDP-GV'!DM186,1) & " m³","") -> 
B200: ■ | C200: =IF('Tab-Ergebnis-WDP-GV'!EP186>0,"Dies entspricht einer Erhöhung/Verringerung der Emissionen im Vergleich zum ausgewählten Geschirr (siehe Gesamtergebnisse in Tab. 5) von " & ROUND('Tab-Ergebnis-WDP-GV'!DK188,2)*100 & "% für GWP, " & ROUND('Tab-Ergebnis-WDP-GV'!DL188,2)*100 & "% für ADP sowie " & ROUND('Tab-Ergebnis-WDP-GV'!DM188,2)*100 & "% für WDP.","Da ausschließlich Einweggeschirr ausgewählt wurde, kommt es zu keiner Veränderung der Emissionen im Vergleich (siehe Gesamtergebnisse in Tab. 5).") -> Da ausschließlich Einweggeschirr ausgewählt wurde, kommt es zu keiner Veränderung der Emissionen im Vergleich (siehe Gesamtergebnisse in Tab. 5).
B201: ■ | C201: =IF('Tab-Ergebnis-WDP-GV'!EP186>0,IF('Tab-Ergebnis-WDP-GV'!ER186="","Dabei wurde für alle Mehrwegoptionen eine Einwegalternative berücksichtigt.","Hierbei ist zu beachten, dass nicht für alle Mehrweggeschirroptionen eine Einwegalternative gefunden werden konnte und die Ergebnisse von Emissionen und Abfallmenge entsprechend zu deuten sind. Hierzu zählt/zählen: "&'Tab-Ergebnis-WDP-GV'!ER186),"Da im System ausschließlich Einweggeschirr ausgewählt wurde, ergeben sich keine Änderungen bei den Emissionen und der Abfallmenge.") -> Da im System ausschließlich Einweggeschirr ausgewählt wurde, ergeben sich keine Änderungen bei den Emissionen und der Abfallmenge.
C204: SZENARIO: ALTERNATIVE SPÜLOPTION
B207: ■ | C207: =IF(Haupttabelle!$CK$1="ja","Wäre entgegen Ihrer Auswahl keine Spüloption vor Ort vorhanden, so würden sich die Emissionen (WDP) um " & (ROUND(N235/N234*100,0))-100 & " % erhöhen auf " & TEXT(ROUND(N235,0),"#.##0") & " m³/Veranstaltung.","Wäre es entgegen Ihrer Auswahl doch möglich, eine Spüloption vor Ort zu ermöglichen, so würden sich die Emissionen (WDP) um " & 100-ROUND(N235/N234*100,0) & " % veringern auf " &TEXT( ROUND(N235,0),"#.##0") & " m³/Veranstaltung.") -> 
C208: (hierbei ist zu beachten, dass für die alternative Spüloption die Auswahl des Geschirrs unverändert bleibt, um vergleichbare Ergebnisse zu erzielen. Eine Änderung der Entfernung zum Spülen führt ggf. auch zu einer neuen Zusammenstellung von optimalem Geschirr. Um die tatsächlichen Emissionen bei alternativer Spüloption zu berechnen, gehen Sie zurück zur Eingabe im Sheet 'DSS' und ändern Sie das Auswahlfeld "Wie groß ist die Transportentfernung zum Spülen von Mehrwegeschirr?"
C224: SZENARIO: ALTERNATIVE TRANSPORTENTFERNUNGEN ZUM SPÜLEN
C225: (Änderung der Transportentfernung zum Spülen, um die Auswirkungen von Transporten im Zusammenhang mit der Geschirrnutzung aufzuzeigen)
B227: ■ | C227: Bei der Beurteilung unterschiedlicher Transportentfernungen ist zu beachten, dass für die Szenarien die Auswahl des Geschirrs unverändert bleibt, um vergleichbare Ergebnisse zu erzielen.
C228: (Eine Änderung der Entfernung zum Spülen (Auswahlfeld im DSS "Wie groß ist die Transportentfernung zum Spülen von Mehrweggeschirr") führt ggf. auch zu einer neuen Zusammenstellung von optimalem Geschirr.)
B229: ■ | C229: Für das Transportszenario 2 können Sie die Entfernung dynamisch anpassen. Wählen Sie dazu im folgenden Auswahlfeld die entsprechende Entfernung (einfache Distanz) aus.
F231: Transportentfernung in Transportszenario 2 (Bitte geben Sie die einfache Distanz zum Spülort an): | G231: 10 | H231: km
I232: Tab. 6: Vergleich der Gesamtemissionen des ausgewählten Einweg- und Mehrweggeschirrs in abhängig unterschiedlicher Transportentfernungen zum Spülen:
I233: Einweg / Mehrweg | J233: Distanz Anlieferung Einweggeschirr [km] | K233: Distanz Anlieferung Mehrweggeschirr* [km] | L233: Transportentfernung zum Spülen [km Hin- und Rückweg] | M233: Ressourcenverbrauch [ADP; kg Sb-Äq./Veranstaltung] | N233: Wassernutzung [WDP; m3/Veranstaltung] | O233: Klimawandel [GWP; kg CO2-Äq./Veranstaltung] | P233: Ver-änder-ung [%]
I234: ="Auswahl DSS " & IF(Haupttabelle!CK1="ja"," Entfernung zum Spülen: 0 km"," Entfernung zum Spülen: " & DSS!E107 & " km") -> Auswahl DSS Entfernung zum Spülen: 0 km | J234: =Haupttabelle!BZ4 -> 0 | K234: =IF(Haupttabelle!CK1="ja",J234,L234/2) -> 0 | L234: =IF(Haupttabelle!CK1="ja",0,'variable_Daten '!D103) -> 0 | M234: ='Tab-Ergebnis-WDP-GV'!DO102+'Tab-Ergebnis-WDP-GV'!DR102+'Tab-Ergebnis-WDP-GV'!DU102+'Tab-Ergebnis-WDP-GV'!DX102 -> 0 | N234: ='Tab-Ergebnis-WDP-GV'!DP102+'Tab-Ergebnis-WDP-GV'!DS102+'Tab-Ergebnis-WDP-GV'!DV102+'Tab-Ergebnis-WDP-GV'!DY102 -> 0 | O234: ='Tab-Ergebnis-WDP-GV'!DN102+'Tab-Ergebnis-WDP-GV'!DQ102+'Tab-Ergebnis-WDP-GV'!DT102+'Tab-Ergebnis-WDP-GV'!DW102 -> 0 | P234: 0
I235: ='Tab-Ergebnis-WDP-GV'!EE4 -> Transportszenario 1: Entfernung zum Spülen 60 km | J235: =Haupttabelle!BZ4 -> 0 | K235: =IF(Haupttabelle!CT4="ja",J235,L235/2) -> 60 | L235: =IF(L234=0,Haupttabelle!CF4,0) -> 120 | M235: ='Tab-Ergebnis-WDP-GV'!DO102+'Tab-Ergebnis-WDP-GV'!DR102+'Tab-Ergebnis-WDP-GV'!EF102+'Tab-Ergebnis-WDP-GV'!DX102 -> 0 | N235: ='Tab-Ergebnis-WDP-GV'!DP102+'Tab-Ergebnis-WDP-GV'!DS102+'Tab-Ergebnis-WDP-GV'!EG102+'Tab-Ergebnis-WDP-GV'!DY102 -> 0 | O235: ='Tab-Ergebnis-WDP-GV'!DN102+'Tab-Ergebnis-WDP-GV'!DQ102+'Tab-Ergebnis-WDP-GV'!EE102+'Tab-Ergebnis-WDP-GV'!DW102 -> 0 | P235: =O235/O234-1 -> 
I236: ='Tab-Ergebnis-WDP-GV'!EK4 -> Transportszenario 2: Entfernung zum Spülen 100 km | J236: =Haupttabelle!BZ4 -> 0 | K236: =G231 -> 10 | L236: =G231*2 -> 20 | M236: ='Tab-Ergebnis-WDP-GV'!DO102+'Tab-Ergebnis-WDP-GV'!DR102+'Tab-Ergebnis-WDP-GV'!EL102+'Tab-Ergebnis-WDP-GV'!DX102 -> 0 | N236: ='Tab-Ergebnis-WDP-GV'!DP102+'Tab-Ergebnis-WDP-GV'!DS102+'Tab-Ergebnis-WDP-GV'!EM102+'Tab-Ergebnis-WDP-GV'!DY102 -> 0 | O236: ='Tab-Ergebnis-WDP-GV'!DN102+'Tab-Ergebnis-WDP-GV'!DQ102+'Tab-Ergebnis-WDP-GV'!EK102+'Tab-Ergebnis-WDP-GV'!DW102 -> 0 | P236: =O236/O234-1 -> 
I237: ="* Zu beachten: Für Mehrweggeschirr wird angenommen, dass der Geschirrverleiher zugleich die Spüldienstleistung erbringt." & " Erfolgt die Reinigung des Mehrweggeschirrs nicht vor Ort, wird die einfache Entfernung zum Spülort als Anlieferungsdistanz berücksichtigt." & " Für die Anlieferung des Einweggeschirrs gilt die im DSS angegebene Anlieferungsdistanz von "&Haupttabelle!BZ4&" km." -> * Zu beachten: Für Mehrweggeschirr wird angenommen, dass der Geschirrverleiher zugleich die Spüldienstleistung erbringt. Erfolgt die Reinigung des Mehrweggeschirrs nicht vor Ort, wird die einfache Entfernung zum Spülort als Anlieferungsdistanz berücksichtigt. Für die Anlieferung des Einweggeschirrs gilt die im DSS angegebene Anlieferungsdistanz von 0 km.
I238: ="Sollte das Mehrweggeschirr jedoch von unterschiedlichen Anbietern bereitgestellt und gespült werden (nicht vor Ort), so würden aus der zusätzlichen Anlieferung über eine Entfernung von " & Haupttabelle!BZ4 & " km die folgenden Emissionen hierfür ebenfalls berücksichtigt werden müssen: " -> Sollte das Mehrweggeschirr jedoch von unterschiedlichen Anbietern bereitgestellt und gespült werden (nicht vor Ort), so würden aus der zusätzlichen Anlieferung über eine Entfernung von 0 km die folgenden Emissionen hierfür ebenfalls berücksichtigt werden müssen:
I239: ="GWP: " & ROUND('Tab-Ergebnis-WDP-GV'!G471,0) & " kg CO₂-Äq.; ADP: " & ROUND('Tab-Ergebnis-WDP-GV'!H471,4) & " kg Sb-Äq.; WDP: " & ROUND('Tab-Ergebnis-WDP-GV'!I471,1) & " m³" -> GWP: 0 kg CO₂-Äq.; ADP: 0 kg Sb-Äq.; WDP: 0 m³
B249: HINWEISE ZUR BERECHNUNG UND AUSWAHL SOWIE EINORDNUNG DER ERGEBNISSE
B251: ■ | C251: Sollte auf Basis der ausgewählten Anforderungen (z.B. "kein Einweg") bzw. Ihrer Kombination kein Geschirr in der Datenbank vorhanden sein, so wird die ökologisch vorteilhafteste Alternative gewählt auf Basis der Nutzungsspezifikation (z.B. "Tellergericht, groß"). Die ausgewählten Anforderungen werden dann nicht mehr berücksichtigt.
B252: ■ | C252: Für die Entsorgung des Geschirrs nach Nutzung bzw. am Ende des Lebenszyklus wird die Verwertung in einem Müllheizkraftwerk bilanziert. Das gilt sowohl für Einweg- als auch Mehrweggeschirr. Gutschriften für die Produktion von Strom und Wärme im Rahmen der energetischen Verwertung sind berücksichtigt.
B253: ■ | C253: Da die Anforderung "Branding des Geschirrs" ausgewählt wurde (Branding bei Tournee- und Eventbechern wie z.B. ein Festivallogo, Künstlerbranding oder individuelles Sportbranding), fließt dies in die Berechnung ein, allerdings ausschließlich für Trinkgefäße. Ein entsprechendes Branding hat Einfluss auf die Rücklaufquote von Bechern und damit auf die anzusetzende Umlaufzahl im Rahmen des Lebenszyklus der Becher. Ein genauer Wert für die Verringerung der Rücklaufquote durch Branding ist schwer abzuschätzen, diese ist abhängig von z.B. Exklusivität oder Popularität einer Veranstaltung. So ist bspw. die Rücklaufquote bei wiederkehrenden Sportereignissen wie der Fussball-Bundesliga höher als bei Einzelereignissen wie Konzerten. Für die Berechnung wird ein mittlerer Wert angenommen, dies ist bei der Interpretation der Ergebnisse zu berücksichtigen.
C254: =IF('variable_Daten '!B6=1,"In diesem Fall (einmalige Veranstaltung und Kauf von Geschirr) spielt das Branding für die Berechnung der Umweltwirkungen keine Rolle.","Für die Berechnung wird mit einer Rücklaufquote von "&ROUND(((1-(1/'variable_Daten '!H4))*100),0)&" % ("&'variable_Daten '!H4&" Umläufe) im Durchschnitt gerechnet.") -> Für die Berechnung wird mit einer Rücklaufquote von 67 % (3 Umläufe) im Durchschnitt gerechnet.
B255: ■ | C255: =IF(Haupttabelle!BZ4>0,"Für die Anlieferung von Einweggeschirr zur Veranstaltung wird eine Transportentfernung von " & Haupttabelle!BZ4 & " km bilanziert.","Eine Anlieferung von Einweggeschirr zur Veranstaltung erfolgt nicht.") -> Eine Anlieferung von Einweggeschirr zur Veranstaltung erfolgt nicht.
B256: ■ | C256: =IF(DSS!E107>0,"Da vor Ort keine Möglichkeit zum Spülen besteht, wird die einfache Entfernung zum Spülort sowohl für die Anlieferung als auch für den Rücktransport einbezogen. Es wird eine Transportentfernung zum Spülen des Mehrweggeschirrs von "&Haupttabelle!CF4&" km (Hin- und Rückweg) bei der Berechnung berücksichtigt.",IF(DSS!E103>0,"Da vor Ort eine Spüloption vorhanden ist, wird für das Mehrweggeschirr eine Anlieferungsentfernung von "&Haupttabelle!BZ4&" km berücksichtigt, ebenso für den Rücktransport. Es wird angenommen, dass der gesamte Tagesbedarf an Mehrweggeschirr angeliefert wird.","Eine Anlieferung von Mehrweggeschirr zur Veranstaltung erfolgt nicht.")) -> Eine Anlieferung von Mehrweggeschirr zur Veranstaltung erfolgt nicht.
B257: ■ | C257: Die Praxis zeigt, dass grundsätzlich davon ausgegangen werden kann, dass zu jedem Essen auch eine Serviette gereicht wird. In diesem Fall wurden weniger Servietten in die Eingabemaske des DSS eingetragen, als hinsichtlich der Gesamtmenge an Essen nötig. Ggf. müssten weitere Servietten berücksichtigt/eingeplant werden. Dies wäre mit zusätzlichen Emissionen für die Veranstaltung verbunden und ist bei der Beurteilung/Bewertung der Ergebnisse zu berücksichtigen.
C258: ="Anzahl zusätzlicher Servietten: " &TEXT( 'Tab-Ergebnis-WDP-GV'!G435,"#.##0") & " Stück; Bezeichnung: " &TEXT( 'Tab-Ergebnis-WDP-GV'!B438,"#.##0") & "; zusätzliche Emissionen: GWP: " & TEXT(ROUND('Tab-Ergebnis-WDP-GV'!G440,0),"#.##0") & " kg CO₂-Äq./Veranstaltung; ADP: " & ROUND('Tab-Ergebnis-WDP-GV'!H440,5) & " kg Sb-Äq./Veranstaltung; WDP: " & TEXT(ROUND('Tab-Ergebnis-WDP-GV'!I440,0),"#.##0") & " m³/Veranstaltung." -> Anzahl zusätzlicher Servietten: 0 Stück; Bezeichnung: Serviette ungebleicht dünn; groß; Zellstoff; Einweg; 1,7g; zusätzliche Emissionen: GWP: 0 kg CO₂-Äq./Veranstaltung; ADP: 0 kg Sb-Äq./Veranstaltung; WDP: 0 m³/Veranstaltung.
B259: ■ | C259: ="Obwohl die Anforderung 'kein Einweg' ausgewählt wurde, ist eine Einwegserviette in die Bilanz einbezogen worden. Würde stattdessen eine Mehrwegserviette berücksichtigt, so wäre dies mit zusätzlichen Emissionen in Höhe von " & TEXT(ROUND('Tab-Ergebnis-WDP-GV'!G455,0),"#.##0") & " kg CO₂-Äq./Veranstaltung; ADP: " & ROUND('Tab-Ergebnis-WDP-GV'!H455,5) & " kg Sb-Äq./Veranstaltung; WDP: " & TEXT(ROUND('Tab-Ergebnis-WDP-GV'!I455,0),"#.##0") & " m³/Veranstaltung für eine " & 'Tab-Ergebnis-WDP-GV'!B445 & " verbunden (Ersatz ausgewählter Servietten plus ggf. zusätzliche Servietten). Dies sollte bei der Beurteilung/Bewertung der Ergebnisse berücksichtigt werden. " -> 
B260: ■ | C260: ="Hinweis: Die resultierenden Emissionen in Höhe von " & TEXT(ROUND(I12,0),"#.##") &" m³/Veranstaltung entsprechen nicht der direkten Wassernutzung (z.B. für das Spülen)." & " Der Wert bezieht sich neben der direkten Wassernutzung auch auf den Wasserverbrauch über den gesamten Lebenszyklus von Geschirr und bezieht u.a. den Einfluss auf die Wasserknappheit mit ein." -> Hinweis: Die resultierenden Emissionen in Höhe von m³/Veranstaltung entsprechen nicht der direkten Wassernutzung (z.B. für das Spülen). Der Wert bezieht sich neben der direkten Wassernutzung auch auf den Wasserverbrauch über den gesamten Lebenszyklus von Geschirr und bezieht u.a. den Einfluss auf die Wasserknappheit mit ein.
B261: ■ | C261: =IF('Tab-Ergebnis-WDP-GV'!DM421< 'Ergebnis-WDP-GV'!N234,"Entsprechend Ihrer Eingaben (ohne Berücksichtigung Ihrer spezifischen zusätzlichen Anforderungen an das Geschirr wie z.B. 'kein Plastik') ergibt sich eine ökologisch beste Geschirrauswahl, die mit Emissionen in Höhe von " &TEXT( ROUND('Tab-Ergebnis-WDP-GV'!DM421,0),"#.##0") & " m³/Veranstaltung verbunden ist. In dem Sie auf die von Ihnen gewählten zusätzlichen Anforderungen an das Geschirr (z.B. Material, Branding) verzichten, könnten weitere " & TEXT(ROUND(N234-'Tab-Ergebnis-WDP-GV'!DM421,0),"#.##0") & " m³/Veranstaltung eingespart werden. Dies entspricht einer Reduzierung um " & 100-ROUND('Tab-Ergebnis-WDP-GV'!DM421/N234*100,0) & " % (Basis für die Berechnung sind die in der Datenbank hinterlegten Geschirrarten und -typen).","Trotz der von Ihnen ggf. ausgewählten zusätzlichen Anforderungen an das Geschirr (z.B. 'kein Plastik') entspricht das Ergebnis der ökologisch besten Geschirrauswahl (Basis für die Berechnung sind die in der Datenbank hinterlegten Geschirrarten und -typen)") -> Trotz der von Ihnen ggf. ausgewählten zusätzlichen Anforderungen an das Geschirr (z.B. 'kein Plastik') entspricht das Ergebnis der ökologisch besten Geschirrauswahl (Basis für die Berechnung sind die in der Datenbank hinterlegten Geschirrarten und -typen)
B262: ■ | C262: =IF(AND(DSS!D31=Dropdownmenue!B8,DSS!D34=Dropdownmenue!B14),"Auf Basis ihrer Eingaben wird empfohlen, dass Sie für die Veranstaltung Geschirr leihen!",IF(AND(DSS!D31=Dropdownmenue!B8,DSS!D34=Dropdownmenue!B12),"Sie sollten eine Leihoption in Betracht ziehen. Dadurch könnten die Umweltwirkungen erheblich gesenkt werden",IF(AND(DSS!D31=Dropdownmenue!B8,DSS!D34=Dropdownmenue!B13),"Die Leihoption für Geschirr ist bei einmaligen Veranstaltungen die richtige Wahl!","Bei regelmäßigen/wiederkehrenden Veranstaltungen sind die Optionen 'kaufen' und 'leihen' gleichwertig bzw. die jeweilige Wahl hat keine Auswirkungen auf die Umweltwirkungen."))) -> Bei regelmäßigen/wiederkehrenden Veranstaltungen sind die Optionen 'kaufen' und 'leihen' gleichwertig bzw. die jeweilige Wahl hat keine Auswirkungen auf die Umweltwirkungen.
B263: ■ | C263: Bei der Verwendung bzw. Nutzung von Geschirr, insb. Mehrweggeschirr, sind die entsprechenden geltenden Hygienevorschriften zu beachten. Weitere Informationen hierzu sowie verschiedene Leitfäden und Studien für eine nachhaltige Veranstaltung finden Sie unter:
C264: https://www.iekrw.de/zocat-studien-leitfaeden/
B266: ZU BEACHTEN
C268: Die Ergebnisse dienen als Orientierung bei der Auswahl von nachhaltigem Geschirr. Dieses Tool erhebt keinen Anspruch auf Vollständigkeit! Dies ist u.a. darin begründet, dass verschiedene Geschirroptionen zur Berechnung in die Datenbank eingepflegt wurden, ggf. aber nicht alle am Markt zur Verfügung stehenden Geschirroptionen zur Auswahl berücksichtigt worden sind.
B270: KONTAKTDATEN
B272: Institut für Energie und Kreislaufwirtschaft an der Hochschule Bremen GmbH
B273: Neustadtswall 30
B274: 28199 Bremen
B275: https://www.iekrw.de
B277: Ansprechpartner:
B278: Prof. Dr. Martin Wittmaier
B279: +49 421 5905-2326
B280: zocat@iekrw.de
B281: https://www.iekrw.de/zocat/
B284: FÖRDERUNG
E286: Das Entscheidungstool wurde entwickelt im Rahmen des Projektes "Entwicklung und Erprobung eines indikatorgestützten Online-Entscheidungssystems zur Auswahl von nachhaltigem Geschirr für Großveranstaltungen" (zoCat - zukunftsorientiertes Catering). Das Vorhaben wird fachlich und finanziell unterstützt durch die Deutsche Bundesstiftung Umwelt (DBU), Osnabrück

Sheet Ergebnis-ADP-GV (hidden)
D6: DECISION SUPPORT SYSTEM (DSS)
B9: ENTSCHEIDUNGSTOOL ZUR AUSWAHL VON NACHHALTIGEM GESCHIRR
E12: Der Ressourcenverbrauch, des unter Berücksichtung der Anforderungen ausgewählten Geschirrs, beträgt für die gesamte Veranstaltung: | I12: =M150 -> 0 | J12: kg Sb-Äq. | K12: …weitere Informationen!
F14: Der CO₂-Fußabdruck (GWP) beträgt für die gesamte Veranstaltung: | I14: =ROUND(O150,0) -> 0 | J14: kg CO₂-Äq.
F15: Die Wassernutzung (WDP) beträgt für die gesamte Veranstaltung: | I15: =ROUND(N150,0) -> 0 | J15: m³
H17: Dauer der Veranstaltung in Tagen: | I17: =DSS!D25 -> 0
H18: Besucher:innen gesamt: | I18: =DSS!D28*I17 -> 0
H19: Anzahl Geschirr gesamt: | I19: ='Tab-Ergebnis-ADP-GV'!EO96 -> 0
H20: Portionen Essen pro Besucher:in: | I20: ='Tab-Ergebnis-ADP-GV'!ER73/I18 -> 
H21: Getränke pro Besucher:in: | I21: ='Tab-Ergebnis-ADP-GV'!ER87/I18 -> 
H22: Spüloption vor Ort: | I22: =IF(DSS!E107<>0,"nein","ja") -> ja
H23: Anlieferung Geschirr: | I23: =IF(DSS!E103<>0,"ja","nein") -> nein
H24: =IF(I22="nein","Transportentfernung zum Spülen von Mehrweg (nur Hinweg) in km:",IF(AND(I22="ja",I23="nein"),"",IF(AND(I22="ja",I23="ja"),"Transportentfernung zur Anlieferung von Geschirr in km:",""))) ->  | I24: =IF(I22="nein",DSS!E107,IF(AND(I22="ja",I23="nein"),"",IF(AND(I22="ja",I23="ja"),DSS!E103,""))) -> 
H25: Wirkungskategorie, nach der ausgewertet wird: | I25: Ressourcenverbrauch
C27: TABELLARISCHE ERGEBNISSE - VORSCHLAG FÜR IHRE GESCHIRRAUSWAHL
E28: Tab. 1: Geschirrbedarf, -spezifikationen und Emissionen gesamt (Essen): | M28: Ressourcenverbrauch [ADP; kg Sb-Äq./Veranstaltung] | N28: Wassernutzung [WDP; m³/Veranstaltung] | O28: Klimawandel [GWP; kg CO₂-Äq./Veranstaltung]
E29: Auswahl DSS | F29: Produkt / Geschirrmodell (Vorschlag des DSS) | G29: Alternative ("A"; sofern keine Option hinsichtlich der Auswahlkriterien verfügbar) | H29: Einweg / Mehrweg | I29: Essbar? | J29: Biologisch abbaubar? | K29: Material | L29: Menge [Anzahl Geschirr] | M29: Ressourcenverbrauch [ADP; kg Sb-Äq./Veranstaltung] | N29: Wassernutzung [WDP; m3/Veranstaltung] | O29: Klimawandel [GWP; kg CO2-Äq./Veranstaltung] | P29: Doppelte Werte | Q29: Menge relevant für die Berechnung [Anzahl Geschirr]
E30: ='Tab-Ergebnis-ADP-GV'!E54 ->  | F30: ='Tab-Ergebnis-ADP-GV'!F54 ->  | G30: ='Tab-Ergebnis-ADP-GV'!C54 ->  | H30: =IF('Tab-Ergebnis-ADP-GV'!N54="M","Mehrweg",IF('Tab-Ergebnis-ADP-GV'!N54="E","Einweg","")) ->  | I30: =IF('Tab-Ergebnis-ADP-GV'!P54=FALSE,"nein",IF('Tab-Ergebnis-ADP-GV'!P54=TRUE,"ja","")) ->  | J30: =IF('Tab-Ergebnis-ADP-GV'!Q54=FALSE,"nein",IF('Tab-Ergebnis-ADP-GV'!Q54=TRUE,"ja","")) ->  | K30: ='Tab-Ergebnis-ADP-GV'!I54 ->  | L30: =IF(DSS!F40<>0,IF(H30="Mehrweg",DSS!F40,DSS!F40*DSS!$D$25),"") ->  | M30: =IF(Q30<>"",IF(Q30=DSS!F40,('Tab-Ergebnis-ADP-GV'!CM54*Q30*DSS!$D$25)-(((DSS!$D$25*Q30)-Q30)*'Tab-Ergebnis-ADP-GV'!CC54),'Tab-Ergebnis-ADP-GV'!CM54*Q30),"") ->  | N30: =IF(Q30<>"",IF(Q30=DSS!F40,('Tab-Ergebnis-ADP-GV'!CN54*Q30*DSS!$D$25)-(((DSS!$D$25*Q30)-Q30)*'Tab-Ergebnis-ADP-GV'!CD54),'Tab-Ergebnis-ADP-GV'!CN54*Q30),"") ->  | O30: =IF(Q30<>"",IF(Q30=DSS!F40,('Tab-Ergebnis-ADP-GV'!CL54*Q30*DSS!$D$25)-(((DSS!$D$25*Q30)-Q30)*'Tab-Ergebnis-ADP-GV'!CB54),'Tab-Ergebnis-ADP-GV'!CL54*Q30),"") ->  | P30: =COUNTIF($E$30:$E$49,E30) -> 20 | Q30: =IF(DSS!F40<>0,IF(AND(Haupttabelle!$CK$1="ja",H30="Mehrweg"),DSS!F40,DSS!F40*DSS!$D$25),"") -> 
E31: ='Tab-Ergebnis-ADP-GV'!E55 ->  | F31: ='Tab-Ergebnis-ADP-GV'!F55 ->  | G31: ='Tab-Ergebnis-ADP-GV'!C55 ->  | H31: =IF('Tab-Ergebnis-ADP-GV'!N55="M","Mehrweg",IF('Tab-Ergebnis-ADP-GV'!N55="E","Einweg","")) ->  | I31: =IF('Tab-Ergebnis-ADP-GV'!P55=FALSE,"nein",IF('Tab-Ergebnis-ADP-GV'!P55=TRUE,"ja","")) ->  | J31: =IF('Tab-Ergebnis-ADP-GV'!Q55=FALSE,"nein",IF('Tab-Ergebnis-ADP-GV'!Q55=TRUE,"ja","")) ->  | K31: ='Tab-Ergebnis-ADP-GV'!I55 ->  | L31: =IF(DSS!F41<>0,IF(H31="Mehrweg",DSS!F41,DSS!F41*DSS!$D$25),"") ->  | M31: =IF(Q31<>"",IF(Q31=DSS!F41,('Tab-Ergebnis-ADP-GV'!CM55*Q31*DSS!$D$25)-(((DSS!$D$25*Q31)-Q31)*'Tab-Ergebnis-ADP-GV'!CC55),'Tab-Ergebnis-ADP-GV'!CM55*Q31),"") ->  | N31: =IF(Q31<>"",IF(Q31=DSS!F41,('Tab-Ergebnis-ADP-GV'!CN55*Q31*DSS!$D$25)-(((DSS!$D$25*Q31)-Q31)*'Tab-Ergebnis-ADP-GV'!CD55),'Tab-Ergebnis-ADP-GV'!CN55*Q31),"") ->  | O31: =IF(Q31<>"",IF(Q31=DSS!F41,('Tab-Ergebnis-ADP-GV'!CL55*Q31*DSS!$D$25)-(((DSS!$D$25*Q31)-Q31)*'Tab-Ergebnis-ADP-GV'!CB55),'Tab-Ergebnis-ADP-GV'!CL55*Q31),"") ->  | P31: =COUNTIF($E$30:$E$49,E31) -> 20 | Q31: =IF(DSS!F41<>0,IF(AND(Haupttabelle!$CK$1="ja",H31="Mehrweg"),DSS!F41,DSS!F41*DSS!$D$25),"") -> 
E32: ='Tab-Ergebnis-ADP-GV'!E56 ->  | F32: ='Tab-Ergebnis-ADP-GV'!F56 ->  | G32: ='Tab-Ergebnis-ADP-GV'!C56 ->  | H32: =IF('Tab-Ergebnis-ADP-GV'!N56="M","Mehrweg",IF('Tab-Ergebnis-ADP-GV'!N56="E","Einweg","")) ->  | I32: =IF('Tab-Ergebnis-ADP-GV'!P56=FALSE,"nein",IF('Tab-Ergebnis-ADP-GV'!P56=TRUE,"ja","")) ->  | J32: =IF('Tab-Ergebnis-ADP-GV'!Q56=FALSE,"nein",IF('Tab-Ergebnis-ADP-GV'!Q56=TRUE,"ja","")) ->  | K32: ='Tab-Ergebnis-ADP-GV'!I56 ->  | L32: =IF(DSS!F42<>0,IF(H32="Mehrweg",DSS!F42,DSS!F42*DSS!$D$25),"") ->  | M32: =IF(Q32<>"",IF(Q32=DSS!F42,('Tab-Ergebnis-ADP-GV'!CM56*Q32*DSS!$D$25)-(((DSS!$D$25*Q32)-Q32)*'Tab-Ergebnis-ADP-GV'!CC56),'Tab-Ergebnis-ADP-GV'!CM56*Q32),"") ->  | N32: =IF(Q32<>"",IF(Q32=DSS!F42,('Tab-Ergebnis-ADP-GV'!CN56*Q32*DSS!$D$25)-(((DSS!$D$25*Q32)-Q32)*'Tab-Ergebnis-ADP-GV'!CD56),'Tab-Ergebnis-ADP-GV'!CN56*Q32),"") ->  | O32: =IF(Q32<>"",IF(Q32=DSS!F42,('Tab-Ergebnis-ADP-GV'!CL56*Q32*DSS!$D$25)-(((DSS!$D$25*Q32)-Q32)*'Tab-Ergebnis-ADP-GV'!CB56),'Tab-Ergebnis-ADP-GV'!CL56*Q32),"") ->  | P32: 20 | Q32: =IF(DSS!F42<>0,IF(AND(Haupttabelle!$CK$1="ja",H32="Mehrweg"),DSS!F42,DSS!F42*DSS!$D$25),"") -> 
E33: ='Tab-Ergebnis-ADP-GV'!E57 ->  | F33: ='Tab-Ergebnis-ADP-GV'!F57 ->  | G33: ='Tab-Ergebnis-ADP-GV'!C57 ->  | H33: =IF('Tab-Ergebnis-ADP-GV'!N57="M","Mehrweg",IF('Tab-Ergebnis-ADP-GV'!N57="E","Einweg","")) ->  | I33: =IF('Tab-Ergebnis-ADP-GV'!P57=FALSE,"nein",IF('Tab-Ergebnis-ADP-GV'!P57=TRUE,"ja","")) ->  | J33: =IF('Tab-Ergebnis-ADP-GV'!Q57=FALSE,"nein",IF('Tab-Ergebnis-ADP-GV'!Q57=TRUE,"ja","")) ->  | K33: ='Tab-Ergebnis-ADP-GV'!I57 ->  | L33: =IF(DSS!F43<>0,IF(H33="Mehrweg",DSS!F43,DSS!F43*DSS!$D$25),"") ->  | M33: =IF(Q33<>"",IF(Q33=DSS!F43,('Tab-Ergebnis-ADP-GV'!CM57*Q33*DSS!$D$25)-(((DSS!$D$25*Q33)-Q33)*'Tab-Ergebnis-ADP-GV'!CC57),'Tab-Ergebnis-ADP-GV'!CM57*Q33),"") ->  | N33: =IF(Q33<>"",IF(Q33=DSS!F43,('Tab-Ergebnis-ADP-GV'!CN57*Q33*DSS!$D$25)-(((DSS!$D$25*Q33)-Q33)*'Tab-Ergebnis-ADP-GV'!CD57),'Tab-Ergebnis-ADP-GV'!CN57*Q33),"") ->  | O33: =IF(Q33<>"",IF(Q33=DSS!F43,('Tab-Ergebnis-ADP-GV'!CL57*Q33*DSS!$D$25)-(((DSS!$D$25*Q33)-Q33)*'Tab-Ergebnis-ADP-GV'!CB57),'Tab-Ergebnis-ADP-GV'!CL57*Q33),"") ->  | P33: 20 | Q33: =IF(DSS!F43<>0,IF(AND(Haupttabelle!$CK$1="ja",H33="Mehrweg"),DSS!F43,DSS!F43*DSS!$D$25),"") -> 
E34: ='Tab-Ergebnis-ADP-GV'!E58 ->  | F34: ='Tab-Ergebnis-ADP-GV'!F58 ->  | G34: ='Tab-Ergebnis-ADP-GV'!C58 ->  | H34: =IF('Tab-Ergebnis-ADP-GV'!N58="M","Mehrweg",IF('Tab-Ergebnis-ADP-GV'!N58="E","Einweg","")) ->  | I34: =IF('Tab-Ergebnis-ADP-GV'!P58=FALSE,"nein",IF('Tab-Ergebnis-ADP-GV'!P58=TRUE,"ja","")) ->  | J34: =IF('Tab-Ergebnis-ADP-GV'!Q58=FALSE,"nein",IF('Tab-Ergebnis-ADP-GV'!Q58=TRUE,"ja","")) ->  | K34: ='Tab-Ergebnis-ADP-GV'!I58 ->  | L34: =IF(DSS!F44<>0,IF(H34="Mehrweg",DSS!F44,DSS!F44*DSS!$D$25),"") ->  | M34: =IF(Q34<>"",IF(Q34=DSS!F44,('Tab-Ergebnis-ADP-GV'!CM58*Q34*DSS!$D$25)-(((DSS!$D$25*Q34)-Q34)*'Tab-Ergebnis-ADP-GV'!CC58),'Tab-Ergebnis-ADP-GV'!CM58*Q34),"") ->  | N34: =IF(Q34<>"",IF(Q34=DSS!F44,('Tab-Ergebnis-ADP-GV'!CN58*Q34*DSS!$D$25)-(((DSS!$D$25*Q34)-Q34)*'Tab-Ergebnis-ADP-GV'!CD58),'Tab-Ergebnis-ADP-GV'!CN58*Q34),"") ->  | O34: =IF(Q34<>"",IF(Q34=DSS!F44,('Tab-Ergebnis-ADP-GV'!CL58*Q34*DSS!$D$25)-(((DSS!$D$25*Q34)-Q34)*'Tab-Ergebnis-ADP-GV'!CB58),'Tab-Ergebnis-ADP-GV'!CL58*Q34),"") ->  | P34: 20 | Q34: =IF(DSS!F44<>0,IF(AND(Haupttabelle!$CK$1="ja",H34="Mehrweg"),DSS!F44,DSS!F44*DSS!$D$25),"") -> 
E35: ='Tab-Ergebnis-ADP-GV'!E59 ->  | F35: ='Tab-Ergebnis-ADP-GV'!F59 ->  | G35: ='Tab-Ergebnis-ADP-GV'!C59 ->  | H35: =IF('Tab-Ergebnis-ADP-GV'!N59="M","Mehrweg",IF('Tab-Ergebnis-ADP-GV'!N59="E","Einweg","")) ->  | I35: =IF('Tab-Ergebnis-ADP-GV'!P59=FALSE,"nein",IF('Tab-Ergebnis-ADP-GV'!P59=TRUE,"ja","")) ->  | J35: =IF('Tab-Ergebnis-ADP-GV'!Q59=FALSE,"nein",IF('Tab-Ergebnis-ADP-GV'!Q59=TRUE,"ja","")) ->  | K35: ='Tab-Ergebnis-ADP-GV'!I59 ->  | L35: =IF(DSS!F45<>0,IF(H35="Mehrweg",DSS!F45,DSS!F45*DSS!$D$25),"") ->  | M35: =IF(Q35<>"",IF(Q35=DSS!F45,('Tab-Ergebnis-ADP-GV'!CM59*Q35*DSS!$D$25)-(((DSS!$D$25*Q35)-Q35)*'Tab-Ergebnis-ADP-GV'!CC59),'Tab-Ergebnis-ADP-GV'!CM59*Q35),"") ->  | N35: =IF(Q35<>"",IF(Q35=DSS!F45,('Tab-Ergebnis-ADP-GV'!CN59*Q35*DSS!$D$25)-(((DSS!$D$25*Q35)-Q35)*'Tab-Ergebnis-ADP-GV'!CD59),'Tab-Ergebnis-ADP-GV'!CN59*Q35),"") ->  | O35: =IF(Q35<>"",IF(Q35=DSS!F45,('Tab-Ergebnis-ADP-GV'!CL59*Q35*DSS!$D$25)-(((DSS!$D$25*Q35)-Q35)*'Tab-Ergebnis-ADP-GV'!CB59),'Tab-Ergebnis-ADP-GV'!CL59*Q35),"") ->  | P35: 20 | Q35: =IF(DSS!F45<>0,IF(AND(Haupttabelle!$CK$1="ja",H35="Mehrweg"),DSS!F45,DSS!F45*DSS!$D$25),"") -> 
E36: ='Tab-Ergebnis-ADP-GV'!E60 ->  | F36: ='Tab-Ergebnis-ADP-GV'!F60 ->  | G36: ='Tab-Ergebnis-ADP-GV'!C60 ->  | H36: =IF('Tab-Ergebnis-ADP-GV'!N60="M","Mehrweg",IF('Tab-Ergebnis-ADP-GV'!N60="E","Einweg","")) ->  | I36: =IF('Tab-Ergebnis-ADP-GV'!P60=FALSE,"nein",IF('Tab-Ergebnis-ADP-GV'!P60=TRUE,"ja","")) ->  | J36: =IF('Tab-Ergebnis-ADP-GV'!Q60=FALSE,"nein",IF('Tab-Ergebnis-ADP-GV'!Q60=TRUE,"ja","")) ->  | K36: ='Tab-Ergebnis-ADP-GV'!I60 ->  | L36: =IF(DSS!F46<>0,IF(H36="Mehrweg",DSS!F46,DSS!F46*DSS!$D$25),"") ->  | M36: =IF(Q36<>"",IF(Q36=DSS!F46,('Tab-Ergebnis-ADP-GV'!CM60*Q36*DSS!$D$25)-(((DSS!$D$25*Q36)-Q36)*'Tab-Ergebnis-ADP-GV'!CC60),'Tab-Ergebnis-ADP-GV'!CM60*Q36),"") ->  | N36: =IF(Q36<>"",IF(Q36=DSS!F46,('Tab-Ergebnis-ADP-GV'!CN60*Q36*DSS!$D$25)-(((DSS!$D$25*Q36)-Q36)*'Tab-Ergebnis-ADP-GV'!CD60),'Tab-Ergebnis-ADP-GV'!CN60*Q36),"") ->  | O36: =IF(Q36<>"",IF(Q36=DSS!F46,('Tab-Ergebnis-ADP-GV'!CL60*Q36*DSS!$D$25)-(((DSS!$D$25*Q36)-Q36)*'Tab-Ergebnis-ADP-GV'!CB60),'Tab-Ergebnis-ADP-GV'!CL60*Q36),"") ->  | P36: 20 | Q36: =IF(DSS!F46<>0,IF(AND(Haupttabelle!$CK$1="ja",H36="Mehrweg"),DSS!F46,DSS!F46*DSS!$D$25),"") -> 
E37: ='Tab-Ergebnis-ADP-GV'!E61 ->  | F37: ='Tab-Ergebnis-ADP-GV'!F61 ->  | G37: ='Tab-Ergebnis-ADP-GV'!C61 ->  | H37: =IF('Tab-Ergebnis-ADP-GV'!N61="M","Mehrweg",IF('Tab-Ergebnis-ADP-GV'!N61="E","Einweg","")) ->  | I37: =IF('Tab-Ergebnis-ADP-GV'!P61=FALSE,"nein",IF('Tab-Ergebnis-ADP-GV'!P61=TRUE,"ja","")) ->  | J37: =IF('Tab-Ergebnis-ADP-GV'!Q61=FALSE,"nein",IF('Tab-Ergebnis-ADP-GV'!Q61=TRUE,"ja","")) ->  | K37: ='Tab-Ergebnis-ADP-GV'!I61 ->  | L37: =IF(DSS!F47<>0,IF(H37="Mehrweg",DSS!F47,DSS!F47*DSS!$D$25),"") ->  | M37: =IF(Q37<>"",IF(Q37=DSS!F47,('Tab-Ergebnis-ADP-GV'!CM61*Q37*DSS!$D$25)-(((DSS!$D$25*Q37)-Q37)*'Tab-Ergebnis-ADP-GV'!CC61),'Tab-Ergebnis-ADP-GV'!CM61*Q37),"") ->  | N37: =IF(Q37<>"",IF(Q37=DSS!F47,('Tab-Ergebnis-ADP-GV'!CN61*Q37*DSS!$D$25)-(((DSS!$D$25*Q37)-Q37)*'Tab-Ergebnis-ADP-GV'!CD61),'Tab-Ergebnis-ADP-GV'!CN61*Q37),"") ->  | O37: =IF(Q37<>"",IF(Q37=DSS!F47,('Tab-Ergebnis-ADP-GV'!CL61*Q37*DSS!$D$25)-(((DSS!$D$25*Q37)-Q37)*'Tab-Ergebnis-ADP-GV'!CB61),'Tab-Ergebnis-ADP-GV'!CL61*Q37),"") ->  | P37: 20 | Q37: =IF(DSS!F47<>0,IF(AND(Haupttabelle!$CK$1="ja",H37="Mehrweg"),DSS!F47,DSS!F47*DSS!$D$25),"") -> 
E38: ='Tab-Ergebnis-ADP-GV'!E62 ->  | F38: ='Tab-Ergebnis-ADP-GV'!F62 ->  | G38: ='Tab-Ergebnis-ADP-GV'!C62 ->  | H38: =IF('Tab-Ergebnis-ADP-GV'!N62="M","Mehrweg",IF('Tab-Ergebnis-ADP-GV'!N62="E","Einweg","")) ->  | I38: =IF('Tab-Ergebnis-ADP-GV'!P62=FALSE,"nein",IF('Tab-Ergebnis-ADP-GV'!P62=TRUE,"ja","")) ->  | J38: =IF('Tab-Ergebnis-ADP-GV'!Q62=FALSE,"nein",IF('Tab-Ergebnis-ADP-GV'!Q62=TRUE,"ja","")) ->  | K38: ='Tab-Ergebnis-ADP-GV'!I62 ->  | L38: =IF(DSS!F48<>0,IF(H38="Mehrweg",DSS!F48,DSS!F48*DSS!$D$25),"") ->  | M38: =IF(Q38<>"",IF(Q38=DSS!F48,('Tab-Ergebnis-ADP-GV'!CM62*Q38*DSS!$D$25)-(((DSS!$D$25*Q38)-Q38)*'Tab-Ergebnis-ADP-GV'!CC62),'Tab-Ergebnis-ADP-GV'!CM62*Q38),"") ->  | N38: =IF(Q38<>"",IF(Q38=DSS!F48,('Tab-Ergebnis-ADP-GV'!CN62*Q38*DSS!$D$25)-(((DSS!$D$25*Q38)-Q38)*'Tab-Ergebnis-ADP-GV'!CD62),'Tab-Ergebnis-ADP-GV'!CN62*Q38),"") ->  | O38: =IF(Q38<>"",IF(Q38=DSS!F48,('Tab-Ergebnis-ADP-GV'!CL62*Q38*DSS!$D$25)-(((DSS!$D$25*Q38)-Q38)*'Tab-Ergebnis-ADP-GV'!CB62),'Tab-Ergebnis-ADP-GV'!CL62*Q38),"") ->  | P38: 20 | Q38: =IF(DSS!F48<>0,IF(AND(Haupttabelle!$CK$1="ja",H38="Mehrweg"),DSS!F48,DSS!F48*DSS!$D$25),"") -> 
E39: ='Tab-Ergebnis-ADP-GV'!E63 ->  | F39: ='Tab-Ergebnis-ADP-GV'!F63 ->  | G39: ='Tab-Ergebnis-ADP-GV'!C63 ->  | H39: =IF('Tab-Ergebnis-ADP-GV'!N63="M","Mehrweg",IF('Tab-Ergebnis-ADP-GV'!N63="E","Einweg","")) ->  | I39: =IF('Tab-Ergebnis-ADP-GV'!P63=FALSE,"nein",IF('Tab-Ergebnis-ADP-GV'!P63=TRUE,"ja","")) ->  | J39: =IF('Tab-Ergebnis-ADP-GV'!Q63=FALSE,"nein",IF('Tab-Ergebnis-ADP-GV'!Q63=TRUE,"ja","")) ->  | K39: ='Tab-Ergebnis-ADP-GV'!I63 ->  | L39: =IF(DSS!F49<>0,IF(H39="Mehrweg",DSS!F49,DSS!F49*DSS!$D$25),"") ->  | M39: =IF(Q39<>"",IF(Q39=DSS!F49,('Tab-Ergebnis-ADP-GV'!CM63*Q39*DSS!$D$25)-(((DSS!$D$25*Q39)-Q39)*'Tab-Ergebnis-ADP-GV'!CC63),'Tab-Ergebnis-ADP-GV'!CM63*Q39),"") ->  | N39: =IF(Q39<>"",IF(Q39=DSS!F49,('Tab-Ergebnis-ADP-GV'!CN63*Q39*DSS!$D$25)-(((DSS!$D$25*Q39)-Q39)*'Tab-Ergebnis-ADP-GV'!CD63),'Tab-Ergebnis-ADP-GV'!CN63*Q39),"") ->  | O39: =IF(Q39<>"",IF(Q39=DSS!F49,('Tab-Ergebnis-ADP-GV'!CL63*Q39*DSS!$D$25)-(((DSS!$D$25*Q39)-Q39)*'Tab-Ergebnis-ADP-GV'!CB63),'Tab-Ergebnis-ADP-GV'!CL63*Q39),"") ->  | P39: =COUNTIF($E$30:$E$49,E39) -> 20 | Q39: =IF(DSS!F49<>0,IF(AND(Haupttabelle!$CK$1="ja",H39="Mehrweg"),DSS!F49,DSS!F49*DSS!$D$25),"") -> 
E40: ='Tab-Ergebnis-ADP-GV'!E64 ->  | F40: ='Tab-Ergebnis-ADP-GV'!F64 ->  | G40: ='Tab-Ergebnis-ADP-GV'!C64 ->  | H40: =IF('Tab-Ergebnis-ADP-GV'!N64="M","Mehrweg",IF('Tab-Ergebnis-ADP-GV'!N64="E","Einweg","")) ->  | I40: =IF('Tab-Ergebnis-ADP-GV'!P64=FALSE,"nein",IF('Tab-Ergebnis-ADP-GV'!P64=TRUE,"ja","")) ->  | J40: =IF('Tab-Ergebnis-ADP-GV'!Q64=FALSE,"nein",IF('Tab-Ergebnis-ADP-GV'!Q64=TRUE,"ja","")) ->  | K40: ='Tab-Ergebnis-ADP-GV'!I64 ->  | L40: =IF(DSS!F50<>0,IF(H40="Mehrweg",DSS!F50,DSS!F50*DSS!$D$25),"") ->  | M40: =IF(Q40<>"",IF(Q40=DSS!F50,('Tab-Ergebnis-ADP-GV'!CM64*Q40*DSS!$D$25)-(((DSS!$D$25*Q40)-Q40)*'Tab-Ergebnis-ADP-GV'!CC64),'Tab-Ergebnis-ADP-GV'!CM64*Q40),"") ->  | N40: =IF(Q40<>"",IF(Q40=DSS!F50,('Tab-Ergebnis-ADP-GV'!CN64*Q40*DSS!$D$25)-(((DSS!$D$25*Q40)-Q40)*'Tab-Ergebnis-ADP-GV'!CD64),'Tab-Ergebnis-ADP-GV'!CN64*Q40),"") ->  | O40: =IF(Q40<>"",IF(Q40=DSS!F50,('Tab-Ergebnis-ADP-GV'!CL64*Q40*DSS!$D$25)-(((DSS!$D$25*Q40)-Q40)*'Tab-Ergebnis-ADP-GV'!CB64),'Tab-Ergebnis-ADP-GV'!CL64*Q40),"") ->  | P40: 20 | Q40: =IF(DSS!F50<>0,IF(AND(Haupttabelle!$CK$1="ja",H40="Mehrweg"),DSS!F50,DSS!F50*DSS!$D$25),"") -> 
E41: ='Tab-Ergebnis-ADP-GV'!E65 ->  | F41: ='Tab-Ergebnis-ADP-GV'!F65 ->  | G41: ='Tab-Ergebnis-ADP-GV'!C65 ->  | H41: =IF('Tab-Ergebnis-ADP-GV'!N65="M","Mehrweg",IF('Tab-Ergebnis-ADP-GV'!N65="E","Einweg","")) ->  | I41: =IF('Tab-Ergebnis-ADP-GV'!P65=FALSE,"nein",IF('Tab-Ergebnis-ADP-GV'!P65=TRUE,"ja","")) ->  | J41: =IF('Tab-Ergebnis-ADP-GV'!Q65=FALSE,"nein",IF('Tab-Ergebnis-ADP-GV'!Q65=TRUE,"ja","")) ->  | K41: ='Tab-Ergebnis-ADP-GV'!I65 ->  | L41: =IF(DSS!F52<>0,IF(H41="Mehrweg",DSS!F52,DSS!F52*DSS!$D$25),"") ->  | M41: =IF(Q41<>"",IF(Q41=DSS!F52,('Tab-Ergebnis-ADP-GV'!CM65*Q41*DSS!$D$25)-(((DSS!$D$25*Q41)-Q41)*'Tab-Ergebnis-ADP-GV'!CC65),'Tab-Ergebnis-ADP-GV'!CM65*Q41),"") ->  | N41: =IF(Q41<>"",IF(Q41=DSS!F52,('Tab-Ergebnis-ADP-GV'!CN65*Q41*DSS!$D$25)-(((DSS!$D$25*Q41)-Q41)*'Tab-Ergebnis-ADP-GV'!CD65),'Tab-Ergebnis-ADP-GV'!CN65*Q41),"") ->  | O41: =IF(Q41<>"",IF(Q41=DSS!F52,('Tab-Ergebnis-ADP-GV'!CL65*Q41*DSS!$D$25)-(((DSS!$D$25*Q41)-Q41)*'Tab-Ergebnis-ADP-GV'!CB65),'Tab-Ergebnis-ADP-GV'!CL65*Q41),"") ->  | P41: 20 | Q41: =IF(DSS!F52<>0,IF(AND(Haupttabelle!$CK$1="ja",H41="Mehrweg"),DSS!F52,DSS!F52*DSS!$D$25),"") -> 
E42: ='Tab-Ergebnis-ADP-GV'!E66 ->  | F42: ='Tab-Ergebnis-ADP-GV'!F66 ->  | G42: ='Tab-Ergebnis-ADP-GV'!C66 ->  | H42: =IF('Tab-Ergebnis-ADP-GV'!N66="M","Mehrweg",IF('Tab-Ergebnis-ADP-GV'!N66="E","Einweg","")) ->  | I42: =IF('Tab-Ergebnis-ADP-GV'!P66=FALSE,"nein",IF('Tab-Ergebnis-ADP-GV'!P66=TRUE,"ja","")) ->  | J42: =IF('Tab-Ergebnis-ADP-GV'!Q66=FALSE,"nein",IF('Tab-Ergebnis-ADP-GV'!Q66=TRUE,"ja","")) ->  | K42: ='Tab-Ergebnis-ADP-GV'!I66 ->  | L42: =IF(DSS!F53<>0,IF(H42="Mehrweg",DSS!F53,DSS!F53*DSS!$D$25),"") ->  | M42: =IF(Q42<>"",IF(Q42=DSS!F53,('Tab-Ergebnis-ADP-GV'!CM66*Q42*DSS!$D$25)-(((DSS!$D$25*Q42)-Q42)*'Tab-Ergebnis-ADP-GV'!CC66),'Tab-Ergebnis-ADP-GV'!CM66*Q42),"") ->  | N42: =IF(Q42<>"",IF(Q42=DSS!F53,('Tab-Ergebnis-ADP-GV'!CN66*Q42*DSS!$D$25)-(((DSS!$D$25*Q42)-Q42)*'Tab-Ergebnis-ADP-GV'!CD66),'Tab-Ergebnis-ADP-GV'!CN66*Q42),"") ->  | O42: =IF(Q42<>"",IF(Q42=DSS!F53,('Tab-Ergebnis-ADP-GV'!CL66*Q42*DSS!$D$25)-(((DSS!$D$25*Q42)-Q42)*'Tab-Ergebnis-ADP-GV'!CB66),'Tab-Ergebnis-ADP-GV'!CL66*Q42),"") ->  | P42: 20 | Q42: =IF(DSS!F53<>0,IF(AND(Haupttabelle!$CK$1="ja",H42="Mehrweg"),DSS!F53,DSS!F53*DSS!$D$25),"") -> 
E43: ='Tab-Ergebnis-ADP-GV'!E67 ->  | F43: ='Tab-Ergebnis-ADP-GV'!F67 ->  | G43: ='Tab-Ergebnis-ADP-GV'!C67 ->  | H43: =IF('Tab-Ergebnis-ADP-GV'!N67="M","Mehrweg",IF('Tab-Ergebnis-ADP-GV'!N67="E","Einweg","")) ->  | I43: =IF('Tab-Ergebnis-ADP-GV'!P67=FALSE,"nein",IF('Tab-Ergebnis-ADP-GV'!P67=TRUE,"ja","")) ->  | J43: =IF('Tab-Ergebnis-ADP-GV'!Q67=FALSE,"nein",IF('Tab-Ergebnis-ADP-GV'!Q67=TRUE,"ja","")) ->  | K43: ='Tab-Ergebnis-ADP-GV'!I67 ->  | L43: =IF(DSS!F54<>0,IF(H43="Mehrweg",DSS!F54,DSS!F54*DSS!$D$25),"") ->  | M43: =IF(Q43<>"",IF(Q43=DSS!F54,('Tab-Ergebnis-ADP-GV'!CM67*Q43*DSS!$D$25)-(((DSS!$D$25*Q43)-Q43)*'Tab-Ergebnis-ADP-GV'!CC67),'Tab-Ergebnis-ADP-GV'!CM67*Q43),"") ->  | N43: =IF(Q43<>"",IF(Q43=DSS!F54,('Tab-Ergebnis-ADP-GV'!CN67*Q43*DSS!$D$25)-(((DSS!$D$25*Q43)-Q43)*'Tab-Ergebnis-ADP-GV'!CD67),'Tab-Ergebnis-ADP-GV'!CN67*Q43),"") ->  | O43: =IF(Q43<>"",IF(Q43=DSS!F54,('Tab-Ergebnis-ADP-GV'!CL67*Q43*DSS!$D$25)-(((DSS!$D$25*Q43)-Q43)*'Tab-Ergebnis-ADP-GV'!CB67),'Tab-Ergebnis-ADP-GV'!CL67*Q43),"") ->  | P43: 20 | Q43: =IF(DSS!F54<>0,IF(AND(Haupttabelle!$CK$1="ja",H43="Mehrweg"),DSS!F54,DSS!F54*DSS!$D$25),"") -> 
E44: ='Tab-Ergebnis-ADP-GV'!E68 ->  | F44: ='Tab-Ergebnis-ADP-GV'!F68 ->  | G44: ='Tab-Ergebnis-ADP-GV'!C68 ->  | H44: =IF('Tab-Ergebnis-ADP-GV'!N68="M","Mehrweg",IF('Tab-Ergebnis-ADP-GV'!N68="E","Einweg","")) ->  | I44: =IF('Tab-Ergebnis-ADP-GV'!P68=FALSE,"nein",IF('Tab-Ergebnis-ADP-GV'!P68=TRUE,"ja","")) ->  | J44: =IF('Tab-Ergebnis-ADP-GV'!Q68=FALSE,"nein",IF('Tab-Ergebnis-ADP-GV'!Q68=TRUE,"ja","")) ->  | K44: ='Tab-Ergebnis-ADP-GV'!I68 ->  | L44: =IF(DSS!F55<>0,IF(H44="Mehrweg",DSS!F55,DSS!F55*DSS!$D$25),"") ->  | M44: =IF(Q44<>"",IF(Q44=DSS!F55,('Tab-Ergebnis-ADP-GV'!CM68*Q44*DSS!$D$25)-(((DSS!$D$25*Q44)-Q44)*'Tab-Ergebnis-ADP-GV'!CC68),'Tab-Ergebnis-ADP-GV'!CM68*Q44),"") ->  | N44: =IF(Q44<>"",IF(Q44=DSS!F55,('Tab-Ergebnis-ADP-GV'!CN68*Q44*DSS!$D$25)-(((DSS!$D$25*Q44)-Q44)*'Tab-Ergebnis-ADP-GV'!CD68),'Tab-Ergebnis-ADP-GV'!CN68*Q44),"") ->  | O44: =IF(Q44<>"",IF(Q44=DSS!F55,('Tab-Ergebnis-ADP-GV'!CL68*Q44*DSS!$D$25)-(((DSS!$D$25*Q44)-Q44)*'Tab-Ergebnis-ADP-GV'!CB68),'Tab-Ergebnis-ADP-GV'!CL68*Q44),"") ->  | P44: 20 | Q44: =IF(DSS!F55<>0,IF(AND(Haupttabelle!$CK$1="ja",H44="Mehrweg"),DSS!F55,DSS!F55*DSS!$D$25),"") -> 
E45: ='Tab-Ergebnis-ADP-GV'!E69 ->  | F45: ='Tab-Ergebnis-ADP-GV'!F69 ->  | G45: ='Tab-Ergebnis-ADP-GV'!C69 ->  | H45: =IF('Tab-Ergebnis-ADP-GV'!N69="M","Mehrweg",IF('Tab-Ergebnis-ADP-GV'!N69="E","Einweg","")) ->  | I45: =IF('Tab-Ergebnis-ADP-GV'!P69=FALSE,"nein",IF('Tab-Ergebnis-ADP-GV'!P69=TRUE,"ja","")) ->  | J45: =IF('Tab-Ergebnis-ADP-GV'!Q69=FALSE,"nein",IF('Tab-Ergebnis-ADP-GV'!Q69=TRUE,"ja","")) ->  | K45: ='Tab-Ergebnis-ADP-GV'!I69 ->  | L45: =IF(DSS!F56<>0,IF(H45="Mehrweg",DSS!F56,DSS!F56*DSS!$D$25),"") ->  | M45: =IF(Q45<>"",IF(Q45=DSS!F56,('Tab-Ergebnis-ADP-GV'!CM69*Q45*DSS!$D$25)-(((DSS!$D$25*Q45)-Q45)*'Tab-Ergebnis-ADP-GV'!CC69),'Tab-Ergebnis-ADP-GV'!CM69*Q45),"") ->  | N45: =IF(Q45<>"",IF(Q45=DSS!F56,('Tab-Ergebnis-ADP-GV'!CN69*Q45*DSS!$D$25)-(((DSS!$D$25*Q45)-Q45)*'Tab-Ergebnis-ADP-GV'!CD69),'Tab-Ergebnis-ADP-GV'!CN69*Q45),"") ->  | O45: =IF(Q45<>"",IF(Q45=DSS!F56,('Tab-Ergebnis-ADP-GV'!CL69*Q45*DSS!$D$25)-(((DSS!$D$25*Q45)-Q45)*'Tab-Ergebnis-ADP-GV'!CB69),'Tab-Ergebnis-ADP-GV'!CL69*Q45),"") ->  | P45: 20 | Q45: =IF(DSS!F56<>0,IF(AND(Haupttabelle!$CK$1="ja",H45="Mehrweg"),DSS!F56,DSS!F56*DSS!$D$25),"") -> 
E46: ='Tab-Ergebnis-ADP-GV'!E70 ->  | F46: ='Tab-Ergebnis-ADP-GV'!F70 ->  | G46: ='Tab-Ergebnis-ADP-GV'!C70 ->  | H46: =IF('Tab-Ergebnis-ADP-GV'!N70="M","Mehrweg",IF('Tab-Ergebnis-ADP-GV'!N70="E","Einweg","")) ->  | I46: =IF('Tab-Ergebnis-ADP-GV'!P70=FALSE,"nein",IF('Tab-Ergebnis-ADP-GV'!P70=TRUE,"ja","")) ->  | J46: =IF('Tab-Ergebnis-ADP-GV'!Q70=FALSE,"nein",IF('Tab-Ergebnis-ADP-GV'!Q70=TRUE,"ja","")) ->  | K46: ='Tab-Ergebnis-ADP-GV'!I70 ->  | L46: =IF(DSS!F57<>0,IF(H46="Mehrweg",DSS!F57,DSS!F57*DSS!$D$25),"") ->  | M46: =IF(Q46<>"",IF(Q46=DSS!F57,('Tab-Ergebnis-ADP-GV'!CM70*Q46*DSS!$D$25)-(((DSS!$D$25*Q46)-Q46)*'Tab-Ergebnis-ADP-GV'!CC70),'Tab-Ergebnis-ADP-GV'!CM70*Q46),"") ->  | N46: =IF(Q46<>"",IF(Q46=DSS!F57,('Tab-Ergebnis-ADP-GV'!CN70*Q46*DSS!$D$25)-(((DSS!$D$25*Q46)-Q46)*'Tab-Ergebnis-ADP-GV'!CD70),'Tab-Ergebnis-ADP-GV'!CN70*Q46),"") ->  | O46: =IF(Q46<>"",IF(Q46=DSS!F57,('Tab-Ergebnis-ADP-GV'!CL70*Q46*DSS!$D$25)-(((DSS!$D$25*Q46)-Q46)*'Tab-Ergebnis-ADP-GV'!CB70),'Tab-Ergebnis-ADP-GV'!CL70*Q46),"") ->  | P46: 20 | Q46: =IF(DSS!F57<>0,IF(AND(Haupttabelle!$CK$1="ja",H46="Mehrweg"),DSS!F57,DSS!F57*DSS!$D$25),"") -> 
E47: ='Tab-Ergebnis-ADP-GV'!E71 ->  | F47: ='Tab-Ergebnis-ADP-GV'!F71 ->  | G47: ='Tab-Ergebnis-ADP-GV'!C71 ->  | H47: =IF('Tab-Ergebnis-ADP-GV'!N71="M","Mehrweg",IF('Tab-Ergebnis-ADP-GV'!N71="E","Einweg","")) ->  | I47: =IF('Tab-Ergebnis-ADP-GV'!P71=FALSE,"nein",IF('Tab-Ergebnis-ADP-GV'!P71=TRUE,"ja","")) ->  | J47: =IF('Tab-Ergebnis-ADP-GV'!Q71=FALSE,"nein",IF('Tab-Ergebnis-ADP-GV'!Q71=TRUE,"ja","")) ->  | K47: ='Tab-Ergebnis-ADP-GV'!I71 ->  | L47: =IF(DSS!F58<>0,IF(H47="Mehrweg",DSS!F58,DSS!F58*DSS!$D$25),"") ->  | M47: =IF(Q47<>"",IF(Q47=DSS!F58,('Tab-Ergebnis-ADP-GV'!CM71*Q47*DSS!$D$25)-(((DSS!$D$25*Q47)-Q47)*'Tab-Ergebnis-ADP-GV'!CC71),'Tab-Ergebnis-ADP-GV'!CM71*Q47),"") ->  | N47: =IF(Q47<>"",IF(Q47=DSS!F58,('Tab-Ergebnis-ADP-GV'!CN71*Q47*DSS!$D$25)-(((DSS!$D$25*Q47)-Q47)*'Tab-Ergebnis-ADP-GV'!CD71),'Tab-Ergebnis-ADP-GV'!CN71*Q47),"") ->  | O47: =IF(Q47<>"",IF(Q47=DSS!F58,('Tab-Ergebnis-ADP-GV'!CL71*Q47*DSS!$D$25)-(((DSS!$D$25*Q47)-Q47)*'Tab-Ergebnis-ADP-GV'!CB71),'Tab-Ergebnis-ADP-GV'!CL71*Q47),"") ->  | P47: 20 | Q47: =IF(DSS!F58<>0,IF(AND(Haupttabelle!$CK$1="ja",H47="Mehrweg"),DSS!F58,DSS!F58*DSS!$D$25),"") -> 
E48: ='Tab-Ergebnis-ADP-GV'!E72 ->  | F48: ='Tab-Ergebnis-ADP-GV'!F72 ->  | G48: ='Tab-Ergebnis-ADP-GV'!C72 ->  | H48: =IF('Tab-Ergebnis-ADP-GV'!N72="M","Mehrweg",IF('Tab-Ergebnis-ADP-GV'!N72="E","Einweg","")) ->  | I48: =IF('Tab-Ergebnis-ADP-GV'!P72=FALSE,"nein",IF('Tab-Ergebnis-ADP-GV'!P72=TRUE,"ja","")) ->  | J48: =IF('Tab-Ergebnis-ADP-GV'!Q72=FALSE,"nein",IF('Tab-Ergebnis-ADP-GV'!Q72=TRUE,"ja","")) ->  | K48: ='Tab-Ergebnis-ADP-GV'!I72 ->  | L48: =IF(DSS!F59<>0,IF(H48="Mehrweg",DSS!F59,DSS!F59*DSS!$D$25),"") ->  | M48: =IF(Q48<>"",IF(Q48=DSS!F59,('Tab-Ergebnis-ADP-GV'!CM72*Q48*DSS!$D$25)-(((DSS!$D$25*Q48)-Q48)*'Tab-Ergebnis-ADP-GV'!CC72),'Tab-Ergebnis-ADP-GV'!CM72*Q48),"") ->  | N48: =IF(Q48<>"",IF(Q48=DSS!F59,('Tab-Ergebnis-ADP-GV'!CN72*Q48*DSS!$D$25)-(((DSS!$D$25*Q48)-Q48)*'Tab-Ergebnis-ADP-GV'!CD72),'Tab-Ergebnis-ADP-GV'!CN72*Q48),"") ->  | O48: =IF(Q48<>"",IF(Q48=DSS!F59,('Tab-Ergebnis-ADP-GV'!CL72*Q48*DSS!$D$25)-(((DSS!$D$25*Q48)-Q48)*'Tab-Ergebnis-ADP-GV'!CB72),'Tab-Ergebnis-ADP-GV'!CL72*Q48),"") ->  | P48: 20 | Q48: =IF(DSS!F59<>0,IF(AND(Haupttabelle!$CK$1="ja",H48="Mehrweg"),DSS!F59,DSS!F59*DSS!$D$25),"") -> 
E49: ='Tab-Ergebnis-ADP-GV'!E73 ->  | F49: ='Tab-Ergebnis-ADP-GV'!F73 ->  | G49: ='Tab-Ergebnis-ADP-GV'!C73 ->  | H49: =IF('Tab-Ergebnis-ADP-GV'!N73="M","Mehrweg",IF('Tab-Ergebnis-ADP-GV'!N73="E","Einweg","")) ->  | I49: =IF('Tab-Ergebnis-ADP-GV'!P73=FALSE,"nein",IF('Tab-Ergebnis-ADP-GV'!P73=TRUE,"ja","")) ->  | J49: =IF('Tab-Ergebnis-ADP-GV'!Q73=FALSE,"nein",IF('Tab-Ergebnis-ADP-GV'!Q73=TRUE,"ja","")) ->  | K49: ='Tab-Ergebnis-ADP-GV'!I73 ->  | L49: =IF(DSS!F60<>0,IF(H49="Mehrweg",DSS!F60,DSS!F60*DSS!$D$25),"") ->  | M49: =IF(Q49<>"",IF(Q49=DSS!F60,('Tab-Ergebnis-ADP-GV'!CM73*Q49*DSS!$D$25)-(((DSS!$D$25*Q49)-Q49)*'Tab-Ergebnis-ADP-GV'!CC73),'Tab-Ergebnis-ADP-GV'!CM73*Q49),"") ->  | N49: =IF(Q49<>"",IF(Q49=DSS!F60,('Tab-Ergebnis-ADP-GV'!CN73*Q49*DSS!$D$25)-(((DSS!$D$25*Q49)-Q49)*'Tab-Ergebnis-ADP-GV'!CD73),'Tab-Ergebnis-ADP-GV'!CN73*Q49),"") ->  | O49: =IF(Q49<>"",IF(Q49=DSS!F60,('Tab-Ergebnis-ADP-GV'!CL73*Q49*DSS!$D$25)-(((DSS!$D$25*Q49)-Q49)*'Tab-Ergebnis-ADP-GV'!CB73),'Tab-Ergebnis-ADP-GV'!CL73*Q49),"") ->  | P49: =COUNTIF($E$30:$E$49,E49) -> 20 | Q49: =IF(DSS!F60<>0,IF(AND(Haupttabelle!$CK$1="ja",H49="Mehrweg"),DSS!F60,DSS!F60*DSS!$D$25),"") -> 
E50: Summe | L50: =SUM(L30:L49) -> 0 | M50: =SUM(M30:M49) -> 0 | N50: =SUM(N30:N49) -> 0 | O50: =SUM(O30:O49) -> 0
E52: Tab. 2: Geschirrbedarf, -spezifikationen und Emissionen gesamt (Getränke):
E53: Auswahl DSS | F53: Produkt / Geschirrmodell (Vorschlag des DSS) | G53: Alternative ("A"; sofern keine Option hinsichtlich der Auswahlkriterien verfügbar) | H53: Einweg / Mehrweg | I53: Essbar? | J53: Biologisch abbaubar? | K53: Material | L53: Menge [Anzahl Essen oder Geschirr] | M53: Ressourcenverbrauch [ADP; kg Sb-Äq./Veranstaltung] | N53: Wassernutzung [WDP; m3/Veranstaltung] | O53: Klimawandel [GWP; kg CO2-Äq./Veranstaltung] | P53: Doppelte Werte
E54: ='Tab-Ergebnis-ADP-GV'!E74 ->  | F54: ='Tab-Ergebnis-ADP-GV'!F74 ->  | G54: ='Tab-Ergebnis-ADP-GV'!C74 ->  | H54: =IF('Tab-Ergebnis-ADP-GV'!N74="M","Mehrweg",IF('Tab-Ergebnis-ADP-GV'!N74="E","Einweg","")) ->  | I54: =IF('Tab-Ergebnis-ADP-GV'!P74=FALSE,"nein",IF('Tab-Ergebnis-ADP-GV'!P74=TRUE,"ja","")) ->  | J54: =IF('Tab-Ergebnis-ADP-GV'!Q74=FALSE,"nein",IF('Tab-Ergebnis-ADP-GV'!Q74=TRUE,"ja","")) ->  | K54: ='Tab-Ergebnis-ADP-GV'!I74 ->  | L54: =IF(DSS!F65<>0,IF(H54="Mehrweg",DSS!F65,DSS!F65*DSS!$D$25),"") ->  | M54: =IF(Q54<>"",IF(Q54=DSS!F65,('Tab-Ergebnis-ADP-GV'!CM74*Q54*DSS!$D$25)-(((DSS!$D$25*Q54)-Q54)*'Tab-Ergebnis-ADP-GV'!CC74),'Tab-Ergebnis-ADP-GV'!CM74*Q54),"") ->  | N54: =IF(Q54<>"",IF(Q54=DSS!F65,('Tab-Ergebnis-ADP-GV'!CN74*Q54*DSS!$D$25)-(((DSS!$D$25*Q54)-Q54)*'Tab-Ergebnis-ADP-GV'!CD74),'Tab-Ergebnis-ADP-GV'!CN74*Q54),"") ->  | O54: =IF(Q54<>"",IF(Q54=DSS!F65,('Tab-Ergebnis-ADP-GV'!CL74*Q54*DSS!$D$25)-(((DSS!$D$25*Q54)-Q54)*'Tab-Ergebnis-ADP-GV'!CB74),'Tab-Ergebnis-ADP-GV'!CL74*Q54),"") ->  | P54: =COUNTIF($E$30:$E$49,E54) -> 20 | Q54: =IF(DSS!F65<>0,IF(AND(Haupttabelle!$CK$1="ja",H54="Mehrweg"),DSS!F65,DSS!F65*DSS!$D$25),"") -> 
E55: ='Tab-Ergebnis-ADP-GV'!E75 ->  | F55: ='Tab-Ergebnis-ADP-GV'!F75 ->  | G55: ='Tab-Ergebnis-ADP-GV'!C75 ->  | H55: =IF('Tab-Ergebnis-ADP-GV'!N75="M","Mehrweg",IF('Tab-Ergebnis-ADP-GV'!N75="E","Einweg","")) ->  | I55: =IF('Tab-Ergebnis-ADP-GV'!P75=FALSE,"nein",IF('Tab-Ergebnis-ADP-GV'!P75=TRUE,"ja","")) ->  | J55: =IF('Tab-Ergebnis-ADP-GV'!Q75=FALSE,"nein",IF('Tab-Ergebnis-ADP-GV'!Q75=TRUE,"ja","")) ->  | K55: ='Tab-Ergebnis-ADP-GV'!I75 ->  | L55: =IF(DSS!F66<>0,IF(H55="Mehrweg",DSS!F66,DSS!F66*DSS!$D$25),"") ->  | M55: =IF(Q55<>"",IF(Q55=DSS!F66,('Tab-Ergebnis-ADP-GV'!CM75*Q55*DSS!$D$25)-(((DSS!$D$25*Q55)-Q55)*'Tab-Ergebnis-ADP-GV'!CC75),'Tab-Ergebnis-ADP-GV'!CM75*Q55),"") ->  | N55: =IF(Q55<>"",IF(Q55=DSS!F66,('Tab-Ergebnis-ADP-GV'!CN75*Q55*DSS!$D$25)-(((DSS!$D$25*Q55)-Q55)*'Tab-Ergebnis-ADP-GV'!CD75),'Tab-Ergebnis-ADP-GV'!CN75*Q55),"") ->  | O55: =IF(Q55<>"",IF(Q55=DSS!F66,('Tab-Ergebnis-ADP-GV'!CL75*Q55*DSS!$D$25)-(((DSS!$D$25*Q55)-Q55)*'Tab-Ergebnis-ADP-GV'!CB75),'Tab-Ergebnis-ADP-GV'!CL75*Q55),"") ->  | P55: =COUNTIF($E$30:$E$49,E55) -> 20 | Q55: =IF(DSS!F66<>0,IF(AND(Haupttabelle!$CK$1="ja",H55="Mehrweg"),DSS!F66,DSS!F66*DSS!$D$25),"") -> 
E56: ='Tab-Ergebnis-ADP-GV'!E76 ->  | F56: ='Tab-Ergebnis-ADP-GV'!F76 ->  | G56: ='Tab-Ergebnis-ADP-GV'!C76 ->  | H56: =IF('Tab-Ergebnis-ADP-GV'!N76="M","Mehrweg",IF('Tab-Ergebnis-ADP-GV'!N76="E","Einweg","")) ->  | I56: =IF('Tab-Ergebnis-ADP-GV'!P76=FALSE,"nein",IF('Tab-Ergebnis-ADP-GV'!P76=TRUE,"ja","")) ->  | J56: =IF('Tab-Ergebnis-ADP-GV'!Q76=FALSE,"nein",IF('Tab-Ergebnis-ADP-GV'!Q76=TRUE,"ja","")) ->  | K56: ='Tab-Ergebnis-ADP-GV'!I76 ->  | L56: =IF(DSS!F67<>0,IF(H56="Mehrweg",DSS!F67,DSS!F67*DSS!$D$25),"") ->  | M56: =IF(Q56<>"",IF(Q56=DSS!F67,('Tab-Ergebnis-ADP-GV'!CM76*Q56*DSS!$D$25)-(((DSS!$D$25*Q56)-Q56)*'Tab-Ergebnis-ADP-GV'!CC76),'Tab-Ergebnis-ADP-GV'!CM76*Q56),"") ->  | N56: =IF(Q56<>"",IF(Q56=DSS!F67,('Tab-Ergebnis-ADP-GV'!CN76*Q56*DSS!$D$25)-(((DSS!$D$25*Q56)-Q56)*'Tab-Ergebnis-ADP-GV'!CD76),'Tab-Ergebnis-ADP-GV'!CN76*Q56),"") ->  | O56: =IF(Q56<>"",IF(Q56=DSS!F67,('Tab-Ergebnis-ADP-GV'!CL76*Q56*DSS!$D$25)-(((DSS!$D$25*Q56)-Q56)*'Tab-Ergebnis-ADP-GV'!CB76),'Tab-Ergebnis-ADP-GV'!CL76*Q56),"") ->  | P56: 20 | Q56: =IF(DSS!F67<>0,IF(AND(Haupttabelle!$CK$1="ja",H56="Mehrweg"),DSS!F67,DSS!F67*DSS!$D$25),"") -> 
E57: ='Tab-Ergebnis-ADP-GV'!E77 ->  | F57: ='Tab-Ergebnis-ADP-GV'!F77 ->  | G57: ='Tab-Ergebnis-ADP-GV'!C77 ->  | H57: =IF('Tab-Ergebnis-ADP-GV'!N77="M","Mehrweg",IF('Tab-Ergebnis-ADP-GV'!N77="E","Einweg","")) ->  | I57: =IF('Tab-Ergebnis-ADP-GV'!P77=FALSE,"nein",IF('Tab-Ergebnis-ADP-GV'!P77=TRUE,"ja","")) ->  | J57: =IF('Tab-Ergebnis-ADP-GV'!Q77=FALSE,"nein",IF('Tab-Ergebnis-ADP-GV'!Q77=TRUE,"ja","")) ->  | K57: ='Tab-Ergebnis-ADP-GV'!I77 ->  | L57: =IF(DSS!F68<>0,IF(H57="Mehrweg",DSS!F68,DSS!F68*DSS!$D$25),"") ->  | M57: =IF(Q57<>"",IF(Q57=DSS!F68,('Tab-Ergebnis-ADP-GV'!CM77*Q57*DSS!$D$25)-(((DSS!$D$25*Q57)-Q57)*'Tab-Ergebnis-ADP-GV'!CC77),'Tab-Ergebnis-ADP-GV'!CM77*Q57),"") ->  | N57: =IF(Q57<>"",IF(Q57=DSS!F68,('Tab-Ergebnis-ADP-GV'!CN77*Q57*DSS!$D$25)-(((DSS!$D$25*Q57)-Q57)*'Tab-Ergebnis-ADP-GV'!CD77),'Tab-Ergebnis-ADP-GV'!CN77*Q57),"") ->  | O57: =IF(Q57<>"",IF(Q57=DSS!F68,('Tab-Ergebnis-ADP-GV'!CL77*Q57*DSS!$D$25)-(((DSS!$D$25*Q57)-Q57)*'Tab-Ergebnis-ADP-GV'!CB77),'Tab-Ergebnis-ADP-GV'!CL77*Q57),"") ->  | P57: 20 | Q57: =IF(DSS!F68<>0,IF(AND(Haupttabelle!$CK$1="ja",H57="Mehrweg"),DSS!F68,DSS!F68*DSS!$D$25),"") -> 
E58: ='Tab-Ergebnis-ADP-GV'!E78 ->  | F58: ='Tab-Ergebnis-ADP-GV'!F78 ->  | G58: ='Tab-Ergebnis-ADP-GV'!C78 ->  | H58: =IF('Tab-Ergebnis-ADP-GV'!N78="M","Mehrweg",IF('Tab-Ergebnis-ADP-GV'!N78="E","Einweg","")) ->  | I58: =IF('Tab-Ergebnis-ADP-GV'!P78=FALSE,"nein",IF('Tab-Ergebnis-ADP-GV'!P78=TRUE,"ja","")) ->  | J58: =IF('Tab-Ergebnis-ADP-GV'!Q78=FALSE,"nein",IF('Tab-Ergebnis-ADP-GV'!Q78=TRUE,"ja","")) ->  | K58: ='Tab-Ergebnis-ADP-GV'!I78 ->  | L58: =IF(DSS!F69<>0,IF(H58="Mehrweg",DSS!F69,DSS!F69*DSS!$D$25),"") ->  | M58: =IF(Q58<>"",IF(Q58=DSS!F69,('Tab-Ergebnis-ADP-GV'!CM78*Q58*DSS!$D$25)-(((DSS!$D$25*Q58)-Q58)*'Tab-Ergebnis-ADP-GV'!CC78),'Tab-Ergebnis-ADP-GV'!CM78*Q58),"") ->  | N58: =IF(Q58<>"",IF(Q58=DSS!F69,('Tab-Ergebnis-ADP-GV'!CN78*Q58*DSS!$D$25)-(((DSS!$D$25*Q58)-Q58)*'Tab-Ergebnis-ADP-GV'!CD78),'Tab-Ergebnis-ADP-GV'!CN78*Q58),"") ->  | O58: =IF(Q58<>"",IF(Q58=DSS!F69,('Tab-Ergebnis-ADP-GV'!CL78*Q58*DSS!$D$25)-(((DSS!$D$25*Q58)-Q58)*'Tab-Ergebnis-ADP-GV'!CB78),'Tab-Ergebnis-ADP-GV'!CL78*Q58),"") ->  | P58: 20 | Q58: =IF(DSS!F69<>0,IF(AND(Haupttabelle!$CK$1="ja",H58="Mehrweg"),DSS!F69,DSS!F69*DSS!$D$25),"") -> 
E59: ='Tab-Ergebnis-ADP-GV'!E79 ->  | F59: ='Tab-Ergebnis-ADP-GV'!F79 ->  | G59: ='Tab-Ergebnis-ADP-GV'!C79 ->  | H59: =IF('Tab-Ergebnis-ADP-GV'!N79="M","Mehrweg",IF('Tab-Ergebnis-ADP-GV'!N79="E","Einweg","")) ->  | I59: =IF('Tab-Ergebnis-ADP-GV'!P79=FALSE,"nein",IF('Tab-Ergebnis-ADP-GV'!P79=TRUE,"ja","")) ->  | J59: =IF('Tab-Ergebnis-ADP-GV'!Q79=FALSE,"nein",IF('Tab-Ergebnis-ADP-GV'!Q79=TRUE,"ja","")) ->  | K59: ='Tab-Ergebnis-ADP-GV'!I79 ->  | L59: =IF(DSS!F70<>0,IF(H59="Mehrweg",DSS!F70,DSS!F70*DSS!$D$25),"") ->  | M59: =IF(Q59<>"",IF(Q59=DSS!F70,('Tab-Ergebnis-ADP-GV'!CM79*Q59*DSS!$D$25)-(((DSS!$D$25*Q59)-Q59)*'Tab-Ergebnis-ADP-GV'!CC79),'Tab-Ergebnis-ADP-GV'!CM79*Q59),"") ->  | N59: =IF(Q59<>"",IF(Q59=DSS!F70,('Tab-Ergebnis-ADP-GV'!CN79*Q59*DSS!$D$25)-(((DSS!$D$25*Q59)-Q59)*'Tab-Ergebnis-ADP-GV'!CD79),'Tab-Ergebnis-ADP-GV'!CN79*Q59),"") ->  | O59: =IF(Q59<>"",IF(Q59=DSS!F70,('Tab-Ergebnis-ADP-GV'!CL79*Q59*DSS!$D$25)-(((DSS!$D$25*Q59)-Q59)*'Tab-Ergebnis-ADP-GV'!CB79),'Tab-Ergebnis-ADP-GV'!CL79*Q59),"") ->  | P59: 20 | Q59: =IF(DSS!F70<>0,IF(AND(Haupttabelle!$CK$1="ja",H59="Mehrweg"),DSS!F70,DSS!F70*DSS!$D$25),"") -> 
E60: ='Tab-Ergebnis-ADP-GV'!E80 ->  | F60: ='Tab-Ergebnis-ADP-GV'!F80 ->  | G60: ='Tab-Ergebnis-ADP-GV'!C80 ->  | H60: =IF('Tab-Ergebnis-ADP-GV'!N80="M","Mehrweg",IF('Tab-Ergebnis-ADP-GV'!N80="E","Einweg","")) ->  | I60: =IF('Tab-Ergebnis-ADP-GV'!P80=FALSE,"nein",IF('Tab-Ergebnis-ADP-GV'!P80=TRUE,"ja","")) ->  | J60: =IF('Tab-Ergebnis-ADP-GV'!Q80=FALSE,"nein",IF('Tab-Ergebnis-ADP-GV'!Q80=TRUE,"ja","")) ->  | K60: ='Tab-Ergebnis-ADP-GV'!I80 ->  | L60: =IF(DSS!F71<>0,IF(H60="Mehrweg",DSS!F71,DSS!F71*DSS!$D$25),"") ->  | M60: =IF(Q60<>"",IF(Q60=DSS!F71,('Tab-Ergebnis-ADP-GV'!CM80*Q60*DSS!$D$25)-(((DSS!$D$25*Q60)-Q60)*'Tab-Ergebnis-ADP-GV'!CC80),'Tab-Ergebnis-ADP-GV'!CM80*Q60),"") ->  | N60: =IF(Q60<>"",IF(Q60=DSS!F71,('Tab-Ergebnis-ADP-GV'!CN80*Q60*DSS!$D$25)-(((DSS!$D$25*Q60)-Q60)*'Tab-Ergebnis-ADP-GV'!CD80),'Tab-Ergebnis-ADP-GV'!CN80*Q60),"") ->  | O60: =IF(Q60<>"",IF(Q60=DSS!F71,('Tab-Ergebnis-ADP-GV'!CL80*Q60*DSS!$D$25)-(((DSS!$D$25*Q60)-Q60)*'Tab-Ergebnis-ADP-GV'!CB80),'Tab-Ergebnis-ADP-GV'!CL80*Q60),"") ->  | P60: 20 | Q60: =IF(DSS!F71<>0,IF(AND(Haupttabelle!$CK$1="ja",H60="Mehrweg"),DSS!F71,DSS!F71*DSS!$D$25),"") -> 
E61: ='Tab-Ergebnis-ADP-GV'!E81 ->  | F61: ='Tab-Ergebnis-ADP-GV'!F81 ->  | G61: ='Tab-Ergebnis-ADP-GV'!C81 ->  | H61: =IF('Tab-Ergebnis-ADP-GV'!N81="M","Mehrweg",IF('Tab-Ergebnis-ADP-GV'!N81="E","Einweg","")) ->  | I61: =IF('Tab-Ergebnis-ADP-GV'!P81=FALSE,"nein",IF('Tab-Ergebnis-ADP-GV'!P81=TRUE,"ja","")) ->  | J61: =IF('Tab-Ergebnis-ADP-GV'!Q81=FALSE,"nein",IF('Tab-Ergebnis-ADP-GV'!Q81=TRUE,"ja","")) ->  | K61: ='Tab-Ergebnis-ADP-GV'!I81 ->  | L61: =IF(DSS!F72<>0,IF(H61="Mehrweg",DSS!F72,DSS!F72*DSS!$D$25),"") ->  | M61: =IF(Q61<>"",IF(Q61=DSS!F72,('Tab-Ergebnis-ADP-GV'!CM81*Q61*DSS!$D$25)-(((DSS!$D$25*Q61)-Q61)*'Tab-Ergebnis-ADP-GV'!CC81),'Tab-Ergebnis-ADP-GV'!CM81*Q61),"") ->  | N61: =IF(Q61<>"",IF(Q61=DSS!F72,('Tab-Ergebnis-ADP-GV'!CN81*Q61*DSS!$D$25)-(((DSS!$D$25*Q61)-Q61)*'Tab-Ergebnis-ADP-GV'!CD81),'Tab-Ergebnis-ADP-GV'!CN81*Q61),"") ->  | O61: =IF(Q61<>"",IF(Q61=DSS!F72,('Tab-Ergebnis-ADP-GV'!CL81*Q61*DSS!$D$25)-(((DSS!$D$25*Q61)-Q61)*'Tab-Ergebnis-ADP-GV'!CB81),'Tab-Ergebnis-ADP-GV'!CL81*Q61),"") ->  | P61: 20 | Q61: =IF(DSS!F72<>0,IF(AND(Haupttabelle!$CK$1="ja",H61="Mehrweg"),DSS!F72,DSS!F72*DSS!$D$25),"") -> 
E62: ='Tab-Ergebnis-ADP-GV'!E82 ->  | F62: ='Tab-Ergebnis-ADP-GV'!F82 ->  | G62: ='Tab-Ergebnis-ADP-GV'!C82 ->  | H62: =IF('Tab-Ergebnis-ADP-GV'!N82="M","Mehrweg",IF('Tab-Ergebnis-ADP-GV'!N82="E","Einweg","")) ->  | I62: =IF('Tab-Ergebnis-ADP-GV'!P82=FALSE,"nein",IF('Tab-Ergebnis-ADP-GV'!P82=TRUE,"ja","")) ->  | J62: =IF('Tab-Ergebnis-ADP-GV'!Q82=FALSE,"nein",IF('Tab-Ergebnis-ADP-GV'!Q82=TRUE,"ja","")) ->  | K62: ='Tab-Ergebnis-ADP-GV'!I82 ->  | L62: =IF(DSS!F73<>0,IF(H62="Mehrweg",DSS!F73,DSS!F73*DSS!$D$25),"") ->  | M62: =IF(Q62<>"",IF(Q62=DSS!F73,('Tab-Ergebnis-ADP-GV'!CM82*Q62*DSS!$D$25)-(((DSS!$D$25*Q62)-Q62)*'Tab-Ergebnis-ADP-GV'!CC82),'Tab-Ergebnis-ADP-GV'!CM82*Q62),"") ->  | N62: =IF(Q62<>"",IF(Q62=DSS!F73,('Tab-Ergebnis-ADP-GV'!CN82*Q62*DSS!$D$25)-(((DSS!$D$25*Q62)-Q62)*'Tab-Ergebnis-ADP-GV'!CD82),'Tab-Ergebnis-ADP-GV'!CN82*Q62),"") ->  | O62: =IF(Q62<>"",IF(Q62=DSS!F73,('Tab-Ergebnis-ADP-GV'!CL82*Q62*DSS!$D$25)-(((DSS!$D$25*Q62)-Q62)*'Tab-Ergebnis-ADP-GV'!CB82),'Tab-Ergebnis-ADP-GV'!CL82*Q62),"") ->  | P62: 20 | Q62: =IF(DSS!F73<>0,IF(AND(Haupttabelle!$CK$1="ja",H62="Mehrweg"),DSS!F73,DSS!F73*DSS!$D$25),"") -> 
E63: ='Tab-Ergebnis-ADP-GV'!E83 ->  | F63: ='Tab-Ergebnis-ADP-GV'!F83 ->  | G63: ='Tab-Ergebnis-ADP-GV'!C83 ->  | H63: =IF('Tab-Ergebnis-ADP-GV'!N83="M","Mehrweg",IF('Tab-Ergebnis-ADP-GV'!N83="E","Einweg","")) ->  | I63: =IF('Tab-Ergebnis-ADP-GV'!P83=FALSE,"nein",IF('Tab-Ergebnis-ADP-GV'!P83=TRUE,"ja","")) ->  | J63: =IF('Tab-Ergebnis-ADP-GV'!Q83=FALSE,"nein",IF('Tab-Ergebnis-ADP-GV'!Q83=TRUE,"ja","")) ->  | K63: ='Tab-Ergebnis-ADP-GV'!I83 ->  | L63: =IF(DSS!F74<>0,IF(H63="Mehrweg",DSS!F74,DSS!F74*DSS!$D$25),"") ->  | M63: =IF(Q63<>"",IF(Q63=DSS!F74,('Tab-Ergebnis-ADP-GV'!CM83*Q63*DSS!$D$25)-(((DSS!$D$25*Q63)-Q63)*'Tab-Ergebnis-ADP-GV'!CC83),'Tab-Ergebnis-ADP-GV'!CM83*Q63),"") ->  | N63: =IF(Q63<>"",IF(Q63=DSS!F74,('Tab-Ergebnis-ADP-GV'!CN83*Q63*DSS!$D$25)-(((DSS!$D$25*Q63)-Q63)*'Tab-Ergebnis-ADP-GV'!CD83),'Tab-Ergebnis-ADP-GV'!CN83*Q63),"") ->  | O63: =IF(Q63<>"",IF(Q63=DSS!F74,('Tab-Ergebnis-ADP-GV'!CL83*Q63*DSS!$D$25)-(((DSS!$D$25*Q63)-Q63)*'Tab-Ergebnis-ADP-GV'!CB83),'Tab-Ergebnis-ADP-GV'!CL83*Q63),"") ->  | P63: 20 | Q63: =IF(DSS!F74<>0,IF(AND(Haupttabelle!$CK$1="ja",H63="Mehrweg"),DSS!F74,DSS!F74*DSS!$D$25),"") -> 
E64: ='Tab-Ergebnis-ADP-GV'!E84 ->  | F64: ='Tab-Ergebnis-ADP-GV'!F84 ->  | G64: ='Tab-Ergebnis-ADP-GV'!C84 ->  | H64: =IF('Tab-Ergebnis-ADP-GV'!N84="M","Mehrweg",IF('Tab-Ergebnis-ADP-GV'!N84="E","Einweg","")) ->  | I64: =IF('Tab-Ergebnis-ADP-GV'!P84=FALSE,"nein",IF('Tab-Ergebnis-ADP-GV'!P84=TRUE,"ja","")) ->  | J64: =IF('Tab-Ergebnis-ADP-GV'!Q84=FALSE,"nein",IF('Tab-Ergebnis-ADP-GV'!Q84=TRUE,"ja","")) ->  | K64: ='Tab-Ergebnis-ADP-GV'!I84 ->  | L64: =IF(DSS!F75<>0,IF(H64="Mehrweg",DSS!F75,DSS!F75*DSS!$D$25),"") ->  | M64: =IF(Q64<>"",IF(Q64=DSS!F75,('Tab-Ergebnis-ADP-GV'!CM84*Q64*DSS!$D$25)-(((DSS!$D$25*Q64)-Q64)*'Tab-Ergebnis-ADP-GV'!CC84),'Tab-Ergebnis-ADP-GV'!CM84*Q64),"") ->  | N64: =IF(Q64<>"",IF(Q64=DSS!F75,('Tab-Ergebnis-ADP-GV'!CN84*Q64*DSS!$D$25)-(((DSS!$D$25*Q64)-Q64)*'Tab-Ergebnis-ADP-GV'!CD84),'Tab-Ergebnis-ADP-GV'!CN84*Q64),"") ->  | O64: =IF(Q64<>"",IF(Q64=DSS!F75,('Tab-Ergebnis-ADP-GV'!CL84*Q64*DSS!$D$25)-(((DSS!$D$25*Q64)-Q64)*'Tab-Ergebnis-ADP-GV'!CB84),'Tab-Ergebnis-ADP-GV'!CL84*Q64),"") ->  | P64: 20 | Q64: =IF(DSS!F75<>0,IF(AND(Haupttabelle!$CK$1="ja",H64="Mehrweg"),DSS!F75,DSS!F75*DSS!$D$25),"") -> 
E65: ='Tab-Ergebnis-ADP-GV'!E85 ->  | F65: ='Tab-Ergebnis-ADP-GV'!F85 ->  | G65: ='Tab-Ergebnis-ADP-GV'!C85 ->  | H65: =IF('Tab-Ergebnis-ADP-GV'!N85="M","Mehrweg",IF('Tab-Ergebnis-ADP-GV'!N85="E","Einweg","")) ->  | I65: =IF('Tab-Ergebnis-ADP-GV'!P85=FALSE,"nein",IF('Tab-Ergebnis-ADP-GV'!P85=TRUE,"ja","")) ->  | J65: =IF('Tab-Ergebnis-ADP-GV'!Q85=FALSE,"nein",IF('Tab-Ergebnis-ADP-GV'!Q85=TRUE,"ja","")) ->  | K65: ='Tab-Ergebnis-ADP-GV'!I85 ->  | L65: =IF(DSS!F76<>0,IF(H65="Mehrweg",DSS!F76,DSS!F76*DSS!$D$25),"") ->  | M65: =IF(Q65<>"",IF(Q65=DSS!F76,('Tab-Ergebnis-ADP-GV'!CM85*Q65*DSS!$D$25)-(((DSS!$D$25*Q65)-Q65)*'Tab-Ergebnis-ADP-GV'!CC85),'Tab-Ergebnis-ADP-GV'!CM85*Q65),"") ->  | N65: =IF(Q65<>"",IF(Q65=DSS!F76,('Tab-Ergebnis-ADP-GV'!CN85*Q65*DSS!$D$25)-(((DSS!$D$25*Q65)-Q65)*'Tab-Ergebnis-ADP-GV'!CD85),'Tab-Ergebnis-ADP-GV'!CN85*Q65),"") ->  | O65: =IF(Q65<>"",IF(Q65=DSS!F76,('Tab-Ergebnis-ADP-GV'!CL85*Q65*DSS!$D$25)-(((DSS!$D$25*Q65)-Q65)*'Tab-Ergebnis-ADP-GV'!CB85),'Tab-Ergebnis-ADP-GV'!CL85*Q65),"") ->  | Q65: =IF(DSS!F76<>0,IF(AND(Haupttabelle!$CK$1="ja",H65="Mehrweg"),DSS!F76,DSS!F76*DSS!$D$25),"") -> 
E66: ='Tab-Ergebnis-ADP-GV'!E86 ->  | F66: ='Tab-Ergebnis-ADP-GV'!F86 ->  | G66: ='Tab-Ergebnis-ADP-GV'!C86 ->  | H66: =IF('Tab-Ergebnis-ADP-GV'!N86="M","Mehrweg",IF('Tab-Ergebnis-ADP-GV'!N86="E","Einweg","")) ->  | I66: =IF('Tab-Ergebnis-ADP-GV'!P86=FALSE,"nein",IF('Tab-Ergebnis-ADP-GV'!P86=TRUE,"ja","")) ->  | J66: =IF('Tab-Ergebnis-ADP-GV'!Q86=FALSE,"nein",IF('Tab-Ergebnis-ADP-GV'!Q86=TRUE,"ja","")) ->  | K66: ='Tab-Ergebnis-ADP-GV'!I86 ->  | L66: =IF(DSS!F77<>0,IF(H66="Mehrweg",DSS!F77,DSS!F77*DSS!$D$25),"") ->  | M66: =IF(Q66<>"",IF(Q66=DSS!F77,('Tab-Ergebnis-ADP-GV'!CM86*Q66*DSS!$D$25)-(((DSS!$D$25*Q66)-Q66)*'Tab-Ergebnis-ADP-GV'!CC86),'Tab-Ergebnis-ADP-GV'!CM86*Q66),"") ->  | N66: =IF(Q66<>"",IF(Q66=DSS!F77,('Tab-Ergebnis-ADP-GV'!CN86*Q66*DSS!$D$25)-(((DSS!$D$25*Q66)-Q66)*'Tab-Ergebnis-ADP-GV'!CD86),'Tab-Ergebnis-ADP-GV'!CN86*Q66),"") ->  | O66: =IF(Q66<>"",IF(Q66=DSS!F77,('Tab-Ergebnis-ADP-GV'!CL86*Q66*DSS!$D$25)-(((DSS!$D$25*Q66)-Q66)*'Tab-Ergebnis-ADP-GV'!CB86),'Tab-Ergebnis-ADP-GV'!CL86*Q66),"") ->  | P66: 20 | Q66: =IF(DSS!F77<>0,IF(AND(Haupttabelle!$CK$1="ja",H66="Mehrweg"),DSS!F77,DSS!F77*DSS!$D$25),"") -> 
E67: ='Tab-Ergebnis-ADP-GV'!E87 ->  | F67: ='Tab-Ergebnis-ADP-GV'!F87 ->  | G67: ='Tab-Ergebnis-ADP-GV'!C87 ->  | H67: =IF('Tab-Ergebnis-ADP-GV'!N87="M","Mehrweg",IF('Tab-Ergebnis-ADP-GV'!N87="E","Einweg","")) ->  | I67: =IF('Tab-Ergebnis-ADP-GV'!P87=FALSE,"nein",IF('Tab-Ergebnis-ADP-GV'!P87=TRUE,"ja","")) ->  | J67: =IF('Tab-Ergebnis-ADP-GV'!Q87=FALSE,"nein",IF('Tab-Ergebnis-ADP-GV'!Q87=TRUE,"ja","")) ->  | K67: ='Tab-Ergebnis-ADP-GV'!I87 ->  | L67: =IF(DSS!F78<>0,IF(H67="Mehrweg",DSS!F78,DSS!F78*DSS!$D$25),"") ->  | M67: =IF(Q67<>"",IF(Q67=DSS!F78,('Tab-Ergebnis-ADP-GV'!CM87*Q67*DSS!$D$25)-(((DSS!$D$25*Q67)-Q67)*'Tab-Ergebnis-ADP-GV'!CC87),'Tab-Ergebnis-ADP-GV'!CM87*Q67),"") ->  | N67: =IF(Q67<>"",IF(Q67=DSS!F78,('Tab-Ergebnis-ADP-GV'!CN87*Q67*DSS!$D$25)-(((DSS!$D$25*Q67)-Q67)*'Tab-Ergebnis-ADP-GV'!CD87),'Tab-Ergebnis-ADP-GV'!CN87*Q67),"") ->  | O67: =IF(Q67<>"",IF(Q67=DSS!F78,('Tab-Ergebnis-ADP-GV'!CL87*Q67*DSS!$D$25)-(((DSS!$D$25*Q67)-Q67)*'Tab-Ergebnis-ADP-GV'!CB87),'Tab-Ergebnis-ADP-GV'!CL87*Q67),"") ->  | P67: 20 | Q67: =IF(DSS!F78<>0,IF(AND(Haupttabelle!$CK$1="ja",H67="Mehrweg"),DSS!F78,DSS!F78*DSS!$D$25),"") -> 
E68: Summe | L68: =SUM(L54:L67) -> 0 | M68: =SUM(M54:M67) -> 0 | N68: =SUM(N54:N67) -> 0 | O68: =SUM(O54:O67) -> 0
E70: Tab. 3: Geschirrbedarf, -spezifikationen und Emissionen gesamt (Sonstiges):
E71: Auswahl DSS | F71: Produkt / Geschirrmodell (Vorschlag des DSS) | G71: Alternative ("A"; sofern keine Option hinsichtlich der Auswahlkriterien verfügbar) | H71: Einweg / Mehrweg | I71: Essbar? | J71: Biologisch abbaubar? | K71: Material | L71: Menge [Anzahl Essen oder Geschirr] | M71: Ressourcenverbrauch [ADP; kg Sb-Äq./Veranstaltung] | N71: Wassernutzung [WDP; m3/Veranstaltung] | O71: Klimawandel [GWP; kg CO2-Äq./Veranstaltung] | P71: Doppelte Werte
E72: ='Tab-Ergebnis-ADP-GV'!E88 ->  | F72: ='Tab-Ergebnis-ADP-GV'!F88 ->  | G72: ='Tab-Ergebnis-ADP-GV'!C88 ->  | H72: =IF('Tab-Ergebnis-ADP-GV'!N88="M","Mehrweg",IF('Tab-Ergebnis-ADP-GV'!N88="E","Einweg","")) ->  | I72: =IF('Tab-Ergebnis-ADP-GV'!P88=FALSE,"nein",IF('Tab-Ergebnis-ADP-GV'!P88=TRUE,"ja","")) ->  | J72: =IF('Tab-Ergebnis-ADP-GV'!Q88=FALSE,"nein",IF('Tab-Ergebnis-ADP-GV'!Q88=TRUE,"ja","")) ->  | K72: ='Tab-Ergebnis-ADP-GV'!I88 ->  | L72: =IF(DSS!F83<>0,IF(H72="Mehrweg",DSS!F83,DSS!F83*DSS!$D$25),"") ->  | M72: =IF(Q72<>"",IF(Q72=DSS!F83,('Tab-Ergebnis-ADP-GV'!CM88*Q72*DSS!$D$25)-(((DSS!$D$25*Q72)-Q72)*'Tab-Ergebnis-ADP-GV'!CC88),'Tab-Ergebnis-ADP-GV'!CM88*Q72),"") ->  | N72: =IF(Q72<>"",IF(Q72=DSS!F83,('Tab-Ergebnis-ADP-GV'!CN88*Q72*DSS!$D$25)-(((DSS!$D$25*Q72)-Q72)*'Tab-Ergebnis-ADP-GV'!CD88),'Tab-Ergebnis-ADP-GV'!CN88*Q72),"") ->  | O72: =IF(Q72<>"",IF(Q72=DSS!F83,('Tab-Ergebnis-ADP-GV'!CL88*Q72*DSS!$D$25)-(((DSS!$D$25*Q72)-Q72)*'Tab-Ergebnis-ADP-GV'!CB88),'Tab-Ergebnis-ADP-GV'!CL88*Q72),"") ->  | P72: =COUNTIF($E$30:$E$49,E72) -> 20 | Q72: =IF(DSS!F83<>0,IF(AND(Haupttabelle!$CK$1="ja",H72="Mehrweg"),DSS!F83,DSS!F83*DSS!$D$25),"") -> 
E73: ='Tab-Ergebnis-ADP-GV'!E89 ->  | F73: ='Tab-Ergebnis-ADP-GV'!F89 ->  | G73: ='Tab-Ergebnis-ADP-GV'!C89 ->  | H73: =IF('Tab-Ergebnis-ADP-GV'!N89="M","Mehrweg",IF('Tab-Ergebnis-ADP-GV'!N89="E","Einweg","")) ->  | I73: =IF('Tab-Ergebnis-ADP-GV'!P89=FALSE,"nein",IF('Tab-Ergebnis-ADP-GV'!P89=TRUE,"ja","")) ->  | J73: =IF('Tab-Ergebnis-ADP-GV'!Q89=FALSE,"nein",IF('Tab-Ergebnis-ADP-GV'!Q89=TRUE,"ja","")) ->  | K73: ='Tab-Ergebnis-ADP-GV'!I89 ->  | L73: =IF(DSS!F84<>0,IF(H73="Mehrweg",DSS!F84,DSS!F84*DSS!$D$25),"") ->  | M73: =IF(Q73<>"",IF(Q73=DSS!F84,('Tab-Ergebnis-ADP-GV'!CM89*Q73*DSS!$D$25)-(((DSS!$D$25*Q73)-Q73)*'Tab-Ergebnis-ADP-GV'!CC89),'Tab-Ergebnis-ADP-GV'!CM89*Q73),"") ->  | N73: =IF(Q73<>"",IF(Q73=DSS!F84,('Tab-Ergebnis-ADP-GV'!CN89*Q73*DSS!$D$25)-(((DSS!$D$25*Q73)-Q73)*'Tab-Ergebnis-ADP-GV'!CD89),'Tab-Ergebnis-ADP-GV'!CN89*Q73),"") ->  | O73: =IF(Q73<>"",IF(Q73=DSS!F84,('Tab-Ergebnis-ADP-GV'!CL89*Q73*DSS!$D$25)-(((DSS!$D$25*Q73)-Q73)*'Tab-Ergebnis-ADP-GV'!CB89),'Tab-Ergebnis-ADP-GV'!CL89*Q73),"") ->  | P73: =COUNTIF($E$30:$E$49,E73) -> 20 | Q73: =IF(DSS!F84<>0,IF(AND(Haupttabelle!$CK$1="ja",H73="Mehrweg"),DSS!F84,DSS!F84*DSS!$D$25),"") -> 
E74: ='Tab-Ergebnis-ADP-GV'!E90 ->  | F74: ='Tab-Ergebnis-ADP-GV'!F90 ->  | G74: ='Tab-Ergebnis-ADP-GV'!C90 ->  | H74: =IF('Tab-Ergebnis-ADP-GV'!N90="M","Mehrweg",IF('Tab-Ergebnis-ADP-GV'!N90="E","Einweg","")) ->  | I74: =IF('Tab-Ergebnis-ADP-GV'!P90=FALSE,"nein",IF('Tab-Ergebnis-ADP-GV'!P90=TRUE,"ja","")) ->  | J74: =IF('Tab-Ergebnis-ADP-GV'!Q90=FALSE,"nein",IF('Tab-Ergebnis-ADP-GV'!Q90=TRUE,"ja","")) ->  | K74: ='Tab-Ergebnis-ADP-GV'!I90 ->  | L74: =IF(DSS!F85<>0,IF(H74="Mehrweg",DSS!F85,DSS!F85*DSS!$D$25),"") ->  | M74: =IF(Q74<>"",IF(Q74=DSS!F85,('Tab-Ergebnis-ADP-GV'!CM90*Q74*DSS!$D$25)-(((DSS!$D$25*Q74)-Q74)*'Tab-Ergebnis-ADP-GV'!CC90),'Tab-Ergebnis-ADP-GV'!CM90*Q74),"") ->  | N74: =IF(Q74<>"",IF(Q74=DSS!F85,('Tab-Ergebnis-ADP-GV'!CN90*Q74*DSS!$D$25)-(((DSS!$D$25*Q74)-Q74)*'Tab-Ergebnis-ADP-GV'!CD90),'Tab-Ergebnis-ADP-GV'!CN90*Q74),"") ->  | O74: =IF(Q74<>"",IF(Q74=DSS!F85,('Tab-Ergebnis-ADP-GV'!CL90*Q74*DSS!$D$25)-(((DSS!$D$25*Q74)-Q74)*'Tab-Ergebnis-ADP-GV'!CB90),'Tab-Ergebnis-ADP-GV'!CL90*Q74),"") ->  | P74: 20 | Q74: =IF(DSS!F85<>0,IF(AND(Haupttabelle!$CK$1="ja",H74="Mehrweg"),DSS!F85,DSS!F85*DSS!$D$25),"") -> 
E75: ='Tab-Ergebnis-ADP-GV'!E91 ->  | F75: ='Tab-Ergebnis-ADP-GV'!F91 ->  | G75: ='Tab-Ergebnis-ADP-GV'!C91 ->  | H75: =IF('Tab-Ergebnis-ADP-GV'!N91="M","Mehrweg",IF('Tab-Ergebnis-ADP-GV'!N91="E","Einweg","")) ->  | I75: =IF('Tab-Ergebnis-ADP-GV'!P91=FALSE,"nein",IF('Tab-Ergebnis-ADP-GV'!P91=TRUE,"ja","")) ->  | J75: =IF('Tab-Ergebnis-ADP-GV'!Q91=FALSE,"nein",IF('Tab-Ergebnis-ADP-GV'!Q91=TRUE,"ja","")) ->  | K75: ='Tab-Ergebnis-ADP-GV'!I91 ->  | L75: =IF(DSS!F86<>0,IF(H75="Mehrweg",DSS!F86,DSS!F86*DSS!$D$25),"") ->  | M75: =IF(Q75<>"",IF(Q75=DSS!F86,('Tab-Ergebnis-ADP-GV'!CM91*Q75*DSS!$D$25)-(((DSS!$D$25*Q75)-Q75)*'Tab-Ergebnis-ADP-GV'!CC91),'Tab-Ergebnis-ADP-GV'!CM91*Q75),"") ->  | N75: =IF(Q75<>"",IF(Q75=DSS!F86,('Tab-Ergebnis-ADP-GV'!CN91*Q75*DSS!$D$25)-(((DSS!$D$25*Q75)-Q75)*'Tab-Ergebnis-ADP-GV'!CD91),'Tab-Ergebnis-ADP-GV'!CN91*Q75),"") ->  | O75: =IF(Q75<>"",IF(Q75=DSS!F86,('Tab-Ergebnis-ADP-GV'!CL91*Q75*DSS!$D$25)-(((DSS!$D$25*Q75)-Q75)*'Tab-Ergebnis-ADP-GV'!CB91),'Tab-Ergebnis-ADP-GV'!CL91*Q75),"") ->  | P75: 20 | Q75: =IF(DSS!F86<>0,IF(AND(Haupttabelle!$CK$1="ja",H75="Mehrweg"),DSS!F86,DSS!F86*DSS!$D$25),"") -> 
E76: ='Tab-Ergebnis-ADP-GV'!E92 ->  | F76: ='Tab-Ergebnis-ADP-GV'!F92 ->  | G76: ='Tab-Ergebnis-ADP-GV'!C92 ->  | H76: =IF('Tab-Ergebnis-ADP-GV'!N92="M","Mehrweg",IF('Tab-Ergebnis-ADP-GV'!N92="E","Einweg","")) ->  | I76: =IF('Tab-Ergebnis-ADP-GV'!P92=FALSE,"nein",IF('Tab-Ergebnis-ADP-GV'!P92=TRUE,"ja","")) ->  | J76: =IF('Tab-Ergebnis-ADP-GV'!Q92=FALSE,"nein",IF('Tab-Ergebnis-ADP-GV'!Q92=TRUE,"ja","")) ->  | K76: ='Tab-Ergebnis-ADP-GV'!I92 ->  | L76: =IF(DSS!F87<>0,IF(H76="Mehrweg",DSS!F87,DSS!F87*DSS!$D$25),"") ->  | M76: =IF(Q76<>"",IF(Q76=DSS!F87,('Tab-Ergebnis-ADP-GV'!CM92*Q76*DSS!$D$25)-(((DSS!$D$25*Q76)-Q76)*'Tab-Ergebnis-ADP-GV'!CC92),'Tab-Ergebnis-ADP-GV'!CM92*Q76),"") ->  | N76: =IF(Q76<>"",IF(Q76=DSS!F87,('Tab-Ergebnis-ADP-GV'!CN92*Q76*DSS!$D$25)-(((DSS!$D$25*Q76)-Q76)*'Tab-Ergebnis-ADP-GV'!CD92),'Tab-Ergebnis-ADP-GV'!CN92*Q76),"") ->  | O76: =IF(Q76<>"",IF(Q76=DSS!F87,('Tab-Ergebnis-ADP-GV'!CL92*Q76*DSS!$D$25)-(((DSS!$D$25*Q76)-Q76)*'Tab-Ergebnis-ADP-GV'!CB92),'Tab-Ergebnis-ADP-GV'!CL92*Q76),"") ->  | P76: 20 | Q76: =IF(DSS!F87<>0,IF(AND(Haupttabelle!$CK$1="ja",H76="Mehrweg"),DSS!F87,DSS!F87*DSS!$D$25),"") -> 
E77: ='Tab-Ergebnis-ADP-GV'!E93 ->  | F77: ='Tab-Ergebnis-ADP-GV'!F93 ->  | G77: ='Tab-Ergebnis-ADP-GV'!C93 ->  | H77: =IF('Tab-Ergebnis-ADP-GV'!N93="M","Mehrweg",IF('Tab-Ergebnis-ADP-GV'!N93="E","Einweg","")) ->  | I77: =IF('Tab-Ergebnis-ADP-GV'!P93=FALSE,"nein",IF('Tab-Ergebnis-ADP-GV'!P93=TRUE,"ja","")) ->  | J77: =IF('Tab-Ergebnis-ADP-GV'!Q93=FALSE,"nein",IF('Tab-Ergebnis-ADP-GV'!Q93=TRUE,"ja","")) ->  | K77: ='Tab-Ergebnis-ADP-GV'!I93 ->  | L77: =IF(DSS!F88<>0,IF(H77="Mehrweg",DSS!F88,DSS!F88*DSS!$D$25),"") ->  | M77: =IF(Q77<>"",IF(Q77=DSS!F88,('Tab-Ergebnis-ADP-GV'!CM93*Q77*DSS!$D$25)-(((DSS!$D$25*Q77)-Q77)*'Tab-Ergebnis-ADP-GV'!CC93),'Tab-Ergebnis-ADP-GV'!CM93*Q77),"") ->  | N77: =IF(Q77<>"",IF(Q77=DSS!F88,('Tab-Ergebnis-ADP-GV'!CN93*Q77*DSS!$D$25)-(((DSS!$D$25*Q77)-Q77)*'Tab-Ergebnis-ADP-GV'!CD93),'Tab-Ergebnis-ADP-GV'!CN93*Q77),"") ->  | O77: =IF(Q77<>"",IF(Q77=DSS!F88,('Tab-Ergebnis-ADP-GV'!CL93*Q77*DSS!$D$25)-(((DSS!$D$25*Q77)-Q77)*'Tab-Ergebnis-ADP-GV'!CB93),'Tab-Ergebnis-ADP-GV'!CL93*Q77),"") ->  | P77: 20 | Q77: =IF(DSS!F88<>0,IF(AND(Haupttabelle!$CK$1="ja",H77="Mehrweg"),DSS!F88,DSS!F88*DSS!$D$25),"") -> 
E78: ='Tab-Ergebnis-ADP-GV'!E94 ->  | F78: ='Tab-Ergebnis-ADP-GV'!F94 ->  | G78: ='Tab-Ergebnis-ADP-GV'!C94 ->  | H78: =IF('Tab-Ergebnis-ADP-GV'!N94="M","Mehrweg",IF('Tab-Ergebnis-ADP-GV'!N94="E","Einweg","")) ->  | I78: =IF('Tab-Ergebnis-ADP-GV'!P94=FALSE,"nein",IF('Tab-Ergebnis-ADP-GV'!P94=TRUE,"ja","")) ->  | J78: =IF('Tab-Ergebnis-ADP-GV'!Q94=FALSE,"nein",IF('Tab-Ergebnis-ADP-GV'!Q94=TRUE,"ja","")) ->  | K78: ='Tab-Ergebnis-ADP-GV'!I94 ->  | L78: =IF(DSS!F89<>0,IF(H78="Mehrweg",DSS!F89,DSS!F89*DSS!$D$25),"") ->  | M78: =IF(Q78<>"",IF(Q78=DSS!F89,('Tab-Ergebnis-ADP-GV'!CM94*Q78*DSS!$D$25)-(((DSS!$D$25*Q78)-Q78)*'Tab-Ergebnis-ADP-GV'!CC94),'Tab-Ergebnis-ADP-GV'!CM94*Q78),"") ->  | N78: =IF(Q78<>"",IF(Q78=DSS!F89,('Tab-Ergebnis-ADP-GV'!CN94*Q78*DSS!$D$25)-(((DSS!$D$25*Q78)-Q78)*'Tab-Ergebnis-ADP-GV'!CD94),'Tab-Ergebnis-ADP-GV'!CN94*Q78),"") ->  | O78: =IF(Q78<>"",IF(Q78=DSS!F89,('Tab-Ergebnis-ADP-GV'!CL94*Q78*DSS!$D$25)-(((DSS!$D$25*Q78)-Q78)*'Tab-Ergebnis-ADP-GV'!CB94),'Tab-Ergebnis-ADP-GV'!CL94*Q78),"") ->  | P78: 20 | Q78: =IF(DSS!F89<>0,IF(AND(Haupttabelle!$CK$1="ja",H78="Mehrweg"),DSS!F89,DSS!F89*DSS!$D$25),"") -> 
E79: ='Tab-Ergebnis-ADP-GV'!E95 ->  | F79: ='Tab-Ergebnis-ADP-GV'!F95 ->  | G79: ='Tab-Ergebnis-ADP-GV'!C95 ->  | H79: =IF('Tab-Ergebnis-ADP-GV'!N95="M","Mehrweg",IF('Tab-Ergebnis-ADP-GV'!N95="E","Einweg","")) ->  | I79: =IF('Tab-Ergebnis-ADP-GV'!P95=FALSE,"nein",IF('Tab-Ergebnis-ADP-GV'!P95=TRUE,"ja","")) ->  | J79: =IF('Tab-Ergebnis-ADP-GV'!Q95=FALSE,"nein",IF('Tab-Ergebnis-ADP-GV'!Q95=TRUE,"ja","")) ->  | K79: ='Tab-Ergebnis-ADP-GV'!I95 ->  | L79: =IF(DSS!F90<>0,IF(H79="Mehrweg",DSS!F90,DSS!F90*DSS!$D$25),"") ->  | M79: =IF(Q79<>"",IF(Q79=DSS!F90,('Tab-Ergebnis-ADP-GV'!CM95*Q79*DSS!$D$25)-(((DSS!$D$25*Q79)-Q79)*'Tab-Ergebnis-ADP-GV'!CC95),'Tab-Ergebnis-ADP-GV'!CM95*Q79),"") ->  | N79: =IF(Q79<>"",IF(Q79=DSS!F90,('Tab-Ergebnis-ADP-GV'!CN95*Q79*DSS!$D$25)-(((DSS!$D$25*Q79)-Q79)*'Tab-Ergebnis-ADP-GV'!CD95),'Tab-Ergebnis-ADP-GV'!CN95*Q79),"") ->  | O79: =IF(Q79<>"",IF(Q79=DSS!F90,('Tab-Ergebnis-ADP-GV'!CL95*Q79*DSS!$D$25)-(((DSS!$D$25*Q79)-Q79)*'Tab-Ergebnis-ADP-GV'!CB95),'Tab-Ergebnis-ADP-GV'!CL95*Q79),"") ->  | P79: 20 | Q79: =IF(DSS!F90<>0,IF(AND(Haupttabelle!$CK$1="ja",H79="Mehrweg"),DSS!F90,DSS!F90*DSS!$D$25),"") -> 
E80: Summe | L80: =SUM(L72:L79) -> 0 | M80: =SUM(M72:M79) -> 0 | N80: =SUM(N72:N79) -> 0 | O80: =SUM(O72:O79) -> 0
M82: =SUM(M50,M68,M80) -> 0 | N82: =SUM(N50,N68,N80) -> 0 | O82: =SUM(O50,O68,O80) -> 0
C83: EINSPARPOTENZIALE
L85: Tab. 4: Einsparpotenziale durch Nutzung des ausgewählten Geschirrs*:
L86: Geschirrart | M86: Ressourcenverbrauch [ADP; kg Sb-Äq./Veranstaltung] | N86: Wassernutzung [WDP; m3/Veranstaltung] | O86: Klimawandel [GWP; kg CO2-Äq./Veranstaltung]
L87: Essen | M87: ='Tab-Ergebnis-ADP-GV'!CM323-M50 -> 0 | N87: ='Tab-Ergebnis-ADP-GV'!CN323-N50 -> 0 | O87: ='Tab-Ergebnis-ADP-GV'!CL323-O50 -> 0
L88: Getränke | M88: ='Tab-Ergebnis-ADP-GV'!CM324-M68 -> 0 | N88: ='Tab-Ergebnis-ADP-GV'!CN324-N68 -> 0 | O88: ='Tab-Ergebnis-ADP-GV'!CL324-O68 -> 0
L89: Sonstiges | M89: ='Tab-Ergebnis-ADP-GV'!CM325-M80 -> 0 | N89: ='Tab-Ergebnis-ADP-GV'!CN325-N80 -> 0 | O89: ='Tab-Ergebnis-ADP-GV'!CL325-O80 -> 0
L90: GESAMT | M90: =SUM(M87:M89) -> 0 | N90: =SUM(N87:N89) -> 0 | O90: =SUM(O87:O89) -> 0
L91: *Das Einsparpotenzial wird angegeben als Emissionswert der eingespart werden kann, wenn das Geschirr mit den minimalsten Umweltwirkungen gewählt wird im Vergleich zur Geschirrvariante mit den schlechtesten Umweltwirkungen (immer unter Berücksichtigung der ausgewählten Anforderungen an das Geschirr, sofern hierfür Optionen verfügbar sind).
C102: GRAPHISCHE DARSTELLUNG DER ERGEBNISSE FÜR VERSCHIEDENE WIRKUNGSKATEGORIEN
C139: EINWEG VS. MEHRWEG
C140: (Vergleich der Emissionen des ausgewählten Geschirrs; siehe hierzu Tabellen Geschirrbedarf, -spezifikationen und Emissionen gesamt) | J140: Tab. 5: Vergleich der Emissionen des ausgewählten Einweg- und Mehrweggeschirrs:
J141: Einweg / Mehrweg | K141: Geschirrart | L141: Menge [Anzahl Essen oder Geschirrnutzungen] | M141: Ressourcenverbrauch [ADP; kg Sb-Äq./Veranstaltung] | N141: Wassernutzung [WDP; m3/Veranstaltung] | O141: Klimawandel [GWP; kg CO2-Äq./Veranstaltung]
J142: Einweg | K142: Essen | L142: =SUMIF($H$30:$H$49,"Einweg",L30:L49) -> 0 | M142: =SUMIF($H$30:$H$49,"Einweg",M30:M49) -> 0 | N142: =SUMIF($H$30:$H$49,"Einweg",N30:N49) -> 0 | O142: =SUMIF($H$30:$H$49,"Einweg",O30:O49) -> 0
K143: Getränke | L143: =SUMIF($H$54:$H$67,"Einweg",L54:L67) -> 0 | M143: =SUMIF($H$54:$H$67,"Einweg",M54:M67) -> 0 | N143: =SUMIF($H$54:$H$67,"Einweg",N54:N67) -> 0 | O143: =SUMIF($H$54:$H$67,"Einweg",O54:O67) -> 0
K144: Sonstiges | L144: =SUMIF($H$72:$H$79,"Einweg",L72:L79) -> 0 | M144: =SUMIF($H$72:$H$79,"Einweg",M72:M79) -> 0 | N144: =SUMIF($H$72:$H$79,"Einweg",N72:N79) -> 0 | O144: =SUMIF($H$72:$H$79,"Einweg",O72:O79) -> 0
K145: GESAMT | L145: =SUM(L142:L144) -> 0 | M145: =SUM(M142:M144) -> 0 | N145: =SUM(N142:N144) -> 0 | O145: =SUM(O142:O144) -> 0
J146: Mehrweg | K146: Essen | L146: =SUMIF($H$30:$H$49,"Mehrweg",L30:L49)*I17 -> 0 | M146: =SUMIF($H$30:$H$49,"Mehrweg",M30:M49) -> 0 | N146: =SUMIF($H$30:$H$49,"Mehrweg",N30:N49) -> 0 | O146: =SUMIF($H$30:$H$49,"Mehrweg",O30:O49) -> 0
K147: Getränke | L147: =SUMIF($H$54:$H$67,"Mehrweg",L54:L67)*I17 -> 0 | M147: =SUMIF($H$54:$H$67,"Mehrweg",M54:M67) -> 0 | N147: =SUMIF($H$54:$H$67,"Mehrweg",N54:N67) -> 0 | O147: =SUMIF($H$54:$H$67,"Mehrweg",O54:O67) -> 0
K148: Sonstiges | L148: =SUMIF($H$72:$H$79,"Mehrweg",L72:L79)*I17 -> 0 | M148: =SUMIF($H$72:$H$79,"Mehrweg",M72:M79) -> 0 | N148: =SUMIF($H$72:$H$79,"Mehrweg",N72:N79) -> 0 | O148: =SUMIF($H$72:$H$79,"Mehrweg",O72:O79) -> 0
K149: GESAMT | L149: =SUM(L146:L148) -> 0 | M149: =SUM(M146:M148) -> 0 | N149: =SUM(N146:N148) -> 0 | O149: =SUM(O146:O148) -> 0
J150: GESAMT | L150: =L145+L149 -> 0 | M150: =M145+M149 -> 0 | N150: =N145+N149 -> 0 | O150: =O145+O149 -> 0
C163: EMISSIONEN NACH WIRKUNGSKATEGORIEN FÜR VERSCHIEDENE PHASEN DES LEBENSZYKLUS
N169: Die Grafiken stellen die Emissionen nach Wirkungskategorien für verschiedene Phasen des Lebenszyklus (Herstellung/Nutzung, Spülen, Transport sowie Entsorgung/ Verwertung) dar. In Summe ergeben die Werte der einzelnen Wirkungskategorien die Gesamtwerte aus Tab. 5. Ggf. negative Werte für den Bereich Entsorgung/Verwertung ergeben sich aus Gutschriften, die durch Strom- und Wärmeproduktion bei der energetischen Verwertung generiert werden.
C192: ABFALL & LITTERING
B195: ■ | C195: ="Der Anfall von Abfall durch die Nutzung von Einweggeschirr beträgt " & TEXT(ROUND('Tab-Ergebnis-ADP-GV'!EP96,0),"#.##0") &" kg für die gesamte Veranstaltung." -> 
B196: ■ | C196: =IF('Tab-Ergebnis-ADP-GV'!EP186>0,"Durch die Nutzung von Mehrweggeschirr können "&TEXT(ROUND('Tab-Ergebnis-ADP-GV'!EP186,0),"#.##0")&" kg Abfall auf der Veranstaltung eingespart werden.","Da kein Mehrweggeschirr ausgewählt wurde, kann auf der Veranstaltung kein Abfall eingespart werden.") -> Da kein Mehrweggeschirr ausgewählt wurde, kann auf der Veranstaltung kein Abfall eingespart werden.
B197: ■ | C197: =IF('Tab-Ergebnis-ADP-GV'!EP186>0,"Für die Berechnung wurde die ökologisch beste Einwegvariante, sofern verfügbar, als Alternative für ausgewähltes Mehrweggeschirr gewählt.","Für die Berechnung wurde die ökologisch beste Einwegvariante gewählt.") -> Für die Berechnung wurde die ökologisch beste Einwegvariante gewählt.
B198: ■ | C198: =IF('Tab-Ergebnis-ADP-GV'!DK186>0,"Die Emissionen durch eine alternative Nutzung von Einweggeschirr würden sich belaufen auf:","Die Emissionen, die durch die Nutzung von Einweggeschirr entstehen, sind in Tab. 5 dargestellt.") -> Die Emissionen, die durch die Nutzung von Einweggeschirr entstehen, sind in Tab. 5 dargestellt.
C199: =IF('Tab-Ergebnis-ADP-GV'!DK186>0,"GWP: " & TEXT(ROUND('Tab-Ergebnis-ADP-GV'!DK186,0),"#.##0") & " kg CO₂-Äq.; ADP: " & ROUND('Tab-Ergebnis-ADP-GV'!DL186,4) & " kg Sb-Äq.; WDP: " & TEXT(ROUND('Tab-Ergebnis-ADP-GV'!DM186,1),"#.##0") & " m³","") -> 
B200: ■ | C200: =IF('Tab-Ergebnis-ADP-GV'!EP186>0,"Dies entspricht einer Erhöhung/Verringerung der Emissionen im Vergleich zum ausgewählten Geschirr (siehe Gesamtergebnisse in Tab. 5) von " & ROUND('Tab-Ergebnis-ADP-GV'!DK188,2)*100 & "% für GWP, " & ROUND('Tab-Ergebnis-ADP-GV'!DL188,2)*100 & "% für ADP sowie " & ROUND('Tab-Ergebnis-ADP-GV'!DM188,2)*100 & "% für WDP.","Da ausschließlich Einweggeschirr ausgewählt wurde, kommt es zu keiner Veränderung der Emissionen im Vergleich (siehe Gesamtergebnisse in Tab. 5).") -> Da ausschließlich Einweggeschirr ausgewählt wurde, kommt es zu keiner Veränderung der Emissionen im Vergleich (siehe Gesamtergebnisse in Tab. 5).
B201: ■ | C201: =IF('Tab-Ergebnis-ADP-GV'!EP186>0,IF('Tab-Ergebnis-ADP-GV'!ER186="","Dabei wurde für alle Mehrwegoptionen eine Einwegalternative berücksichtigt.","Hierbei ist zu beachten, dass nicht für alle Mehrweggeschirroptionen eine Einwegalternative gefunden werden konnte und die Ergebnisse von Emissionen und Abfallmenge entsprechend zu deuten sind. Hierzu zählt/zählen: "&'Tab-Ergebnis-ADP-GV'!ER186),"Da im System ausschließlich Einweggeschirr ausgewählt wurde, ergeben sich keine Änderungen bei den Emissionen und der Abfallmenge.") -> Da im System ausschließlich Einweggeschirr ausgewählt wurde, ergeben sich keine Änderungen bei den Emissionen und der Abfallmenge.
C204: SZENARIO: ALTERNATIVE SPÜLOPTION
B207: ■ | C207: =IF(Haupttabelle!$CK$1="ja","Wäre entgegen Ihrer Auswahl keine Spüloption vor Ort vorhanden, so würden sich die Emissionen (ADP) um " & (ROUND(M235/M234*100,0))-100 & " % erhöhen auf " & ROUND(M235,4) & " kg Sb-Äq./Veranstaltung.","Wäre es entgegen Ihrer Auswahl doch möglich, eine Spüloption vor Ort zu ermöglichen, so würden sich die Emissionen (ADP) um " & 100-ROUND(M235/M234*100,0) & " % veringern auf " & ROUND(M235,4) & " kg Sb-Äq./Veranstaltung.") -> 
C208: (hierbei ist zu beachten, dass für die alternative Spüloption die Auswahl des Geschirrs unverändert bleibt, um vergleichbare Ergebnisse zu erzielen. Eine Änderung der Entfernung zum Spülen führt ggf. auch zu einer neuen Zusammenstellung von optimalem Geschirr. Um die tatsächlichen Emissionen bei alternativer Spüloption zu berechnen, gehen Sie zurück zur Eingabe im Sheet 'DSS' und ändern Sie das Auswahlfeld "Wie groß ist die Transportentfernung zum Spülen von Mehrwegeschirr?"
C224: SZENARIO: ALTERNATIVE TRANSPORTENTFERNUNGEN ZUM SPÜLEN
C225: (Änderung der Transportentfernung zum Spülen, um die Auswirkungen von Transporten im Zusammenhang mit der Geschirrnutzung aufzuzeigen)
B227: ■ | C227: Bei der Beurteilung unterschiedlicher Transportentfernungen ist zu beachten, dass für die Szenarien die Auswahl des Geschirrs unverändert bleibt, um vergleichbare Ergebnisse zu erzielen.
C228: (Eine Änderung der Entfernung zum Spülen (Auswahlfeld im DSS "Wie groß ist die Transportentfernung zum Spülen von Mehrweggeschirr") führt ggf. auch zu einer neuen Zusammenstellung von optimalem Geschirr.)
B229: ■ | C229: Für das Transportszenario 2 können Sie die Entfernung dynamisch anpassen. Wählen Sie dazu im folgenden Auswahlfeld die entsprechende Entfernung (einfache Distanz) aus.
F231: Transportentfernung in Transportszenario 2 (Bitte geben Sie die einfache Distanz zum Spülort an): | G231: 90 | H231: km
I232: Tab. 6: Vergleich der Gesamtemissionen des ausgewählten Einweg- und Mehrweggeschirrs in abhängig unterschiedlicher Transportentfernungen zum Spülen:
I233: Szenarien | J233: Distanz Anlieferung Einweggeschirr [km] | K233: Distanz Anlieferung Mehrweggeschirr* [km] | L233: Transportentfernung zum Spülen [km Hin- und Rückweg] | M233: Ressourcenverbrauch [ADP; kg Sb-Äq./Veranstaltung] | N233: Wassernutzung [WDP; m3/Veranstaltung] | O233: Klimawandel [GWP; kg CO2-Äq./Veranstaltung] | P233: Ver-änder-ung [%]
I234: ="Auswahl DSS " & IF(Haupttabelle!CK1="ja"," Entfernung zum Spülen: 0 km"," Entfernung zum Spülen: " & DSS!E107 & " km") -> Auswahl DSS Entfernung zum Spülen: 0 km | J234: =Haupttabelle!BZ4 -> 0 | K234: =IF(Haupttabelle!CK1="ja",J234,L234/2) -> 0 | L234: =IF(Haupttabelle!CK1="ja",0,'variable_Daten '!D103) -> 0 | M234: ='Tab-Ergebnis-ADP-GV'!DO102+'Tab-Ergebnis-ADP-GV'!DR102+'Tab-Ergebnis-ADP-GV'!DU102+'Tab-Ergebnis-ADP-GV'!DX102 -> 0 | N234: ='Tab-Ergebnis-ADP-GV'!DP102+'Tab-Ergebnis-ADP-GV'!DS102+'Tab-Ergebnis-ADP-GV'!DV102+'Tab-Ergebnis-ADP-GV'!DY102 -> 0 | O234: ='Tab-Ergebnis-ADP-GV'!DN102+'Tab-Ergebnis-ADP-GV'!DQ102+'Tab-Ergebnis-ADP-GV'!DT102+'Tab-Ergebnis-ADP-GV'!DW102 -> 0 | P234: 0
I235: ='Tab-Ergebnis-ADP-GV'!EE4 -> Transportszenario 1: Entfernung zum Spülen 60 km | J235: =Haupttabelle!BZ4 -> 0 | K235: =IF(Haupttabelle!CT4="ja",J235,L235/2) -> 60 | L235: =IF(L234=0,Haupttabelle!CF4,0) -> 120 | M235: ='Tab-Ergebnis-ADP-GV'!DO102+'Tab-Ergebnis-ADP-GV'!DR102+'Tab-Ergebnis-ADP-GV'!EF102+'Tab-Ergebnis-ADP-GV'!DX102 -> 0 | N235: ='Tab-Ergebnis-ADP-GV'!DP102+'Tab-Ergebnis-ADP-GV'!DS102+'Tab-Ergebnis-ADP-GV'!EG102+'Tab-Ergebnis-ADP-GV'!DY102 -> 0 | O235: ='Tab-Ergebnis-ADP-GV'!DN102+'Tab-Ergebnis-ADP-GV'!DQ102+'Tab-Ergebnis-ADP-GV'!EE102+'Tab-Ergebnis-ADP-GV'!DW102 -> 0 | P235: =O235/O234-1 -> 
I236: ='Tab-Ergebnis-ADP-GV'!EK4 -> Transportszenario 2: Entfernung zum Spülen 100 km | J236: =Haupttabelle!BZ4 -> 0 | K236: =G231 -> 90 | L236: =G231*2 -> 180 | M236: ='Tab-Ergebnis-ADP-GV'!DO102+'Tab-Ergebnis-ADP-GV'!DR102+'Tab-Ergebnis-ADP-GV'!EL102+'Tab-Ergebnis-ADP-GV'!DX102 -> 0 | N236: ='Tab-Ergebnis-ADP-GV'!DP102+'Tab-Ergebnis-ADP-GV'!DS102+'Tab-Ergebnis-ADP-GV'!EM102+'Tab-Ergebnis-ADP-GV'!DY102 -> 0 | O236: ='Tab-Ergebnis-ADP-GV'!DN102+'Tab-Ergebnis-ADP-GV'!DQ102+'Tab-Ergebnis-ADP-GV'!EK102+'Tab-Ergebnis-ADP-GV'!DW102 -> 0 | P236: =O236/O234-1 -> 
I237: ="* Zu beachten: Für Mehrweggeschirr wird angenommen, dass der Geschirrverleiher zugleich die Spüldienstleistung erbringt." & " Erfolgt die Reinigung des Mehrweggeschirrs nicht vor Ort, wird die einfache Entfernung zum Spülort als Anlieferungsdistanz berücksichtigt." & " Für die Anlieferung des Einweggeschirrs gilt die im DSS angegebene Anlieferungsdistanz von "&Haupttabelle!BZ4&" km." -> * Zu beachten: Für Mehrweggeschirr wird angenommen, dass der Geschirrverleiher zugleich die Spüldienstleistung erbringt. Erfolgt die Reinigung des Mehrweggeschirrs nicht vor Ort, wird die einfache Entfernung zum Spülort als Anlieferungsdistanz berücksichtigt. Für die Anlieferung des Einweggeschirrs gilt die im DSS angegebene Anlieferungsdistanz von 0 km.
I238: ="Sollte das Mehrweggeschirr jedoch von unterschiedlichen Anbietern bereitgestellt und gespült werden (nicht vor Ort), so würden aus der zusätzlichen Anlieferung über eine Entfernung von " & Haupttabelle!BZ4 & " km die folgenden Emissionen hierfür ebenfalls berücksichtigt werden müssen: " -> Sollte das Mehrweggeschirr jedoch von unterschiedlichen Anbietern bereitgestellt und gespült werden (nicht vor Ort), so würden aus der zusätzlichen Anlieferung über eine Entfernung von 0 km die folgenden Emissionen hierfür ebenfalls berücksichtigt werden müssen:
I239: ="GWP: " & ROUND('Tab-Ergebnis-ADP-GV'!G471,0) & " kg CO₂-Äq.; ADP: " & ROUND('Tab-Ergebnis-ADP-GV'!H471,5) & " kg Sb-Äq.; WDP: " & ROUND('Tab-Ergebnis-ADP-GV'!I471,1) & " m³" -> GWP: 0 kg CO₂-Äq.; ADP: 0 kg Sb-Äq.; WDP: 0 m³
B249: HINWEISE ZUR BERECHNUNG UND AUSWAHL SOWIE EINORDNUNG DER ERGEBNISSE
B251: ■ | C251: Sollte auf Basis der ausgewählten Anforderungen (z.B. "kein Einweg") bzw. Ihrer Kombination kein Geschirr in der Datenbank vorhanden sein, so wird die ökologisch vorteilhafteste Alternative gewählt auf Basis der Nutzungsspezifikation (z.B. "Tellergericht, groß"). Die ausgewählten Anforderungen werden dann nicht mehr berücksichtigt.
B252: ■ | C252: Für die Entsorgung des Geschirrs nach Nutzung bzw. am Ende des Lebenszyklus wird die Verwertung in einem Müllheizkraftwerk bilanziert. Das gilt sowohl für Einweg- als auch Mehrweggeschirr. Gutschriften für die Produktion von Strom und Wärme im Rahmen der energetischen Verwertung sind berücksichtigt.
B253: ■ | C253: Da die Anforderung "Branding des Geschirrs" ausgewählt wurde (Branding bei Tournee- und Eventbechern wie z.B. ein Festivallogo, Künstlerbranding oder individuelles Sportbranding), fließt dies in die Berechnung ein, allerdings ausschließlich für Trinkgefäße. Ein entsprechendes Branding hat Einfluss auf die Rücklaufquote von Bechern und damit auf die anzusetzende Umlaufzahl im Rahmen des Lebenszyklus der Becher. Ein genauer Wert für die Verringerung der Rücklaufquote durch Branding ist schwer abzuschätzen, diese ist abhängig von z.B. Exklusivität oder Popularität einer Veranstaltung. So ist bspw. die Rücklaufquote bei wiederkehrenden Sportereignissen wie der Fussball-Bundesliga höher als bei Einzelereignissen wie Konzerten. Für die Berechnung wird ein mittlerer Wert angenommen, dies ist bei der Interpretation der Ergebnisse zu berücksichtigen.
C254: =IF('variable_Daten '!B6=1,"In diesem Fall (einmalige Veranstaltung und Kauf von Geschirr) spielt das Branding für die Berechnung der Umweltwirkungen keine Rolle.","Für die Berechnung wird mit einer Rücklaufquote von "&ROUND(((1-(1/'variable_Daten '!H4))*100),0)&" % ("&'variable_Daten '!H4&" Umläufe) im Durchschnitt gerechnet.") -> Für die Berechnung wird mit einer Rücklaufquote von 67 % (3 Umläufe) im Durchschnitt gerechnet.
B255: ■ | C255: =IF(Haupttabelle!BZ4>0,"Für die Anlieferung von Einweggeschirr zur Veranstaltung wird eine Transportentfernung von " & Haupttabelle!BZ4 & " km bilanziert.","Eine Anlieferung von Einweggeschirr zur Veranstaltung erfolgt nicht.") -> Eine Anlieferung von Einweggeschirr zur Veranstaltung erfolgt nicht.
B256: ■ | C256: =IF(DSS!E107>0,"Da vor Ort keine Möglichkeit zum Spülen besteht, wird die einfache Entfernung zum Spülort sowohl für die Anlieferung als auch für den Rücktransport einbezogen. Es wird eine Transportentfernung zum Spülen des Mehrweggeschirrs von "&Haupttabelle!CF4&" km (Hin- und Rückweg) bei der Berechnung berücksichtigt.",IF(DSS!E103>0,"Da vor Ort eine Spüloption vorhanden ist, wird für das Mehrweggeschirr eine Anlieferungsentfernung von "&Haupttabelle!BZ4&" km berücksichtigt, ebenso für den Rücktransport. Es wird angenommen, dass der gesamte Tagesbedarf an Mehrweggeschirr angeliefert wird.","Eine Anlieferung von Mehrweggeschirr zur Veranstaltung erfolgt nicht.")) -> Eine Anlieferung von Mehrweggeschirr zur Veranstaltung erfolgt nicht.
B257: ■ | C257: Die Praxis zeigt, dass grundsätzlich davon ausgegangen werden kann, dass zu jedem Essen auch eine Serviette gereicht wird. In diesem Fall wurden weniger Servietten in die Eingabemaske des DSS eingetragen, als hinsichtlich der Gesamtmenge an Essen nötig. Ggf. müssten weitere Servietten berücksichtigt/eingeplant werden. Dies wäre mit zusätzlichen Emissionen für die Veranstaltung verbunden und ist bei der Beurteilung/Bewertung der Ergebnisse zu berücksichtigen.
C258: ="Anzahl zusätzlicher Servietten: " &TEXT('Tab-Ergebnis-ADP-GV'!G435,"#.##0") & " Stück; Bezeichnung: " & 'Tab-Ergebnis-ADP-GV'!B438 & "; zusätzliche Emissionen: GWP: " & TEXT(ROUND('Tab-Ergebnis-ADP-GV'!G440,0),"#.##0") & " kg CO₂-Äq./Veranstaltung; ADP: " & ROUND('Tab-Ergebnis-ADP-GV'!H440,5) & " kg Sb-Äq./Veranstaltung; WDP: " & TEXT(ROUND('Tab-Ergebnis-ADP-GV'!I440,0),"#.##0") & " m³/Veranstaltung." -> Anzahl zusätzlicher Servietten: 0 Stück; Bezeichnung: Serviette ungebleicht dünn; groß; Zellstoff; Einweg; 1,7g; zusätzliche Emissionen: GWP: 0 kg CO₂-Äq./Veranstaltung; ADP: 0 kg Sb-Äq./Veranstaltung; WDP: 0 m³/Veranstaltung.
B259: ■ | C259: ="Obwohl die Anforderung 'kein Einweg' ausgewählt wurde, ist eine Einwegserviette in die Bilanz einbezogen worden. Würde stattdessen eine Mehrwegserviette berücksichtigt, so wäre dies mit zusätzlichen Emissionen in Höhe von " & TEXT(ROUND('Tab-Ergebnis-ADP-GV'!G455,0),"#.##0") & " kg CO₂-Äq./Veranstaltung; ADP: " & ROUND('Tab-Ergebnis-ADP-GV'!H455,5) & " kg Sb-Äq./Veranstaltung; WDP: " & TEXT(ROUND('Tab-Ergebnis-ADP-GV'!I455,0),"#.##0") & " m³/Veranstaltung für eine " & 'Tab-Ergebnis-ADP-GV'!B445 & " verbunden (Ersatz ausgewählter Servietten plus ggf. zusätzliche Servietten). Dies sollte bei der Beurteilung/Bewertung der Ergebnisse berücksichtigt werden. " -> 
B260: ■ | C260: ="Vergleich: Der Ressourcenverbrauch in Höhe von " & ROUND(I12,4) & " kg Sb-Äq./Veranstaltung entspricht den Ressourcen, die für die Herstellung von " & ROUND(I12/(Datensätze_Sonstige!V21),) & " Fahrrädern benötigt werden." -> Vergleich: Der Ressourcenverbrauch in Höhe von 0 kg Sb-Äq./Veranstaltung entspricht den Ressourcen, die für die Herstellung von 0 Fahrrädern benötigt werden.
B261: ■ | C261: =IF('Tab-Ergebnis-ADP-GV'!DL421< 'Ergebnis-ADP-GV'!M234,"Entsprechend Ihrer Eingaben (ohne Berücksichtigung Ihrer spezifischen zusätzlichen Anforderungen an das Geschirr wie z.B. 'kein Plastik') ergibt sich eine ökologisch beste Geschirrauswahl, die mit Emissionen in Höhe von " & ROUND('Tab-Ergebnis-ADP-GV'!DL421,4) & " kg Sb-Äq./Veranstaltung verbunden ist. In dem Sie auf die von Ihnen gewählten zusätzlichen Anforderungen an das Geschirr (Material, Branding) verzichten, könnten weitere " & ROUND(M234-'Tab-Ergebnis-ADP-GV'!DL421,4) & " kg Sb-Äq./Veranstaltung eingespart werden. Dies entspricht einer Reduzierung um " & 100-ROUND('Tab-Ergebnis-ADP-GV'!DL421/M234*100,0) & " % (Basis für die Berechnung sind die in der Datenbank hinterlegten Geschirrarten und -typen).","Trotz der von Ihnen ggf. ausgewählten zusätzlichen Anforderungen an das Geschirr (z.B. 'kein Plastik') entspricht das Ergebnis der ökologisch besten Geschirrauswahl (Basis für die Berechnung sind die in der Datenbank hinterlegten Geschirrarten und -typen)") -> Trotz der von Ihnen ggf. ausgewählten zusätzlichen Anforderungen an das Geschirr (z.B. 'kein Plastik') entspricht das Ergebnis der ökologisch besten Geschirrauswahl (Basis für die Berechnung sind die in der Datenbank hinterlegten Geschirrarten und -typen)
B262: ■ | C262: =IF(AND(DSS!D31=Dropdownmenue!B8,DSS!D34=Dropdownmenue!B14),"Auf Basis ihrer Eingaben wird empfohlen, dass Sie für die Veranstaltung Geschirr leihen!",IF(AND(DSS!D31=Dropdownmenue!B8,DSS!D34=Dropdownmenue!B12),"Sie sollten eine Leihoption in Betracht ziehen. Dadurch könnten die Umweltwirkungen erheblich gesenkt werden",IF(AND(DSS!D31=Dropdownmenue!B8,DSS!D34=Dropdownmenue!B13),"Die Leihoption für Geschirr ist bei einmaligen Veranstaltungen die richtige Wahl!","Bei regelmäßigen/wiederkehrenden Veranstaltungen sind die Optionen 'kaufen' und 'leihen' gleichwertig bzw. die jeweilige Wahl hat keine Auswirkungen auf die Umweltwirkungen."))) -> Bei regelmäßigen/wiederkehrenden Veranstaltungen sind die Optionen 'kaufen' und 'leihen' gleichwertig bzw. die jeweilige Wahl hat keine Auswirkungen auf die Umweltwirkungen.
B263: ■ | C263: Bei der Verwendung bzw. Nutzung von Geschirr, insb. Mehrweggeschirr, sind die entsprechenden geltenden Hygienevorschriften zu beachten. Weitere Informationen hierzu sowie verschiedene Leitfäden und Studien für eine nachhaltige Veranstaltung finden Sie unter:
C264: https://www.iekrw.de/zocat-studien-leitfaeden/
B266: ZU BEACHTEN
C268: Die Ergebnisse dienen als Orientierung bei der Auswahl von nachhaltigem Geschirr. Dieses Tool erhebt keinen Anspruch auf Vollständigkeit! Dies ist u.a. darin begründet, dass verschiedene Geschirroptionen zur Berechnung in die Datenbank eingepflegt wurden, ggf. aber nicht alle am Markt zur Verfügung stehenden Geschirroptionen zur Auswahl berücksichtigt worden sind.
B270: KONTAKTDATEN
B272: Institut für Energie und Kreislaufwirtschaft an der Hochschule Bremen GmbH
B273: Neustadtswall 30
B274: 28199 Bremen
B275: https://www.iekrw.de
B277: Ansprechpartner:
B278: Prof. Dr. Martin Wittmaier
B279: +49 421 5905-2326
B280: zocat@iekrw.de
B281: https://www.iekrw.de/zocat/
B284: FÖRDERUNG
E286: Das Entscheidungstool wurde entwickelt im Rahmen des Projektes "Entwicklung und Erprobung eines indikatorgestützten Online-Entscheidungssystems zur Auswahl von nachhaltigem Geschirr für Großveranstaltungen" (zoCat - zukunftsorientiertes Catering). Das Vorhaben wird fachlich und finanziell unterstützt durch die Deutsche Bundesstiftung Umwelt (DBU), Osnabrück

Sheet Ergebnis-GWP-GV (hidden)
D6: DECISION SUPPORT SYSTEM (DSS)
B9: ENTSCHEIDUNGSTOOL ZUR AUSWAHL VON NACHHALTIGEM GESCHIRR
E12: Der CO2-Fußabdruck, des unter Berücksichtung der Anforderungen ausgewählten Geschirrs, beträgt für die gesamte Veranstaltung: | I12: =O150 -> 0 | J12: kg CO2-Äq. | K12: …weitere Informationen!
F14: Der Ressourcenverbrauch (ADP) beträgt für die gesamte Veranstaltung: | I14: =ROUND(M150,4) -> 0 | J14: kg Sb-Äq.
F15: Die Wassernutzung (WDP) beträgt für die gesamte Veranstaltung: | I15: =ROUND(N150,0) -> 0 | J15: m³
H17: Dauer der Veranstaltung in Tagen: | I17: =DSS!D25 -> 0
H18: Besucher:innen gesamt: | I18: =DSS!D28*I17 -> 0
H19: Anzahl Geschirr gesamt: | I19: ='Tab-Ergebnis-GWP-GV'!EO96 -> 0
H20: Portionen Essen pro Besucher:in: | I20: ='Tab-Ergebnis-GWP-GV'!ER73/I18 -> 
H21: Getränke pro Besucher:in: | I21: ='Tab-Ergebnis-GWP-GV'!ER87/I18 -> 
H22: Spüloption vor Ort: | I22: =IF(DSS!E107<>0,"nein","ja") -> ja
H23: Anlieferung Geschirr: | I23: =IF(DSS!E103<>0,"ja","nein") -> nein
H24: =IF(I22="nein","Transportentfernung zum Spülen von Mehrweg (nur Hinweg) in km:",IF(AND(I22="ja",I23="nein"),"",IF(AND(I22="ja",I23="ja"),"Transportentfernung zur Anlieferung von Geschirr in km:",""))) ->  | I24: =IF(I22="nein",DSS!E107,IF(AND(I22="ja",I23="nein"),"",IF(AND(I22="ja",I23="ja"),DSS!E103,""))) -> 
H25: Wirkungskategorie, nach der ausgewertet wird: | I25: Klimawandel
C27: TABELLARISCHE ERGEBNISSE - VORSCHLAG FÜR IHRE GESCHIRRAUSWAHL
E28: Tab. 1: Geschirrbedarf, -spezifikationen und Emissionen gesamt (Essen): | M28: Ressourcenverbrauch [ADP; kg Sb-Äq./Veranstaltung] | N28: Wassernutzung [WDP; m³/Veranstaltung] | O28: Klimawandel [GWP; kg CO₂-Äq./Veranstaltung]
E29: Auswahl DSS | F29: Produkt / Geschirrmodell (Vorschlag des DSS) | G29: Alternative ("A"; sofern keine Option hinsichtlich der Auswahlkriterien verfügbar) | H29: Einweg / Mehrweg | I29: Essbar? | J29: Biologisch abbaubar? | K29: Material | L29: Menge [Anzahl Geschirr] | M29: Ressourcenverbrauch [ADP; kg Sb-Äq./Veranstaltung] | N29: Wassernutzung [WDP; m3/Veranstaltung] | O29: Klimawandel [GWP; kg CO2-Äq./Veranstaltung] | P29: Doppelte Werte | Q29: Menge relevant für die Berechnung [Anzahl Geschirr]
E30: ='Tab-Ergebnis-GWP-GV'!E54 ->  | F30: ='Tab-Ergebnis-GWP-GV'!F54 ->  | G30: ='Tab-Ergebnis-GWP-GV'!C54 ->  | H30: =IF('Tab-Ergebnis-GWP-GV'!N54="M","Mehrweg",IF('Tab-Ergebnis-GWP-GV'!N54="E","Einweg","")) ->  | I30: =IF('Tab-Ergebnis-GWP-GV'!P54=FALSE,"nein",IF('Tab-Ergebnis-GWP-GV'!P54=TRUE,"ja","")) ->  | J30: =IF('Tab-Ergebnis-GWP-GV'!Q54=FALSE,"nein",IF('Tab-Ergebnis-GWP-GV'!Q54=TRUE,"ja","")) ->  | K30: ='Tab-Ergebnis-GWP-GV'!I54 ->  | L30: =IF(DSS!F40<>0,IF(H30="Mehrweg",DSS!F40,DSS!F40*DSS!$D$25),"") ->  | M30: =IF(Q30<>"",IF(Q30=DSS!F40,('Tab-Ergebnis-GWP-GV'!CM54*Q30*DSS!$D$25)-(((DSS!$D$25*Q30)-Q30)*'Tab-Ergebnis-GWP-GV'!CC54),'Tab-Ergebnis-GWP-GV'!CM54*Q30),"") ->  | N30: =IF(Q30<>"",IF(Q30=DSS!F40,('Tab-Ergebnis-GWP-GV'!CN54*Q30*DSS!$D$25)-(((DSS!$D$25*Q30)-Q30)*'Tab-Ergebnis-GWP-GV'!CD54),'Tab-Ergebnis-GWP-GV'!CN54*Q30),"") ->  | O30: =IF(Q30<>"",IF(Q30=DSS!F40,('Tab-Ergebnis-GWP-GV'!CL54*Q30*DSS!$D$25)-(((DSS!$D$25*Q30)-Q30)*'Tab-Ergebnis-GWP-GV'!CB54),'Tab-Ergebnis-GWP-GV'!CL54*Q30),"") ->  | P30: =COUNTIF($E$30:$E$49,E30) -> 20 | Q30: =IF(DSS!F40<>0,IF(AND(Haupttabelle!$CK$1="ja",H30="Mehrweg"),DSS!F40,DSS!F40*DSS!$D$25),"") -> 
E31: ='Tab-Ergebnis-GWP-GV'!E55 ->  | F31: ='Tab-Ergebnis-GWP-GV'!F55 ->  | G31: ='Tab-Ergebnis-GWP-GV'!C55 ->  | H31: =IF('Tab-Ergebnis-GWP-GV'!N55="M","Mehrweg",IF('Tab-Ergebnis-GWP-GV'!N55="E","Einweg","")) ->  | I31: =IF('Tab-Ergebnis-GWP-GV'!P55=FALSE,"nein",IF('Tab-Ergebnis-GWP-GV'!P55=TRUE,"ja","")) ->  | J31: =IF('Tab-Ergebnis-GWP-GV'!Q55=FALSE,"nein",IF('Tab-Ergebnis-GWP-GV'!Q55=TRUE,"ja","")) ->  | K31: ='Tab-Ergebnis-GWP-GV'!I55 ->  | L31: =IF(DSS!F41<>0,IF(H31="Mehrweg",DSS!F41,DSS!F41*DSS!$D$25),"") ->  | M31: =IF(Q31<>"",IF(Q31=DSS!F41,('Tab-Ergebnis-GWP-GV'!CM55*Q31*DSS!$D$25)-(((DSS!$D$25*Q31)-Q31)*'Tab-Ergebnis-GWP-GV'!CC55),'Tab-Ergebnis-GWP-GV'!CM55*Q31),"") ->  | N31: =IF(Q31<>"",IF(Q31=DSS!F41,('Tab-Ergebnis-GWP-GV'!CN55*Q31*DSS!$D$25)-(((DSS!$D$25*Q31)-Q31)*'Tab-Ergebnis-GWP-GV'!CD55),'Tab-Ergebnis-GWP-GV'!CN55*Q31),"") ->  | O31: =IF(Q31<>"",IF(Q31=DSS!F41,('Tab-Ergebnis-GWP-GV'!CL55*Q31*DSS!$D$25)-(((DSS!$D$25*Q31)-Q31)*'Tab-Ergebnis-GWP-GV'!CB55),'Tab-Ergebnis-GWP-GV'!CL55*Q31),"") ->  | P31: =COUNTIF($E$30:$E$49,E31) -> 20 | Q31: =IF(DSS!F41<>0,IF(AND(Haupttabelle!$CK$1="ja",H31="Mehrweg"),DSS!F41,DSS!F41*DSS!$D$25),"") -> 
E32: ='Tab-Ergebnis-GWP-GV'!E56 ->  | F32: ='Tab-Ergebnis-GWP-GV'!F56 ->  | G32: ='Tab-Ergebnis-GWP-GV'!C56 ->  | H32: =IF('Tab-Ergebnis-GWP-GV'!N56="M","Mehrweg",IF('Tab-Ergebnis-GWP-GV'!N56="E","Einweg","")) ->  | I32: =IF('Tab-Ergebnis-GWP-GV'!P56=FALSE,"nein",IF('Tab-Ergebnis-GWP-GV'!P56=TRUE,"ja","")) ->  | J32: =IF('Tab-Ergebnis-GWP-GV'!Q56=FALSE,"nein",IF('Tab-Ergebnis-GWP-GV'!Q56=TRUE,"ja","")) ->  | K32: ='Tab-Ergebnis-GWP-GV'!I56 ->  | L32: =IF(DSS!F42<>0,IF(H32="Mehrweg",DSS!F42,DSS!F42*DSS!$D$25),"") ->  | M32: =IF(Q32<>"",IF(Q32=DSS!F42,('Tab-Ergebnis-GWP-GV'!CM56*Q32*DSS!$D$25)-(((DSS!$D$25*Q32)-Q32)*'Tab-Ergebnis-GWP-GV'!CC56),'Tab-Ergebnis-GWP-GV'!CM56*Q32),"") ->  | N32: =IF(Q32<>"",IF(Q32=DSS!F42,('Tab-Ergebnis-GWP-GV'!CN56*Q32*DSS!$D$25)-(((DSS!$D$25*Q32)-Q32)*'Tab-Ergebnis-GWP-GV'!CD56),'Tab-Ergebnis-GWP-GV'!CN56*Q32),"") ->  | O32: =IF(Q32<>"",IF(Q32=DSS!F42,('Tab-Ergebnis-GWP-GV'!CL56*Q32*DSS!$D$25)-(((DSS!$D$25*Q32)-Q32)*'Tab-Ergebnis-GWP-GV'!CB56),'Tab-Ergebnis-GWP-GV'!CL56*Q32),"") ->  | P32: 20 | Q32: =IF(DSS!F42<>0,IF(AND(Haupttabelle!$CK$1="ja",H32="Mehrweg"),DSS!F42,DSS!F42*DSS!$D$25),"") -> 
E33: ='Tab-Ergebnis-GWP-GV'!E57 ->  | F33: ='Tab-Ergebnis-GWP-GV'!F57 ->  | G33: ='Tab-Ergebnis-GWP-GV'!C57 ->  | H33: =IF('Tab-Ergebnis-GWP-GV'!N57="M","Mehrweg",IF('Tab-Ergebnis-GWP-GV'!N57="E","Einweg","")) ->  | I33: =IF('Tab-Ergebnis-GWP-GV'!P57=FALSE,"nein",IF('Tab-Ergebnis-GWP-GV'!P57=TRUE,"ja","")) ->  | J33: =IF('Tab-Ergebnis-GWP-GV'!Q57=FALSE,"nein",IF('Tab-Ergebnis-GWP-GV'!Q57=TRUE,"ja","")) ->  | K33: ='Tab-Ergebnis-GWP-GV'!I57 ->  | L33: =IF(DSS!F43<>0,IF(H33="Mehrweg",DSS!F43,DSS!F43*DSS!$D$25),"") ->  | M33: =IF(Q33<>"",IF(Q33=DSS!F43,('Tab-Ergebnis-GWP-GV'!CM57*Q33*DSS!$D$25)-(((DSS!$D$25*Q33)-Q33)*'Tab-Ergebnis-GWP-GV'!CC57),'Tab-Ergebnis-GWP-GV'!CM57*Q33),"") ->  | N33: =IF(Q33<>"",IF(Q33=DSS!F43,('Tab-Ergebnis-GWP-GV'!CN57*Q33*DSS!$D$25)-(((DSS!$D$25*Q33)-Q33)*'Tab-Ergebnis-GWP-GV'!CD57),'Tab-Ergebnis-GWP-GV'!CN57*Q33),"") ->  | O33: =IF(Q33<>"",IF(Q33=DSS!F43,('Tab-Ergebnis-GWP-GV'!CL57*Q33*DSS!$D$25)-(((DSS!$D$25*Q33)-Q33)*'Tab-Ergebnis-GWP-GV'!CB57),'Tab-Ergebnis-GWP-GV'!CL57*Q33),"") ->  | P33: 20 | Q33: =IF(DSS!F43<>0,IF(AND(Haupttabelle!$CK$1="ja",H33="Mehrweg"),DSS!F43,DSS!F43*DSS!$D$25),"") -> 
E34: ='Tab-Ergebnis-GWP-GV'!E58 ->  | F34: ='Tab-Ergebnis-GWP-GV'!F58 ->  | G34: ='Tab-Ergebnis-GWP-GV'!C58 ->  | H34: =IF('Tab-Ergebnis-GWP-GV'!N58="M","Mehrweg",IF('Tab-Ergebnis-GWP-GV'!N58="E","Einweg","")) ->  | I34: =IF('Tab-Ergebnis-GWP-GV'!P58=FALSE,"nein",IF('Tab-Ergebnis-GWP-GV'!P58=TRUE,"ja","")) ->  | J34: =IF('Tab-Ergebnis-GWP-GV'!Q58=FALSE,"nein",IF('Tab-Ergebnis-GWP-GV'!Q58=TRUE,"ja","")) ->  | K34: ='Tab-Ergebnis-GWP-GV'!I58 ->  | L34: =IF(DSS!F44<>0,IF(H34="Mehrweg",DSS!F44,DSS!F44*DSS!$D$25),"") ->  | M34: =IF(Q34<>"",IF(Q34=DSS!F44,('Tab-Ergebnis-GWP-GV'!CM58*Q34*DSS!$D$25)-(((DSS!$D$25*Q34)-Q34)*'Tab-Ergebnis-GWP-GV'!CC58),'Tab-Ergebnis-GWP-GV'!CM58*Q34),"") ->  | N34: =IF(Q34<>"",IF(Q34=DSS!F44,('Tab-Ergebnis-GWP-GV'!CN58*Q34*DSS!$D$25)-(((DSS!$D$25*Q34)-Q34)*'Tab-Ergebnis-GWP-GV'!CD58),'Tab-Ergebnis-GWP-GV'!CN58*Q34),"") ->  | O34: =IF(Q34<>"",IF(Q34=DSS!F44,('Tab-Ergebnis-GWP-GV'!CL58*Q34*DSS!$D$25)-(((DSS!$D$25*Q34)-Q34)*'Tab-Ergebnis-GWP-GV'!CB58),'Tab-Ergebnis-GWP-GV'!CL58*Q34),"") ->  | P34: 20 | Q34: =IF(DSS!F44<>0,IF(AND(Haupttabelle!$CK$1="ja",H34="Mehrweg"),DSS!F44,DSS!F44*DSS!$D$25),"") -> 
E35: ='Tab-Ergebnis-GWP-GV'!E59 ->  | F35: ='Tab-Ergebnis-GWP-GV'!F59 ->  | G35: ='Tab-Ergebnis-GWP-GV'!C59 ->  | H35: =IF('Tab-Ergebnis-GWP-GV'!N59="M","Mehrweg",IF('Tab-Ergebnis-GWP-GV'!N59="E","Einweg","")) ->  | I35: =IF('Tab-Ergebnis-GWP-GV'!P59=FALSE,"nein",IF('Tab-Ergebnis-GWP-GV'!P59=TRUE,"ja","")) ->  | J35: =IF('Tab-Ergebnis-GWP-GV'!Q59=FALSE,"nein",IF('Tab-Ergebnis-GWP-GV'!Q59=TRUE,"ja","")) ->  | K35: ='Tab-Ergebnis-GWP-GV'!I59 ->  | L35: =IF(DSS!F45<>0,IF(H35="Mehrweg",DSS!F45,DSS!F45*DSS!$D$25),"") ->  | M35: =IF(Q35<>"",IF(Q35=DSS!F45,('Tab-Ergebnis-GWP-GV'!CM59*Q35*DSS!$D$25)-(((DSS!$D$25*Q35)-Q35)*'Tab-Ergebnis-GWP-GV'!CC59),'Tab-Ergebnis-GWP-GV'!CM59*Q35),"") ->  | N35: =IF(Q35<>"",IF(Q35=DSS!F45,('Tab-Ergebnis-GWP-GV'!CN59*Q35*DSS!$D$25)-(((DSS!$D$25*Q35)-Q35)*'Tab-Ergebnis-GWP-GV'!CD59),'Tab-Ergebnis-GWP-GV'!CN59*Q35),"") ->  | O35: =IF(Q35<>"",IF(Q35=DSS!F45,('Tab-Ergebnis-GWP-GV'!CL59*Q35*DSS!$D$25)-(((DSS!$D$25*Q35)-Q35)*'Tab-Ergebnis-GWP-GV'!CB59),'Tab-Ergebnis-GWP-GV'!CL59*Q35),"") ->  | P35: 20 | Q35: =IF(DSS!F45<>0,IF(AND(Haupttabelle!$CK$1="ja",H35="Mehrweg"),DSS!F45,DSS!F45*DSS!$D$25),"") -> 
E36: ='Tab-Ergebnis-GWP-GV'!E60 ->  | F36: ='Tab-Ergebnis-GWP-GV'!F60 ->  | G36: ='Tab-Ergebnis-GWP-GV'!C60 ->  | H36: =IF('Tab-Ergebnis-GWP-GV'!N60="M","Mehrweg",IF('Tab-Ergebnis-GWP-GV'!N60="E","Einweg","")) ->  | I36: =IF('Tab-Ergebnis-GWP-GV'!P60=FALSE,"nein",IF('Tab-Ergebnis-GWP-GV'!P60=TRUE,"ja","")) ->  | J36: =IF('Tab-Ergebnis-GWP-GV'!Q60=FALSE,"nein",IF('Tab-Ergebnis-GWP-GV'!Q60=TRUE,"ja","")) ->  | K36: ='Tab-Ergebnis-GWP-GV'!I60 ->  | L36: =IF(DSS!F46<>0,IF(H36="Mehrweg",DSS!F46,DSS!F46*DSS!$D$25),"") ->  | M36: =IF(Q36<>"",IF(Q36=DSS!F46,('Tab-Ergebnis-GWP-GV'!CM60*Q36*DSS!$D$25)-(((DSS!$D$25*Q36)-Q36)*'Tab-Ergebnis-GWP-GV'!CC60),'Tab-Ergebnis-GWP-GV'!CM60*Q36),"") ->  | N36: =IF(Q36<>"",IF(Q36=DSS!F46,('Tab-Ergebnis-GWP-GV'!CN60*Q36*DSS!$D$25)-(((DSS!$D$25*Q36)-Q36)*'Tab-Ergebnis-GWP-GV'!CD60),'Tab-Ergebnis-GWP-GV'!CN60*Q36),"") ->  | O36: =IF(Q36<>"",IF(Q36=DSS!F46,('Tab-Ergebnis-GWP-GV'!CL60*Q36*DSS!$D$25)-(((DSS!$D$25*Q36)-Q36)*'Tab-Ergebnis-GWP-GV'!CB60),'Tab-Ergebnis-GWP-GV'!CL60*Q36),"") ->  | P36: 20 | Q36: =IF(DSS!F46<>0,IF(AND(Haupttabelle!$CK$1="ja",H36="Mehrweg"),DSS!F46,DSS!F46*DSS!$D$25),"") -> 
E37: ='Tab-Ergebnis-GWP-GV'!E61 ->  | F37: ='Tab-Ergebnis-GWP-GV'!F61 ->  | G37: ='Tab-Ergebnis-GWP-GV'!C61 ->  | H37: =IF('Tab-Ergebnis-GWP-GV'!N61="M","Mehrweg",IF('Tab-Ergebnis-GWP-GV'!N61="E","Einweg","")) ->  | I37: =IF('Tab-Ergebnis-GWP-GV'!P61=FALSE,"nein",IF('Tab-Ergebnis-GWP-GV'!P61=TRUE,"ja","")) ->  | J37: =IF('Tab-Ergebnis-GWP-GV'!Q61=FALSE,"nein",IF('Tab-Ergebnis-GWP-GV'!Q61=TRUE,"ja","")) ->  | K37: ='Tab-Ergebnis-GWP-GV'!I61 ->  | L37: =IF(DSS!F47<>0,IF(H37="Mehrweg",DSS!F47,DSS!F47*DSS!$D$25),"") ->  | M37: =IF(Q37<>"",IF(Q37=DSS!F47,('Tab-Ergebnis-GWP-GV'!CM61*Q37*DSS!$D$25)-(((DSS!$D$25*Q37)-Q37)*'Tab-Ergebnis-GWP-GV'!CC61),'Tab-Ergebnis-GWP-GV'!CM61*Q37),"") ->  | N37: =IF(Q37<>"",IF(Q37=DSS!F47,('Tab-Ergebnis-GWP-GV'!CN61*Q37*DSS!$D$25)-(((DSS!$D$25*Q37)-Q37)*'Tab-Ergebnis-GWP-GV'!CD61),'Tab-Ergebnis-GWP-GV'!CN61*Q37),"") ->  | O37: =IF(Q37<>"",IF(Q37=DSS!F47,('Tab-Ergebnis-GWP-GV'!CL61*Q37*DSS!$D$25)-(((DSS!$D$25*Q37)-Q37)*'Tab-Ergebnis-GWP-GV'!CB61),'Tab-Ergebnis-GWP-GV'!CL61*Q37),"") ->  | P37: 20 | Q37: =IF(DSS!F47<>0,IF(AND(Haupttabelle!$CK$1="ja",H37="Mehrweg"),DSS!F47,DSS!F47*DSS!$D$25),"") -> 
E38: ='Tab-Ergebnis-GWP-GV'!E62 ->  | F38: ='Tab-Ergebnis-GWP-GV'!F62 ->  | G38: ='Tab-Ergebnis-GWP-GV'!C62 ->  | H38: =IF('Tab-Ergebnis-GWP-GV'!N62="M","Mehrweg",IF('Tab-Ergebnis-GWP-GV'!N62="E","Einweg","")) ->  | I38: =IF('Tab-Ergebnis-GWP-GV'!P62=FALSE,"nein",IF('Tab-Ergebnis-GWP-GV'!P62=TRUE,"ja","")) ->  | J38: =IF('Tab-Ergebnis-GWP-GV'!Q62=FALSE,"nein",IF('Tab-Ergebnis-GWP-GV'!Q62=TRUE,"ja","")) ->  | K38: ='Tab-Ergebnis-GWP-GV'!I62 ->  | L38: =IF(DSS!F48<>0,IF(H38="Mehrweg",DSS!F48,DSS!F48*DSS!$D$25),"") ->  | M38: =IF(Q38<>"",IF(Q38=DSS!F48,('Tab-Ergebnis-GWP-GV'!CM62*Q38*DSS!$D$25)-(((DSS!$D$25*Q38)-Q38)*'Tab-Ergebnis-GWP-GV'!CC62),'Tab-Ergebnis-GWP-GV'!CM62*Q38),"") ->  | N38: =IF(Q38<>"",IF(Q38=DSS!F48,('Tab-Ergebnis-GWP-GV'!CN62*Q38*DSS!$D$25)-(((DSS!$D$25*Q38)-Q38)*'Tab-Ergebnis-GWP-GV'!CD62),'Tab-Ergebnis-GWP-GV'!CN62*Q38),"") ->  | O38: =IF(Q38<>"",IF(Q38=DSS!F48,('Tab-Ergebnis-GWP-GV'!CL62*Q38*DSS!$D$25)-(((DSS!$D$25*Q38)-Q38)*'Tab-Ergebnis-GWP-GV'!CB62),'Tab-Ergebnis-GWP-GV'!CL62*Q38),"") ->  | P38: 20 | Q38: =IF(DSS!F48<>0,IF(AND(Haupttabelle!$CK$1="ja",H38="Mehrweg"),DSS!F48,DSS!F48*DSS!$D$25),"") -> 
E39: ='Tab-Ergebnis-GWP-GV'!E63 ->  | F39: ='Tab-Ergebnis-GWP-GV'!F63 ->  | G39: ='Tab-Ergebnis-GWP-GV'!C63 ->  | H39: =IF('Tab-Ergebnis-GWP-GV'!N63="M","Mehrweg",IF('Tab-Ergebnis-GWP-GV'!N63="E","Einweg","")) ->  | I39: =IF('Tab-Ergebnis-GWP-GV'!P63=FALSE,"nein",IF('Tab-Ergebnis-GWP-GV'!P63=TRUE,"ja","")) ->  | J39: =IF('Tab-Ergebnis-GWP-GV'!Q63=FALSE,"nein",IF('Tab-Ergebnis-GWP-GV'!Q63=TRUE,"ja","")) ->  | K39: ='Tab-Ergebnis-GWP-GV'!I63 ->  | L39: =IF(DSS!F49<>0,IF(H39="Mehrweg",DSS!F49,DSS!F49*DSS!$D$25),"") ->  | M39: =IF(Q39<>"",IF(Q39=DSS!F49,('Tab-Ergebnis-GWP-GV'!CM63*Q39*DSS!$D$25)-(((DSS!$D$25*Q39)-Q39)*'Tab-Ergebnis-GWP-GV'!CC63),'Tab-Ergebnis-GWP-GV'!CM63*Q39),"") ->  | N39: =IF(Q39<>"",IF(Q39=DSS!F49,('Tab-Ergebnis-GWP-GV'!CN63*Q39*DSS!$D$25)-(((DSS!$D$25*Q39)-Q39)*'Tab-Ergebnis-GWP-GV'!CD63),'Tab-Ergebnis-GWP-GV'!CN63*Q39),"") ->  | O39: =IF(Q39<>"",IF(Q39=DSS!F49,('Tab-Ergebnis-GWP-GV'!CL63*Q39*DSS!$D$25)-(((DSS!$D$25*Q39)-Q39)*'Tab-Ergebnis-GWP-GV'!CB63),'Tab-Ergebnis-GWP-GV'!CL63*Q39),"") ->  | P39: =COUNTIF($E$30:$E$49,E39) -> 20 | Q39: =IF(DSS!F49<>0,IF(AND(Haupttabelle!$CK$1="ja",H39="Mehrweg"),DSS!F49,DSS!F49*DSS!$D$25),"") -> 
E40: ='Tab-Ergebnis-GWP-GV'!E64 ->  | F40: ='Tab-Ergebnis-GWP-GV'!F64 ->  | G40: ='Tab-Ergebnis-GWP-GV'!C64 ->  | H40: =IF('Tab-Ergebnis-GWP-GV'!N64="M","Mehrweg",IF('Tab-Ergebnis-GWP-GV'!N64="E","Einweg","")) ->  | I40: =IF('Tab-Ergebnis-GWP-GV'!P64=FALSE,"nein",IF('Tab-Ergebnis-GWP-GV'!P64=TRUE,"ja","")) ->  | J40: =IF('Tab-Ergebnis-GWP-GV'!Q64=FALSE,"nein",IF('Tab-Ergebnis-GWP-GV'!Q64=TRUE,"ja","")) ->  | K40: ='Tab-Ergebnis-GWP-GV'!I64 ->  | L40: =IF(DSS!F50<>0,IF(H40="Mehrweg",DSS!F50,DSS!F50*DSS!$D$25),"") ->  | M40: =IF(Q40<>"",IF(Q40=DSS!F50,('Tab-Ergebnis-GWP-GV'!CM64*Q40*DSS!$D$25)-(((DSS!$D$25*Q40)-Q40)*'Tab-Ergebnis-GWP-GV'!CC64),'Tab-Ergebnis-GWP-GV'!CM64*Q40),"") ->  | N40: =IF(Q40<>"",IF(Q40=DSS!F50,('Tab-Ergebnis-GWP-GV'!CN64*Q40*DSS!$D$25)-(((DSS!$D$25*Q40)-Q40)*'Tab-Ergebnis-GWP-GV'!CD64),'Tab-Ergebnis-GWP-GV'!CN64*Q40),"") ->  | O40: =IF(Q40<>"",IF(Q40=DSS!F50,('Tab-Ergebnis-GWP-GV'!CL64*Q40*DSS!$D$25)-(((DSS!$D$25*Q40)-Q40)*'Tab-Ergebnis-GWP-GV'!CB64),'Tab-Ergebnis-GWP-GV'!CL64*Q40),"") ->  | P40: 20 | Q40: =IF(DSS!F50<>0,IF(AND(Haupttabelle!$CK$1="ja",H40="Mehrweg"),DSS!F50,DSS!F50*DSS!$D$25),"") -> 
E41: ='Tab-Ergebnis-GWP-GV'!E65 ->  | F41: ='Tab-Ergebnis-GWP-GV'!F65 ->  | G41: ='Tab-Ergebnis-GWP-GV'!C65 ->  | H41: =IF('Tab-Ergebnis-GWP-GV'!N65="M","Mehrweg",IF('Tab-Ergebnis-GWP-GV'!N65="E","Einweg","")) ->  | I41: =IF('Tab-Ergebnis-GWP-GV'!P65=FALSE,"nein",IF('Tab-Ergebnis-GWP-GV'!P65=TRUE,"ja","")) ->  | J41: =IF('Tab-Ergebnis-GWP-GV'!Q65=FALSE,"nein",IF('Tab-Ergebnis-GWP-GV'!Q65=TRUE,"ja","")) ->  | K41: ='Tab-Ergebnis-GWP-GV'!I65 ->  | L41: =IF(DSS!F52<>0,IF(H41="Mehrweg",DSS!F52,DSS!F52*DSS!$D$25),"") ->  | M41: =IF(Q41<>"",IF(Q41=DSS!F52,('Tab-Ergebnis-GWP-GV'!CM65*Q41*DSS!$D$25)-(((DSS!$D$25*Q41)-Q41)*'Tab-Ergebnis-GWP-GV'!CC65),'Tab-Ergebnis-GWP-GV'!CM65*Q41),"") ->  | N41: =IF(Q41<>"",IF(Q41=DSS!F52,('Tab-Ergebnis-GWP-GV'!CN65*Q41*DSS!$D$25)-(((DSS!$D$25*Q41)-Q41)*'Tab-Ergebnis-GWP-GV'!CD65),'Tab-Ergebnis-GWP-GV'!CN65*Q41),"") ->  | O41: =IF(Q41<>"",IF(Q41=DSS!F52,('Tab-Ergebnis-GWP-GV'!CL65*Q41*DSS!$D$25)-(((DSS!$D$25*Q41)-Q41)*'Tab-Ergebnis-GWP-GV'!CB65),'Tab-Ergebnis-GWP-GV'!CL65*Q41),"") ->  | P41: 20 | Q41: =IF(DSS!F52<>0,IF(AND(Haupttabelle!$CK$1="ja",H41="Mehrweg"),DSS!F52,DSS!F52*DSS!$D$25),"") -> 
E42: ='Tab-Ergebnis-GWP-GV'!E66 ->  | F42: ='Tab-Ergebnis-GWP-GV'!F66 ->  | G42: ='Tab-Ergebnis-GWP-GV'!C66 ->  | H42: =IF('Tab-Ergebnis-GWP-GV'!N66="M","Mehrweg",IF('Tab-Ergebnis-GWP-GV'!N66="E","Einweg","")) ->  | I42: =IF('Tab-Ergebnis-GWP-GV'!P66=FALSE,"nein",IF('Tab-Ergebnis-GWP-GV'!P66=TRUE,"ja","")) ->  | J42: =IF('Tab-Ergebnis-GWP-GV'!Q66=FALSE,"nein",IF('Tab-Ergebnis-GWP-GV'!Q66=TRUE,"ja","")) ->  | K42: ='Tab-Ergebnis-GWP-GV'!I66 ->  | L42: =IF(DSS!F53<>0,IF(H42="Mehrweg",DSS!F53,DSS!F53*DSS!$D$25),"") ->  | M42: =IF(Q42<>"",IF(Q42=DSS!F53,('Tab-Ergebnis-GWP-GV'!CM66*Q42*DSS!$D$25)-(((DSS!$D$25*Q42)-Q42)*'Tab-Ergebnis-GWP-GV'!CC66),'Tab-Ergebnis-GWP-GV'!CM66*Q42),"") ->  | N42: =IF(Q42<>"",IF(Q42=DSS!F53,('Tab-Ergebnis-GWP-GV'!CN66*Q42*DSS!$D$25)-(((DSS!$D$25*Q42)-Q42)*'Tab-Ergebnis-GWP-GV'!CD66),'Tab-Ergebnis-GWP-GV'!CN66*Q42),"") ->  | O42: =IF(Q42<>"",IF(Q42=DSS!F53,('Tab-Ergebnis-GWP-GV'!CL66*Q42*DSS!$D$25)-(((DSS!$D$25*Q42)-Q42)*'Tab-Ergebnis-GWP-GV'!CB66),'Tab-Ergebnis-GWP-GV'!CL66*Q42),"") ->  | P42: 20 | Q42: =IF(DSS!F53<>0,IF(AND(Haupttabelle!$CK$1="ja",H42="Mehrweg"),DSS!F53,DSS!F53*DSS!$D$25),"") -> 
E43: ='Tab-Ergebnis-GWP-GV'!E67 ->  | F43: ='Tab-Ergebnis-GWP-GV'!F67 ->  | G43: ='Tab-Ergebnis-GWP-GV'!C67 ->  | H43: =IF('Tab-Ergebnis-GWP-GV'!N67="M","Mehrweg",IF('Tab-Ergebnis-GWP-GV'!N67="E","Einweg","")) ->  | I43: =IF('Tab-Ergebnis-GWP-GV'!P67=FALSE,"nein",IF('Tab-Ergebnis-GWP-GV'!P67=TRUE,"ja","")) ->  | J43: =IF('Tab-Ergebnis-GWP-GV'!Q67=FALSE,"nein",IF('Tab-Ergebnis-GWP-GV'!Q67=TRUE,"ja","")) ->  | K43: ='Tab-Ergebnis-GWP-GV'!I67 ->  | L43: =IF(DSS!F54<>0,IF(H43="Mehrweg",DSS!F54,DSS!F54*DSS!$D$25),"") ->  | M43: =IF(Q43<>"",IF(Q43=DSS!F54,('Tab-Ergebnis-GWP-GV'!CM67*Q43*DSS!$D$25)-(((DSS!$D$25*Q43)-Q43)*'Tab-Ergebnis-GWP-GV'!CC67),'Tab-Ergebnis-GWP-GV'!CM67*Q43),"") ->  | N43: =IF(Q43<>"",IF(Q43=DSS!F54,('Tab-Ergebnis-GWP-GV'!CN67*Q43*DSS!$D$25)-(((DSS!$D$25*Q43)-Q43)*'Tab-Ergebnis-GWP-GV'!CD67),'Tab-Ergebnis-GWP-GV'!CN67*Q43),"") ->  | O43: =IF(Q43<>"",IF(Q43=DSS!F54,('Tab-Ergebnis-GWP-GV'!CL67*Q43*DSS!$D$25)-(((DSS!$D$25*Q43)-Q43)*'Tab-Ergebnis-GWP-GV'!CB67),'Tab-Ergebnis-GWP-GV'!CL67*Q43),"") ->  | P43: 20 | Q43: =IF(DSS!F54<>0,IF(AND(Haupttabelle!$CK$1="ja",H43="Mehrweg"),DSS!F54,DSS!F54*DSS!$D$25),"") -> 
E44: ='Tab-Ergebnis-GWP-GV'!E68 ->  | F44: ='Tab-Ergebnis-GWP-GV'!F68 ->  | G44: ='Tab-Ergebnis-GWP-GV'!C68 ->  | H44: =IF('Tab-Ergebnis-GWP-GV'!N68="M","Mehrweg",IF('Tab-Ergebnis-GWP-GV'!N68="E","Einweg","")) ->  | I44: =IF('Tab-Ergebnis-GWP-GV'!P68=FALSE,"nein",IF('Tab-Ergebnis-GWP-GV'!P68=TRUE,"ja","")) ->  | J44: =IF('Tab-Ergebnis-GWP-GV'!Q68=FALSE,"nein",IF('Tab-Ergebnis-GWP-GV'!Q68=TRUE,"ja","")) ->  | K44: ='Tab-Ergebnis-GWP-GV'!I68 ->  | L44: =IF(DSS!F55<>0,IF(H44="Mehrweg",DSS!F55,DSS!F55*DSS!$D$25),"") ->  | M44: =IF(Q44<>"",IF(Q44=DSS!F55,('Tab-Ergebnis-GWP-GV'!CM68*Q44*DSS!$D$25)-(((DSS!$D$25*Q44)-Q44)*'Tab-Ergebnis-GWP-GV'!CC68),'Tab-Ergebnis-GWP-GV'!CM68*Q44),"") ->  | N44: =IF(Q44<>"",IF(Q44=DSS!F55,('Tab-Ergebnis-GWP-GV'!CN68*Q44*DSS!$D$25)-(((DSS!$D$25*Q44)-Q44)*'Tab-Ergebnis-GWP-GV'!CD68),'Tab-Ergebnis-GWP-GV'!CN68*Q44),"") ->  | O44: =IF(Q44<>"",IF(Q44=DSS!F55,('Tab-Ergebnis-GWP-GV'!CL68*Q44*DSS!$D$25)-(((DSS!$D$25*Q44)-Q44)*'Tab-Ergebnis-GWP-GV'!CB68),'Tab-Ergebnis-GWP-GV'!CL68*Q44),"") ->  | P44: 20 | Q44: =IF(DSS!F55<>0,IF(AND(Haupttabelle!$CK$1="ja",H44="Mehrweg"),DSS!F55,DSS!F55*DSS!$D$25),"") -> 
E45: ='Tab-Ergebnis-GWP-GV'!E69 ->  | F45: ='Tab-Ergebnis-GWP-GV'!F69 ->  | G45: ='Tab-Ergebnis-GWP-GV'!C69 ->  | H45: =IF('Tab-Ergebnis-GWP-GV'!N69="M","Mehrweg",IF('Tab-Ergebnis-GWP-GV'!N69="E","Einweg","")) ->  | I45: =IF('Tab-Ergebnis-GWP-GV'!P69=FALSE,"nein",IF('Tab-Ergebnis-GWP-GV'!P69=TRUE,"ja","")) ->  | J45: =IF('Tab-Ergebnis-GWP-GV'!Q69=FALSE,"nein",IF('Tab-Ergebnis-GWP-GV'!Q69=TRUE,"ja","")) ->  | K45: ='Tab-Ergebnis-GWP-GV'!I69 ->  | L45: =IF(DSS!F56<>0,IF(H45="Mehrweg",DSS!F56,DSS!F56*DSS!$D$25),"") ->  | M45: =IF(Q45<>"",IF(Q45=DSS!F56,('Tab-Ergebnis-GWP-GV'!CM69*Q45*DSS!$D$25)-(((DSS!$D$25*Q45)-Q45)*'Tab-Ergebnis-GWP-GV'!CC69),'Tab-Ergebnis-GWP-GV'!CM69*Q45),"") ->  | N45: =IF(Q45<>"",IF(Q45=DSS!F56,('Tab-Ergebnis-GWP-GV'!CN69*Q45*DSS!$D$25)-(((DSS!$D$25*Q45)-Q45)*'Tab-Ergebnis-GWP-GV'!CD69),'Tab-Ergebnis-GWP-GV'!CN69*Q45),"") ->  | O45: =IF(Q45<>"",IF(Q45=DSS!F56,('Tab-Ergebnis-GWP-GV'!CL69*Q45*DSS!$D$25)-(((DSS!$D$25*Q45)-Q45)*'Tab-Ergebnis-GWP-GV'!CB69),'Tab-Ergebnis-GWP-GV'!CL69*Q45),"") ->  | P45: 20 | Q45: =IF(DSS!F56<>0,IF(AND(Haupttabelle!$CK$1="ja",H45="Mehrweg"),DSS!F56,DSS!F56*DSS!$D$25),"") -> 
E46: ='Tab-Ergebnis-GWP-GV'!E70 ->  | F46: ='Tab-Ergebnis-GWP-GV'!F70 ->  | G46: ='Tab-Ergebnis-GWP-GV'!C70 ->  | H46: =IF('Tab-Ergebnis-GWP-GV'!N70="M","Mehrweg",IF('Tab-Ergebnis-GWP-GV'!N70="E","Einweg","")) ->  | I46: =IF('Tab-Ergebnis-GWP-GV'!P70=FALSE,"nein",IF('Tab-Ergebnis-GWP-GV'!P70=TRUE,"ja","")) ->  | J46: =IF('Tab-Ergebnis-GWP-GV'!Q70=FALSE,"nein",IF('Tab-Ergebnis-GWP-GV'!Q70=TRUE,"ja","")) ->  | K46: ='Tab-Ergebnis-GWP-GV'!I70 ->  | L46: =IF(DSS!F57<>0,IF(H46="Mehrweg",DSS!F57,DSS!F57*DSS!$D$25),"") ->  | M46: =IF(Q46<>"",IF(Q46=DSS!F57,('Tab-Ergebnis-GWP-GV'!CM70*Q46*DSS!$D$25)-(((DSS!$D$25*Q46)-Q46)*'Tab-Ergebnis-GWP-GV'!CC70),'Tab-Ergebnis-GWP-GV'!CM70*Q46),"") ->  | N46: =IF(Q46<>"",IF(Q46=DSS!F57,('Tab-Ergebnis-GWP-GV'!CN70*Q46*DSS!$D$25)-(((DSS!$D$25*Q46)-Q46)*'Tab-Ergebnis-GWP-GV'!CD70),'Tab-Ergebnis-GWP-GV'!CN70*Q46),"") ->  | O46: =IF(Q46<>"",IF(Q46=DSS!F57,('Tab-Ergebnis-GWP-GV'!CL70*Q46*DSS!$D$25)-(((DSS!$D$25*Q46)-Q46)*'Tab-Ergebnis-GWP-GV'!CB70),'Tab-Ergebnis-GWP-GV'!CL70*Q46),"") ->  | P46: 20 | Q46: =IF(DSS!F57<>0,IF(AND(Haupttabelle!$CK$1="ja",H46="Mehrweg"),DSS!F57,DSS!F57*DSS!$D$25),"") -> 
E47: ='Tab-Ergebnis-GWP-GV'!E71 ->  | F47: ='Tab-Ergebnis-GWP-GV'!F71 ->  | G47: ='Tab-Ergebnis-GWP-GV'!C71 ->  | H47: =IF('Tab-Ergebnis-GWP-GV'!N71="M","Mehrweg",IF('Tab-Ergebnis-GWP-GV'!N71="E","Einweg","")) ->  | I47: =IF('Tab-Ergebnis-GWP-GV'!P71=FALSE,"nein",IF('Tab-Ergebnis-GWP-GV'!P71=TRUE,"ja","")) ->  | J47: =IF('Tab-Ergebnis-GWP-GV'!Q71=FALSE,"nein",IF('Tab-Ergebnis-GWP-GV'!Q71=TRUE,"ja","")) ->  | K47: ='Tab-Ergebnis-GWP-GV'!I71 ->  | L47: =IF(DSS!F58<>0,IF(H47="Mehrweg",DSS!F58,DSS!F58*DSS!$D$25),"") ->  | M47: =IF(Q47<>"",IF(Q47=DSS!F58,('Tab-Ergebnis-GWP-GV'!CM71*Q47*DSS!$D$25)-(((DSS!$D$25*Q47)-Q47)*'Tab-Ergebnis-GWP-GV'!CC71),'Tab-Ergebnis-GWP-GV'!CM71*Q47),"") ->  | N47: =IF(Q47<>"",IF(Q47=DSS!F58,('Tab-Ergebnis-GWP-GV'!CN71*Q47*DSS!$D$25)-(((DSS!$D$25*Q47)-Q47)*'Tab-Ergebnis-GWP-GV'!CD71),'Tab-Ergebnis-GWP-GV'!CN71*Q47),"") ->  | O47: =IF(Q47<>"",IF(Q47=DSS!F58,('Tab-Ergebnis-GWP-GV'!CL71*Q47*DSS!$D$25)-(((DSS!$D$25*Q47)-Q47)*'Tab-Ergebnis-GWP-GV'!CB71),'Tab-Ergebnis-GWP-GV'!CL71*Q47),"") ->  | P47: 20 | Q47: =IF(DSS!F58<>0,IF(AND(Haupttabelle!$CK$1="ja",H47="Mehrweg"),DSS!F58,DSS!F58*DSS!$D$25),"") -> 
E48: ='Tab-Ergebnis-GWP-GV'!E72 ->  | F48: ='Tab-Ergebnis-GWP-GV'!F72 ->  | G48: ='Tab-Ergebnis-GWP-GV'!C72 ->  | H48: =IF('Tab-Ergebnis-GWP-GV'!N72="M","Mehrweg",IF('Tab-Ergebnis-GWP-GV'!N72="E","Einweg","")) ->  | I48: =IF('Tab-Ergebnis-GWP-GV'!P72=FALSE,"nein",IF('Tab-Ergebnis-GWP-GV'!P72=TRUE,"ja","")) ->  | J48: =IF('Tab-Ergebnis-GWP-GV'!Q72=FALSE,"nein",IF('Tab-Ergebnis-GWP-GV'!Q72=TRUE,"ja","")) ->  | K48: ='Tab-Ergebnis-GWP-GV'!I72 ->  | L48: =IF(DSS!F59<>0,IF(H48="Mehrweg",DSS!F59,DSS!F59*DSS!$D$25),"") ->  | M48: =IF(Q48<>"",IF(Q48=DSS!F59,('Tab-Ergebnis-GWP-GV'!CM72*Q48*DSS!$D$25)-(((DSS!$D$25*Q48)-Q48)*'Tab-Ergebnis-GWP-GV'!CC72),'Tab-Ergebnis-GWP-GV'!CM72*Q48),"") ->  | N48: =IF(Q48<>"",IF(Q48=DSS!F59,('Tab-Ergebnis-GWP-GV'!CN72*Q48*DSS!$D$25)-(((DSS!$D$25*Q48)-Q48)*'Tab-Ergebnis-GWP-GV'!CD72),'Tab-Ergebnis-GWP-GV'!CN72*Q48),"") ->  | O48: =IF(Q48<>"",IF(Q48=DSS!F59,('Tab-Ergebnis-GWP-GV'!CL72*Q48*DSS!$D$25)-(((DSS!$D$25*Q48)-Q48)*'Tab-Ergebnis-GWP-GV'!CB72),'Tab-Ergebnis-GWP-GV'!CL72*Q48),"") ->  | P48: 20 | Q48: =IF(DSS!F59<>0,IF(AND(Haupttabelle!$CK$1="ja",H48="Mehrweg"),DSS!F59,DSS!F59*DSS!$D$25),"") -> 
E49: ='Tab-Ergebnis-GWP-GV'!E73 ->  | F49: ='Tab-Ergebnis-GWP-GV'!F73 ->  | G49: ='Tab-Ergebnis-GWP-GV'!C73 ->  | H49: =IF('Tab-Ergebnis-GWP-GV'!N73="M","Mehrweg",IF('Tab-Ergebnis-GWP-GV'!N73="E","Einweg","")) ->  | I49: =IF('Tab-Ergebnis-GWP-GV'!P73=FALSE,"nein",IF('Tab-Ergebnis-GWP-GV'!P73=TRUE,"ja","")) ->  | J49: =IF('Tab-Ergebnis-GWP-GV'!Q73=FALSE,"nein",IF('Tab-Ergebnis-GWP-GV'!Q73=TRUE,"ja","")) ->  | K49: ='Tab-Ergebnis-GWP-GV'!I73 ->  | L49: =IF(DSS!F60<>0,IF(H49="Mehrweg",DSS!F60,DSS!F60*DSS!$D$25),"") ->  | M49: =IF(Q49<>"",IF(Q49=DSS!F60,('Tab-Ergebnis-GWP-GV'!CM73*Q49*DSS!$D$25)-(((DSS!$D$25*Q49)-Q49)*'Tab-Ergebnis-GWP-GV'!CC73),'Tab-Ergebnis-GWP-GV'!CM73*Q49),"") ->  | N49: =IF(Q49<>"",IF(Q49=DSS!F60,('Tab-Ergebnis-GWP-GV'!CN73*Q49*DSS!$D$25)-(((DSS!$D$25*Q49)-Q49)*'Tab-Ergebnis-GWP-GV'!CD73),'Tab-Ergebnis-GWP-GV'!CN73*Q49),"") ->  | O49: =IF(Q49<>"",IF(Q49=DSS!F60,('Tab-Ergebnis-GWP-GV'!CL73*Q49*DSS!$D$25)-(((DSS!$D$25*Q49)-Q49)*'Tab-Ergebnis-GWP-GV'!CB73),'Tab-Ergebnis-GWP-GV'!CL73*Q49),"") ->  | P49: =COUNTIF($E$30:$E$49,E49) -> 20 | Q49: =IF(DSS!F60<>0,IF(AND(Haupttabelle!$CK$1="ja",H49="Mehrweg"),DSS!F60,DSS!F60*DSS!$D$25),"") -> 
E50: Summe | L50: =SUM(L30:L49) -> 0 | M50: =SUM(M30:M49) -> 0 | N50: =SUM(N30:N49) -> 0 | O50: =SUM(O30:O49) -> 0
E52: Tab. 2: Geschirrbedarf, -spezifikationen und Emissionen gesamt (Getränke):
E53: Auswahl DSS | F53: Produkt / Geschirrmodell (Vorschlag des DSS) | G53: Alternative ("A"; sofern keine Option hinsichtlich der Auswahlkriterien verfügbar) | H53: Einweg / Mehrweg | I53: Essbar? | J53: Biologisch abbaubar? | K53: Material | L53: Menge [Anzahl Essen oder Geschirr] | M53: Ressourcenverbrauch [ADP; kg Sb-Äq./Veranstaltung] | N53: Wassernutzung [WDP; m3/Veranstaltung] | O53: Klimawandel [GWP; kg CO2-Äq./Veranstaltung] | P53: Doppelte Werte
E54: ='Tab-Ergebnis-GWP-GV'!E74 ->  | F54: ='Tab-Ergebnis-GWP-GV'!F74 ->  | G54: ='Tab-Ergebnis-GWP-GV'!C74 ->  | H54: =IF('Tab-Ergebnis-GWP-GV'!N74="M","Mehrweg",IF('Tab-Ergebnis-GWP-GV'!N74="E","Einweg","")) ->  | I54: =IF('Tab-Ergebnis-GWP-GV'!P74=FALSE,"nein",IF('Tab-Ergebnis-GWP-GV'!P74=TRUE,"ja","")) ->  | J54: =IF('Tab-Ergebnis-GWP-GV'!Q74=FALSE,"nein",IF('Tab-Ergebnis-GWP-GV'!Q74=TRUE,"ja","")) ->  | K54: ='Tab-Ergebnis-GWP-GV'!I74 ->  | L54: =IF(DSS!F65<>0,IF(H54="Mehrweg",DSS!F65,DSS!F65*DSS!$D$25),"") ->  | M54: =IF(Q54<>"",IF(Q54=DSS!F65,('Tab-Ergebnis-GWP-GV'!CM74*Q54*DSS!$D$25)-(((DSS!$D$25*Q54)-Q54)*'Tab-Ergebnis-GWP-GV'!CC74),'Tab-Ergebnis-GWP-GV'!CM74*Q54),"") ->  | N54: =IF(Q54<>"",IF(Q54=DSS!F65,('Tab-Ergebnis-GWP-GV'!CN74*Q54*DSS!$D$25)-(((DSS!$D$25*Q54)-Q54)*'Tab-Ergebnis-GWP-GV'!CD74),'Tab-Ergebnis-GWP-GV'!CN74*Q54),"") ->  | O54: =IF(Q54<>"",IF(Q54=DSS!F65,('Tab-Ergebnis-GWP-GV'!CL74*Q54*DSS!$D$25)-(((DSS!$D$25*Q54)-Q54)*'Tab-Ergebnis-GWP-GV'!CB74),'Tab-Ergebnis-GWP-GV'!CL74*Q54),"") ->  | P54: =COUNTIF($E$30:$E$49,E54) -> 20 | Q54: =IF(DSS!F65<>0,IF(AND(Haupttabelle!$CK$1="ja",H54="Mehrweg"),DSS!F65,DSS!F65*DSS!$D$25),"") -> 
E55: ='Tab-Ergebnis-GWP-GV'!E75 ->  | F55: ='Tab-Ergebnis-GWP-GV'!F75 ->  | G55: ='Tab-Ergebnis-GWP-GV'!C75 ->  | H55: =IF('Tab-Ergebnis-GWP-GV'!N75="M","Mehrweg",IF('Tab-Ergebnis-GWP-GV'!N75="E","Einweg","")) ->  | I55: =IF('Tab-Ergebnis-GWP-GV'!P75=FALSE,"nein",IF('Tab-Ergebnis-GWP-GV'!P75=TRUE,"ja","")) ->  | J55: =IF('Tab-Ergebnis-GWP-GV'!Q75=FALSE,"nein",IF('Tab-Ergebnis-GWP-GV'!Q75=TRUE,"ja","")) ->  | K55: ='Tab-Ergebnis-GWP-GV'!I75 ->  | L55: =IF(DSS!F66<>0,IF(H55="Mehrweg",DSS!F66,DSS!F66*DSS!$D$25),"") ->  | M55: =IF(Q55<>"",IF(Q55=DSS!F66,('Tab-Ergebnis-GWP-GV'!CM75*Q55*DSS!$D$25)-(((DSS!$D$25*Q55)-Q55)*'Tab-Ergebnis-GWP-GV'!CC75),'Tab-Ergebnis-GWP-GV'!CM75*Q55),"") ->  | N55: =IF(Q55<>"",IF(Q55=DSS!F66,('Tab-Ergebnis-GWP-GV'!CN75*Q55*DSS!$D$25)-(((DSS!$D$25*Q55)-Q55)*'Tab-Ergebnis-GWP-GV'!CD75),'Tab-Ergebnis-GWP-GV'!CN75*Q55),"") ->  | O55: =IF(Q55<>"",IF(Q55=DSS!F66,('Tab-Ergebnis-GWP-GV'!CL75*Q55*DSS!$D$25)-(((DSS!$D$25*Q55)-Q55)*'Tab-Ergebnis-GWP-GV'!CB75),'Tab-Ergebnis-GWP-GV'!CL75*Q55),"") ->  | P55: =COUNTIF($E$30:$E$49,E55) -> 20 | Q55: =IF(DSS!F66<>0,IF(AND(Haupttabelle!$CK$1="ja",H55="Mehrweg"),DSS!F66,DSS!F66*DSS!$D$25),"") -> 
E56: ='Tab-Ergebnis-GWP-GV'!E76 ->  | F56: ='Tab-Ergebnis-GWP-GV'!F76 ->  | G56: ='Tab-Ergebnis-GWP-GV'!C76 ->  | H56: =IF('Tab-Ergebnis-GWP-GV'!N76="M","Mehrweg",IF('Tab-Ergebnis-GWP-GV'!N76="E","Einweg","")) ->  | I56: =IF('Tab-Ergebnis-GWP-GV'!P76=FALSE,"nein",IF('Tab-Ergebnis-GWP-GV'!P76=TRUE,"ja","")) ->  | J56: =IF('Tab-Ergebnis-GWP-GV'!Q76=FALSE,"nein",IF('Tab-Ergebnis-GWP-GV'!Q76=TRUE,"ja","")) ->  | K56: ='Tab-Ergebnis-GWP-GV'!I76 ->  | L56: =IF(DSS!F67<>0,IF(H56="Mehrweg",DSS!F67,DSS!F67*DSS!$D$25),"") ->  | M56: =IF(Q56<>"",IF(Q56=DSS!F67,('Tab-Ergebnis-GWP-GV'!CM76*Q56*DSS!$D$25)-(((DSS!$D$25*Q56)-Q56)*'Tab-Ergebnis-GWP-GV'!CC76),'Tab-Ergebnis-GWP-GV'!CM76*Q56),"") ->  | N56: =IF(Q56<>"",IF(Q56=DSS!F67,('Tab-Ergebnis-GWP-GV'!CN76*Q56*DSS!$D$25)-(((DSS!$D$25*Q56)-Q56)*'Tab-Ergebnis-GWP-GV'!CD76),'Tab-Ergebnis-GWP-GV'!CN76*Q56),"") ->  | O56: =IF(Q56<>"",IF(Q56=DSS!F67,('Tab-Ergebnis-GWP-GV'!CL76*Q56*DSS!$D$25)-(((DSS!$D$25*Q56)-Q56)*'Tab-Ergebnis-GWP-GV'!CB76),'Tab-Ergebnis-GWP-GV'!CL76*Q56),"") ->  | P56: 20 | Q56: =IF(DSS!F67<>0,IF(AND(Haupttabelle!$CK$1="ja",H56="Mehrweg"),DSS!F67,DSS!F67*DSS!$D$25),"") -> 
E57: ='Tab-Ergebnis-GWP-GV'!E77 ->  | F57: ='Tab-Ergebnis-GWP-GV'!F77 ->  | G57: ='Tab-Ergebnis-GWP-GV'!C77 ->  | H57: =IF('Tab-Ergebnis-GWP-GV'!N77="M","Mehrweg",IF('Tab-Ergebnis-GWP-GV'!N77="E","Einweg","")) ->  | I57: =IF('Tab-Ergebnis-GWP-GV'!P77=FALSE,"nein",IF('Tab-Ergebnis-GWP-GV'!P77=TRUE,"ja","")) ->  | J57: =IF('Tab-Ergebnis-GWP-GV'!Q77=FALSE,"nein",IF('Tab-Ergebnis-GWP-GV'!Q77=TRUE,"ja","")) ->  | K57: ='Tab-Ergebnis-GWP-GV'!I77 ->  | L57: =IF(DSS!F68<>0,IF(H57="Mehrweg",DSS!F68,DSS!F68*DSS!$D$25),"") ->  | M57: =IF(Q57<>"",IF(Q57=DSS!F68,('Tab-Ergebnis-GWP-GV'!CM77*Q57*DSS!$D$25)-(((DSS!$D$25*Q57)-Q57)*'Tab-Ergebnis-GWP-GV'!CC77),'Tab-Ergebnis-GWP-GV'!CM77*Q57),"") ->  | N57: =IF(Q57<>"",IF(Q57=DSS!F68,('Tab-Ergebnis-GWP-GV'!CN77*Q57*DSS!$D$25)-(((DSS!$D$25*Q57)-Q57)*'Tab-Ergebnis-GWP-GV'!CD77),'Tab-Ergebnis-GWP-GV'!CN77*Q57),"") ->  | O57: =IF(Q57<>"",IF(Q57=DSS!F68,('Tab-Ergebnis-GWP-GV'!CL77*Q57*DSS!$D$25)-(((DSS!$D$25*Q57)-Q57)*'Tab-Ergebnis-GWP-GV'!CB77),'Tab-Ergebnis-GWP-GV'!CL77*Q57),"") ->  | P57: 20 | Q57: =IF(DSS!F68<>0,IF(AND(Haupttabelle!$CK$1="ja",H57="Mehrweg"),DSS!F68,DSS!F68*DSS!$D$25),"") -> 
E58: ='Tab-Ergebnis-GWP-GV'!E78 ->  | F58: ='Tab-Ergebnis-GWP-GV'!F78 ->  | G58: ='Tab-Ergebnis-GWP-GV'!C78 ->  | H58: =IF('Tab-Ergebnis-GWP-GV'!N78="M","Mehrweg",IF('Tab-Ergebnis-GWP-GV'!N78="E","Einweg","")) ->  | I58: =IF('Tab-Ergebnis-GWP-GV'!P78=FALSE,"nein",IF('Tab-Ergebnis-GWP-GV'!P78=TRUE,"ja","")) ->  | J58: =IF('Tab-Ergebnis-GWP-GV'!Q78=FALSE,"nein",IF('Tab-Ergebnis-GWP-GV'!Q78=TRUE,"ja","")) ->  | K58: ='Tab-Ergebnis-GWP-GV'!I78 ->  | L58: =IF(DSS!F69<>0,IF(H58="Mehrweg",DSS!F69,DSS!F69*DSS!$D$25),"") ->  | M58: =IF(Q58<>"",IF(Q58=DSS!F69,('Tab-Ergebnis-GWP-GV'!CM78*Q58*DSS!$D$25)-(((DSS!$D$25*Q58)-Q58)*'Tab-Ergebnis-GWP-GV'!CC78),'Tab-Ergebnis-GWP-GV'!CM78*Q58),"") ->  | N58: =IF(Q58<>"",IF(Q58=DSS!F69,('Tab-Ergebnis-GWP-GV'!CN78*Q58*DSS!$D$25)-(((DSS!$D$25*Q58)-Q58)*'Tab-Ergebnis-GWP-GV'!CD78),'Tab-Ergebnis-GWP-GV'!CN78*Q58),"") ->  | O58: =IF(Q58<>"",IF(Q58=DSS!F69,('Tab-Ergebnis-GWP-GV'!CL78*Q58*DSS!$D$25)-(((DSS!$D$25*Q58)-Q58)*'Tab-Ergebnis-GWP-GV'!CB78),'Tab-Ergebnis-GWP-GV'!CL78*Q58),"") ->  | P58: 20 | Q58: =IF(DSS!F69<>0,IF(AND(Haupttabelle!$CK$1="ja",H58="Mehrweg"),DSS!F69,DSS!F69*DSS!$D$25),"") -> 
E59: ='Tab-Ergebnis-GWP-GV'!E79 ->  | F59: ='Tab-Ergebnis-GWP-GV'!F79 ->  | G59: ='Tab-Ergebnis-GWP-GV'!C79 ->  | H59: =IF('Tab-Ergebnis-GWP-GV'!N79="M","Mehrweg",IF('Tab-Ergebnis-GWP-GV'!N79="E","Einweg","")) ->  | I59: =IF('Tab-Ergebnis-GWP-GV'!P79=FALSE,"nein",IF('Tab-Ergebnis-GWP-GV'!P79=TRUE,"ja","")) ->  | J59: =IF('Tab-Ergebnis-GWP-GV'!Q79=FALSE,"nein",IF('Tab-Ergebnis-GWP-GV'!Q79=TRUE,"ja","")) ->  | K59: ='Tab-Ergebnis-GWP-GV'!I79 ->  | L59: =IF(DSS!F70<>0,IF(H59="Mehrweg",DSS!F70,DSS!F70*DSS!$D$25),"") ->  | M59: =IF(Q59<>"",IF(Q59=DSS!F70,('Tab-Ergebnis-GWP-GV'!CM79*Q59*DSS!$D$25)-(((DSS!$D$25*Q59)-Q59)*'Tab-Ergebnis-GWP-GV'!CC79),'Tab-Ergebnis-GWP-GV'!CM79*Q59),"") ->  | N59: =IF(Q59<>"",IF(Q59=DSS!F70,('Tab-Ergebnis-GWP-GV'!CN79*Q59*DSS!$D$25)-(((DSS!$D$25*Q59)-Q59)*'Tab-Ergebnis-GWP-GV'!CD79),'Tab-Ergebnis-GWP-GV'!CN79*Q59),"") ->  | O59: =IF(Q59<>"",IF(Q59=DSS!F70,('Tab-Ergebnis-GWP-GV'!CL79*Q59*DSS!$D$25)-(((DSS!$D$25*Q59)-Q59)*'Tab-Ergebnis-GWP-GV'!CB79),'Tab-Ergebnis-GWP-GV'!CL79*Q59),"") ->  | P59: 20 | Q59: =IF(DSS!F70<>0,IF(AND(Haupttabelle!$CK$1="ja",H59="Mehrweg"),DSS!F70,DSS!F70*DSS!$D$25),"") -> 
E60: ='Tab-Ergebnis-GWP-GV'!E80 ->  | F60: ='Tab-Ergebnis-GWP-GV'!F80 ->  | G60: ='Tab-Ergebnis-GWP-GV'!C80 ->  | H60: =IF('Tab-Ergebnis-GWP-GV'!N80="M","Mehrweg",IF('Tab-Ergebnis-GWP-GV'!N80="E","Einweg","")) ->  | I60: =IF('Tab-Ergebnis-GWP-GV'!P80=FALSE,"nein",IF('Tab-Ergebnis-GWP-GV'!P80=TRUE,"ja","")) ->  | J60: =IF('Tab-Ergebnis-GWP-GV'!Q80=FALSE,"nein",IF('Tab-Ergebnis-GWP-GV'!Q80=TRUE,"ja","")) ->  | K60: ='Tab-Ergebnis-GWP-GV'!I80 ->  | L60: =IF(DSS!F71<>0,IF(H60="Mehrweg",DSS!F71,DSS!F71*DSS!$D$25),"") ->  | M60: =IF(Q60<>"",IF(Q60=DSS!F71,('Tab-Ergebnis-GWP-GV'!CM80*Q60*DSS!$D$25)-(((DSS!$D$25*Q60)-Q60)*'Tab-Ergebnis-GWP-GV'!CC80),'Tab-Ergebnis-GWP-GV'!CM80*Q60),"") ->  | N60: =IF(Q60<>"",IF(Q60=DSS!F71,('Tab-Ergebnis-GWP-GV'!CN80*Q60*DSS!$D$25)-(((DSS!$D$25*Q60)-Q60)*'Tab-Ergebnis-GWP-GV'!CD80),'Tab-Ergebnis-GWP-GV'!CN80*Q60),"") ->  | O60: =IF(Q60<>"",IF(Q60=DSS!F71,('Tab-Ergebnis-GWP-GV'!CL80*Q60*DSS!$D$25)-(((DSS!$D$25*Q60)-Q60)*'Tab-Ergebnis-GWP-GV'!CB80),'Tab-Ergebnis-GWP-GV'!CL80*Q60),"") ->  | P60: 20 | Q60: =IF(DSS!F71<>0,IF(AND(Haupttabelle!$CK$1="ja",H60="Mehrweg"),DSS!F71,DSS!F71*DSS!$D$25),"") -> 
E61: ='Tab-Ergebnis-GWP-GV'!E81 ->  | F61: ='Tab-Ergebnis-GWP-GV'!F81 ->  | G61: ='Tab-Ergebnis-GWP-GV'!C81 ->  | H61: =IF('Tab-Ergebnis-GWP-GV'!N81="M","Mehrweg",IF('Tab-Ergebnis-GWP-GV'!N81="E","Einweg","")) ->  | I61: =IF('Tab-Ergebnis-GWP-GV'!P81=FALSE,"nein",IF('Tab-Ergebnis-GWP-GV'!P81=TRUE,"ja","")) ->  | J61: =IF('Tab-Ergebnis-GWP-GV'!Q81=FALSE,"nein",IF('Tab-Ergebnis-GWP-GV'!Q81=TRUE,"ja","")) ->  | K61: ='Tab-Ergebnis-GWP-GV'!I81 ->  | L61: =IF(DSS!F72<>0,IF(H61="Mehrweg",DSS!F72,DSS!F72*DSS!$D$25),"") ->  | M61: =IF(Q61<>"",IF(Q61=DSS!F72,('Tab-Ergebnis-GWP-GV'!CM81*Q61*DSS!$D$25)-(((DSS!$D$25*Q61)-Q61)*'Tab-Ergebnis-GWP-GV'!CC81),'Tab-Ergebnis-GWP-GV'!CM81*Q61),"") ->  | N61: =IF(Q61<>"",IF(Q61=DSS!F72,('Tab-Ergebnis-GWP-GV'!CN81*Q61*DSS!$D$25)-(((DSS!$D$25*Q61)-Q61)*'Tab-Ergebnis-GWP-GV'!CD81),'Tab-Ergebnis-GWP-GV'!CN81*Q61),"") ->  | O61: =IF(Q61<>"",IF(Q61=DSS!F72,('Tab-Ergebnis-GWP-GV'!CL81*Q61*DSS!$D$25)-(((DSS!$D$25*Q61)-Q61)*'Tab-Ergebnis-GWP-GV'!CB81),'Tab-Ergebnis-GWP-GV'!CL81*Q61),"") ->  | P61: 20 | Q61: =IF(DSS!F72<>0,IF(AND(Haupttabelle!$CK$1="ja",H61="Mehrweg"),DSS!F72,DSS!F72*DSS!$D$25),"") -> 
E62: ='Tab-Ergebnis-GWP-GV'!E82 ->  | F62: ='Tab-Ergebnis-GWP-GV'!F82 ->  | G62: ='Tab-Ergebnis-GWP-GV'!C82 ->  | H62: =IF('Tab-Ergebnis-GWP-GV'!N82="M","Mehrweg",IF('Tab-Ergebnis-GWP-GV'!N82="E","Einweg","")) ->  | I62: =IF('Tab-Ergebnis-GWP-GV'!P82=FALSE,"nein",IF('Tab-Ergebnis-GWP-GV'!P82=TRUE,"ja","")) ->  | J62: =IF('Tab-Ergebnis-GWP-GV'!Q82=FALSE,"nein",IF('Tab-Ergebnis-GWP-GV'!Q82=TRUE,"ja","")) ->  | K62: ='Tab-Ergebnis-GWP-GV'!I82 ->  | L62: =IF(DSS!F73<>0,IF(H62="Mehrweg",DSS!F73,DSS!F73*DSS!$D$25),"") ->  | M62: =IF(Q62<>"",IF(Q62=DSS!F73,('Tab-Ergebnis-GWP-GV'!CM82*Q62*DSS!$D$25)-(((DSS!$D$25*Q62)-Q62)*'Tab-Ergebnis-GWP-GV'!CC82),'Tab-Ergebnis-GWP-GV'!CM82*Q62),"") ->  | N62: =IF(Q62<>"",IF(Q62=DSS!F73,('Tab-Ergebnis-GWP-GV'!CN82*Q62*DSS!$D$25)-(((DSS!$D$25*Q62)-Q62)*'Tab-Ergebnis-GWP-GV'!CD82),'Tab-Ergebnis-GWP-GV'!CN82*Q62),"") ->  | O62: =IF(Q62<>"",IF(Q62=DSS!F73,('Tab-Ergebnis-GWP-GV'!CL82*Q62*DSS!$D$25)-(((DSS!$D$25*Q62)-Q62)*'Tab-Ergebnis-GWP-GV'!CB82),'Tab-Ergebnis-GWP-GV'!CL82*Q62),"") ->  | P62: 20 | Q62: =IF(DSS!F73<>0,IF(AND(Haupttabelle!$CK$1="ja",H62="Mehrweg"),DSS!F73,DSS!F73*DSS!$D$25),"") -> 
E63: ='Tab-Ergebnis-GWP-GV'!E83 ->  | F63: ='Tab-Ergebnis-GWP-GV'!F83 ->  | G63: ='Tab-Ergebnis-GWP-GV'!C83 ->  | H63: =IF('Tab-Ergebnis-GWP-GV'!N83="M","Mehrweg",IF('Tab-Ergebnis-GWP-GV'!N83="E","Einweg","")) ->  | I63: =IF('Tab-Ergebnis-GWP-GV'!P83=FALSE,"nein",IF('Tab-Ergebnis-GWP-GV'!P83=TRUE,"ja","")) ->  | J63: =IF('Tab-Ergebnis-GWP-GV'!Q83=FALSE,"nein",IF('Tab-Ergebnis-GWP-GV'!Q83=TRUE,"ja","")) ->  | K63: ='Tab-Ergebnis-GWP-GV'!I83 ->  | L63: =IF(DSS!F74<>0,IF(H63="Mehrweg",DSS!F74,DSS!F74*DSS!$D$25),"") ->  | M63: =IF(Q63<>"",IF(Q63=DSS!F74,('Tab-Ergebnis-GWP-GV'!CM83*Q63*DSS!$D$25)-(((DSS!$D$25*Q63)-Q63)*'Tab-Ergebnis-GWP-GV'!CC83),'Tab-Ergebnis-GWP-GV'!CM83*Q63),"") ->  | N63: =IF(Q63<>"",IF(Q63=DSS!F74,('Tab-Ergebnis-GWP-GV'!CN83*Q63*DSS!$D$25)-(((DSS!$D$25*Q63)-Q63)*'Tab-Ergebnis-GWP-GV'!CD83),'Tab-Ergebnis-GWP-GV'!CN83*Q63),"") ->  | O63: =IF(Q63<>"",IF(Q63=DSS!F74,('Tab-Ergebnis-GWP-GV'!CL83*Q63*DSS!$D$25)-(((DSS!$D$25*Q63)-Q63)*'Tab-Ergebnis-GWP-GV'!CB83),'Tab-Ergebnis-GWP-GV'!CL83*Q63),"") ->  | P63: 20 | Q63: =IF(DSS!F74<>0,IF(AND(Haupttabelle!$CK$1="ja",H63="Mehrweg"),DSS!F74,DSS!F74*DSS!$D$25),"") -> 
E64: ='Tab-Ergebnis-GWP-GV'!E84 ->  | F64: ='Tab-Ergebnis-GWP-GV'!F84 ->  | G64: ='Tab-Ergebnis-GWP-GV'!C84 ->  | H64: =IF('Tab-Ergebnis-GWP-GV'!N84="M","Mehrweg",IF('Tab-Ergebnis-GWP-GV'!N84="E","Einweg","")) ->  | I64: =IF('Tab-Ergebnis-GWP-GV'!P84=FALSE,"nein",IF('Tab-Ergebnis-GWP-GV'!P84=TRUE,"ja","")) ->  | J64: =IF('Tab-Ergebnis-GWP-GV'!Q84=FALSE,"nein",IF('Tab-Ergebnis-GWP-GV'!Q84=TRUE,"ja","")) ->  | K64: ='Tab-Ergebnis-GWP-GV'!I84 ->  | L64: =IF(DSS!F75<>0,IF(H64="Mehrweg",DSS!F75,DSS!F75*DSS!$D$25),"") ->  | M64: =IF(Q64<>"",IF(Q64=DSS!F75,('Tab-Ergebnis-GWP-GV'!CM84*Q64*DSS!$D$25)-(((DSS!$D$25*Q64)-Q64)*'Tab-Ergebnis-GWP-GV'!CC84),'Tab-Ergebnis-GWP-GV'!CM84*Q64),"") ->  | N64: =IF(Q64<>"",IF(Q64=DSS!F75,('Tab-Ergebnis-GWP-GV'!CN84*Q64*DSS!$D$25)-(((DSS!$D$25*Q64)-Q64)*'Tab-Ergebnis-GWP-GV'!CD84),'Tab-Ergebnis-GWP-GV'!CN84*Q64),"") ->  | O64: =IF(Q64<>"",IF(Q64=DSS!F75,('Tab-Ergebnis-GWP-GV'!CL84*Q64*DSS!$D$25)-(((DSS!$D$25*Q64)-Q64)*'Tab-Ergebnis-GWP-GV'!CB84),'Tab-Ergebnis-GWP-GV'!CL84*Q64),"") ->  | P64: 20 | Q64: =IF(DSS!F75<>0,IF(AND(Haupttabelle!$CK$1="ja",H64="Mehrweg"),DSS!F75,DSS!F75*DSS!$D$25),"") -> 
E65: ='Tab-Ergebnis-GWP-GV'!E85 ->  | F65: ='Tab-Ergebnis-GWP-GV'!F85 ->  | G65: ='Tab-Ergebnis-GWP-GV'!C85 ->  | H65: =IF('Tab-Ergebnis-GWP-GV'!N85="M","Mehrweg",IF('Tab-Ergebnis-GWP-GV'!N85="E","Einweg","")) ->  | I65: =IF('Tab-Ergebnis-GWP-GV'!P85=FALSE,"nein",IF('Tab-Ergebnis-GWP-GV'!P85=TRUE,"ja","")) ->  | J65: =IF('Tab-Ergebnis-GWP-GV'!Q85=FALSE,"nein",IF('Tab-Ergebnis-GWP-GV'!Q85=TRUE,"ja","")) ->  | K65: ='Tab-Ergebnis-GWP-GV'!I85 ->  | L65: =IF(DSS!F76<>0,IF(H65="Mehrweg",DSS!F76,DSS!F76*DSS!$D$25),"") ->  | M65: =IF(Q65<>"",IF(Q65=DSS!F76,('Tab-Ergebnis-GWP-GV'!CM85*Q65*DSS!$D$25)-(((DSS!$D$25*Q65)-Q65)*'Tab-Ergebnis-GWP-GV'!CC85),'Tab-Ergebnis-GWP-GV'!CM85*Q65),"") ->  | N65: =IF(Q65<>"",IF(Q65=DSS!F76,('Tab-Ergebnis-GWP-GV'!CN85*Q65*DSS!$D$25)-(((DSS!$D$25*Q65)-Q65)*'Tab-Ergebnis-GWP-GV'!CD85),'Tab-Ergebnis-GWP-GV'!CN85*Q65),"") ->  | O65: =IF(Q65<>"",IF(Q65=DSS!F76,('Tab-Ergebnis-GWP-GV'!CL85*Q65*DSS!$D$25)-(((DSS!$D$25*Q65)-Q65)*'Tab-Ergebnis-GWP-GV'!CB85),'Tab-Ergebnis-GWP-GV'!CL85*Q65),"") ->  | Q65: =IF(DSS!F76<>0,IF(AND(Haupttabelle!$CK$1="ja",H65="Mehrweg"),DSS!F76,DSS!F76*DSS!$D$25),"") -> 
E66: ='Tab-Ergebnis-GWP-GV'!E86 ->  | F66: ='Tab-Ergebnis-GWP-GV'!F86 ->  | G66: ='Tab-Ergebnis-GWP-GV'!C86 ->  | H66: =IF('Tab-Ergebnis-GWP-GV'!N86="M","Mehrweg",IF('Tab-Ergebnis-GWP-GV'!N86="E","Einweg","")) ->  | I66: =IF('Tab-Ergebnis-GWP-GV'!P86=FALSE,"nein",IF('Tab-Ergebnis-GWP-GV'!P86=TRUE,"ja","")) ->  | J66: =IF('Tab-Ergebnis-GWP-GV'!Q86=FALSE,"nein",IF('Tab-Ergebnis-GWP-GV'!Q86=TRUE,"ja","")) ->  | K66: ='Tab-Ergebnis-GWP-GV'!I86 ->  | L66: =IF(DSS!F77<>0,IF(H66="Mehrweg",DSS!F77,DSS!F77*DSS!$D$25),"") ->  | M66: =IF(Q66<>"",IF(Q66=DSS!F77,('Tab-Ergebnis-GWP-GV'!CM86*Q66*DSS!$D$25)-(((DSS!$D$25*Q66)-Q66)*'Tab-Ergebnis-GWP-GV'!CC86),'Tab-Ergebnis-GWP-GV'!CM86*Q66),"") ->  | N66: =IF(Q66<>"",IF(Q66=DSS!F77,('Tab-Ergebnis-GWP-GV'!CN86*Q66*DSS!$D$25)-(((DSS!$D$25*Q66)-Q66)*'Tab-Ergebnis-GWP-GV'!CD86),'Tab-Ergebnis-GWP-GV'!CN86*Q66),"") ->  | O66: =IF(Q66<>"",IF(Q66=DSS!F77,('Tab-Ergebnis-GWP-GV'!CL86*Q66*DSS!$D$25)-(((DSS!$D$25*Q66)-Q66)*'Tab-Ergebnis-GWP-GV'!CB86),'Tab-Ergebnis-GWP-GV'!CL86*Q66),"") ->  | P66: 20 | Q66: =IF(DSS!F77<>0,IF(AND(Haupttabelle!$CK$1="ja",H66="Mehrweg"),DSS!F77,DSS!F77*DSS!$D$25),"") -> 
E67: ='Tab-Ergebnis-GWP-GV'!E87 ->  | F67: ='Tab-Ergebnis-GWP-GV'!F87 ->  | G67: ='Tab-Ergebnis-GWP-GV'!C87 ->  | H67: =IF('Tab-Ergebnis-GWP-GV'!N87="M","Mehrweg",IF('Tab-Ergebnis-GWP-GV'!N87="E","Einweg","")) ->  | I67: =IF('Tab-Ergebnis-GWP-GV'!P87=FALSE,"nein",IF('Tab-Ergebnis-GWP-GV'!P87=TRUE,"ja","")) ->  | J67: =IF('Tab-Ergebnis-GWP-GV'!Q87=FALSE,"nein",IF('Tab-Ergebnis-GWP-GV'!Q87=TRUE,"ja","")) ->  | K67: ='Tab-Ergebnis-GWP-GV'!I87 ->  | L67: =IF(DSS!F78<>0,IF(H67="Mehrweg",DSS!F78,DSS!F78*DSS!$D$25),"") ->  | M67: =IF(Q67<>"",IF(Q67=DSS!F78,('Tab-Ergebnis-GWP-GV'!CM87*Q67*DSS!$D$25)-(((DSS!$D$25*Q67)-Q67)*'Tab-Ergebnis-GWP-GV'!CC87),'Tab-Ergebnis-GWP-GV'!CM87*Q67),"") ->  | N67: =IF(Q67<>"",IF(Q67=DSS!F78,('Tab-Ergebnis-GWP-GV'!CN87*Q67*DSS!$D$25)-(((DSS!$D$25*Q67)-Q67)*'Tab-Ergebnis-GWP-GV'!CD87),'Tab-Ergebnis-GWP-GV'!CN87*Q67),"") ->  | O67: =IF(Q67<>"",IF(Q67=DSS!F78,('Tab-Ergebnis-GWP-GV'!CL87*Q67*DSS!$D$25)-(((DSS!$D$25*Q67)-Q67)*'Tab-Ergebnis-GWP-GV'!CB87),'Tab-Ergebnis-GWP-GV'!CL87*Q67),"") ->  | P67: 20 | Q67: =IF(DSS!F78<>0,IF(AND(Haupttabelle!$CK$1="ja",H67="Mehrweg"),DSS!F78,DSS!F78*DSS!$D$25),"") -> 
E68: Summe | L68: =SUM(L54:L67) -> 0 | M68: =SUM(M54:M67) -> 0 | N68: =SUM(N54:N67) -> 0 | O68: =SUM(O54:O67) -> 0
E70: Tab. 3: Geschirrbedarf, -spezifikationen und Emissionen gesamt (Sonstiges):
E71: Auswahl DSS | F71: Produkt / Geschirrmodell (Vorschlag des DSS) | G71: Alternative ("A"; sofern keine Option hinsichtlich der Auswahlkriterien verfügbar) | H71: Einweg / Mehrweg | I71: Essbar? | J71: Biologisch abbaubar? | K71: Material | L71: Menge [Anzahl Essen oder Geschirr] | M71: Ressourcenverbrauch [ADP; kg Sb-Äq./Veranstaltung] | N71: Wassernutzung [WDP; m3/Veranstaltung] | O71: Klimawandel [GWP; kg CO2-Äq./Veranstaltung] | P71: Doppelte Werte
E72: ='Tab-Ergebnis-GWP-GV'!E88 ->  | F72: ='Tab-Ergebnis-GWP-GV'!F88 ->  | G72: ='Tab-Ergebnis-GWP-GV'!C88 ->  | H72: =IF('Tab-Ergebnis-GWP-GV'!N88="M","Mehrweg",IF('Tab-Ergebnis-GWP-GV'!N88="E","Einweg","")) ->  | I72: =IF('Tab-Ergebnis-GWP-GV'!P88=FALSE,"nein",IF('Tab-Ergebnis-GWP-GV'!P88=TRUE,"ja","")) ->  | J72: =IF('Tab-Ergebnis-GWP-GV'!Q88=FALSE,"nein",IF('Tab-Ergebnis-GWP-GV'!Q88=TRUE,"ja","")) ->  | K72: ='Tab-Ergebnis-GWP-GV'!I88 ->  | L72: =IF(DSS!F83<>0,IF(H72="Mehrweg",DSS!F83,DSS!F83*DSS!$D$25),"") ->  | M72: =IF(Q72<>"",IF(Q72=DSS!F83,('Tab-Ergebnis-GWP-GV'!CM88*Q72*DSS!$D$25)-(((DSS!$D$25*Q72)-Q72)*'Tab-Ergebnis-GWP-GV'!CC88),'Tab-Ergebnis-GWP-GV'!CM88*Q72),"") ->  | N72: =IF(Q72<>"",IF(Q72=DSS!F83,('Tab-Ergebnis-GWP-GV'!CN88*Q72*DSS!$D$25)-(((DSS!$D$25*Q72)-Q72)*'Tab-Ergebnis-GWP-GV'!CD88),'Tab-Ergebnis-GWP-GV'!CN88*Q72),"") ->  | O72: =IF(Q72<>"",IF(Q72=DSS!F83,('Tab-Ergebnis-GWP-GV'!CL88*Q72*DSS!$D$25)-(((DSS!$D$25*Q72)-Q72)*'Tab-Ergebnis-GWP-GV'!CB88),'Tab-Ergebnis-GWP-GV'!CL88*Q72),"") ->  | P72: =COUNTIF($E$30:$E$49,E72) -> 20 | Q72: =IF(DSS!F83<>0,IF(AND(Haupttabelle!$CK$1="ja",H72="Mehrweg"),DSS!F83,DSS!F83*DSS!$D$25),"") -> 
E73: ='Tab-Ergebnis-GWP-GV'!E89 ->  | F73: ='Tab-Ergebnis-GWP-GV'!F89 ->  | G73: ='Tab-Ergebnis-GWP-GV'!C89 ->  | H73: =IF('Tab-Ergebnis-GWP-GV'!N89="M","Mehrweg",IF('Tab-Ergebnis-GWP-GV'!N89="E","Einweg","")) ->  | I73: =IF('Tab-Ergebnis-GWP-GV'!P89=FALSE,"nein",IF('Tab-Ergebnis-GWP-GV'!P89=TRUE,"ja","")) ->  | J73: =IF('Tab-Ergebnis-GWP-GV'!Q89=FALSE,"nein",IF('Tab-Ergebnis-GWP-GV'!Q89=TRUE,"ja","")) ->  | K73: ='Tab-Ergebnis-GWP-GV'!I89 ->  | L73: =IF(DSS!F84<>0,IF(H73="Mehrweg",DSS!F84,DSS!F84*DSS!$D$25),"") ->  | M73: =IF(Q73<>"",IF(Q73=DSS!F84,('Tab-Ergebnis-GWP-GV'!CM89*Q73*DSS!$D$25)-(((DSS!$D$25*Q73)-Q73)*'Tab-Ergebnis-GWP-GV'!CC89),'Tab-Ergebnis-GWP-GV'!CM89*Q73),"") ->  | N73: =IF(Q73<>"",IF(Q73=DSS!F84,('Tab-Ergebnis-GWP-GV'!CN89*Q73*DSS!$D$25)-(((DSS!$D$25*Q73)-Q73)*'Tab-Ergebnis-GWP-GV'!CD89),'Tab-Ergebnis-GWP-GV'!CN89*Q73),"") ->  | O73: =IF(Q73<>"",IF(Q73=DSS!F84,('Tab-Ergebnis-GWP-GV'!CL89*Q73*DSS!$D$25)-(((DSS!$D$25*Q73)-Q73)*'Tab-Ergebnis-GWP-GV'!CB89),'Tab-Ergebnis-GWP-GV'!CL89*Q73),"") ->  | P73: =COUNTIF($E$30:$E$49,E73) -> 20 | Q73: =IF(DSS!F84<>0,IF(AND(Haupttabelle!$CK$1="ja",H73="Mehrweg"),DSS!F84,DSS!F84*DSS!$D$25),"") -> 
E74: ='Tab-Ergebnis-GWP-GV'!E90 ->  | F74: ='Tab-Ergebnis-GWP-GV'!F90 ->  | G74: ='Tab-Ergebnis-GWP-GV'!C90 ->  | H74: =IF('Tab-Ergebnis-GWP-GV'!N90="M","Mehrweg",IF('Tab-Ergebnis-GWP-GV'!N90="E","Einweg","")) ->  | I74: =IF('Tab-Ergebnis-GWP-GV'!P90=FALSE,"nein",IF('Tab-Ergebnis-GWP-GV'!P90=TRUE,"ja","")) ->  | J74: =IF('Tab-Ergebnis-GWP-GV'!Q90=FALSE,"nein",IF('Tab-Ergebnis-GWP-GV'!Q90=TRUE,"ja","")) ->  | K74: ='Tab-Ergebnis-GWP-GV'!I90 ->  | L74: =IF(DSS!F85<>0,IF(H74="Mehrweg",DSS!F85,DSS!F85*DSS!$D$25),"") ->  | M74: =IF(Q74<>"",IF(Q74=DSS!F85,('Tab-Ergebnis-GWP-GV'!CM90*Q74*DSS!$D$25)-(((DSS!$D$25*Q74)-Q74)*'Tab-Ergebnis-GWP-GV'!CC90),'Tab-Ergebnis-GWP-GV'!CM90*Q74),"") ->  | N74: =IF(Q74<>"",IF(Q74=DSS!F85,('Tab-Ergebnis-GWP-GV'!CN90*Q74*DSS!$D$25)-(((DSS!$D$25*Q74)-Q74)*'Tab-Ergebnis-GWP-GV'!CD90),'Tab-Ergebnis-GWP-GV'!CN90*Q74),"") ->  | O74: =IF(Q74<>"",IF(Q74=DSS!F85,('Tab-Ergebnis-GWP-GV'!CL90*Q74*DSS!$D$25)-(((DSS!$D$25*Q74)-Q74)*'Tab-Ergebnis-GWP-GV'!CB90),'Tab-Ergebnis-GWP-GV'!CL90*Q74),"") ->  | P74: 20 | Q74: =IF(DSS!F85<>0,IF(AND(Haupttabelle!$CK$1="ja",H74="Mehrweg"),DSS!F85,DSS!F85*DSS!$D$25),"") -> 
E75: ='Tab-Ergebnis-GWP-GV'!E91 ->  | F75: ='Tab-Ergebnis-GWP-GV'!F91 ->  | G75: ='Tab-Ergebnis-GWP-GV'!C91 ->  | H75: =IF('Tab-Ergebnis-GWP-GV'!N91="M","Mehrweg",IF('Tab-Ergebnis-GWP-GV'!N91="E","Einweg","")) ->  | I75: =IF('Tab-Ergebnis-GWP-GV'!P91=FALSE,"nein",IF('Tab-Ergebnis-GWP-GV'!P91=TRUE,"ja","")) ->  | J75: =IF('Tab-Ergebnis-GWP-GV'!Q91=FALSE,"nein",IF('Tab-Ergebnis-GWP-GV'!Q91=TRUE,"ja","")) ->  | K75: ='Tab-Ergebnis-GWP-GV'!I91 ->  | L75: =IF(DSS!F86<>0,IF(H75="Mehrweg",DSS!F86,DSS!F86*DSS!$D$25),"") ->  | M75: =IF(Q75<>"",IF(Q75=DSS!F86,('Tab-Ergebnis-GWP-GV'!CM91*Q75*DSS!$D$25)-(((DSS!$D$25*Q75)-Q75)*'Tab-Ergebnis-GWP-GV'!CC91),'Tab-Ergebnis-GWP-GV'!CM91*Q75),"") ->  | N75: =IF(Q75<>"",IF(Q75=DSS!F86,('Tab-Ergebnis-GWP-GV'!CN91*Q75*DSS!$D$25)-(((DSS!$D$25*Q75)-Q75)*'Tab-Ergebnis-GWP-GV'!CD91),'Tab-Ergebnis-GWP-GV'!CN91*Q75),"") ->  | O75: =IF(Q75<>"",IF(Q75=DSS!F86,('Tab-Ergebnis-GWP-GV'!CL91*Q75*DSS!$D$25)-(((DSS!$D$25*Q75)-Q75)*'Tab-Ergebnis-GWP-GV'!CB91),'Tab-Ergebnis-GWP-GV'!CL91*Q75),"") ->  | P75: 20 | Q75: =IF(DSS!F86<>0,IF(AND(Haupttabelle!$CK$1="ja",H75="Mehrweg"),DSS!F86,DSS!F86*DSS!$D$25),"") -> 
E76: ='Tab-Ergebnis-GWP-GV'!E92 ->  | F76: ='Tab-Ergebnis-GWP-GV'!F92 ->  | G76: ='Tab-Ergebnis-GWP-GV'!C92 ->  | H76: =IF('Tab-Ergebnis-GWP-GV'!N92="M","Mehrweg",IF('Tab-Ergebnis-GWP-GV'!N92="E","Einweg","")) ->  | I76: =IF('Tab-Ergebnis-GWP-GV'!P92=FALSE,"nein",IF('Tab-Ergebnis-GWP-GV'!P92=TRUE,"ja","")) ->  | J76: =IF('Tab-Ergebnis-GWP-GV'!Q92=FALSE,"nein",IF('Tab-Ergebnis-GWP-GV'!Q92=TRUE,"ja","")) ->  | K76: ='Tab-Ergebnis-GWP-GV'!I92 ->  | L76: =IF(DSS!F87<>0,IF(H76="Mehrweg",DSS!F87,DSS!F87*DSS!$D$25),"") ->  | M76: =IF(Q76<>"",IF(Q76=DSS!F87,('Tab-Ergebnis-GWP-GV'!CM92*Q76*DSS!$D$25)-(((DSS!$D$25*Q76)-Q76)*'Tab-Ergebnis-GWP-GV'!CC92),'Tab-Ergebnis-GWP-GV'!CM92*Q76),"") ->  | N76: =IF(Q76<>"",IF(Q76=DSS!F87,('Tab-Ergebnis-GWP-GV'!CN92*Q76*DSS!$D$25)-(((DSS!$D$25*Q76)-Q76)*'Tab-Ergebnis-GWP-GV'!CD92),'Tab-Ergebnis-GWP-GV'!CN92*Q76),"") ->  | O76: =IF(Q76<>"",IF(Q76=DSS!F87,('Tab-Ergebnis-GWP-GV'!CL92*Q76*DSS!$D$25)-(((DSS!$D$25*Q76)-Q76)*'Tab-Ergebnis-GWP-GV'!CB92),'Tab-Ergebnis-GWP-GV'!CL92*Q76),"") ->  | P76: 20 | Q76: =IF(DSS!F87<>0,IF(AND(Haupttabelle!$CK$1="ja",H76="Mehrweg"),DSS!F87,DSS!F87*DSS!$D$25),"") -> 
E77: ='Tab-Ergebnis-GWP-GV'!E93 ->  | F77: ='Tab-Ergebnis-GWP-GV'!F93 ->  | G77: ='Tab-Ergebnis-GWP-GV'!C93 ->  | H77: =IF('Tab-Ergebnis-GWP-GV'!N93="M","Mehrweg",IF('Tab-Ergebnis-GWP-GV'!N93="E","Einweg","")) ->  | I77: =IF('Tab-Ergebnis-GWP-GV'!P93=FALSE,"nein",IF('Tab-Ergebnis-GWP-GV'!P93=TRUE,"ja","")) ->  | J77: =IF('Tab-Ergebnis-GWP-GV'!Q93=FALSE,"nein",IF('Tab-Ergebnis-GWP-GV'!Q93=TRUE,"ja","")) ->  | K77: ='Tab-Ergebnis-GWP-GV'!I93 ->  | L77: =IF(DSS!F88<>0,IF(H77="Mehrweg",DSS!F88,DSS!F88*DSS!$D$25),"") ->  | M77: =IF(Q77<>"",IF(Q77=DSS!F88,('Tab-Ergebnis-GWP-GV'!CM93*Q77*DSS!$D$25)-(((DSS!$D$25*Q77)-Q77)*'Tab-Ergebnis-GWP-GV'!CC93),'Tab-Ergebnis-GWP-GV'!CM93*Q77),"") ->  | N77: =IF(Q77<>"",IF(Q77=DSS!F88,('Tab-Ergebnis-GWP-GV'!CN93*Q77*DSS!$D$25)-(((DSS!$D$25*Q77)-Q77)*'Tab-Ergebnis-GWP-GV'!CD93),'Tab-Ergebnis-GWP-GV'!CN93*Q77),"") ->  | O77: =IF(Q77<>"",IF(Q77=DSS!F88,('Tab-Ergebnis-GWP-GV'!CL93*Q77*DSS!$D$25)-(((DSS!$D$25*Q77)-Q77)*'Tab-Ergebnis-GWP-GV'!CB93),'Tab-Ergebnis-GWP-GV'!CL93*Q77),"") ->  | P77: 20 | Q77: =IF(DSS!F88<>0,IF(AND(Haupttabelle!$CK$1="ja",H77="Mehrweg"),DSS!F88,DSS!F88*DSS!$D$25),"") -> 
E78: ='Tab-Ergebnis-GWP-GV'!E94 ->  | F78: ='Tab-Ergebnis-GWP-GV'!F94 ->  | G78: ='Tab-Ergebnis-GWP-GV'!C94 ->  | H78: =IF('Tab-Ergebnis-GWP-GV'!N94="M","Mehrweg",IF('Tab-Ergebnis-GWP-GV'!N94="E","Einweg","")) ->  | I78: =IF('Tab-Ergebnis-GWP-GV'!P94=FALSE,"nein",IF('Tab-Ergebnis-GWP-GV'!P94=TRUE,"ja","")) ->  | J78: =IF('Tab-Ergebnis-GWP-GV'!Q94=FALSE,"nein",IF('Tab-Ergebnis-GWP-GV'!Q94=TRUE,"ja","")) ->  | K78: ='Tab-Ergebnis-GWP-GV'!I94 ->  | L78: =IF(DSS!F89<>0,IF(H78="Mehrweg",DSS!F89,DSS!F89*DSS!$D$25),"") ->  | M78: =IF(Q78<>"",IF(Q78=DSS!F89,('Tab-Ergebnis-GWP-GV'!CM94*Q78*DSS!$D$25)-(((DSS!$D$25*Q78)-Q78)*'Tab-Ergebnis-GWP-GV'!CC94),'Tab-Ergebnis-GWP-GV'!CM94*Q78),"") ->  | N78: =IF(Q78<>"",IF(Q78=DSS!F89,('Tab-Ergebnis-GWP-GV'!CN94*Q78*DSS!$D$25)-(((DSS!$D$25*Q78)-Q78)*'Tab-Ergebnis-GWP-GV'!CD94),'Tab-Ergebnis-GWP-GV'!CN94*Q78),"") ->  | O78: =IF(Q78<>"",IF(Q78=DSS!F89,('Tab-Ergebnis-GWP-GV'!CL94*Q78*DSS!$D$25)-(((DSS!$D$25*Q78)-Q78)*'Tab-Ergebnis-GWP-GV'!CB94),'Tab-Ergebnis-GWP-GV'!CL94*Q78),"") ->  | P78: 20 | Q78: =IF(DSS!F89<>0,IF(AND(Haupttabelle!$CK$1="ja",H78="Mehrweg"),DSS!F89,DSS!F89*DSS!$D$25),"") -> 
E79: ='Tab-Ergebnis-GWP-GV'!E95 ->  | F79: ='Tab-Ergebnis-GWP-GV'!F95 ->  | G79: ='Tab-Ergebnis-GWP-GV'!C95 ->  | H79: =IF('Tab-Ergebnis-GWP-GV'!N95="M","Mehrweg",IF('Tab-Ergebnis-GWP-GV'!N95="E","Einweg","")) ->  | I79: =IF('Tab-Ergebnis-GWP-GV'!P95=FALSE,"nein",IF('Tab-Ergebnis-GWP-GV'!P95=TRUE,"ja","")) ->  | J79: =IF('Tab-Ergebnis-GWP-GV'!Q95=FALSE,"nein",IF('Tab-Ergebnis-GWP-GV'!Q95=TRUE,"ja","")) ->  | K79: ='Tab-Ergebnis-GWP-GV'!I95 ->  | L79: =IF(DSS!F90<>0,IF(H79="Mehrweg",DSS!F90,DSS!F90*DSS!$D$25),"") ->  | M79: =IF(Q79<>"",IF(Q79=DSS!F90,('Tab-Ergebnis-GWP-GV'!CM95*Q79*DSS!$D$25)-(((DSS!$D$25*Q79)-Q79)*'Tab-Ergebnis-GWP-GV'!CC95),'Tab-Ergebnis-GWP-GV'!CM95*Q79),"") ->  | N79: =IF(Q79<>"",IF(Q79=DSS!F90,('Tab-Ergebnis-GWP-GV'!CN95*Q79*DSS!$D$25)-(((DSS!$D$25*Q79)-Q79)*'Tab-Ergebnis-GWP-GV'!CD95),'Tab-Ergebnis-GWP-GV'!CN95*Q79),"") ->  | O79: =IF(Q79<>"",IF(Q79=DSS!F90,('Tab-Ergebnis-GWP-GV'!CL95*Q79*DSS!$D$25)-(((DSS!$D$25*Q79)-Q79)*'Tab-Ergebnis-GWP-GV'!CB95),'Tab-Ergebnis-GWP-GV'!CL95*Q79),"") ->  | P79: 20 | Q79: =IF(DSS!F90<>0,IF(AND(Haupttabelle!$CK$1="ja",H79="Mehrweg"),DSS!F90,DSS!F90*DSS!$D$25),"") -> 
E80: Summe | L80: =SUM(L72:L79) -> 0 | M80: =SUM(M72:M79) -> 0 | N80: =SUM(N72:N79) -> 0 | O80: =SUM(O72:O79) -> 0
M82: =SUM(M50,M68,M80) -> 0 | N82: =SUM(N50,N68,N80) -> 0 | O82: =SUM(O50,O68,O80) -> 0
C83: EINSPARPOTENZIALE
L85: Tab. 4: Einsparpotenziale durch Nutzung des ausgewählten Geschirrs*:
L86: Geschirrart | M86: Ressourcenverbrauch [ADP; kg Sb-Äq./Veranstaltung] | N86: Wassernutzung [WDP; m3/Veranstaltung] | O86: Klimawandel [GWP; kg CO2-Äq./Veranstaltung]
L87: Essen | M87: ='Tab-Ergebnis-GWP-GV'!CM323-M50 -> 0 | N87: ='Tab-Ergebnis-GWP-GV'!CN323-N50 -> 0 | O87: ='Tab-Ergebnis-GWP-GV'!CL323-O50 -> 0
L88: Getränke | M88: ='Tab-Ergebnis-GWP-GV'!CM324-M68 -> 0 | N88: ='Tab-Ergebnis-GWP-GV'!CN324-N68 -> 0 | O88: ='Tab-Ergebnis-GWP-GV'!CL324-O68 -> 0
L89: Sonstiges | M89: ='Tab-Ergebnis-GWP-GV'!CM325-M80 -> 0 | N89: ='Tab-Ergebnis-GWP-GV'!CN325-N80 -> 0 | O89: ='Tab-Ergebnis-GWP-GV'!CL325-O80 -> 0
L90: GESAMT | M90: =SUM(M87:M89) -> 0 | N90: =SUM(N87:N89) -> 0 | O90: =SUM(O87:O89) -> 0
L91: *Das Einsparpotenzial wird angegeben als Emissionswert der eingespart werden kann, wenn das Geschirr mit den minimalsten Umweltwirkungen gewählt wird im Vergleich zur Geschirrvariante mit den schlechtesten Umweltwirkungen (immer unter Berücksichtigung der ausgewählten Anforderungen an das Geschirr, sofern hierfür Optionen verfügbar sind).
C102: GRAPHISCHE DARSTELLUNG DER ERGEBNISSE FÜR VERSCHIEDENE WIRKUNGSKATEGORIEN
C139: EINWEG VS. MEHRWEG
C140: (Vergleich der Emissionen des ausgewählten Geschirrs; siehe hierzu Tabellen Geschirrbedarf, -spezifikationen und Emissionen gesamt) | J140: Tab. 5: Vergleich der Emissionen des ausgewählten Einweg- und Mehrweggeschirrs:
J141: Einweg / Mehrweg | K141: Geschirrart | L141: Menge [Anzahl Essen oder Geschirrnutzungen] | M141: Ressourcenverbrauch [ADP; kg Sb-Äq./Veranstaltung] | N141: Wassernutzung [WDP; m3/Veranstaltung] | O141: Klimawandel [GWP; kg CO2-Äq./Veranstaltung]
J142: Einweg | K142: Essen | L142: =SUMIF($H$30:$H$49,"Einweg",L30:L49) -> 0 | M142: =SUMIF($H$30:$H$49,"Einweg",M30:M49) -> 0 | N142: =SUMIF($H$30:$H$49,"Einweg",N30:N49) -> 0 | O142: =SUMIF($H$30:$H$49,"Einweg",O30:O49) -> 0
K143: Getränke | L143: =SUMIF($H$54:$H$67,"Einweg",L54:L67) -> 0 | M143: =SUMIF($H$54:$H$67,"Einweg",M54:M67) -> 0 | N143: =SUMIF($H$54:$H$67,"Einweg",N54:N67) -> 0 | O143: =SUMIF($H$54:$H$67,"Einweg",O54:O67) -> 0
K144: Sonstiges | L144: =SUMIF($H$72:$H$79,"Einweg",L72:L79) -> 0 | M144: =SUMIF($H$72:$H$79,"Einweg",M72:M79) -> 0 | N144: =SUMIF($H$72:$H$79,"Einweg",N72:N79) -> 0 | O144: =SUMIF($H$72:$H$79,"Einweg",O72:O79) -> 0
K145: GESAMT | L145: =SUM(L142:L144) -> 0 | M145: =SUM(M142:M144) -> 0 | N145: =SUM(N142:N144) -> 0 | O145: =SUM(O142:O144) -> 0
J146: Mehrweg | K146: Essen | L146: =SUMIF($H$30:$H$49,"Mehrweg",L30:L49)*I17 -> 0 | M146: =SUMIF($H$30:$H$49,"Mehrweg",M30:M49) -> 0 | N146: =SUMIF($H$30:$H$49,"Mehrweg",N30:N49) -> 0 | O146: =SUMIF($H$30:$H$49,"Mehrweg",O30:O49) -> 0
K147: Getränke | L147: =SUMIF($H$54:$H$67,"Mehrweg",L54:L67)*I17 -> 0 | M147: =SUMIF($H$54:$H$67,"Mehrweg",M54:M67) -> 0 | N147: =SUMIF($H$54:$H$67,"Mehrweg",N54:N67) -> 0 | O147: =SUMIF($H$54:$H$67,"Mehrweg",O54:O67) -> 0
K148: Sonstiges | L148: =SUMIF($H$72:$H$79,"Mehrweg",L72:L79)*I17 -> 0 | M148: =SUMIF($H$72:$H$79,"Mehrweg",M72:M79) -> 0 | N148: =SUMIF($H$72:$H$79,"Mehrweg",N72:N79) -> 0 | O148: =SUMIF($H$72:$H$79,"Mehrweg",O72:O79) -> 0
K149: GESAMT | L149: =SUM(L146:L148) -> 0 | M149: =SUM(M146:M148) -> 0 | N149: =SUM(N146:N148) -> 0 | O149: =SUM(O146:O148) -> 0
J150: GESAMT | L150: =L145+L149 -> 0 | M150: =M145+M149 -> 0 | N150: =N145+N149 -> 0 | O150: =O145+O149 -> 0
C163: EMISSIONEN NACH WIRKUNGSKATEGORIEN FÜR VERSCHIEDENE PHASEN DES LEBENSZYKLUS
N169: Die Grafiken stellen die Emissionen nach Wirkungskategorien für verschiedene Phasen des Lebenszyklus (Herstellung/Nutzung, Spülen, Transport sowie Entsorgung/ Verwertung) dar. In Summe ergeben die Werte der einzelnen Wirkungskategorien die Gesamtwerte aus Tab. 5. Ggf. negative Werte für den Bereich Entsorgung/Verwertung ergeben sich aus Gutschriften, die durch Strom- und Wärmeproduktion bei der energetischen Verwertung generiert werden.
C192: ABFALL & LITTERING
B195: ■ | C195: ="Der Anfall von Abfall durch die Nutzung von Einweggeschirr beträgt " & TEXT(ROUND('Tab-Ergebnis-GWP-GV'!EP96,0),"#.##0") &" kg für die gesamte Veranstaltung." -> 
B196: ■ | C196: =IF('Tab-Ergebnis-GWP-GV'!EP186>0,"Durch die Nutzung von Mehrweggeschirr können " & TEXT(ROUND('Tab-Ergebnis-GWP-GV'!EP186,0),"#.##0") &" kg Abfall auf der Veranstaltung eingespart werden.","Da kein Mehrweggeschirr ausgewählt wurde, kann auf der Veranstaltung kein Abfall eingespart werden.") -> Da kein Mehrweggeschirr ausgewählt wurde, kann auf der Veranstaltung kein Abfall eingespart werden.
B197: ■ | C197: =IF('Tab-Ergebnis-GWP-GV'!EP186>0,"Für die Berechnung wurde die ökologisch beste Einwegvariante, sofern verfügbar, als Alternative für ausgewähltes Mehrweggeschirr gewählt.","Für die Berechnung wurde die ökologisch beste Einwegvariante gewählt.") -> Für die Berechnung wurde die ökologisch beste Einwegvariante gewählt.
B198: ■ | C198: =IF('Tab-Ergebnis-GWP-GV'!DK186>0,"Die Emissionen durch eine alternative Nutzung von Einweggeschirr würden sich belaufen auf:","Die Emissionen, die durch die Nutzung von Einweggeschirr entstehen, sind in Tab. 5 dargestellt.") -> Die Emissionen, die durch die Nutzung von Einweggeschirr entstehen, sind in Tab. 5 dargestellt.
C199: =IF('Tab-Ergebnis-GWP-GV'!DK186>0,"GWP: "&TEXT(ROUND('Tab-Ergebnis-GWP-GV'!DK186,0),"#.##0")&" kg CO₂-Äq.; ADP: "&ROUND('Tab-Ergebnis-GWP-GV'!DL186,4)&" kg Sb-Äq.; WDP: "&TEXT(ROUND('Tab-Ergebnis-GWP-GV'!DM186,1),"#.##0")&" m³","") -> 
B200: ■ | C200: =IF('Tab-Ergebnis-GWP-GV'!EP186>0,"Dies entspricht einer Erhöhung/Verringerung der Emissionen im Vergleich zum ausgewählten Geschirr (siehe Gesamtergebnisse in Tab. 5) von "&ROUND('Tab-Ergebnis-GWP-GV'!DK188,2)*100&"% für GWP, "&ROUND('Tab-Ergebnis-GWP-GV'!DL188,2)*100&"% für ADP sowie "&ROUND('Tab-Ergebnis-GWP-GV'!DM188,2)*100&"% für WDP.","Da ausschließlich Einweggeschirr ausgewählt wurde, kommt es zu keiner Veränderung der Emissionen im Vergleich (siehe Gesamtergebnisse in Tab. 5).") -> Da ausschließlich Einweggeschirr ausgewählt wurde, kommt es zu keiner Veränderung der Emissionen im Vergleich (siehe Gesamtergebnisse in Tab. 5).
B201: ■ | C201: =IF('Tab-Ergebnis-GWP-GV'!EP186>0,IF('Tab-Ergebnis-GWP-GV'!ER186="","Dabei wurde für alle Mehrwegoptionen eine Einwegalternative berücksichtigt.","Hierbei ist zu beachten, dass nicht für alle Mehrweggeschirroptionen eine Einwegalternative gefunden werden konnte und die Ergebnisse von Emissionen und Abfallmenge entsprechend zu deuten sind. Hierzu zählt/zählen: "&'Tab-Ergebnis-GWP-GV'!ER186),"Da im System ausschließlich Einweggeschirr ausgewählt wurde, ergeben sich keine Änderungen bei den Emissionen und der Abfallmenge.") -> Da im System ausschließlich Einweggeschirr ausgewählt wurde, ergeben sich keine Änderungen bei den Emissionen und der Abfallmenge.
C204: SZENARIO: ALTERNATIVE SPÜLOPTION
B207: ■ | C207: =IF(Haupttabelle!$CK$1="ja","Wäre entgegen Ihrer Auswahl keine Spüloption vor Ort vorhanden, so würden sich die Emissionen (GWP) um " & (ROUND(O235/O234*100,0))-100 & " % erhöhen auf " & TEXT(ROUND(O235,0),"#.##0") & " kg CO₂-Äq./Veranstaltung.","Wäre es entgegen Ihrer Auswahl doch möglich, eine Spüloption vor Ort zu ermöglichen, so würden sich die Emissionen (GWP) um " & 100-ROUND(O235/O234*100,0) & " % veringern auf " & TEXT(ROUND(O235,0),"#.##0") & " kg CO₂-Äq./Veranstaltung.") -> 
C208: (hierbei ist zu beachten, dass für die alternative Spüloption die Auswahl des Geschirrs unverändert bleibt, um vergleichbare Ergebnisse zu erzielen. Eine Änderung der Entfernung zum Spülen führt ggf. auch zu einer neuen Zusammenstellung von optimalem Geschirr. Um die tatsächlichen Emissionen bei alternativer Spüloption zu berechnen, gehen Sie zurück zur Eingabe im Sheet 'DSS' und ändern Sie das Auswahlfeld "Wie groß ist die Transportentfernung zum Spülen von Mehrwegeschirr?"
C224: SZENARIO: ALTERNATIVE TRANSPORTENTFERNUNGEN ZUM SPÜLEN
C225: (Änderung der Transportentfernung zum Spülen, um die Auswirkungen von Transporten im Zusammenhang mit der Geschirrnutzung aufzuzeigen)
B227: ■ | C227: Bei der Beurteilung unterschiedlicher Transportentfernungen ist zu beachten, dass für die Szenarien die Auswahl des Geschirrs unverändert bleibt, um vergleichbare Ergebnisse zu erzielen.
C228: (Eine Änderung der Entfernung zum Spülen (Auswahlfeld im DSS "Wie groß ist die Transportentfernung zum Spülen von Mehrweggeschirr") führt ggf. auch zu einer neuen Zusammenstellung von optimalem Geschirr.)
B229: ■ | C229: Für das Transportszenario 2 können Sie die Entfernung dynamisch anpassen. Wählen Sie dazu im folgenden Auswahlfeld die entsprechende Entfernung (einfache Distanz) aus.
F231: Transportentfernung in Transportszenario 2 (Bitte geben Sie die einfache Distanz zum Spülort an): | G231: 100 | H231: km
I232: Tab. 6: Vergleich der Gesamtemissionen des ausgewählten Einweg- und Mehrweggeschirrs in Abhängigkeit unterschiedlicher Transportentfernungen zum Spülen:
I233: Szenarien | J233: Distanz Anlieferung Einweggeschirr [km] | K233: Distanz Anlieferung Mehrweggeschirr* [km] | L233: Transportentfernung zum Spülen [km Hin- und Rückweg] | M233: Ressourcenverbrauch [ADP; kg Sb-Äq./Veranstaltung] | N233: Wassernutzung [WDP; m3/Veranstaltung] | O233: Klimawandel [GWP; kg CO2-Äq./Veranstaltung] | P233: Ver-änder-ung [%]
I234: ="Auswahl DSS " & IF(Haupttabelle!CK1="ja"," Entfernung zum Spülen: 0 km"," Entfernung zum Spülen: " & DSS!E107 & " km") -> Auswahl DSS Entfernung zum Spülen: 0 km | J234: =Haupttabelle!BZ4 -> 0 | K234: =IF(Haupttabelle!CK1="ja",J234,L234/2) -> 0 | L234: =IF(Haupttabelle!CK1="ja",0,'variable_Daten '!D103) -> 0 | M234: ='Tab-Ergebnis-GWP-GV'!DO102+'Tab-Ergebnis-GWP-GV'!DR102+'Tab-Ergebnis-GWP-GV'!DU102+'Tab-Ergebnis-GWP-GV'!DX102 -> 0 | N234: ='Tab-Ergebnis-GWP-GV'!DP102+'Tab-Ergebnis-GWP-GV'!DS102+'Tab-Ergebnis-GWP-GV'!DV102+'Tab-Ergebnis-GWP-GV'!DY102 -> 0 | O234: ='Tab-Ergebnis-GWP-GV'!DN102+'Tab-Ergebnis-GWP-GV'!DQ102+'Tab-Ergebnis-GWP-GV'!DT102+'Tab-Ergebnis-GWP-GV'!DW102 -> 0 | P234: 0
I235: ='Tab-Ergebnis-GWP-GV'!EE4 -> Transportszenario 1: Entfernung zum Spülen 60 km | J235: =Haupttabelle!BZ4 -> 0 | K235: =IF(Haupttabelle!CT4="ja",J235,L235/2) -> 60 | L235: =IF(L234=0,Haupttabelle!CF4,0) -> 120 | M235: ='Tab-Ergebnis-GWP-GV'!DO102+'Tab-Ergebnis-GWP-GV'!DR102+'Tab-Ergebnis-GWP-GV'!EF102+'Tab-Ergebnis-GWP-GV'!DX102 -> 0 | N235: ='Tab-Ergebnis-GWP-GV'!DP102+'Tab-Ergebnis-GWP-GV'!DS102+'Tab-Ergebnis-GWP-GV'!EG102+'Tab-Ergebnis-GWP-GV'!DY102 -> 0 | O235: ='Tab-Ergebnis-GWP-GV'!DN102+'Tab-Ergebnis-GWP-GV'!DQ102+'Tab-Ergebnis-GWP-GV'!EE102+'Tab-Ergebnis-GWP-GV'!DW102 -> 0 | P235: =O235/O234-1 -> 
I236: ='Tab-Ergebnis-GWP-GV'!EK4 -> Transportszenario 2: Entfernung zum Spülen 100 km | J236: =Haupttabelle!BZ4 -> 0 | K236: =G231 -> 100 | L236: =G231*2 -> 200 | M236: ='Tab-Ergebnis-GWP-GV'!DO102+'Tab-Ergebnis-GWP-GV'!DR102+'Tab-Ergebnis-GWP-GV'!EL102+'Tab-Ergebnis-GWP-GV'!DX102 -> 0 | N236: ='Tab-Ergebnis-GWP-GV'!DP102+'Tab-Ergebnis-GWP-GV'!DS102+'Tab-Ergebnis-GWP-GV'!EM102+'Tab-Ergebnis-GWP-GV'!DY102 -> 0 | O236: ='Tab-Ergebnis-GWP-GV'!DN102+'Tab-Ergebnis-GWP-GV'!DQ102+'Tab-Ergebnis-GWP-GV'!EK102+'Tab-Ergebnis-GWP-GV'!DW102 -> 0 | P236: =O236/O234-1 -> 
I237: ="* Zu beachten: Für Mehrweggeschirr wird angenommen, dass der Geschirrverleiher zugleich die Spüldienstleistung erbringt." & " Erfolgt die Reinigung des Mehrweggeschirrs nicht vor Ort, wird die einfache Entfernung zum Spülort als Anlieferungsdistanz berücksichtigt." & " Für die Anlieferung des Einweggeschirrs gilt die im DSS angegebene Anlieferungsdistanz von "&Haupttabelle!BZ4&" km." -> * Zu beachten: Für Mehrweggeschirr wird angenommen, dass der Geschirrverleiher zugleich die Spüldienstleistung erbringt. Erfolgt die Reinigung des Mehrweggeschirrs nicht vor Ort, wird die einfache Entfernung zum Spülort als Anlieferungsdistanz berücksichtigt. Für die Anlieferung des Einweggeschirrs gilt die im DSS angegebene Anlieferungsdistanz von 0 km.
I238: ="Sollte das Mehrweggeschirr jedoch von unterschiedlichen Anbietern bereitgestellt und gespült werden (nicht vor Ort), so würden aus der zusätzlichen Anlieferung über eine Entfernung von " & Haupttabelle!BZ4 & " km die folgenden Emissionen hierfür ebenfalls berücksichtigt werden müssen: " -> Sollte das Mehrweggeschirr jedoch von unterschiedlichen Anbietern bereitgestellt und gespült werden (nicht vor Ort), so würden aus der zusätzlichen Anlieferung über eine Entfernung von 0 km die folgenden Emissionen hierfür ebenfalls berücksichtigt werden müssen:
I239: ="GWP: " & ROUND('Tab-Ergebnis-GWP-GV'!G471,0) & " kg CO₂-Äq.; ADP: " & ROUND('Tab-Ergebnis-GWP-GV'!H471,4) & " kg Sb-Äq.; WDP: " & ROUND('Tab-Ergebnis-GWP-GV'!I471,1) & " m³" -> GWP: 0 kg CO₂-Äq.; ADP: 0 kg Sb-Äq.; WDP: 0 m³
B249: HINWEISE ZUR BERECHNUNG UND AUSWAHL SOWIE EINORDNUNG DER ERGEBNISSE
B251: ■ | C251: Sollte auf Basis der ausgewählten Anforderungen (z.B. "kein Einweg") bzw. Ihrer Kombination kein Geschirr in der Datenbank vorhanden sein, so wird die ökologisch vorteilhafteste Alternative gewählt auf Basis der Nutzungsspezifikation (z.B. "Tellergericht, groß"). Die ausgewählten Anforderungen werden dann nicht mehr berücksichtigt.
B252: ■ | C252: Für die Entsorgung des Geschirrs nach Nutzung bzw. am Ende des Lebenszyklus wird die Verwertung in einem Müllheizkraftwerk bilanziert. Das gilt sowohl für Einweg- als auch Mehrweggeschirr. Gutschriften für die Produktion von Strom und Wärme im Rahmen der energetischen Verwertung sind berücksichtigt.
B253: ■ | C253: Da die Anforderung "Branding des Geschirrs" ausgewählt wurde (Branding bei Tournee- und Eventbechern wie z.B. ein Festivallogo, Künstlerbranding oder individuelles Sportbranding), fließt dies in die Berechnung ein, allerdings ausschließlich für Trinkgefäße. Ein entsprechendes Branding hat Einfluss auf die Rücklaufquote von Bechern und damit auf die anzusetzende Umlaufzahl im Rahmen des Lebenszyklus der Becher. Ein genauer Wert für die Verringerung der Rücklaufquote durch Branding ist schwer abzuschätzen, diese ist abhängig von z.B. Exklusivität oder Popularität einer Veranstaltung. So ist bspw. die Rücklaufquote bei wiederkehrenden Sportereignissen wie der Fussball-Bundesliga höher als bei Einzelereignissen wie Konzerten. Für die Berechnung wird ein mittlerer Wert angenommen, dies ist bei der Interpretation der Ergebnisse zu berücksichtigen.
C254: =IF('variable_Daten '!B6=1,"In diesem Fall (einmalige Veranstaltung und Kauf von Geschirr) spielt das Branding für die Berechnung der Umweltwirkungen keine Rolle.","Für die Berechnung wird mit einer Rücklaufquote von "&ROUND(((1-(1/'variable_Daten '!H4))*100),0)&" % ("&'variable_Daten '!H4&" Umläufe) im Durchschnitt gerechnet.") -> Für die Berechnung wird mit einer Rücklaufquote von 67 % (3 Umläufe) im Durchschnitt gerechnet.
B255: ■ | C255: =IF(Haupttabelle!BZ4>0,"Für die Anlieferung von Einweggeschirr zur Veranstaltung wird eine Transportentfernung von " & Haupttabelle!BZ4 & " km bilanziert.","Eine Anlieferung von Einweggeschirr zur Veranstaltung erfolgt nicht.") -> Eine Anlieferung von Einweggeschirr zur Veranstaltung erfolgt nicht.
B256: ■ | C256: =IF(DSS!E107>0,"Da vor Ort keine Möglichkeit zum Spülen besteht, wird die einfache Entfernung zum Spülort sowohl für die Anlieferung als auch für den Rücktransport einbezogen. Es wird eine Transportentfernung zum Spülen des Mehrweggeschirrs von "&Haupttabelle!CF4&" km (Hin- und Rückweg) bei der Berechnung berücksichtigt.",IF(DSS!E103>0,"Da vor Ort eine Spüloption vorhanden ist, wird für das Mehrweggeschirr eine Anlieferungsentfernung von "&Haupttabelle!BZ4&" km berücksichtigt, ebenso für den Rücktransport. Es wird angenommen, dass der gesamte Tagesbedarf an Mehrweggeschirr angeliefert wird.","Eine Anlieferung von Mehrweggeschirr zur Veranstaltung erfolgt nicht.")) -> Eine Anlieferung von Mehrweggeschirr zur Veranstaltung erfolgt nicht.
B257: ■ | C257: Die Praxis zeigt, dass grundsätzlich davon ausgegangen werden kann, dass zu jedem Essen auch eine Serviette gereicht wird. In diesem Fall wurden weniger Servietten in die Eingabemaske des DSS eingetragen, als hinsichtlich der Gesamtmenge an Essen nötig. Ggf. müssten weitere Servietten berücksichtigt/eingeplant werden. Dies wäre mit zusätzlichen Emissionen für die Veranstaltung verbunden und ist bei der Beurteilung/Bewertung der Ergebnisse zu berücksichtigen.
C258: ="Anzahl zusätzlicher Servietten: " &TEXT( 'Tab-Ergebnis-GWP-GV'!G435,"#.##0") & " Stück; Bezeichnung: " & 'Tab-Ergebnis-GWP-GV'!B438 & "; zusätzliche Emissionen: GWP: " & TEXT(ROUND('Tab-Ergebnis-GWP-GV'!G440,0),"#.##0") & " kg CO₂-Äq./Veranstaltung; ADP: " & ROUND('Tab-Ergebnis-GWP-GV'!H440,5) & " kg Sb-Äq./Veranstaltung; WDP: " & TEXT(ROUND('Tab-Ergebnis-GWP-GV'!I440,0),"#.##0") & " m³/Veranstaltung." -> Anzahl zusätzlicher Servietten: 0 Stück; Bezeichnung: Serviette ungebleicht dünn; groß; Zellstoff; Einweg; 1,7g; zusätzliche Emissionen: GWP: 0 kg CO₂-Äq./Veranstaltung; ADP: 0 kg Sb-Äq./Veranstaltung; WDP: 0 m³/Veranstaltung.
B259: ■ | C259: ="Obwohl die Anforderung 'kein Einweg' ausgewählt wurde, ist eine Einwegserviette in die Bilanz einbezogen worden. Würde stattdessen eine Mehrwegserviette berücksichtigt, so wäre dies mit zusätzlichen Emissionen in Höhe von "&TEXT(ROUND('Tab-Ergebnis-GWP-GV'!G455,0),"#.##0")&" kg CO₂-Äq./Veranstaltung; ADP: "&ROUND('Tab-Ergebnis-GWP-GV'!H455,5)&" kg Sb-Äq./Veranstaltung; WDP: "&TEXT(ROUND('Tab-Ergebnis-GWP-GV'!I455,0),"#.##0")&" m³/Veranstaltung für eine "&'Tab-Ergebnis-GWP-GV'!B445&" verbunden (Ersatz ausgewählter Servietten plus ggf. zusätzliche Servietten). Dies sollte bei der Beurteilung/Bewertung der Ergebnisse berücksichtigt werden. " -> 
B260: ■ | C260: ="Vergleich: Die resultierenden Emissionen in Höhe von " & TEXT(ROUND(I12,0),"#.##0") &" kg CO₂-Äq./Veranstaltung entsprechen den Emissionen des Stromverbrauch eines 2-Personen-Haushalts über die Zeit von ca. " & ROUND(I12/(0.3927*3470),1) & " Jahren (ca. 3.470 kWh/Jahr; Berechnung mit bundesdeutschem Strommix)." -> Vergleich: Die resultierenden Emissionen in Höhe von 0 kg CO₂-Äq./Veranstaltung entsprechen den Emissionen des Stromverbrauch eines 2-Personen-Haushalts über die Zeit von ca. 0 Jahren (ca. 3.470 kWh/Jahr; Berechnung mit bundesdeutschem Strommix).
B261: ■ | C261: =IF('Tab-Ergebnis-GWP-GV'!DK421< 'Ergebnis-GWP-GV'!O234,"Entsprechend Ihrer Eingaben (ohne Berücksichtigung Ihrer spezifischen zusätzlichen Anforderungen an das Geschirr wie z.B. 'kein Plastik') ergibt sich eine ökologisch beste Geschirrauswahl, die mit Emissionen in Höhe von " &TEXT( ROUND('Tab-Ergebnis-GWP-GV'!DK421,0),"#.##0") & " kg CO₂-Äq./Veranstaltung verbunden ist. In dem Sie auf die von Ihnen gewählten zusätzlichen Anforderungen an das Geschirr (z.B. Material, Branding) verzichten, könnten weitere " & TEXT(ROUND(O234-'Tab-Ergebnis-GWP-GV'!DK421,0),"#.##0") & " kg CO₂-Äq./Veranstaltung eingespart werden. Dies entspricht einer Reduzierung um " & 100-ROUND('Tab-Ergebnis-GWP-GV'!DK421/O234*100,0) & " % (Basis für die Berechnung sind die in der Datenbank hinterlegten Geschirrarten und -typen).","Trotz der von Ihnen ggf. ausgewählten zusätzlichen Anforderungen an das Geschirr (z.B. 'kein Plastik') entspricht das Ergebnis der ökologisch besten Geschirrauswahl (Basis für die Berechnung sind die in der Datenbank hinterlegten Geschirrarten und -typen)") -> Trotz der von Ihnen ggf. ausgewählten zusätzlichen Anforderungen an das Geschirr (z.B. 'kein Plastik') entspricht das Ergebnis der ökologisch besten Geschirrauswahl (Basis für die Berechnung sind die in der Datenbank hinterlegten Geschirrarten und -typen)
B262: ■ | C262: =IF(AND(DSS!D31=Dropdownmenue!B8,DSS!D34=Dropdownmenue!B14),"Auf Basis ihrer Eingaben wird empfohlen, dass Sie für die Veranstaltung Geschirr leihen!",IF(AND(DSS!D31=Dropdownmenue!B8,DSS!D34=Dropdownmenue!B12),"Sie sollten eine Leihoption in Betracht ziehen. Dadurch könnten die Umweltwirkungen erheblich gesenkt werden",IF(AND(DSS!D31=Dropdownmenue!B8,DSS!D34=Dropdownmenue!B13),"Die Leihoption für Geschirr ist bei einmaligen Veranstaltungen die richtige Wahl!","Bei regelmäßigen/wiederkehrenden Veranstaltungen sind die Optionen 'kaufen' und 'leihen' gleichwertig bzw. die jeweilige Wahl hat keine Auswirkungen auf die Umweltwirkungen."))) -> Bei regelmäßigen/wiederkehrenden Veranstaltungen sind die Optionen 'kaufen' und 'leihen' gleichwertig bzw. die jeweilige Wahl hat keine Auswirkungen auf die Umweltwirkungen.
B263: ■ | C263: Bei der Verwendung bzw. Nutzung von Geschirr, insb. Mehrweggeschirr, sind die entsprechenden geltenden Hygienevorschriften zu beachten. Weitere Informationen hierzu sowie verschiedene Leitfäden und Studien für eine nachhaltige Veranstaltung finden Sie unter:
C264: https://www.iekrw.de/zocat-studien-leitfaeden/
B266: ZU BEACHTEN
C268: Die Ergebnisse dienen als Orientierung bei der Auswahl von nachhaltigem Geschirr. Dieses Tool erhebt keinen Anspruch auf Vollständigkeit! Dies ist u.a. darin begründet, dass verschiedene Geschirroptionen zur Berechnung in die Datenbank eingepflegt wurden, ggf. aber nicht alle am Markt zur Verfügung stehenden Geschirroptionen zur Auswahl berücksichtigt worden sind.
B270: KONTAKTDATEN
B272: Institut für Energie und Kreislaufwirtschaft an der Hochschule Bremen GmbH
B273: Neustadtswall 30
B274: 28199 Bremen
B275: https://www.iekrw.de
B277: Ansprechpartner:
B278: Prof. Dr. Martin Wittmaier
B279: +49 421 5905-2326
B280: zocat@iekrw.de
B281: https://www.iekrw.de/zocat/
B284: FÖRDERUNG
E286: Das Entscheidungstool wurde entwickelt im Rahmen des Projektes "Entwicklung und Erprobung eines indikatorgestützten Online-Entscheidungssystems zur Auswahl von nachhaltigem Geschirr für Großveranstaltungen" (zoCat - zukunftsorientiertes Catering). Das Vorhaben wird fachlich und finanziell unterstützt durch die Deutsche Bundesstiftung Umwelt (DBU), Osnabrück

Sheet DSS
D6: DECISION SUPPORT SYSTEM (DSS)
B9: NUTZUNGSHINWEISE
B12: 1. | C12: Bitte tragen Sie in die blau hinterlegten Felder die Informationen (Rahmenbedingen) der Veranstaltung ein, für die eine nachhaltige Geschirrauswahl ermittelt werden soll. Geben Sie bitte auch die täglichen Mengen an spezifischem Geschirr oder Gerichten/Getränken/Sonstiges an.
B13: 2. | C13: Wählen Sie über die Kontrollkästchen weitere Anforderungen an das Geschirr aus.
B14: 3. | C14: Für weitere Informationen und Erläuterungen lesen Sie bitte die "Hinweise zur Nutzung des DSS zur Auswahl von nachhaltigem Geschirr für Großveranstaltungen".
B15: 4. | C15: Erläuterungen der Berechnungsgrundlagen finden Sie unter "Grundlagen und Methodik zur Bewertung von nachhaltigem Geschirr".
B19: ENTSCHEIDUNGSTOOL ZUR AUSWAHL VON NACHHALTIGEM GESCHIRR
D21: Art der Veranstaltung:
D22: Großveranstaltung (z.B. Festival, Messe, Konzert)
D24: Dauer der Veranstaltung:
F25: (Angabe in Tagen)
D27: Anzahl der Besucher:innen
F28: (Angabe pro Tag)
D30: Ist die Veranstaltung einmalig oder ist es eine regelmäßige, wiederkehrende Veranstaltung?
D33: Planen Sie den Kauf von Geschirr? Oder ist Leihen eine Option?
B36: Im folgenden wird detailliert Ihr Geschirrbedarf für die Veranstaltung abgefragt. Geben Sie bitte die jeweiligen Mengen an Geschirr für Essen, Getränke und sonstiges Zubehör pro Veranstaltungstag an. Die Gesamtmengen werden später berechnet.
D38: Geschirrbedarf für Essen:
E39: Produkt / Geschirrmodell | F39: Menge pro Tag [Anzahl Essen oder Geschirr] | H39: Doppelte Werte
E40: =Dropdownmenue!B16 -> (Döner)-Tasche / Pita | H40: =COUNTIF($E$40:$E$60,E40) -> 1
E41: =Dropdownmenue!B17 -> Bratwurst | H41: =COUNTIF($E$40:$E$60,E41) -> 1
E42: =Dropdownmenue!B18 -> Burger | H42: 1
E43: =Dropdownmenue!B19 -> Currys / Bowls | H43: 1
E44: =Dropdownmenue!B20 -> Currywurst | H44: 1
E45: =Dropdownmenue!B21 -> Eis | H45: 1
E46: =Dropdownmenue!B22 -> Pizza (Stück) / Pide / Crêpes | H46: 1
E47: =Dropdownmenue!B23 -> Pizza / Flammkuchen (groß, komplett) | H47: 1
E48: =Dropdownmenue!B24 -> Pommes | H48: 1
E49: =Dropdownmenue!B25 -> Suppen / Eintöpfe | H49: 1
E50: =Dropdownmenue!B26 -> Wraps / Falafel / Lahmacun / Rollo / Sandwich | H50: 1
E51: =Dropdownmenue!B27 -> --- SONSTIGE ESSEN --- | H51: 1
E52: =Dropdownmenue!B28 -> Bowl, groß, > 750 ml | H52: 1
E53: =Dropdownmenue!B29 -> Bowl, klein, < 750 ml | H53: 1
E54: =Dropdownmenue!B30 -> Essen auf die Hand (Fettpapier, Serviette, usw.) | H54: 1
E55: =Dropdownmenue!B31 -> Gericht am Spieß | H55: 1
E56: =Dropdownmenue!B32 -> Gericht aus Gefäß (Becher, Glas), groß | H56: 1
E57: =Dropdownmenue!B33 -> Gericht aus Gefäß (z.B. für Probierportion, Fingerfood), klein | H57: 1
E58: =Dropdownmenue!B34 -> Gericht aus Snackbox | H58: 1
E59: =Dropdownmenue!B35 -> Tellergericht, groß, > 22 cm
E60: =Dropdownmenue!B36 -> Tellergericht, klein, < 22 cm | H60: 1
E61: Summe | F61: =SUM(F40:F60) -> 0
D63: Geschirrbedarf für Getränke:
E64: Modell | F64: Menge/Tag
E65: =Dropdownmenue!C16 -> Heißgetränk, Kaffee, 0,2 - 0,25 L | H65: =COUNTIF($E$65:$E$77,E65) -> 1
E66: =Dropdownmenue!C17 -> Heißgetränk, Kaffee, 0,3 L (oder größer) | H66: =COUNTIF($E$65:$E$77,E66) -> 1
E67: =Dropdownmenue!C18 -> Kaltgetränk, Becher, 0,2 L (Cocktail) | H67: 1
E68: =Dropdownmenue!C19 -> Kaltgetränk, Becher, 0,2 L (z.B. Bier, Wasser) | H68: 1
E69: =Dropdownmenue!C20 -> Kaltgetränk, Becher, 0,3 L (Cocktail) | H69: 1
E70: =Dropdownmenue!C21 -> Kaltgetränk, Becher, 0,3 L (z.B. Bier, Wasser) | H70: 1
E71: =Dropdownmenue!C22 -> Kaltgetränk, Becher, 0,4 L (Cocktail) | H71: 1
E72: =Dropdownmenue!C23 -> Kaltgetränk, Becher, 0,4 L (z.B. Bier, Wasser) | H72: 1
E73: =Dropdownmenue!C24 -> Kaltgetränk, Becher, 0,5 L (Cocktail) | H73: 1
E74: =Dropdownmenue!C25 -> Kaltgetränk, Becher, 0,5 L (z.B. Bier, Wasser) | H74: 1
E75: =Dropdownmenue!C26 -> Kaltgetränk, Becher, 1,0 L (z.B. Bier, Wasser) | H75: 1
E76: =Dropdownmenue!C27 -> Sektglas | H76: 1
E77: =Dropdownmenue!C28 -> Shot | H77: 1
E78: =Dropdownmenue!C29 -> Weinglas / Aperitif
E79: Summe | F79: =SUM(F65:F78) -> 0
D81: Geschirrzubehör / Sonstiges:
E82: Modell | F82: Menge/Tag
E83: =Dropdownmenue!D16 -> Gabeln | H83: =COUNTIF($E$83:$E$90,E83) -> 1
E84: =Dropdownmenue!D17 -> Löffel, groß | H84: =COUNTIF($E$83:$E$90,E84) -> 1
E85: =Dropdownmenue!D18 -> Löffel, klein | H85: 1
E86: =Dropdownmenue!D19 -> Messer | H86: 1
E87: =Dropdownmenue!D20 -> Piekser | H87: 1
E88: =Dropdownmenue!D21 -> Servietten | H88: 1
E89: =Dropdownmenue!D22 -> Spieß (Schmalzkuchen) | H89: 1
E90: =Dropdownmenue!D23 -> Strohhalme | H90: 1
E91: Summe | F91: =SUM(F83:F90) -> 0
D93: Zusätzliche Anforderungen an das Material (sofern Option vorhanden):
F95: …weitere Informationen!
D101: Wie groß ist die Transportentfernung zur Anlieferung von Geschirr?
D102: Sofern Sie bereits einen Geschirranbieter haben oder absehen können, von wem Sie Geschirr beziehen werden, geben Sie bitte die einfache (ggf. durchschnittliche) Distanz zur Anlieferung von Geschirr an. Falls hierzu keine Informationen vorliegen, schätzen Sie die Entfernung ab. Sollte bereits Geschirr vor Ort sein, also keine Anlieferung nötig sein, so wählen Sie bitte den Wert "0".
F103: km
D105: Wie groß ist die Transportentfernung zum Spülen von Mehrwegeschirr?
D106: Bitte geben Sie die einfache Distanz zum Spülort an. Sofern eine Spüloption vor Ort vorhanden ist, so wählen Sie bitte den Wert "0". Es wird davon ausgegangen, dass für Mehrweggeschirr die Distanz zum Spülen auch der Anlieferungsdistanz entspricht. Daher wird, sofern keine Spüloption vor Ort vorhanden ist, die Transportentfernung zum Spülen auch für die Anlieferung von Mehrweggeschirr angesetzt. Hinweis: Im Ergebnisblatt können Sie die Umweltwirkungen für alternative Transportentfernungen im Vergleich berechnen lassen.
F107: km
D108: Bitte geben Sie an, zu welchen Anteilen [in %] eine Spülstraße, Industriespülmaschine oder Handspülen genutzt wird.
D109: Sollte keine Angabe zu den Anteilen der Spüloption möglich sein, so wählen Sie bitte die Option "keine Angabe zu Anteilen der Spüloptionen möglich." aus. Das System rechnet dann mit einer durchschnittichen Verteilung der Spüloptionen. Bitte beachten: Sofern diese Option ausgwählt ist, werden die Angaben in den Feldern zu den Anteilen der unterschiedlichen Spüloptionen nicht in die Berechnung einbezogen!
E110: - Spülstraße | F110: 0.74
E111: - Industriespülmaschine | F111: 0.13
E112: - Spülen per Hand | F112: 0.13
D115: Wie hoch fällt voraussichtlich die Rücklaufquote von Mehrweggeschirr aus?
D116: Je nach Kontext einer Veranstaltung können die Rücklaufquoten von Mehrweggeschirr, und damit die letztlichen Umlaufzahlen des Geschirrs über den Lebenszyklus, unterschiedlich ausfallen. Bitte schätzen Sie ab, welche Rücklaufquoten zu erwarten sind.
F117: …weitere Informationen!
D119: Ist auf Getränkebechern ein Branding vorhanden / geplant?
D120: Gemeint ist ein Branding wie z.B. ein Festivallogo, Künstlerbranding für Tourneen oder individuelles Sportbranding. Ein Branding von z.B. einer Brauerei ist nicht gemeint. In dieser Berechnung wird das Branding ausschließlich auf Trinkgefäße angewendet.
D123: Auswahl der Wirkungskategorie (Berechnungsgrundlage)
D124: Die Berechnung der Auswahl von nachhaltigem Geschirr kann auf Grundlage verschiedener Wirkungskategorien erfolgen. Diese sind:
E125: - Klimwandel (Treibhauseffekt, Global Warming Potential [GWP])
E126: - Ressourcenverbrauch (Abiotic Depletion Potential [ADP]) | F126: …weitere Informationen!
E127: - Wassernutzung (Water Deprivation Potential [WDP])
D129: Bitte wählen Sie die Wirkungskategorie, auf deren Basis die Ergebnisse generiert werden sollen.
D130: Klimawandel
B137: KONTAKTDATEN
B139: Institut für Energie und Kreislaufwirtschaft an der Hochschule Bremen GmbH
B140: Neustadtswall 30
B141: 28199 Bremen
B142: https://www.iekrw.de
B144: Ansprechpartner:
B145: Prof. Dr. Martin Wittmaier
B146: +49 421 5905-2326
B147: zocat@iekrw.de
B148: https://www.iekrw.de/zocat/
B151: FÖRDERUNG
E153: Das Entscheidungstool wurde entwickelt im Rahmen des Projektes "Entwicklung und Erprobung eines indikatorgestützten Online-Entscheidungssystems zur Auswahl von nachhaltigem Geschirr für Großveranstaltungen" (zoCat - zukunftsorientiertes Catering). Das Vorhaben wird fachlich und finanziell unterstützt durch die Deutsche Bundesstiftung Umwelt (DBU), Osnabrück
N287: M

Sheet Haupttabelle (hidden)
CI1: Spüloption vor Ort | CK1: =IF(DSS!E107=0,"ja","nein") -> ja | CL1: Mülltrennung | CN1: nein
B2: Einträge nicht im DSS auswählbar | BY2: Transport [km] | DN2: GESAMTWERTE in BEZUG auch auf die Geschirranzahl | EH2: CO₂-eq Rechner
B3: Neue Einträge müssen noch in den CO2-Rechner übertragen werden | K3: Emissionen | O3: Attribute | V3: Entsorgung | AB3: Gerichte | AM3: Geschirr | AW3: Getränke | BL3: Sonstiges | BY3: Anlieferung Einweg | CB3: Anlieferung Mehrweg | CE3: Spülen Mehrweg | CI3: Emissionen fix (Nutzung +Spülen) | CL3: Gesamt Emissionen | CO3: Gesamt Emissionen | CR3: Emissionen Transportszenario / Spülszenario | CU3: Emissionen Transportszenario | CY3: Emissionen (Nutzung) | DB3: Emissionen (Spülen) | DE3: Emissionen (Transport) | DH3: Emissionen (Entsorgung) | DK3: Emissionen gesamt | DN3: Emissionen (Nutzung) | DQ3: Emissionen (Spülen) | DT3: Emissionen (Transport) | DW3: Emissionen (Entsorgung) | EH3: Transport [km] | EI3: 0
K4: Emissionen für eine Nutzung inkl. Spülen ohne Entsorgung ohne Transport zur Spüllogistik | V4: getrennt | Y4: nicht getrennt | AW4: Heißgetränke | AZ4: Kaltgetränke | BE4: Shot | BF4: Cocktail | BJ4: Wein | BK4: Sekt | BZ4: ='variable_Daten '!B103 -> 0 | CA4: km | CC4: ='variable_Daten '!C103 -> 0 | CD4: km | CF4: =IF(CK1="ja",'variable_Daten '!D104,'variable_Daten '!D103) -> 120 | CG4: km | CI4: Emissionen für eine Nutzung inkl. Spülen ohne Entsorgung ohne Transport zur Spüllogistik | CL4: Emissionen für eine Nutzung inkl. Spülen Entsorgung und Transport | CO4: Emissionen für eine Nutzung inkl. Spülen, Entsorgung und Transport HIER MIT GEGENTEILIGEM WERT FÜR SPÜLEN VOR ORT | CR4: Emissionen für Transport: Spüloption vor Ort (Gegenteiligiges Szenario) | CT4: =IF(CK1="nein","ja","nein") -> nein | CU4: Höhere Transportentfernung Spülen Mehrweg | CW4: =IF(DSS!D130="Klimawandel",'Ergebnis-GWP-GV'!G231*2,IF(DSS!D130="Ressourcenverbrauch",'Ergebnis-ADP-GV'!G231*2,IF(DSS!D130="Wassernutzung",'Ergebnis-WDP-GV'!G231*2))) -> 200 | CX4: KORREKTURFAKTOR | CY4: Emissionen für Herstellung/Nutzung | DB4: Emissionen für Spülen | DE4: Emissionen für Transport | DH4: Emissionen für Entsorgung | DK4: GESAMT - Prüfung | DN4: Herstellung/Nutzung | DQ4: Spülen | DT4: Transport | DW4: Entsorgung/Verwertung | EH4: Umlaufzahl | EI4: 50 | EK4: Bezeichnung | EL4: Bemerkung
B5: Gewicht Deckel, wenn der Deckel aus einem anderen Material besteht [kg] | C5: Rubrik | D5: Link zum Produkt | E5: Bemerkung (Marken; Ort) | F5: Bennenung | G5: Geschirr | H5: Umlauf- zahl | I5: Material | J5: Gewicht [kg] | K5: GWP in [kg CO2-eq.] | L5: ADP in [kg Sb-eq] | M5: WCP in [m³] | N5: Mehrweg/ Einweg | O5: kein Einweg | P5: essbar | Q5: bio- logisch abbau- bar | R5: kein Kunststoff | S5: kein Glas/ Keramik | T5: TRUE | U5: Entsorgungswege getrennt Restabfall, Kunststoff, … | V5: GWP in [kg CO2-eq.] | W5: ADP in [kg Sb-eq] | X5: WCP in [m³] | Y5: GWP in [kg CO2-eq.] | Z5: ADP in [kg Sb-eq] | AA5: WCP in [m³] | AB5: Suppen, Eintöpfe, | AC5: Currys, Bowls | AD5: ganze Pizza, Flamm-kuchen | AE5: Pizza Stück Crêpe Pide | AF5: Wraps, Falafel Lamacun, Rollo Sandwich | AG5: Burger | AH5: (Döner-) Tasche, Pita | AI5: Pommes | AJ5: Curry-wurst | AK5: Bratwurst | AL5: Eis | AM5: Bowl klein, < 750 ml | AN5: Bowl groß, > 750 ml | AO5: Essen auf die Hand | AP5: Gericht am Spieß | AQ5: Gericht aus Becher, groß | AR5: Gericht aus Becher, klein | AS5: Gericht aus Snack- box | AT5: Teller-gericht, groß, >22 cm | AU5: Teller- gericht, klein, <22 cm | AV5: 0,1 l | AW5: 0,2 l | AX5: 0,3 l | AY5: 0,4 l | AZ5: 0,2 l | BA5: 0,3 l | BB5: 0,4 l | BC5: 0,5 l | BD5: 1,0 l | BE5: Schnapsglas | BF5: 0,2 l | BG5: 0,3 l | BH5: 0,4 l | BI5: 0,5 l | BJ5: Wein-glas | BK5: Sektglas | BL5: Serviette | BM5: Trink-halm | BN5: Messer | BO5: Gabel | BP5: Löffel, groß | BQ5: Löffel, klein | BR5: Spieß | BS5: Piekser | BT5: Rühr-stäbchen | BU5: To- go- Deckel | BV5: Trage-tasche | BW5: Flaggen/ Fingerfood- spieß | BX5: Essen´s Spieß | BY5: GWP in [kg CO2-eq.] | BZ5: ADP in [kg Sb-eq] | CA5: WCP in [m³] | CB5: GWP in [kg CO2-eq.] | CC5: ADP in [kg Sb-eq] | CD5: WCP in [m³] | CE5: GWP in [kg CO2-eq.] | CF5: ADP in [kg Sb-eq] | CG5: WCP in [m³] | CH5: Umlauf- zahl | CI5: GWP in [kg CO2-eq.] | CJ5: ADP in [kg Sb-eq] | CK5: WCP in [m³] | CL5: GWP in [kg CO2-eq.] | CM5: ADP in [kg Sb-eq] | CN5: WCP in [m³] | CO5: GWP in [kg CO2-eq.] | CP5: ADP in [kg Sb-eq] | CQ5: WCP in [m³] | CR5: GWP in [kg CO2-eq.] | CS5: ADP in [kg Sb-eq] | CT5: WCP in [m³] | CU5: GWP in [kg CO2-eq.] | CV5: ADP in [kg Sb-eq] | CW5: WCP in [m³] | CX5: für essbares Geschirr. Der Anteil des Geschirrs, der gegessen wird, wird als Lebensmittel rausgerechnet. | CY5: GWP in [kg CO2-eq.] | CZ5: ADP in [kg Sb-eq] | DA5: WCP in [m³] | DB5: GWP in [kg CO2-eq.] | DC5: ADP in [kg Sb-eq] | DD5: WCP in [m³] | DE5: GWP in [kg CO2-eq.] | DF5: ADP in [kg Sb-eq] | DG5: WCP in [m³] | DH5: GWP in [kg CO2-eq.] | DI5: ADP in [kg Sb-eq] | DJ5: WCP in [m³] | DK5: GWP in [kg CO2-eq.] | DL5: ADP in [kg Sb-eq] | DM5: WCP in [m³] | DN5: GWP in [kg CO2-eq.] | DO5: ADP in [kg Sb-eq] | DP5: WCP in [m³] | DQ5: GWP in [kg CO2-eq.] | DR5: ADP in [kg Sb-eq] | DS5: WCP in [m³] | DT5: GWP in [kg CO2-eq.] | DU5: ADP in [kg Sb-eq] | DV5: WCP in [m³] | DW5: GWP in [kg CO2-eq.] | DX5: ADP in [kg Sb-eq] | DY5: WCP in [m³] | EA5: Doppelte Einträge? | EH5: GWP [kg CO2-eq.] | EI5: GWP [kg CO2-eq.] pro Serviette | EJ5: GWP [kg CO2-eq.] inkl. Serviette
G6: Becher [l]
C7: Becher | F7: Schnapsglas; 0,02 l; PS, Einweg; 2,4g | G7: 0.02 | H7: 1 | I7: PS | J7: =2.3757/1000 -> 0.0023757 | K7: =gesamt_Emissionen!$J$8*J7 -> 0.01013253868 | L7: =gesamt_Emissionen!$R$8*J7 -> 5.961771636e-09 | M7: =gesamt_Emissionen!$Z$8*J7 -> 0.01008057939 | N7: E | O7: FALSE | P7: FALSE | Q7: FALSE | R7: FALSE | S7: TRUE | T7: TRUE | U7: Kunststoff | V7: =(gesamt_Emissionen!$F$8*'variable_Daten '!$F$20 +(gesamt_Emissionen!$G$8+gesamt_Emissionen!$H$8)*'variable_Daten '!$G$20) *J7 -> 0.0006641230547 | W7: =(gesamt_Emissionen!$N$8*'variable_Daten '!$F$20 +(gesamt_Emissionen!$O$8+gesamt_Emissionen!$P$8)*'variable_Daten '!$G$20) *J7 -> -4.434552073e-09 | X7: =(gesamt_Emissionen!$V$8*'variable_Daten '!$F$20 +(gesamt_Emissionen!$W$8+gesamt_Emissionen!$X$8)*'variable_Daten '!$G$20) *J7 -> 5.51254366e-05 | Y7: =(gesamt_Emissionen!$F$8*'variable_Daten '!$D$20 +(gesamt_Emissionen!$G$8+gesamt_Emissionen!$H$8)*'variable_Daten '!$E$20) *J7 -> 0.0006641230547 | Z7: =(gesamt_Emissionen!$N$8*'variable_Daten '!$D$20 +(gesamt_Emissionen!$O$8+gesamt_Emissionen!$P$8)*'variable_Daten '!$E$20) *J7 -> -4.434552073e-09 | AA7: =(gesamt_Emissionen!$V$8*'variable_Daten '!$D$20 +(gesamt_Emissionen!$W$8+gesamt_Emissionen!$X$8)*'variable_Daten '!$E$20) *J7 -> 5.51254366e-05 | AB7: nein | AC7: nein | AD7: nein | AE7: nein | AF7: nein | AG7: nein | AH7: nein | AI7: nein | AJ7: nein | AK7: nein | AL7: nein | AM7: nein | AN7: nein | AO7: nein | AP7: nein | AQ7: nein | AR7: nein | AS7: nein | AT7: nein | AU7: nein | AV7: nein | AW7: nein | AX7: nein | AY7: nein | AZ7: nein | BA7: nein | BB7: nein | BC7: nein | BD7: nein | BE7: ja | BF7: nein | BG7: nein | BH7: nein | BI7: nein | BJ7: nein | BK7: nein | BL7: nein | BM7: nein | BN7: nein | BO7: nein | BP7: nein | BQ7: nein | BR7: nein | BS7: nein | BT7: nein | BU7: nein | BV7: nein | BW7: nein | BX7: nein | BY7: =(Datensätze_Sonstige!$O$16/1000)*J7*$BZ$4 -> 0 | BZ7: =(Datensätze_Sonstige!$V$16/1000)*J7*$BZ$4 -> 0 | CA7: =(Datensätze_Sonstige!$W$16/1000)*J7*$BZ$4 -> 0 | CB7: =(Datensätze_Sonstige!$O$16/1000)*J7*$CC$4 -> 0 | CC7: =(Datensätze_Sonstige!$V$16/1000)*J7*$CC$4 -> 0 | CD7: =(Datensätze_Sonstige!$W$16/1000)*J7*$CC$4 -> 0 | CE7: =(Datensätze_Sonstige!$O$16/1000)*J7*$CF$4 -> 0.0001626888863 | CF7: =(Datensätze_Sonstige!$V$16/1000)*J7*$CF$4 -> 7.239993264e-10 | CG7: =(Datensätze_Sonstige!$W$16/1000)*J7*$CF$4 -> 1.279171908e-05 | CH7: =H7 -> 1 | CI7: =gesamt_Emissionen!$J$8*J7 -> 0.01013253868 | CJ7: =gesamt_Emissionen!$R$8*J7 -> 5.961771636e-09 | CK7: =gesamt_Emissionen!$Z$8*J7 -> 0.01008057939 | CL7: =CI7+BY7+IF($CN$1="ja",V7,Y7) -> 0.01079666173 | CM7: 1.527219563e-09 | CN7: 0.01013570482 | CO7: =CI7+BY7+IF($CN$1="ja",V7,Y7) -> 0.01079666173 | CP7: 1.527219563e-09 | CQ7: 0.01013570482 | CR7: =IF($N7="M",IF($CT$4="ja",CB7,CE7),BY7) -> 0 | CS7: =IF($N7="M",IF($CT$4="ja",CC7,CF7),BZ7) -> 0 | CT7: =IF($N7="M",IF($CT$4="ja",CD7,CG7),CA7) -> 0 | CU7: =IF($N7="M",(Datensätze_Sonstige!$O$16/1000)*J7*$CW$4,BY7) -> 0 | CV7: =IF($N7="M",(Datensätze_Sonstige!$V$16/1000)*J7*$CW$4,BZ7) -> 0 | CW7: =IF($N7="M",(Datensätze_Sonstige!$W$16/1000)*J7*$CW$4,CA7) -> 0 | CY7: =gesamt_Emissionen!$J$8*J7 -> 0.01013253868 | CZ7: =gesamt_Emissionen!$R$8*J7 -> 5.961771636e-09 | DA7: =gesamt_Emissionen!$Z$8*J7 -> 0.01008057939 | DB7: 0 | DC7: 0 | DD7: 0 | DE7: =BY7 -> 0 | DF7: =BZ7 -> 0 | DG7: 0 | DH7: =IF($CN$1="ja",V7,Y7) -> 0.0006641230547 | DI7: =IF($CN$1="ja",W7,Z7) -> -4.434552073e-09 | DJ7: =IF($CN$1="ja",X7,AA7) -> 5.51254366e-05 | DK7: =CY7+DB7+DE7+DH7 -> 0.01079666173 | DL7: 1.527219563e-09 | DM7: 0.01013570482 | EA7: =COUNTIF($CL$7:$CL$1026,CL7) -> 1 | EH7: =(gesamt_Emissionen!$J$8+ (gesamt_Emissionen!$G$8+gesamt_Emissionen!$H$8))*$J7+(Datensätze_Sonstige!$O$16/1000)*$J7*$EI$3 -> 0.01079666173 | EJ7: =EH7+EI7 -> 0.01079666173 | EK7: =F7 -> Schnapsglas; 0,02 l; PS, Einweg; 2,4g
C8: Becher | F8: Schnapsglas; 0,02 l; PP; Einweg; 1,0g | G8: Schnapsglas [0,02 l] | H8: 1 | I8: PP | J8: =0.9921/1000 -> 0.0009921 | K8: =gesamt_Emissionen!$J$6*J8 -> 0.002953655317 | L8: =gesamt_Emissionen!$R$6*J8 -> 2.326196712e-08 | M8: =gesamt_Emissionen!$Z$6*J8 -> 0.002472733702 | N8: E | O8: FALSE | P8: FALSE | Q8: FALSE | R8: FALSE | S8: TRUE | T8: TRUE | U8: Kunststoff | V8: =(gesamt_Emissionen!$F$6*'variable_Daten '!$F$20 +(gesamt_Emissionen!$G$6+gesamt_Emissionen!$H$6)*'variable_Daten '!$G$20) *J8 -> 0.0002773399346 | W8: =(gesamt_Emissionen!$N$6*'variable_Daten '!$F$20 +(gesamt_Emissionen!$O$6+gesamt_Emissionen!$P$6)*'variable_Daten '!$G$20) *J8 -> -1.851883281e-09 | X8: =(gesamt_Emissionen!$V$6*'variable_Daten '!$F$20 +(gesamt_Emissionen!$W$6+gesamt_Emissionen!$X$6)*'variable_Daten '!$G$20) *J8 -> 2.302056053e-05 | Y8: =(gesamt_Emissionen!$F$6*'variable_Daten '!$D$20 +(gesamt_Emissionen!$G$6+gesamt_Emissionen!$H$6)*'variable_Daten '!$E$20) *J8 -> 0.0002773399346 | Z8: =(gesamt_Emissionen!$N$6*'variable_Daten '!$D$20 +(gesamt_Emissionen!$O$6+gesamt_Emissionen!$P$6)*'variable_Daten '!$E$20) *J8 -> -1.851883281e-09 | AA8: =(gesamt_Emissionen!$V$6*'variable_Daten '!$D$20 +(gesamt_Emissionen!$W$6+gesamt_Emissionen!$X$6)*'variable_Daten '!$E$20) *J8 -> 2.302056053e-05 | AB8: nein | AC8: nein | AD8: nein | AE8: nein | AF8: nein | AG8: nein | AH8: nein | AI8: nein | AJ8: nein | AK8: nein | AL8: nein | AM8: nein | AN8: nein | AO8: nein | AP8: nein | AQ8: nein | AR8: nein | AS8: nein | AT8: nein | AU8: nein | AV8: nein | AW8: nein | AX8: nein | AY8: nein | AZ8: nein | BA8: nein | BB8: nein | BC8: nein | BD8: nein | BE8: ja | BF8: nein | BG8: nein | BH8: nein | BI8: nein | BJ8: nein | BK8: nein | BL8: nein | BM8: nein | BN8: nein | BO8: nein | BP8: nein | BQ8: nein | BR8: nein | BS8: nein | BT8: nein | BU8: nein | BV8: nein | BW8: nein | BX8: nein | BY8: =(Datensätze_Sonstige!$O$16/1000)*J8*$BZ$4 -> 0 | BZ8: =(Datensätze_Sonstige!$V$16/1000)*J8*$BZ$4 -> 0 | CA8: =(Datensätze_Sonstige!$W$16/1000)*J8*$BZ$4 -> 0 | CB8: =(Datensätze_Sonstige!$O$16/1000)*J8*$CC$4 -> 0 | CC8: =(Datensätze_Sonstige!$V$16/1000)*J8*$CC$4 -> 0 | CD8: =(Datensätze_Sonstige!$W$16/1000)*J8*$CC$4 -> 0 | CE8: =(Datensätze_Sonstige!$O$16/1000)*J8*$CF$4 -> 6.793940484e-05 | CF8: =(Datensätze_Sonstige!$V$16/1000)*J8*$CF$4 -> 3.023444592e-10 | CG8: =(Datensätze_Sonstige!$W$16/1000)*J8*$CF$4 -> 5.34186324e-06 | CH8: =H8 -> 1 | CI8: =gesamt_Emissionen!$J$6*J8 -> 0.002953655317 | CJ8: =gesamt_Emissionen!$R$6*J8 -> 2.326196712e-08 | CK8: =gesamt_Emissionen!$Z$6*J8 -> 0.002472733702 | CL8: 0.003230995252 | CM8: 2.141008384e-08 | CN8: 0.002495754262 | CO8: 0.003230995252 | CP8: 2.141008384e-08 | CQ8: 0.002495754262 | CR8: =IF($N8="M",IF($CT$4="ja",CB8,CE8),BY8) -> 0 | CS8: =IF($N8="M",IF($CT$4="ja",CC8,CF8),BZ8) -> 0 | CT8: =IF($N8="M",IF($CT$4="ja",CD8,CG8),CA8) -> 0 | CU8: =IF($N8="M",(Datensätze_Sonstige!$O$16/1000)*J8*$CW$4,BY8) -> 0 | CV8: =IF($N8="M",(Datensätze_Sonstige!$V$16/1000)*J8*$CW$4,BZ8) -> 0 | CW8: =IF($N8="M",(Datensätze_Sonstige!$W$16/1000)*J8*$CW$4,CA8) -> 0 | CY8: =gesamt_Emissionen!$J$6*J8 -> 0.002953655317 | CZ8: =gesamt_Emissionen!$R$6*J8 -> 2.326196712e-08 | DA8: =gesamt_Emissionen!$Z$6*J8 -> 0.002472733702 | DB8: 0 | DC8: 0 | DD8: 0 | DE8: 0 | DF8: 0 | DG8: 0 | DH8: 0.0002773399346 | DI8: -1.851883281e-09 | DJ8: 2.302056053e-05 | DK8: 0.003230995252 | DL8: 2.141008384e-08 | DM8: 0.002495754262 | EA8: 1 | EH8: =(gesamt_Emissionen!$J$6+ (gesamt_Emissionen!$F$6*'variable_Daten '!$H$20+(gesamt_Emissionen!$G$6+gesamt_Emissionen!$H$6)*'variable_Daten '!$I$20))*$J8+(Datensätze_Sonstige!$O$16/1000)*$J8*$EI$3 -> 0.003230995252 | EJ8: 0.003230995252 | EK8: =F8 -> Schnapsglas; 0,02 l; PP; Einweg; 1,0g
C9: Becher | E9: Summer Sounds 2022 | F9: Schnapsglas; 0,02 l; PS; Mehrweg; 11,42g | G9: 0.02 | H9: ='variable_Daten '!$B$6 -> 0 | I9: PS | J9: =11.4209/1000 -> 0.0114209 | K9: =((gesamt_Emissionen!$J$8*J9)/H9)+Berechnungen_u._Annahmen!$C$45 ->  | L9: =((gesamt_Emissionen!$R$8*J9)/H9)+Berechnungen_u._Annahmen!$E$45 ->  | M9: =((gesamt_Emissionen!$Z$8*J9)/H9)+Berechnungen_u._Annahmen!$G$45 ->  | N9: M | O9: TRUE | P9: FALSE | Q9: FALSE | R9: FALSE | S9: TRUE | T9: TRUE | U9: Kunststoff | V9: =((gesamt_Emissionen!$F$8*'variable_Daten '!$F$19 +(gesamt_Emissionen!$G$8+gesamt_Emissionen!$H$8)*'variable_Daten '!$G$19) *J9)/H9 ->  | W9: =((gesamt_Emissionen!$N$8*'variable_Daten '!$F$19 +(gesamt_Emissionen!$O$8+gesamt_Emissionen!$P$8)*'variable_Daten '!$G$19) *J9)/H9 ->  | X9: =((gesamt_Emissionen!$V$8*'variable_Daten '!$F$19 +(gesamt_Emissionen!$W$8+gesamt_Emissionen!$X$8)*'variable_Daten '!$G$19) *J9)/H9 ->  | Y9: =((gesamt_Emissionen!$F$8*'variable_Daten '!$D$19 +(gesamt_Emissionen!$G$8+gesamt_Emissionen!$H$8)*'variable_Daten '!$E$19) *J9)/H9 ->  | Z9: =((gesamt_Emissionen!$N$8*'variable_Daten '!$D$19 +(gesamt_Emissionen!$O$8+gesamt_Emissionen!$P$8)*'variable_Daten '!$E$19) *J9)/H9 ->  | AA9: =((gesamt_Emissionen!$V$8*'variable_Daten '!$D$19 +(gesamt_Emissionen!$W$8+gesamt_Emissionen!$X$8)*'variable_Daten '!$E$19) *J9)/H9 ->  | AB9: nein | AC9: nein | AD9: nein | AE9: nein | AF9: nein | AG9: nein | AH9: nein | AI9: nein | AJ9: nein | AK9: nein | AL9: nein | AM9: nein | AN9: nein | AO9: nein | AP9: nein | AQ9: nein | AR9: nein | AS9: nein | AT9: nein | AU9: nein | AV9: nein | AW9: nein | AX9: nein | AY9: nein | AZ9: nein | BA9: nein | BB9: nein | BC9: nein | BD9: nein | BE9: ja | BF9: nein | BG9: nein | BH9: nein | BI9: nein | BJ9: nein | BK9: nein | BL9: nein | BM9: nein | BN9: nein | BO9: nein | BP9: nein | BQ9: nein | BR9: nein | BS9: nein | BT9: nein | BU9: nein | BV9: nein | BW9: nein | BX9: nein | BY9: =(Datensätze_Sonstige!$O$16/1000)*J9*$BZ$4 -> 0 | BZ9: =(Datensätze_Sonstige!$V$16/1000)*J9*$BZ$4 -> 0 | CA9: =(Datensätze_Sonstige!$W$16/1000)*J9*$BZ$4 -> 0 | CB9: =(Datensätze_Sonstige!$O$16/1000)*J9*$CC$4 -> 0 | CC9: =(Datensätze_Sonstige!$V$16/1000)*J9*$CC$4 -> 0 | CD9: =(Datensätze_Sonstige!$W$16/1000)*J9*$CC$4 -> 0 | CE9: =(Datensätze_Sonstige!$O$16/1000)*J9*$CF$4 -> 0.0007821078004 | CF9: =(Datensätze_Sonstige!$V$16/1000)*J9*$CF$4 -> 3.480542117e-09 | CG9: =(Datensätze_Sonstige!$W$16/1000)*J9*$CF$4 -> 6.149469396e-05 | CH9: 0 | CI9: =((gesamt_Emissionen!$J$8*J9)/CH9)+Berechnungen_u._Annahmen!$C$45 ->  | CJ9: =((gesamt_Emissionen!$R$8*J9)/CH9)+Berechnungen_u._Annahmen!$E$45 ->  | CK9: =((gesamt_Emissionen!$Z$8*J9)/CH9)+Berechnungen_u._Annahmen!$G$45 ->  | CL9: =CI9+IF($CK$1="ja",CB9,CE9)+IF($CN$1="ja",V9,Y9) ->  | CO9: =CI9+IF($CK$1="nein",CB9,CE9)+IF($CN$1="ja",V9,Y9) ->  | CR9: =IF($N9="M",IF($CT$4="ja",CB9,CE9),BY9) -> 0.0007821078004 | CS9: 3.480542117e-09 | CT9: 6.149469396e-05 | CU9: =IF($N9="M",(Datensätze_Sonstige!$O$16/1000)*J9*$CW$4,BY9) -> 0.001303513001 | CV9: =IF($N9="M",(Datensätze_Sonstige!$V$16/1000)*J9*$CW$4,BZ9) -> 5.800903528e-09 | CW9: =IF($N9="M",(Datensätze_Sonstige!$W$16/1000)*J9*$CW$4,CA9) -> 0.0001024911566 | CY9: =((gesamt_Emissionen!$J$8*J9)/CH9) ->  | CZ9: =((gesamt_Emissionen!$R$8*J9)/CH9) ->  | DA9: =((gesamt_Emissionen!$Z$8*J9)/CH9) ->  | DB9: =Berechnungen_u._Annahmen!$C$45 -> 0.004225428636 | DC9: =Berechnungen_u._Annahmen!$E$45 -> 4.992025941e-08 | DD9: =Berechnungen_u._Annahmen!$G$45 -> 0.002446670267 | DE9: =IF($CK$1="ja",CB9,CE9) -> 0 | DF9: =IF($CK$1="ja",CC9,CF9) -> 0 | DG9: 0 | DK9: =CY9+DB9+DE9+DH9 ->  | DL9: =CZ9+DC9+DF9+DI9 ->  | DM9: =DA9+DD9+DG9+DJ9 ->  | EA9: 131 | EH9: =((gesamt_Emissionen!$J$8+ (gesamt_Emissionen!$G$8+gesamt_Emissionen!$H$8))*$J9)/$EI$4+ Berechnungen_u._Annahmen!$C$29 +(Datensätze_Sonstige!$O$16/1000)*$J9*$EI$3 -> 0.00481918618 | EJ9: 0.00481918618 | EK9: Schnapsglas; 0,02 l; PS; Mehrweg; 11,42g
C10: Becher | D10: https://www.metro.de/marktplatz/product/aaac9dbc-bffd-455d-9728-4b3102147010?mfeed_oid=6d25d8f5-8375-422f-ae83-0d59896ce234&gclid=Cj0KCQiA4uCcBhDdARIsAH5jyUkW78dEt4N5N3BlgnWC4N7gXEZUUL65ONM98vYrV1HsgqDbhjUb6qAaAmh6EALw_wcB | F10: Schnapsglas; 0,02 l; Glas; Mehrweg; 100,0g | G10: Pinnchen 0,02 | H10: ='variable_Daten '!$C$6 -> 0 | I10: Glas | J10: =100/1000 -> 0.1 | K10: =((gesamt_Emissionen!$J$25*J10)/H10)+Berechnungen_u._Annahmen!$C$45 ->  | L10: =((gesamt_Emissionen!$R$25*J10)/H10)+Berechnungen_u._Annahmen!$E$45 ->  | M10: =((gesamt_Emissionen!$Z$25*J10)/H10)+Berechnungen_u._Annahmen!$G$45 ->  | N10: M | O10: TRUE | P10: FALSE | Q10: FALSE | R10: TRUE | S10: FALSE | T10: TRUE | U10: Glas | V10: =((gesamt_Emissionen!$F$25*'variable_Daten '!$F$23 +(gesamt_Emissionen!$G$25+gesamt_Emissionen!$H$25)*'variable_Daten '!$G$23) *J10)/H10 ->  | W10: =((gesamt_Emissionen!$N$25*'variable_Daten '!$F$23 +(gesamt_Emissionen!$O$25+gesamt_Emissionen!$P$25)*'variable_Daten '!$G$23) *J10)/H10 ->  | X10: =((gesamt_Emissionen!$V$25*'variable_Daten '!$F$23 +(gesamt_Emissionen!$W$25+gesamt_Emissionen!$X$25)*'variable_Daten '!$G$23) *J10)/H10 ->  | Y10: =((gesamt_Emissionen!$F$25*'variable_Daten '!$D$23 +(gesamt_Emissionen!$G$25+gesamt_Emissionen!$H$25)*'variable_Daten '!$E$23) *J10)/H10 ->  | Z10: =((gesamt_Emissionen!$N$25*'variable_Daten '!$D$23 +(gesamt_Emissionen!$O$25+gesamt_Emissionen!$P$25)*'variable_Daten '!$E$23) *J10)/H10 ->  | AA10: =((gesamt_Emissionen!$V$25*'variable_Daten '!$D$23 +(gesamt_Emissionen!$W$25+gesamt_Emissionen!$X$25)*'variable_Daten '!$E$23) *J10)/H10 ->  | AB10: nein | AC10: nein | AD10: nein | AE10: nein | AF10: nein | AG10: nein | AH10: nein | AI10: nein | AJ10: nein | AK10: nein | AL10: nein | AM10: nein | AN10: nein | AO10: nein | AP10: nein | AQ10: nein | AR10: nein | AS10: nein | AT10: nein | AU10: nein | AV10: nein | AW10: nein | AX10: nein | AY10: nein | AZ10: nein | BA10: nein | BB10: nein | BC10: nein | BD10: nein | BE10: ja | BF10: nein | BG10: nein | BH10: nein | BI10: nein | BJ10: nein | BK10: nein | BL10: nein | BM10: nein | BN10: nein | BO10: nein | BP10: nein | BQ10: nein | BR10: nein | BS10: nein | BT10: nein | BU10: nein | BV10: nein | BW10: nein | BX10: nein | BY10: =(Datensätze_Sonstige!$O$16/1000)*J10*$BZ$4 -> 0 | BZ10: =(Datensätze_Sonstige!$V$16/1000)*J10*$BZ$4 -> 0 | CA10: =(Datensätze_Sonstige!$W$16/1000)*J10*$BZ$4 -> 0 | CB10: =(Datensätze_Sonstige!$O$16/1000)*J10*$CC$4 -> 0 | CC10: =(Datensätze_Sonstige!$V$16/1000)*J10*$CC$4 -> 0 | CD10: =(Datensätze_Sonstige!$W$16/1000)*J10*$CC$4 -> 0 | CE10: =(Datensätze_Sonstige!$O$16/1000)*J10*$CF$4 -> 0.00684804 | CF10: =(Datensätze_Sonstige!$V$16/1000)*J10*$CF$4 -> 3.04752e-08 | CG10: =(Datensätze_Sonstige!$W$16/1000)*J10*$CF$4 -> 0.00053844 | CH10: 0 | CI10: =((gesamt_Emissionen!$J$25*J10)/CH10)+Berechnungen_u._Annahmen!$C$45 ->  | CJ10: =((gesamt_Emissionen!$R$25*J10)/CH10)+Berechnungen_u._Annahmen!$E$45 ->  | CK10: =((gesamt_Emissionen!$Z$25*J10)/CH10)+Berechnungen_u._Annahmen!$G$45 ->  | CR10: 0.00684804 | CS10: 3.04752e-08 | CT10: 0.00053844 | CU10: =IF($N10="M",(Datensätze_Sonstige!$O$16/1000)*J10*$CW$4,BY10) -> 0.0114134 | CV10: =IF($N10="M",(Datensätze_Sonstige!$V$16/1000)*J10*$CW$4,BZ10) -> 5.0792e-08 | CW10: =IF($N10="M",(Datensätze_Sonstige!$W$16/1000)*J10*$CW$4,CA10) -> 0.0008974 | CY10: =((gesamt_Emissionen!$J$25*J10)/CH10) ->  | CZ10: =((gesamt_Emissionen!$R$25*J10)/CH10) ->  | DA10: =((gesamt_Emissionen!$Z$25*J10)/CH10) ->  | DB10: =Berechnungen_u._Annahmen!$C$45 -> 0.004225428636 | DC10: =Berechnungen_u._Annahmen!$E$45 -> 4.992025941e-08 | DD10: =Berechnungen_u._Annahmen!$G$45 -> 0.002446670267 | DE10: 0 | DF10: 0 | DG10: 0 | DK10: =CY10+DB10+DE10+DH10 ->  | EA10: 131 | EH10: =((gesamt_Emissionen!$J$25+ ((gesamt_Emissionen!$G$25+gesamt_Emissionen!$H$25)))*$J10)/$EI$4+ Berechnungen_u._Annahmen!$C$29+ (Datensätze_Sonstige!$O$16/1000)*$J10*$EI$3 -> 0.005615039133 | EJ10: 0.005615039133 | EK10: Schnapsglas; 0,02 l; Glas; Mehrweg; 100,0g
C11: Becher | F11: Heißgetränke Becher; 0,1 l; Pappe beschichtet; Einweg; 3,7g | G11: Heißgetränkebecher [0,1 l] | H11: 1 | I11: Pappe beschichtet | J11: =3.7/1000 -> 0.0037 | K11: =gesamt_Emissionen!$J$16*J11 -> 0.00350088968 | L11: =gesamt_Emissionen!$R$16*J11 -> 1.62831672e-08 | M11: =gesamt_Emissionen!$Z$16*J11 -> 0.00261636879 | N11: E | O11: FALSE | P11: FALSE | Q11: FALSE | R11: FALSE | S11: TRUE | T11: TRUE | U11: Verbundsstoffe | V11: =(gesamt_Emissionen!$F$16*'variable_Daten '!$F$22 +(gesamt_Emissionen!$G$16+gesamt_Emissionen!$H$16)*'variable_Daten '!$G$22) *J11 -> 0.001034328957 | W11: =(gesamt_Emissionen!$N$16*'variable_Daten '!$F$22 +(gesamt_Emissionen!$O$16+gesamt_Emissionen!$P$16)*'variable_Daten '!$G$22) *J11 -> -6.906529726e-09 | X11: =(gesamt_Emissionen!$V$16*'variable_Daten '!$F$22 +(gesamt_Emissionen!$W$16+gesamt_Emissionen!$X$16)*'variable_Daten '!$G$22) *J11 -> 8.585432311e-05 | Y11: =(gesamt_Emissionen!$F$16*'variable_Daten '!$D$22 +(gesamt_Emissionen!$G$16+gesamt_Emissionen!$H$16)*'variable_Daten '!$E$22) *J11 -> 0.001034328957 | Z11: =(gesamt_Emissionen!$N$16*'variable_Daten '!$D$22 +(gesamt_Emissionen!$O$16+gesamt_Emissionen!$P$16)*'variable_Daten '!$E$22) *J11 -> -6.906529726e-09 | AA11: =(gesamt_Emissionen!$V$16*'variable_Daten '!$D$22 +(gesamt_Emissionen!$W$16+gesamt_Emissionen!$X$16)*'variable_Daten '!$E$22) *J11 -> 8.585432311e-05 | AB11: nein | AC11: nein | AD11: nein | AE11: nein | AF11: nein | AG11: nein | AH11: nein | AI11: nein | AJ11: nein | AK11: nein | AL11: nein | AM11: nein | AN11: nein | AO11: nein | AP11: nein | AQ11: nein | AR11: nein | AS11: nein | AT11: nein | AU11: nein | AV11: ja | AW11: nein | AX11: nein | AY11: nein | AZ11: nein | BA11: nein | BB11: nein | BC11: nein | BD11: nein | BE11: nein | BF11: nein | BG11: nein | BH11: nein | BI11: nein | BJ11: nein | BK11: nein | BL11: nein | BM11: nein | BN11: nein | BO11: nein | BP11: nein | BQ11: nein | BR11: nein | BS11: nein | BT11: nein | BU11: nein | BV11: nein | BW11: nein | BX11: nein | BY11: =(Datensätze_Sonstige!$O$16/1000)*J11*$BZ$4 -> 0 | BZ11: =(Datensätze_Sonstige!$V$16/1000)*J11*$BZ$4 -> 0 | CA11: =(Datensätze_Sonstige!$W$16/1000)*J11*$BZ$4 -> 0 | CB11: =(Datensätze_Sonstige!$O$16/1000)*J11*$CC$4 -> 0 | CC11: =(Datensätze_Sonstige!$V$16/1000)*J11*$CC$4 -> 0 | CD11: =(Datensätze_Sonstige!$W$16/1000)*J11*$CC$4 -> 0 | CE11: =(Datensätze_Sonstige!$O$16/1000)*J11*$CF$4 -> 0.00025337748 | CF11: =(Datensätze_Sonstige!$V$16/1000)*J11*$CF$4 -> 1.1275824e-09 | CG11: =(Datensätze_Sonstige!$W$16/1000)*J11*$CF$4 -> 1.992228e-05 | CH11: 1 | CI11: =gesamt_Emissionen!$J$16*J11 -> 0.00350088968 | CJ11: =gesamt_Emissionen!$R$16*J11 -> 1.62831672e-08 | CK11: =gesamt_Emissionen!$Z$16*J11 -> 0.00261636879 | CL11: =CI11+BY11+IF($CN$1="ja",V11,Y11) -> 0.004535218637 | CM11: 9.376637474e-09 | CN11: 0.002702223113 | CO11: =CI11+BY11+IF($CN$1="ja",V11,Y11) -> 0.004535218637 | CP11: 9.376637474e-09 | CQ11: 0.002702223113 | CR11: 0 | CS11: 0 | CT11: 0 | CU11: =IF($N11="M",(Datensätze_Sonstige!$O$16/1000)*J11*$CW$4,BY11) -> 0 | CV11: =IF($N11="M",(Datensätze_Sonstige!$V$16/1000)*J11*$CW$4,BZ11) -> 0 | CW11: =IF($N11="M",(Datensätze_Sonstige!$W$16/1000)*J11*$CW$4,CA11) -> 0 | CY11: =gesamt_Emissionen!$J$16*J11 -> 0.00350088968 | CZ11: =gesamt_Emissionen!$R$16*J11 -> 1.62831672e-08 | DA11: =gesamt_Emissionen!$Z$16*J11 -> 0.00261636879 | DB11: 0 | DC11: 0 | DD11: 0 | DE11: =BY11 -> 0 | DF11: 0 | DG11: 0 | DH11: 0.001034328957 | DI11: -6.906529726e-09 | DJ11: 8.585432311e-05 | DK11: 0.004535218637 | DL11: 9.376637474e-09 | DM11: 0.002702223113 | EA11: 1 | EH11: =(gesamt_Emissionen!$J$16+(gesamt_Emissionen!$F$16*'variable_Daten '!$H$22+(gesamt_Emissionen!$G$16+gesamt_Emissionen!$H$16)*'variable_Daten '!$I$22))*$J11+(Datensätze_Sonstige!$O$16/1000)*$J11*$EI$3 -> 0.004535218637 | EJ11: 0.004535218637 | EK11: Heißgetränke Becher; 0,1 l; Pappe beschichtet; Einweg; 3,7g
C12: Schale | F12: Eis Becher; 0,2 l; Waffel; essbar; 16,0g | G12: 0.1 | H12: 1 | I12: Lebensmittel | J12: =16/1000 -> 0.016 | K12: =(gesamt_Emissionen!$J$28*$J12)*$CX12 -> 0.01349406 | L12: =(gesamt_Emissionen!$R$28*$J12)*$CX12 -> 7.56912e-08 | M12: =(gesamt_Emissionen!$Z$28*$J12)*$CX12 -> 0.1127856462 | N12: E | O12: TRUE | P12: TRUE | Q12: TRUE | R12: TRUE | S12: TRUE | T12: TRUE | U12: Bio. | V12: =((gesamt_Emissionen!$F$28*'variable_Daten '!$F$28 +(gesamt_Emissionen!$G$28+gesamt_Emissionen!$H$28)*'variable_Daten '!$G$28) *J12)*CX12 -> 0.0033545804 | W12: =((gesamt_Emissionen!$N$28*'variable_Daten '!$F$28 +(gesamt_Emissionen!$O$28+gesamt_Emissionen!$P$28)*'variable_Daten '!$G$28) *J12)*CX12 -> -2.239955587e-08 | X12: =((gesamt_Emissionen!$V$28*'variable_Daten '!$F$28 +(gesamt_Emissionen!$W$28+gesamt_Emissionen!$X$28)*'variable_Daten '!$G$28) *J12)*CX12 -> 0.0002784464533 | Y12: =((gesamt_Emissionen!$F$28*'variable_Daten '!$D$28 +(gesamt_Emissionen!$G$28+gesamt_Emissionen!$H$28)*'variable_Daten '!$E$28) *J12)*CX12 -> 0.00033545804 | Z12: =((gesamt_Emissionen!$N$28*'variable_Daten '!$D$28 +(gesamt_Emissionen!$O$28+gesamt_Emissionen!$P$28)*'variable_Daten '!$E$28) *J12)*CX12 -> -2.239955587e-09 | AA12: =((gesamt_Emissionen!$V$28*'variable_Daten '!$D$28 +(gesamt_Emissionen!$W$28+gesamt_Emissionen!$X$28)*'variable_Daten '!$E$28) *J12)*CX12 -> 2.784464533e-05 | AB12: nein | AC12: nein | AD12: nein | AE12: nein | AF12: nein | AG12: nein | AH12: nein | AI12: nein | AJ12: nein | AK12: nein | AL12: ja | AM12: nein | AN12: nein | AO12: nein | AP12: nein | AQ12: nein | AR12: nein | AS12: nein | AT12: nein | AU12: nein | AV12: nein | AW12: nein | AX12: nein | AY12: nein | AZ12: nein | BA12: nein | BB12: nein | BC12: nein | BD12: nein | BE12: nein | BF12: nein | BG12: nein | BH12: nein | BI12: nein | BJ12: nein | BK12: nein | BL12: nein | BM12: nein | BN12: nein | BO12: nein | BP12: nein | BQ12: nein | BR12: nein | BS12: nein | BT12: nein | BU12: nein | BV12: nein | BW12: nein | BX12: nein | BY12: =((Datensätze_Sonstige!$O$16/1000)*J12*$BZ$4)*CX12 -> 0 | BZ12: =((Datensätze_Sonstige!$V$16/1000)*J12*$BZ$4)*CX12 -> 0 | CA12: =((Datensätze_Sonstige!$W$16/1000)*J12*$BZ$4)*CX12 -> 0 | CB12: =((Datensätze_Sonstige!$O$16/1000)*J12*$CC$4)*CX12 -> 0 | CC12: =((Datensätze_Sonstige!$V$16/1000)*J12*$CC$4)*CX12 -> 0 | CD12: =((Datensätze_Sonstige!$W$16/1000)*J12*$CC$4)*CX12 -> 0 | CE12: =((Datensätze_Sonstige!$O$16/1000)*J12*$CF$4)*CX12 -> 0.0008217648 | CF12: =((Datensätze_Sonstige!$V$16/1000)*J12*$CF$4)*CX12 -> 3.657024e-09 | CG12: =((Datensätze_Sonstige!$W$16/1000)*J12*$CF$4)*CX12 -> 6.46128e-05 | CH12: 1 | CI12: =K12 -> 0.01349406 | CJ12: =L12 -> 7.56912e-08 | CK12: =M12 -> 0.1127856462 | CL12: 0.01382951804 | CM12: 7.345124441e-08 | CN12: 0.1128134908 | CO12: 0.01382951804 | CP12: 7.345124441e-08 | CQ12: 0.1128134908 | CR12: =IF($N12="M",IF($CT$4="ja",CB12,CE12),BY12) -> 0 | CS12: 0 | CT12: 0 | CU12: =IF($N12="M",(Datensätze_Sonstige!$O$16/1000)*J12*$CW$4,BY12) -> 0 | CV12: =IF($N12="M",(Datensätze_Sonstige!$V$16/1000)*J12*$CW$4,BZ12) -> 0 | CW12: =IF($N12="M",(Datensätze_Sonstige!$W$16/1000)*J12*$CW$4,CA12) -> 0 | CX12: ='variable_Daten '!$E$97 -> 0.75 | CY12: =(gesamt_Emissionen!$J$28*$J12)*$CX12 -> 0.01349406 | CZ12: =(gesamt_Emissionen!$R$28*$J12)*$CX12 -> 7.56912e-08 | DA12: =(gesamt_Emissionen!$Z$28*$J12)*$CX12 -> 0.1127856462 | DB12: 0 | DC12: 0 | DD12: 0 | DE12: 0 | DF12: 0 | DG12: 0 | DH12: 0.00033545804 | DI12: -2.239955587e-09 | DJ12: 2.784464533e-05 | DK12: =CY12+DB12+DE12+DH12 -> 0.01382951804 | DL12: 7.345124441e-08 | DM12: 0.1128134908 | EA12: 1 | EH12: =((gesamt_Emissionen!$J$28+('variable_Daten '!$H$28*gesamt_Emissionen!$F$28+'variable_Daten '!$I$28*(gesamt_Emissionen!$G$28+gesamt_Emissionen!$H$28)))*$J12+(Datensätze_Sonstige!$O$16/1000)*$J12*$EI$3)*CX12 -> 0.01382951804 | EI12: =$EI$91 -> 0.007725625919 | EJ12: 0.02155514396 | EK12: Eis Becher; 0,2 l; Waffel; essbar; 16,0g
C13: Becher | F13: Heißgetränke Becher; 0,2 l; PP; Mehrweg; 25,7g | G13: Heißgetränkebecher [0,2 l] | H13: ='variable_Daten '!$B$6 -> 0 | I13: PP | J13: =25.6664/1000 -> 0.0256664 | K13: =((gesamt_Emissionen!$J$6*J13)/H13)+Berechnungen_u._Annahmen!$C$44 ->  | L13: =((gesamt_Emissionen!$R$6*J13)/H13)+Berechnungen_u._Annahmen!$E$44 ->  | M13: =((gesamt_Emissionen!$Z$6*J13)/H13)+Berechnungen_u._Annahmen!$G$44 ->  | N13: M | O13: TRUE | P13: FALSE | Q13: FALSE | R13: FALSE | S13: TRUE | T13: TRUE | U13: Kunststoff | V13: =((gesamt_Emissionen!$F$6*'variable_Daten '!$F$19 +(gesamt_Emissionen!$G$6+gesamt_Emissionen!$H$6)*'variable_Daten '!$G$19) *J13)/H13 ->  | W13: =((gesamt_Emissionen!$N$6*'variable_Daten '!$F$19 +(gesamt_Emissionen!$O$6+gesamt_Emissionen!$P$6)*'variable_Daten '!$G$19) *J13)/H13 ->  | X13: =((gesamt_Emissionen!$V$6*'variable_Daten '!$F$19 +(gesamt_Emissionen!$W$6+gesamt_Emissionen!$X$6)*'variable_Daten '!$G$19) *J13)/H13 ->  | Y13: =((gesamt_Emissionen!$F$6*'variable_Daten '!$D$19 +(gesamt_Emissionen!$G$6+gesamt_Emissionen!$H$6)*'variable_Daten '!$E$19) *J13)/H13 ->  | Z13: =((gesamt_Emissionen!$N$6*'variable_Daten '!$D$19 +(gesamt_Emissionen!$O$6+gesamt_Emissionen!$P$6)*'variable_Daten '!$E$19) *J13)/H13 ->  | AA13: =((gesamt_Emissionen!$V$6*'variable_Daten '!$D$19 +(gesamt_Emissionen!$W$6+gesamt_Emissionen!$X$6)*'variable_Daten '!$E$19) *J13)/H13 ->  | AB13: nein | AC13: nein | AD13: nein | AE13: nein | AF13: nein | AG13: nein | AH13: nein | AI13: nein | AJ13: nein | AK13: nein | AL13: nein | AM13: nein | AN13: nein | AO13: nein | AP13: nein | AQ13: nein | AR13: nein | AS13: nein | AT13: nein | AU13: nein | AV13: nein | AW13: ja | AX13: nein | AY13: nein | AZ13: nein | BA13: nein | BB13: nein | BC13: nein | BD13: nein | BE13: nein | BF13: nein | BG13: nein | BH13: nein | BI13: nein | BJ13: nein | BK13: nein | BL13: nein | BM13: nein | BN13: nein | BO13: nein | BP13: nein | BQ13: nein | BR13: nein | BS13: nein | BT13: nein | BU13: nein | BV13: nein | BW13: nein | BX13: nein | BY13: =(Datensätze_Sonstige!$O$16/1000)*J13*$BZ$4 -> 0 | BZ13: =(Datensätze_Sonstige!$V$16/1000)*J13*$BZ$4 -> 0 | CA13: =(Datensätze_Sonstige!$W$16/1000)*J13*$BZ$4 -> 0 | CB13: =(Datensätze_Sonstige!$O$16/1000)*J13*$CC$4 -> 0 | CC13: =(Datensätze_Sonstige!$V$16/1000)*J13*$CC$4 -> 0 | CD13: =(Datensätze_Sonstige!$W$16/1000)*J13*$CC$4 -> 0 | CE13: =(Datensätze_Sonstige!$O$16/1000)*J13*$CF$4 -> 0.001757645339 | CF13: =(Datensätze_Sonstige!$V$16/1000)*J13*$CF$4 -> 7.821886733e-09 | CG13: =(Datensätze_Sonstige!$W$16/1000)*J13*$CF$4 -> 0.0001381981642 | CH13: 0 | CI13: =((gesamt_Emissionen!$J$6*J13)/CH13)+Berechnungen_u._Annahmen!$C$44 ->  | CJ13: =((gesamt_Emissionen!$R$6*J13)/CH13)+Berechnungen_u._Annahmen!$E$44 ->  | CK13: =((gesamt_Emissionen!$Z$6*J13)/CH13)+Berechnungen_u._Annahmen!$G$44 ->  | CL13: =CI13+IF($CK$1="ja",CB13,CE13)+IF($CN$1="ja",V13,Y13) ->  | CM13: =CJ13+IF($CK$1="ja",CC13,CF13)+IF($CN$1="ja",W13,Z13) ->  | CN13: =CK13+IF($CK$1="ja",CD13,CG13)+IF($CN$1="ja",X13,AA13) ->  | CO13: =CI13+IF($CK$1="nein",CB13,CE13)+IF($CN$1="ja",V13,Y13) ->  | CP13: =CJ13+IF($CK$1="nein",CC13,CF13)+IF($CN$1="ja",W13,Z13) ->  | CQ13: =CK13+IF($CK$1="nein",CD13,CG13)+IF($CN$1="ja",X13,AA13) ->  | CR13: 0.001757645339 | CS13: 7.821886733e-09 | CT13: 0.0001381981642 | CU13: =IF($N13="M",(Datensätze_Sonstige!$O$16/1000)*J13*$CW$4,BY13) -> 0.002929408898 | CV13: =IF($N13="M",(Datensätze_Sonstige!$V$16/1000)*J13*$CW$4,BZ13) -> 1.303647789e-08 | CW13: =IF($N13="M",(Datensätze_Sonstige!$W$16/1000)*J13*$CW$4,CA13) -> 0.0002303302736 | CY13: =((gesamt_Emissionen!$J$6*J13)/CH13) ->  | CZ13: =((gesamt_Emissionen!$R$6*J13)/CH13) ->  | DA13: =((gesamt_Emissionen!$Z$6*J13)/CH13) ->  | DB13: =Berechnungen_u._Annahmen!$C$44 -> 0.004225428636 | DC13: =Berechnungen_u._Annahmen!$E$44 -> 4.992025941e-08 | DD13: =Berechnungen_u._Annahmen!$G$44 -> 0.002446670267 | DE13: =IF($CK$1="ja",CB13,CE13) -> 0 | DF13: =IF($CK$1="ja",CC13,CF13) -> 0 | DG13: =IF($CK$1="ja",CD13,CG13) -> 0 | EA13: 131 | EH13: =(((gesamt_Emissionen!$J$6+ (gesamt_Emissionen!$G$6+gesamt_Emissionen!$H$6))*$J13)/$EI$4)+ Berechnungen_u._Annahmen!$C$28+ (Datensätze_Sonstige!$O$16/1000)*$J13*$EI$3 -> 0.005452879692 | EJ13: 0.005452879692 | EK13: Heißgetränke Becher; 0,2 l; PP; Mehrweg; 25,7g
C14: Schale | D14: https://www.medac.it/prodotti/coppe-da-gelato/ | E14: Freimarkt 2023, Stand 615 | F14: Eisbecher; 0,078 l; Pappe beschichtet; Einweg; 3,5g | G14: Eisbecher [0,078 l] | H14: 1 | I14: Pappe beschichtet | J14: 0.00345 | K14: =gesamt_Emissionen!$J$16*J14 -> 0.00326434308 | L14: =gesamt_Emissionen!$R$16*J14 -> 1.51829532e-08 | M14: =gesamt_Emissionen!$Z$16*J14 -> 0.002439587115 | N14: E | O14: FALSE | P14: FALSE | Q14: FALSE | R14: FALSE | S14: TRUE | T14: TRUE | U14: Verbundsstoffe | V14: =(gesamt_Emissionen!$F$16*'variable_Daten '!$F$22 +(gesamt_Emissionen!$G$16+gesamt_Emissionen!$H$16)*'variable_Daten '!$G$22) *J14 -> 0.000964441865 | W14: =(gesamt_Emissionen!$N$16*'variable_Daten '!$F$22 +(gesamt_Emissionen!$O$16+gesamt_Emissionen!$P$16)*'variable_Daten '!$G$22) *J14 -> -6.439872312e-09 | X14: =(gesamt_Emissionen!$V$16*'variable_Daten '!$F$22 +(gesamt_Emissionen!$W$16+gesamt_Emissionen!$X$16)*'variable_Daten '!$G$22) *J14 -> 8.005335533e-05 | Y14: =(gesamt_Emissionen!$F$16*'variable_Daten '!$D$22 +(gesamt_Emissionen!$G$16+gesamt_Emissionen!$H$16)*'variable_Daten '!$E$22) *J14 -> 0.000964441865 | Z14: =(gesamt_Emissionen!$N$16*'variable_Daten '!$D$22 +(gesamt_Emissionen!$O$16+gesamt_Emissionen!$P$16)*'variable_Daten '!$E$22) *J14 -> -6.439872312e-09 | AA14: =(gesamt_Emissionen!$V$16*'variable_Daten '!$D$22 +(gesamt_Emissionen!$W$16+gesamt_Emissionen!$X$16)*'variable_Daten '!$E$22) *J14 -> 8.005335533e-05 | AB14: nein | AC14: nein | AD14: nein | AE14: nein | AF14: nein | AG14: nein | AH14: nein | AI14: nein | AJ14: nein | AK14: nein | AL14: ja | AM14: nein | AN14: nein | AO14: nein | AP14: nein | AQ14: nein | AR14: nein | AS14: nein | AT14: nein | AU14: nein | AV14: nein | AW14: nein | AX14: nein | AY14: nein | AZ14: nein | BA14: nein | BB14: nein | BC14: nein | BD14: nein | BE14: nein | BF14: nein | BG14: nein | BH14: nein | BI14: nein | BJ14: nein | BK14: nein | BL14: nein | BM14: nein | BN14: nein | BO14: nein | BP14: nein | BQ14: nein | BR14: nein | BS14: nein | BT14: nein | BU14: nein | BV14: nein | BW14: nein | BX14: nein | BY14: =(Datensätze_Sonstige!$O$16/1000)*J14*$BZ$4 -> 0 | BZ14: =(Datensätze_Sonstige!$V$16/1000)*J14*$BZ$4 -> 0 | CA14: =(Datensätze_Sonstige!$W$16/1000)*J14*$BZ$4 -> 0 | CB14: =(Datensätze_Sonstige!$O$16/1000)*J14*$CC$4 -> 0 | CC14: =(Datensätze_Sonstige!$V$16/1000)*J14*$CC$4 -> 0 | CD14: =(Datensätze_Sonstige!$W$16/1000)*J14*$CC$4 -> 0 | CE14: =(Datensätze_Sonstige!$O$16/1000)*J14*$CF$4 -> 0.00023625738 | CF14: =(Datensätze_Sonstige!$V$16/1000)*J14*$CF$4 -> 1.0513944e-09 | CG14: =(Datensätze_Sonstige!$W$16/1000)*J14*$CF$4 -> 1.857618e-05 | CH14: 1 | CI14: =gesamt_Emissionen!$J$16*J14 -> 0.00326434308 | CJ14: =gesamt_Emissionen!$R$16*J14 -> 1.51829532e-08 | CK14: =gesamt_Emissionen!$Z$16*J14 -> 0.002439587115 | CL14: =CI14+BY14+IF($CN$1="ja",V14,Y14) -> 0.004228784945 | CM14: =CJ14+BZ14+IF($CN$1="ja",W14,Z14) -> 8.743080888e-09 | CN14: =CK14+CA14+IF($CN$1="ja",X14,AA14) -> 0.00251964047 | CO14: =CI14+BY14+IF($CN$1="ja",V14,Y14) -> 0.004228784945 | CP14: 8.743080888e-09 | CQ14: 0.00251964047 | CR14: =IF($N14="M",IF($CT$4="ja",CB14,CE14),BY14) -> 0 | CS14: =IF($N14="M",IF($CT$4="ja",CC14,CF14),BZ14) -> 0 | CT14: =IF($N14="M",IF($CT$4="ja",CD14,CG14),CA14) -> 0 | CU14: =IF($N14="M",(Datensätze_Sonstige!$O$16/1000)*J14*$CW$4,BY14) -> 0 | CV14: =IF($N14="M",(Datensätze_Sonstige!$V$16/1000)*J14*$CW$4,BZ14) -> 0 | CW14: =IF($N14="M",(Datensätze_Sonstige!$W$16/1000)*J14*$CW$4,CA14) -> 0 | CY14: =gesamt_Emissionen!$J$16*J14 -> 0.00326434308 | CZ14: =gesamt_Emissionen!$R$16*J14 -> 1.51829532e-08 | DA14: =gesamt_Emissionen!$Z$16*J14 -> 0.002439587115 | DB14: 0 | DC14: 0 | DD14: 0 | DE14: =BY14 -> 0 | DF14: 0 | DG14: 0 | DH14: =IF($CN$1="ja",V14,Y14) -> 0.000964441865 | DI14: =IF($CN$1="ja",W14,Z14) -> -6.439872312e-09 | DJ14: =IF($CN$1="ja",X14,AA14) -> 8.005335533e-05 | DK14: =CY14+DB14+DE14+DH14 -> 0.004228784945 | DL14: =CZ14+DC14+DF14+DI14 -> 8.743080888e-09 | DM14: =DA14+DD14+DG14+DJ14 -> 0.00251964047 | EA14: 1 | EH14: =(gesamt_Emissionen!$J$16+(gesamt_Emissionen!$F$16*'variable_Daten '!$H$22+(gesamt_Emissionen!$G$16+gesamt_Emissionen!$H$16)*'variable_Daten '!$I$22))*$J14+(Datensätze_Sonstige!$O$16/1000)*$J14*$EI$3 -> 0.004228784945 | EI14: =$EI$91 -> 0.007725625919 | EJ14: 0.01195441086 | EK14: Eisbecher; 0,078 l; Pappe beschichtet; Einweg; 3,5g
C15: Schale | F15: Eis Becher; 0,2 l; Pappe beschichtet; Einweg; 5,1g | G15: Eisbecher [0,2 l] | H15: 1 | I15: Pappe beschichtet | J15: =5.08445/1000 -> 0.00508445 | K15: =gesamt_Emissionen!$J$16*J15 -> 0.004810837441 | L15: =gesamt_Emissionen!$R$16*J15 -> 2.237593229e-08 | M15: =gesamt_Emissionen!$Z$16*J15 -> 0.00359535035 | N15: E | O15: FALSE | P15: FALSE | Q15: FALSE | R15: FALSE | S15: TRUE | T15: TRUE | U15: Verbundsstoffe | V15: =(gesamt_Emissionen!$F$16*'variable_Daten '!$F$22 +(gesamt_Emissionen!$G$16+gesamt_Emissionen!$H$16)*'variable_Daten '!$G$22) *J15 -> 0.001421349693 | W15: =(gesamt_Emissionen!$N$16*'variable_Daten '!$F$22 +(gesamt_Emissionen!$O$16+gesamt_Emissionen!$P$16)*'variable_Daten '!$G$22) *J15 -> -9.490785152e-09 | X15: =(gesamt_Emissionen!$V$16*'variable_Daten '!$F$22 +(gesamt_Emissionen!$W$16+gesamt_Emissionen!$X$16)*'variable_Daten '!$G$22) *J15 -> 0.0001179789225 | Y15: =(gesamt_Emissionen!$F$16*'variable_Daten '!$D$22 +(gesamt_Emissionen!$G$16+gesamt_Emissionen!$H$16)*'variable_Daten '!$E$22) *J15 -> 0.001421349693 | Z15: =(gesamt_Emissionen!$N$16*'variable_Daten '!$D$22 +(gesamt_Emissionen!$O$16+gesamt_Emissionen!$P$16)*'variable_Daten '!$E$22) *J15 -> -9.490785152e-09 | AA15: =(gesamt_Emissionen!$V$16*'variable_Daten '!$D$22 +(gesamt_Emissionen!$W$16+gesamt_Emissionen!$X$16)*'variable_Daten '!$E$22) *J15 -> 0.0001179789225 | AB15: nein | AC15: nein | AD15: nein | AE15: nein | AF15: nein | AG15: nein | AH15: nein | AI15: nein | AJ15: nein | AK15: nein | AL15: ja | AM15: nein | AN15: nein | AO15: nein | AP15: nein | AQ15: nein | AR15: nein | AS15: nein | AT15: nein | AU15: nein | AV15: nein | AW15: nein | AX15: nein | AY15: nein | AZ15: nein | BA15: nein | BB15: nein | BC15: nein | BD15: nein | BE15: nein | BF15: nein | BG15: nein | BH15: nein | BI15: nein | BJ15: nein | BK15: nein | BL15: nein | BM15: nein | BN15: nein | BO15: nein | BP15: nein | BQ15: nein | BR15: nein | BS15: nein | BT15: nein | BU15: nein | BV15: nein | BW15: nein | BX15: nein | BY15: =(Datensätze_Sonstige!$O$16/1000)*J15*$BZ$4 -> 0 | BZ15: =(Datensätze_Sonstige!$V$16/1000)*J15*$BZ$4 -> 0 | CA15: =(Datensätze_Sonstige!$W$16/1000)*J15*$BZ$4 -> 0 | CB15: =(Datensätze_Sonstige!$O$16/1000)*J15*$CC$4 -> 0 | CC15: =(Datensätze_Sonstige!$V$16/1000)*J15*$CC$4 -> 0 | CD15: =(Datensätze_Sonstige!$W$16/1000)*J15*$CC$4 -> 0 | CE15: =(Datensätze_Sonstige!$O$16/1000)*J15*$CF$4 -> 0.0003481851698 | CF15: =(Datensätze_Sonstige!$V$16/1000)*J15*$CF$4 -> 1.549496306e-09 | CG15: =(Datensätze_Sonstige!$W$16/1000)*J15*$CF$4 -> 2.737671258e-05 | CH15: 1 | CI15: =gesamt_Emissionen!$J$16*J15 -> 0.004810837441 | CJ15: =gesamt_Emissionen!$R$16*J15 -> 2.237593229e-08 | CK15: =gesamt_Emissionen!$Z$16*J15 -> 0.00359535035 | CL15: =CI15+BY15+IF($CN$1="ja",V15,Y15) -> 0.006232187134 | CM15: 1.288514714e-08 | CN15: 0.003713329272 | CO15: 0.006232187134 | CP15: 1.288514714e-08 | CQ15: 0.003713329272 | CR15: =IF($N15="M",IF($CT$4="ja",CB15,CE15),BY15) -> 0 | CS15: =IF($N15="M",IF($CT$4="ja",CC15,CF15),BZ15) -> 0 | CT15: =IF($N15="M",IF($CT$4="ja",CD15,CG15),CA15) -> 0 | CU15: =IF($N15="M",(Datensätze_Sonstige!$O$16/1000)*J15*$CW$4,BY15) -> 0 | CV15: =IF($N15="M",(Datensätze_Sonstige!$V$16/1000)*J15*$CW$4,BZ15) -> 0 | CW15: =IF($N15="M",(Datensätze_Sonstige!$W$16/1000)*J15*$CW$4,CA15) -> 0 | CY15: =gesamt_Emissionen!$J$16*J15 -> 0.004810837441 | CZ15: =gesamt_Emissionen!$R$16*J15 -> 2.237593229e-08 | DA15: =gesamt_Emissionen!$Z$16*J15 -> 0.00359535035 | DB15: 0 | DC15: 0 | DD15: 0 | DE15: 0 | DF15: 0 | DG15: 0 | DH15: 0.001421349693 | DI15: -9.490785152e-09 | DJ15: 0.0001179789225 | DK15: 0.006232187134 | DL15: 1.288514714e-08 | DM15: 0.003713329272 | EA15: 1 | EH15: =(gesamt_Emissionen!$J$16+(gesamt_Emissionen!$F$16*'variable_Daten '!$H$22+(gesamt_Emissionen!$G$16+gesamt_Emissionen!$H$16)*'variable_Daten '!$I$22))*$J15+(Datensätze_Sonstige!$O$16/1000)*$J15*$EI$3 -> 0.006232187134 | EI15: =$EI$91 -> 0.007725625919 | EJ15: =EH15+EI15 -> 0.01395781305 | EK15: Eis Becher; 0,2 l; Pappe beschichtet; Einweg; 5,1g
C16: Becher | F16: Heißgetränke Becher; 0,2 l; Pappe beschichtet; Einweg; 7,3g | G16: Heißgetränkebecher [0,2 l] | H16: 1 | I16: Pappe beschichtet | J16: 0.0073 | K16: =gesamt_Emissionen!$J$16*J16 -> 0.00690716072 | L16: =gesamt_Emissionen!$R$16*J16 -> 3.21262488e-08 | M16: =gesamt_Emissionen!$Z$16*J16 -> 0.00516202491 | N16: E | O16: FALSE | P16: FALSE | Q16: FALSE | R16: FALSE | S16: TRUE | T16: TRUE | U16: Verbundsstoffe | V16: =(gesamt_Emissionen!$F$16*'variable_Daten '!$F$22 +(gesamt_Emissionen!$G$16+gesamt_Emissionen!$H$16)*'variable_Daten '!$G$22) *J16 -> 0.002040703077 | W16: =(gesamt_Emissionen!$N$16*'variable_Daten '!$F$22 +(gesamt_Emissionen!$O$16+gesamt_Emissionen!$P$16)*'variable_Daten '!$G$22) *J16 -> -1.362639649e-08 | X16: =(gesamt_Emissionen!$V$16*'variable_Daten '!$F$22 +(gesamt_Emissionen!$W$16+gesamt_Emissionen!$X$16)*'variable_Daten '!$G$22) *J16 -> 0.0001693882591 | Y16: =(gesamt_Emissionen!$F$16*'variable_Daten '!$D$22 +(gesamt_Emissionen!$G$16+gesamt_Emissionen!$H$16)*'variable_Daten '!$E$22) *J16 -> 0.002040703077 | Z16: =(gesamt_Emissionen!$N$16*'variable_Daten '!$D$22 +(gesamt_Emissionen!$O$16+gesamt_Emissionen!$P$16)*'variable_Daten '!$E$22) *J16 -> -1.362639649e-08 | AA16: =(gesamt_Emissionen!$V$16*'variable_Daten '!$D$22 +(gesamt_Emissionen!$W$16+gesamt_Emissionen!$X$16)*'variable_Daten '!$E$22) *J16 -> 0.0001693882591 | AB16: nein | AC16: nein | AD16: nein | AE16: nein | AF16: nein | AG16: nein | AH16: nein | AI16: nein | AJ16: nein | AK16: nein | AL16: nein | AM16: nein | AN16: nein | AO16: nein | AP16: nein | AQ16: nein | AR16: nein | AS16: nein | AT16: nein | AU16: nein | AV16: nein | AW16: ja | AX16: nein | AY16: nein | AZ16: nein | BA16: nein | BB16: nein | BC16: nein | BD16: nein | BE16: nein | BF16: nein | BG16: nein | BH16: nein | BI16: nein | BJ16: nein | BK16: nein | BL16: nein | BM16: nein | BN16: nein | BO16: nein | BP16: nein | BQ16: nein | BR16: nein | BS16: nein | BT16: nein | BU16: nein | BV16: nein | BW16: nein | BX16: nein | BY16: =(Datensätze_Sonstige!$O$16/1000)*J16*$BZ$4 -> 0 | BZ16: =(Datensätze_Sonstige!$V$16/1000)*J16*$BZ$4 -> 0 | CA16: =(Datensätze_Sonstige!$W$16/1000)*J16*$BZ$4 -> 0 | CB16: =(Datensätze_Sonstige!$O$16/1000)*J16*$CC$4 -> 0 | CC16: =(Datensätze_Sonstige!$V$16/1000)*J16*$CC$4 -> 0 | CD16: =(Datensätze_Sonstige!$W$16/1000)*J16*$CC$4 -> 0 | CE16: =(Datensätze_Sonstige!$O$16/1000)*J16*$CF$4 -> 0.00049990692 | CF16: =(Datensätze_Sonstige!$V$16/1000)*J16*$CF$4 -> 2.2246896e-09 | CG16: =(Datensätze_Sonstige!$W$16/1000)*J16*$CF$4 -> 3.930612e-05 | CH16: 1 | CI16: =gesamt_Emissionen!$J$16*J16 -> 0.00690716072 | CJ16: =gesamt_Emissionen!$R$16*J16 -> 3.21262488e-08 | CK16: =gesamt_Emissionen!$Z$16*J16 -> 0.00516202491 | CL16: 0.008947863797 | CM16: 1.849985231e-08 | CN16: 0.005331413169 | CO16: 0.008947863797 | CP16: 1.849985231e-08 | CQ16: 0.005331413169 | CR16: 0 | CS16: 0 | CT16: 0 | CU16: =IF($N16="M",(Datensätze_Sonstige!$O$16/1000)*J16*$CW$4,BY16) -> 0 | CV16: =IF($N16="M",(Datensätze_Sonstige!$V$16/1000)*J16*$CW$4,BZ16) -> 0 | CW16: =IF($N16="M",(Datensätze_Sonstige!$W$16/1000)*J16*$CW$4,CA16) -> 0 | CY16: =gesamt_Emissionen!$J$16*J16 -> 0.00690716072 | CZ16: =gesamt_Emissionen!$R$16*J16 -> 3.21262488e-08 | DA16: =gesamt_Emissionen!$Z$16*J16 -> 0.00516202491 | DB16: 0 | DC16: 0 | DD16: 0 | DE16: 0 | DF16: 0 | DG16: 0 | DH16: 0.002040703077 | DI16: -1.362639649e-08 | DJ16: 0.0001693882591 | DK16: 0.008947863797 | DL16: 1.849985231e-08 | DM16: 0.005331413169 | EA16: 1 | EH16: =(gesamt_Emissionen!$J$16+(gesamt_Emissionen!$F$16*'variable_Daten '!$H$22+(gesamt_Emissionen!$G$16+gesamt_Emissionen!$H$16)*'variable_Daten '!$I$22))*$J16+(Datensätze_Sonstige!$O$16/1000)*$J16*$EI$3 -> 0.008947863797 | EJ16: 0.008947863797 | EK16: Heißgetränke Becher; 0,2 l; Pappe beschichtet; Einweg; 7,3g
C17: Becher | F17: Kaltgetränke Becher; 0,3 l; PP; Mehrweg; 33,4g | G17: Kaltgetränkebecher [0,3 l] | H17: ='variable_Daten '!$B$6 -> 0 | I17: PP | J17: =33.35/1000 -> 0.03335 | K17: =((gesamt_Emissionen!$J$6*J17)/H17)+Berechnungen_u._Annahmen!$C$44 ->  | L17: =((gesamt_Emissionen!$R$6*J17)/H17)+Berechnungen_u._Annahmen!$E$44 ->  | M17: =((gesamt_Emissionen!$Z$6*J17)/H17)+Berechnungen_u._Annahmen!$G$44 ->  | N17: M | O17: TRUE | P17: FALSE | Q17: FALSE | R17: FALSE | S17: TRUE | T17: TRUE | U17: Kunststoff | V17: =((gesamt_Emissionen!$F$6*'variable_Daten '!$F$19 +(gesamt_Emissionen!$G$6+gesamt_Emissionen!$H$6)*'variable_Daten '!$G$19) *J17)/H17 ->  | W17: =((gesamt_Emissionen!$N$6*'variable_Daten '!$F$19 +(gesamt_Emissionen!$O$6+gesamt_Emissionen!$P$6)*'variable_Daten '!$G$19) *J17)/H17 ->  | X17: =((gesamt_Emissionen!$V$6*'variable_Daten '!$F$19 +(gesamt_Emissionen!$W$6+gesamt_Emissionen!$X$6)*'variable_Daten '!$G$19) *J17)/H17 ->  | Y17: =((gesamt_Emissionen!$F$6*'variable_Daten '!$D$19 +(gesamt_Emissionen!$G$6+gesamt_Emissionen!$H$6)*'variable_Daten '!$E$19) *J17)/H17 ->  | Z17: =((gesamt_Emissionen!$N$6*'variable_Daten '!$D$19 +(gesamt_Emissionen!$O$6+gesamt_Emissionen!$P$6)*'variable_Daten '!$E$19) *J17)/H17 ->  | AA17: =((gesamt_Emissionen!$V$6*'variable_Daten '!$D$19 +(gesamt_Emissionen!$W$6+gesamt_Emissionen!$X$6)*'variable_Daten '!$E$19) *J17)/H17 ->  | AB17: nein | AC17: nein | AD17: nein | AE17: nein | AF17: nein | AG17: nein | AH17: nein | AI17: nein | AJ17: nein | AK17: nein | AL17: nein | AM17: nein | AN17: nein | AO17: nein | AP17: nein | AQ17: nein | AR17: nein | AS17: nein | AT17: nein | AU17: nein | AV17: nein | AW17: nein | AX17: nein | AY17: nein | AZ17: nein | BA17: ja | BB17: nein | BC17: nein | BD17: nein | BE17: nein | BF17: nein | BG17: nein | BH17: nein | BI17: nein | BJ17: nein | BK17: nein | BL17: nein | BM17: nein | BN17: nein | BO17: nein | BP17: nein | BQ17: nein | BR17: nein | BS17: nein | BT17: nein | BU17: nein | BV17: nein | BW17: nein | BX17: nein | BY17: =(Datensätze_Sonstige!$O$16/1000)*J17*$BZ$4 -> 0 | BZ17: =(Datensätze_Sonstige!$V$16/1000)*J17*$BZ$4 -> 0 | CA17: =(Datensätze_Sonstige!$W$16/1000)*J17*$BZ$4 -> 0 | CB17: =(Datensätze_Sonstige!$O$16/1000)*J17*$CC$4 -> 0 | CC17: =(Datensätze_Sonstige!$V$16/1000)*J17*$CC$4 -> 0 | CD17: =(Datensätze_Sonstige!$W$16/1000)*J17*$CC$4 -> 0 | CE17: =(Datensätze_Sonstige!$O$16/1000)*J17*$CF$4 -> 0.00228382134 | CF17: =(Datensätze_Sonstige!$V$16/1000)*J17*$CF$4 -> 1.01634792e-08 | CG17: =(Datensätze_Sonstige!$W$16/1000)*J17*$CF$4 -> 0.00017956974 | CH17: 0 | CI17: =((gesamt_Emissionen!$J$6*J17)/CH17)+Berechnungen_u._Annahmen!$C$44 ->  | CJ17: =((gesamt_Emissionen!$R$6*J17)/CH17)+Berechnungen_u._Annahmen!$E$44 ->  | CK17: =((gesamt_Emissionen!$Z$6*J17)/CH17)+Berechnungen_u._Annahmen!$G$44 ->  | CL17: =CI17+IF($CK$1="ja",CB17,CE17)+IF($CN$1="ja",V17,Y17) ->  | CM17: =CJ17+IF($CK$1="ja",CC17,CF17)+IF($CN$1="ja",W17,Z17) ->  | CN17: =CK17+IF($CK$1="ja",CD17,CG17)+IF($CN$1="ja",X17,AA17) ->  | CO17: =CI17+IF($CK$1="nein",CB17,CE17)+IF($CN$1="ja",V17,Y17) ->  | CP17: =CJ17+IF($CK$1="nein",CC17,CF17)+IF($CN$1="ja",W17,Z17) ->  | CQ17: =CK17+IF($CK$1="nein",CD17,CG17)+IF($CN$1="ja",X17,AA17) ->  | CR17: 0.00228382134 | CS17: 1.01634792e-08 | CT17: 0.00017956974 | CU17: =IF($N17="M",(Datensätze_Sonstige!$O$16/1000)*J17*$CW$4,BY17) -> 0.0038063689 | CV17: =IF($N17="M",(Datensätze_Sonstige!$V$16/1000)*J17*$CW$4,BZ17) -> 1.6939132e-08 | CW17: =IF($N17="M",(Datensätze_Sonstige!$W$16/1000)*J17*$CW$4,CA17) -> 0.0002992829 | CY17: =((gesamt_Emissionen!$J$6*J17)/CH17) ->  | CZ17: =((gesamt_Emissionen!$R$6*J17)/CH17) ->  | DA17: =((gesamt_Emissionen!$Z$6*J17)/CH17) ->  | DB17: =Berechnungen_u._Annahmen!$C$44 -> 0.004225428636 | DC17: =Berechnungen_u._Annahmen!$E$44 -> 4.992025941e-08 | DD17: =Berechnungen_u._Annahmen!$G$44 -> 0.002446670267 | DE17: =IF($CK$1="ja",CB17,CE17) -> 0 | DF17: =IF($CK$1="ja",CC17,CF17) -> 0 | DG17: =IF($CK$1="ja",CD17,CG17) -> 0 | EA17: 131 | EH17: =((((gesamt_Emissionen!$J$6+ (gesamt_Emissionen!$G$6+gesamt_Emissionen!$H$6)))*$J17)/$EI$4)+ Berechnungen_u._Annahmen!$C$28 +(Datensätze_Sonstige!$O$16/1000)*$J17*$EI$3 -> 0.005953346886 | EJ17: 0.005953346886 | EK17: Kaltgetränke Becher; 0,3 l; PP; Mehrweg; 33,4g
C18: Becher | E18: CupConcept | F18: Kaltgetränke Becher; 0,25 l; PP; Mehrweg; 18,0g | G18: SL Cup [0,25 l] | H18: ='variable_Daten '!$B$6 -> 0 | I18: PP | J18: =18/1000 -> 0.018 | K18: =((gesamt_Emissionen!$J$6*J18)/H18)+Berechnungen_u._Annahmen!$C$44 ->  | L18: =((gesamt_Emissionen!$R$6*J18)/H18)+Berechnungen_u._Annahmen!$E$44 ->  | M18: =((gesamt_Emissionen!$Z$6*J18)/H18)+Berechnungen_u._Annahmen!$G$44 ->  | N18: M | O18: TRUE | P18: FALSE | Q18: FALSE | R18: FALSE | S18: TRUE | T18: TRUE | U18: Kunststoff | V18: =((gesamt_Emissionen!$F$6*'variable_Daten '!$F$19 +(gesamt_Emissionen!$G$6+gesamt_Emissionen!$H$6)*'variable_Daten '!$G$19) *J18)/H18 ->  | W18: =((gesamt_Emissionen!$N$6*'variable_Daten '!$F$19 +(gesamt_Emissionen!$O$6+gesamt_Emissionen!$P$6)*'variable_Daten '!$G$19) *J18)/H18 ->  | X18: =((gesamt_Emissionen!$V$6*'variable_Daten '!$F$19 +(gesamt_Emissionen!$W$6+gesamt_Emissionen!$X$6)*'variable_Daten '!$G$19) *J18)/H18 ->  | Y18: =((gesamt_Emissionen!$F$6*'variable_Daten '!$D$19 +(gesamt_Emissionen!$G$6+gesamt_Emissionen!$H$6)*'variable_Daten '!$E$19) *J18)/H18 ->  | Z18: =((gesamt_Emissionen!$N$6*'variable_Daten '!$D$19 +(gesamt_Emissionen!$O$6+gesamt_Emissionen!$P$6)*'variable_Daten '!$E$19) *J18)/H18 ->  | AA18: =((gesamt_Emissionen!$V$6*'variable_Daten '!$D$19 +(gesamt_Emissionen!$W$6+gesamt_Emissionen!$X$6)*'variable_Daten '!$E$19) *J18)/H18 ->  | AB18: nein | AC18: nein | AD18: nein | AE18: nein | AF18: nein | AG18: nein | AH18: nein | AI18: nein | AJ18: nein | AK18: nein | AL18: nein | AM18: nein | AN18: nein | AO18: nein | AP18: nein | AQ18: nein | AR18: nein | AS18: nein | AT18: nein | AU18: nein | AV18: nein | AW18: nein | AX18: nein | AY18: nein | AZ18: ja | BA18: nein | BB18: nein | BC18: nein | BD18: nein | BE18: nein | BF18: nein | BG18: nein | BH18: nein | BI18: nein | BJ18: nein | BK18: nein | BL18: nein | BM18: nein | BN18: nein | BO18: nein | BP18: nein | BQ18: nein | BR18: nein | BS18: nein | BT18: nein | BU18: nein | BV18: nein | BW18: nein | BX18: nein | BY18: =(Datensätze_Sonstige!$O$16/1000)*J18*$BZ$4 -> 0 | BZ18: =(Datensätze_Sonstige!$V$16/1000)*J18*$BZ$4 -> 0 | CA18: =(Datensätze_Sonstige!$W$16/1000)*J18*$BZ$4 -> 0 | CB18: =(Datensätze_Sonstige!$O$16/1000)*J18*$CC$4 -> 0 | CC18: =(Datensätze_Sonstige!$V$16/1000)*J18*$CC$4 -> 0 | CD18: =(Datensätze_Sonstige!$W$16/1000)*J18*$CC$4 -> 0 | CE18: =(Datensätze_Sonstige!$O$16/1000)*J18*$CF$4 -> 0.0012326472 | CF18: =(Datensätze_Sonstige!$V$16/1000)*J18*$CF$4 -> 5.485536e-09 | CG18: =(Datensätze_Sonstige!$W$16/1000)*J18*$CF$4 -> 9.69192e-05 | CH18: 0 | CI18: =((gesamt_Emissionen!$J$6*J18)/CH18)+Berechnungen_u._Annahmen!$C$44 ->  | CJ18: =((gesamt_Emissionen!$R$6*J18)/CH18)+Berechnungen_u._Annahmen!$E$44 ->  | CK18: =((gesamt_Emissionen!$Z$6*J18)/CH18)+Berechnungen_u._Annahmen!$G$44 ->  | CL18: =CI18+IF($CK$1="ja",CB18,CE18)+IF($CN$1="ja",V18,Y18) ->  | CO18: =CI18+IF($CK$1="nein",CB18,CE18)+IF($CN$1="ja",V18,Y18) ->  | CR18: 0.0012326472 | CS18: 5.485536e-09 | CT18: 9.69192e-05 | CU18: =IF($N18="M",(Datensätze_Sonstige!$O$16/1000)*J18*$CW$4,BY18) -> 0.002054412 | CV18: =IF($N18="M",(Datensätze_Sonstige!$V$16/1000)*J18*$CW$4,BZ18) -> 9.14256e-09 | CW18: =IF($N18="M",(Datensätze_Sonstige!$W$16/1000)*J18*$CW$4,CA18) -> 0.000161532 | CY18: =((gesamt_Emissionen!$J$6*J18)/CH18) ->  | CZ18: =((gesamt_Emissionen!$R$6*J18)/CH18) ->  | DA18: =((gesamt_Emissionen!$Z$6*J18)/CH18) ->  | DB18: =Berechnungen_u._Annahmen!$C$44 -> 0.004225428636 | DC18: =Berechnungen_u._Annahmen!$E$44 -> 4.992025941e-08 | DD18: =Berechnungen_u._Annahmen!$G$44 -> 0.002446670267 | DE18: =IF($CK$1="ja",CB18,CE18) -> 0 | DF18: =IF($CK$1="ja",CC18,CF18) -> 0 | DG18: =IF($CK$1="ja",CD18,CG18) -> 0 | EA18: 131 | EH18: =((((gesamt_Emissionen!$J$6+ (gesamt_Emissionen!$G$6+gesamt_Emissionen!$H$6))*$J18)/$EI$4)+ Berechnungen_u._Annahmen!$C$28 +(Datensätze_Sonstige!$O$16/1000)*$J18*$EI$3) -> 0.004953532812 | EJ18: 0.004953532812 | EK18: Kaltgetränke Becher; 0,25 l; PP; Mehrweg; 18,0g
C19: Becher | E19: CupConcept | F19: Kaltgetränke Becher; 0,3 l; PP; Mehrweg; 20,5g | G19: SL Cup [0,3 l] | H19: ='variable_Daten '!$B$6 -> 0 | I19: PP | J19: =20.5/1000 -> 0.0205 | K19: =((gesamt_Emissionen!$J$6*J19)/H19)+Berechnungen_u._Annahmen!$C$44 ->  | L19: =((gesamt_Emissionen!$R$6*J19)/H19)+Berechnungen_u._Annahmen!$E$44 ->  | M19: =((gesamt_Emissionen!$Z$6*J19)/H19)+Berechnungen_u._Annahmen!$G$44 ->  | N19: M | O19: TRUE | P19: FALSE | Q19: FALSE | R19: FALSE | S19: TRUE | T19: TRUE | U19: Kunststoff | V19: =((gesamt_Emissionen!$F$6*'variable_Daten '!$F$19 +(gesamt_Emissionen!$G$6+gesamt_Emissionen!$H$6)*'variable_Daten '!$G$19) *J19)/H19 ->  | W19: =((gesamt_Emissionen!$N$6*'variable_Daten '!$F$19 +(gesamt_Emissionen!$O$6+gesamt_Emissionen!$P$6)*'variable_Daten '!$G$19) *J19)/H19 ->  | X19: =((gesamt_Emissionen!$V$6*'variable_Daten '!$F$19 +(gesamt_Emissionen!$W$6+gesamt_Emissionen!$X$6)*'variable_Daten '!$G$19) *J19)/H19 ->  | Y19: =((gesamt_Emissionen!$F$6*'variable_Daten '!$D$19 +(gesamt_Emissionen!$G$6+gesamt_Emissionen!$H$6)*'variable_Daten '!$E$19) *J19)/H19 ->  | Z19: =((gesamt_Emissionen!$N$6*'variable_Daten '!$D$19 +(gesamt_Emissionen!$O$6+gesamt_Emissionen!$P$6)*'variable_Daten '!$E$19) *J19)/H19 ->  | AA19: =((gesamt_Emissionen!$V$6*'variable_Daten '!$D$19 +(gesamt_Emissionen!$W$6+gesamt_Emissionen!$X$6)*'variable_Daten '!$E$19) *J19)/H19 ->  | AB19: nein | AC19: nein | AD19: nein | AE19: nein | AF19: nein | AG19: nein | AH19: nein | AI19: nein | AJ19: nein | AK19: nein | AL19: nein | AM19: nein | AN19: nein | AO19: nein | AP19: nein | AQ19: nein | AR19: nein | AS19: nein | AT19: nein | AU19: nein | AV19: nein | AW19: nein | AX19: nein | AY19: nein | AZ19: nein | BA19: ja | BB19: nein | BC19: nein | BD19: nein | BE19: nein | BF19: nein | BG19: nein | BH19: nein | BI19: nein | BJ19: nein | BK19: nein | BL19: nein | BM19: nein | BN19: nein | BO19: nein | BP19: nein | BQ19: nein | BR19: nein | BS19: nein | BT19: nein | BU19: nein | BV19: nein | BW19: nein | BX19: nein | BY19: =(Datensätze_Sonstige!$O$16/1000)*J19*$BZ$4 -> 0 | BZ19: =(Datensätze_Sonstige!$V$16/1000)*J19*$BZ$4 -> 0 | CA19: =(Datensätze_Sonstige!$W$16/1000)*J19*$BZ$4 -> 0 | CB19: =(Datensätze_Sonstige!$O$16/1000)*J19*$CC$4 -> 0 | CC19: =(Datensätze_Sonstige!$V$16/1000)*J19*$CC$4 -> 0 | CD19: =(Datensätze_Sonstige!$W$16/1000)*J19*$CC$4 -> 0 | CE19: =(Datensätze_Sonstige!$O$16/1000)*J19*$CF$4 -> 0.0014038482 | CF19: =(Datensätze_Sonstige!$V$16/1000)*J19*$CF$4 -> 6.247416e-09 | CG19: =(Datensätze_Sonstige!$W$16/1000)*J19*$CF$4 -> 0.0001103802 | CH19: 0 | CI19: =((gesamt_Emissionen!$J$6*J19)/CH19)+Berechnungen_u._Annahmen!$C$44 ->  | CJ19: =((gesamt_Emissionen!$R$6*J19)/CH19)+Berechnungen_u._Annahmen!$E$44 ->  | CK19: =((gesamt_Emissionen!$Z$6*J19)/CH19)+Berechnungen_u._Annahmen!$G$44 ->  | CL19: =CI19+IF($CK$1="ja",CB19,CE19)+IF($CN$1="ja",V19,Y19) ->  | CR19: 0.0014038482 | CS19: 6.247416e-09 | CT19: 0.0001103802 | CU19: =IF($N19="M",(Datensätze_Sonstige!$O$16/1000)*J19*$CW$4,BY19) -> 0.002339747 | CV19: =IF($N19="M",(Datensätze_Sonstige!$V$16/1000)*J19*$CW$4,BZ19) -> 1.041236e-08 | CW19: =IF($N19="M",(Datensätze_Sonstige!$W$16/1000)*J19*$CW$4,CA19) -> 0.000183967 | CY19: =((gesamt_Emissionen!$J$6*J19)/CH19) ->  | CZ19: =((gesamt_Emissionen!$R$6*J19)/CH19) ->  | DA19: =((gesamt_Emissionen!$Z$6*J19)/CH19) ->  | DB19: =Berechnungen_u._Annahmen!$C$44 -> 0.004225428636 | DC19: =Berechnungen_u._Annahmen!$E$44 -> 4.992025941e-08 | DD19: =Berechnungen_u._Annahmen!$G$44 -> 0.002446670267 | DE19: 0 | DF19: 0 | DG19: 0 | EA19: 131 | EH19: =((((gesamt_Emissionen!$J$6+(gesamt_Emissionen!$G$6+gesamt_Emissionen!$H$6))*$J19)/$EI$4)+ Berechnungen_u._Annahmen!$C$28 +(Datensätze_Sonstige!$O$16/1000)*$J19*$EI$3) -> 0.00511636898 | EJ19: 0.00511636898 | EK19: Kaltgetränke Becher; 0,3 l; PP; Mehrweg; 20,5g
C20: Becher | E20: CupConcept | F20: Kaltgetränke Becher; 0,4 l; PP; Mehrweg; 25,0g | G20: SL Cup [0,4 l] | H20: ='variable_Daten '!$B$6 -> 0 | I20: PP | J20: =25/1000 -> 0.025 | K20: =((gesamt_Emissionen!$J$6*J20)/H20)+Berechnungen_u._Annahmen!$C$44 ->  | L20: =((gesamt_Emissionen!$R$6*J20)/H20)+Berechnungen_u._Annahmen!$E$44 ->  | M20: =((gesamt_Emissionen!$Z$6*J20)/H20)+Berechnungen_u._Annahmen!$G$44 ->  | N20: M | O20: TRUE | P20: FALSE | Q20: FALSE | R20: FALSE | S20: TRUE | T20: TRUE | U20: Kunststoff | V20: =((gesamt_Emissionen!$F$6*'variable_Daten '!$F$19 +(gesamt_Emissionen!$G$6+gesamt_Emissionen!$H$6)*'variable_Daten '!$G$19) *J20)/H20 ->  | W20: =((gesamt_Emissionen!$N$6*'variable_Daten '!$F$19 +(gesamt_Emissionen!$O$6+gesamt_Emissionen!$P$6)*'variable_Daten '!$G$19) *J20)/H20 ->  | X20: =((gesamt_Emissionen!$V$6*'variable_Daten '!$F$19 +(gesamt_Emissionen!$W$6+gesamt_Emissionen!$X$6)*'variable_Daten '!$G$19) *J20)/H20 ->  | Y20: =((gesamt_Emissionen!$F$6*'variable_Daten '!$D$19 +(gesamt_Emissionen!$G$6+gesamt_Emissionen!$H$6)*'variable_Daten '!$E$19) *J20)/H20 ->  | Z20: =((gesamt_Emissionen!$N$6*'variable_Daten '!$D$19 +(gesamt_Emissionen!$O$6+gesamt_Emissionen!$P$6)*'variable_Daten '!$E$19) *J20)/H20 ->  | AA20: =((gesamt_Emissionen!$V$6*'variable_Daten '!$D$19 +(gesamt_Emissionen!$W$6+gesamt_Emissionen!$X$6)*'variable_Daten '!$E$19) *J20)/H20 ->  | AB20: nein | AC20: nein | AD20: nein | AE20: nein | AF20: nein | AG20: nein | AH20: nein | AI20: nein | AJ20: nein | AK20: nein | AL20: nein | AM20: nein | AN20: nein | AO20: nein | AP20: nein | AQ20: nein | AR20: nein | AS20: nein | AT20: nein | AU20: nein | AV20: nein | AW20: nein | AX20: nein | AY20: nein | AZ20: nein | BA20: nein | BB20: ja | BC20: nein | BD20: nein | BE20: nein | BF20: nein | BG20: nein | BH20: nein | BI20: nein | BJ20: nein | BK20: nein | BL20: nein | BM20: nein | BN20: nein | BO20: nein | BP20: nein | BQ20: nein | BR20: nein | BS20: nein | BT20: nein | BU20: nein | BV20: nein | BW20: nein | BX20: nein | BY20: =(Datensätze_Sonstige!$O$16/1000)*J20*$BZ$4 -> 0 | BZ20: =(Datensätze_Sonstige!$V$16/1000)*J20*$BZ$4 -> 0 | CA20: =(Datensätze_Sonstige!$W$16/1000)*J20*$BZ$4 -> 0 | CB20: =(Datensätze_Sonstige!$O$16/1000)*J20*$CC$4 -> 0 | CC20: =(Datensätze_Sonstige!$V$16/1000)*J20*$CC$4 -> 0 | CD20: =(Datensätze_Sonstige!$W$16/1000)*J20*$CC$4 -> 0 | CE20: =(Datensätze_Sonstige!$O$16/1000)*J20*$CF$4 -> 0.00171201 | CF20: =(Datensätze_Sonstige!$V$16/1000)*J20*$CF$4 -> 7.6188e-09 | CG20: =(Datensätze_Sonstige!$W$16/1000)*J20*$CF$4 -> 0.00013461 | CH20: 0 | CI20: =((gesamt_Emissionen!$J$6*J20)/CH20)+Berechnungen_u._Annahmen!$C$44 ->  | CJ20: =((gesamt_Emissionen!$R$6*J20)/CH20)+Berechnungen_u._Annahmen!$E$44 ->  | CK20: =((gesamt_Emissionen!$Z$6*J20)/CH20)+Berechnungen_u._Annahmen!$G$44 ->  | CL20: =CI20+IF($CK$1="ja",CB20,CE20)+IF($CN$1="ja",V20,Y20) ->  | CO20: =CI20+IF($CK$1="nein",CB20,CE20)+IF($CN$1="ja",V20,Y20) ->  | CR20: 0.00171201 | CS20: 7.6188e-09 | CT20: 0.00013461 | CU20: =IF($N20="M",(Datensätze_Sonstige!$O$16/1000)*J20*$CW$4,BY20) -> 0.00285335 | CV20: =IF($N20="M",(Datensätze_Sonstige!$V$16/1000)*J20*$CW$4,BZ20) -> 1.2698e-08 | CW20: =IF($N20="M",(Datensätze_Sonstige!$W$16/1000)*J20*$CW$4,CA20) -> 0.00022435 | CY20: =((gesamt_Emissionen!$J$6*J20)/CH20) ->  | CZ20: =((gesamt_Emissionen!$R$6*J20)/CH20) ->  | DA20: =((gesamt_Emissionen!$Z$6*J20)/CH20) ->  | DB20: =Berechnungen_u._Annahmen!$C$44 -> 0.004225428636 | DC20: =Berechnungen_u._Annahmen!$E$44 -> 4.992025941e-08 | DD20: =Berechnungen_u._Annahmen!$G$44 -> 0.002446670267 | DE20: 0 | DF20: 0 | DG20: 0 | EA20: 131 | EH20: =((((gesamt_Emissionen!$J$6+(gesamt_Emissionen!$G$6+gesamt_Emissionen!$H$6))*$J20)/$EI$4)+ Berechnungen_u._Annahmen!$C$28 +(Datensätze_Sonstige!$O$16/1000)*$J20*$EI$3) -> 0.005409474083 | EJ20: 0.005409474083 | EK20: Kaltgetränke Becher; 0,4 l; PP; Mehrweg; 25,0g
C21: Becher | E21: CupConcept | F21: Kaltgetränke Becher; 0,5 l; PP; Mehrweg; 30,0g | G21: SL Cup [0,5 l] | H21: ='variable_Daten '!$B$6 -> 0 | I21: PP | J21: =30/1000 -> 0.03 | K21: =((gesamt_Emissionen!$J$6*J21)/H21)+Berechnungen_u._Annahmen!$C$44 ->  | L21: =((gesamt_Emissionen!$R$6*J21)/H21)+Berechnungen_u._Annahmen!$E$44 ->  | M21: =((gesamt_Emissionen!$Z$6*J21)/H21)+Berechnungen_u._Annahmen!$G$44 ->  | N21: M | O21: TRUE | P21: FALSE | Q21: FALSE | R21: FALSE | S21: TRUE | T21: TRUE | U21: Kunststoff | V21: =((gesamt_Emissionen!$F$6*'variable_Daten '!$F$19 +(gesamt_Emissionen!$G$6+gesamt_Emissionen!$H$6)*'variable_Daten '!$G$19) *J21)/H21 ->  | W21: =((gesamt_Emissionen!$N$6*'variable_Daten '!$F$19 +(gesamt_Emissionen!$O$6+gesamt_Emissionen!$P$6)*'variable_Daten '!$G$19) *J21)/H21 ->  | X21: =((gesamt_Emissionen!$V$6*'variable_Daten '!$F$19 +(gesamt_Emissionen!$W$6+gesamt_Emissionen!$X$6)*'variable_Daten '!$G$19) *J21)/H21 ->  | Y21: =((gesamt_Emissionen!$F$6*'variable_Daten '!$D$19 +(gesamt_Emissionen!$G$6+gesamt_Emissionen!$H$6)*'variable_Daten '!$E$19) *J21)/H21 ->  | Z21: =((gesamt_Emissionen!$N$6*'variable_Daten '!$D$19 +(gesamt_Emissionen!$O$6+gesamt_Emissionen!$P$6)*'variable_Daten '!$E$19) *J21)/H21 ->  | AA21: =((gesamt_Emissionen!$V$6*'variable_Daten '!$D$19 +(gesamt_Emissionen!$W$6+gesamt_Emissionen!$X$6)*'variable_Daten '!$E$19) *J21)/H21 ->  | AB21: nein | AC21: nein | AD21: nein | AE21: nein | AF21: nein | AG21: nein | AH21: nein | AI21: nein | AJ21: nein | AK21: nein | AL21: nein | AM21: nein | AN21: nein | AO21: nein | AP21: nein | AQ21: nein | AR21: nein | AS21: nein | AT21: nein | AU21: nein | AV21: nein | AW21: nein | AX21: nein | AY21: nein | AZ21: nein | BA21: nein | BB21: nein | BC21: ja | BD21: nein | BE21: nein | BF21: nein | BG21: nein | BH21: nein | BI21: nein | BJ21: nein | BK21: nein | BL21: nein | BM21: nein | BN21: nein | BO21: nein | BP21: nein | BQ21: nein | BR21: nein | BS21: nein | BT21: nein | BU21: nein | BV21: nein | BW21: nein | BX21: nein | BY21: =(Datensätze_Sonstige!$O$16/1000)*J21*$BZ$4 -> 0 | BZ21: =(Datensätze_Sonstige!$V$16/1000)*J21*$BZ$4 -> 0 | CA21: =(Datensätze_Sonstige!$W$16/1000)*J21*$BZ$4 -> 0 | CB21: =(Datensätze_Sonstige!$O$16/1000)*J21*$CC$4 -> 0 | CC21: =(Datensätze_Sonstige!$V$16/1000)*J21*$CC$4 -> 0 | CD21: =(Datensätze_Sonstige!$W$16/1000)*J21*$CC$4 -> 0 | CE21: =(Datensätze_Sonstige!$O$16/1000)*J21*$CF$4 -> 0.002054412 | CF21: =(Datensätze_Sonstige!$V$16/1000)*J21*$CF$4 -> 9.14256e-09 | CG21: =(Datensätze_Sonstige!$W$16/1000)*J21*$CF$4 -> 0.000161532 | CH21: 0 | CI21: =((gesamt_Emissionen!$J$6*J21)/CH21)+Berechnungen_u._Annahmen!$C$44 ->  | CJ21: =((gesamt_Emissionen!$R$6*J21)/CH21)+Berechnungen_u._Annahmen!$E$44 ->  | CK21: =((gesamt_Emissionen!$Z$6*J21)/CH21)+Berechnungen_u._Annahmen!$G$44 ->  | CL21: =CI21+IF($CK$1="ja",CB21,CE21)+IF($CN$1="ja",V21,Y21) ->  | CR21: 0.002054412 | CS21: 9.14256e-09 | CT21: 0.000161532 | CU21: =IF($N21="M",(Datensätze_Sonstige!$O$16/1000)*J21*$CW$4,BY21) -> 0.00342402 | CV21: =IF($N21="M",(Datensätze_Sonstige!$V$16/1000)*J21*$CW$4,BZ21) -> 1.52376e-08 | CW21: =IF($N21="M",(Datensätze_Sonstige!$W$16/1000)*J21*$CW$4,CA21) -> 0.00026922 | CY21: =((gesamt_Emissionen!$J$6*J21)/CH21) ->  | CZ21: =((gesamt_Emissionen!$R$6*J21)/CH21) ->  | DA21: =((gesamt_Emissionen!$Z$6*J21)/CH21) ->  | DB21: =Berechnungen_u._Annahmen!$C$44 -> 0.004225428636 | DC21: =Berechnungen_u._Annahmen!$E$44 -> 4.992025941e-08 | DD21: =Berechnungen_u._Annahmen!$G$44 -> 0.002446670267 | DE21: 0 | DF21: 0 | DG21: 0 | EA21: 131 | EH21: =((((gesamt_Emissionen!$J$6+(gesamt_Emissionen!$G$6+gesamt_Emissionen!$H$6))*$J21)/$EI$4)+ Berechnungen_u._Annahmen!$C$28 +(Datensätze_Sonstige!$O$16/1000)*$J21*$EI$3) -> 0.00573514642 | EJ21: 0.00573514642 | EK21: Kaltgetränke Becher; 0,5 l; PP; Mehrweg; 30,0g
